Workbook

Sheet 1月
M2: 2025年 | N2: 1月 | O2: 全国期货市场成交情况统计
A3: 交易所名称 | B3: 品种名称 | C3: 本月成交量（手） | D3: 去年同期成交量（手） | E3: 同比增减（％） | F3: 上月成交量（手） | G3: 环比增减（％） | H3: 本月成交量占全国份额（％） | I3: 本月成交额 （亿元） | J3: 去年同期成交额（亿元） | K3: 同比增减（％） | L3: 上月成交额 （亿元） | M3: 环比增减（％） | N3: 本月交易额占全国份额（％） | O3: 今年累计成交总量（手） | P3: 去年同期成交总量（手） | Q3: 同比增减（％） | R3: 今年累计成交总量占全国份额(%) | S3: 今年累计成交总额（亿元） | T3: 去年同期成交总额（亿元） | U3: 同比增减（％） | V3: 今年累计成交总额占全国份额(%) | W3: 本月月末持仓量(手） | X3: 本月月末持仓量占全国份额（%） | Y3: 上月月末持仓量（手） | Z3: 环比增减（％）
A4: 上海期货交易所 | B4: 铜 | C4: 2,479,111 | D4: 2,511,424 | E4: -0.01286640567 | F4: 2,612,676 | G4: -0.05112191485 | H4: 0.004485350375 | I4: 9,301.15 | J4: 8,580.26 | K4: 0.08401708742 | L4: 9,724.94 | M4: -0.04357788247 | N4: 0.01903117183 | O4: 2,479,111 | P4: 2,511,424 | Q4: -0.01286640567 | R4: 0.004485350375 | S4: 9,301.15 | T4: 8,580.26 | U4: 0.08401708742 | V4: 0.01903117183 | W4: 390,262 | X4: 0.01026783802 | Y4: 386,350 | Z4: 0.010126
B5: 铝 | C5: 4,485,468 | D5: 5,291,767 | E5: -0.1523685756 | F5: 4,951,605 | G5: -0.09413856719 | H5: 0.008115366991 | I5: 4,513.44 | J5: 5,035.66 | K5: -0.1037038243 | L5: 4,993.36 | M5: -0.09611039565 | N5: 0.00923500184 | O5: 4,485,468 | P5: 5,291,767 | Q5: -0.1523685756 | R5: 0.008115366991 | S5: 4,513.44 | T5: 5,035.66 | U5: -0.1037038243 | V5: 0.00923500184 | W5: 397,948 | X5: 0.01047005756 | Y5: 394,039 | Z5: 0.00992
B6: 锌 | C6: 4,992,645 | D6: 3,321,711 | E6: 0.5030341291 | F6: 6,080,179 | G6: -0.1788654577 | H6: 0.009032980824 | I6: 6,029.97 | J6: 3,516.62 | K6: 0.7147069503 | L6: 7,723.85 | M6: -0.2193044156 | N6: 0.01233798974 | O6: 4,992,645 | P6: 3,321,711 | Q6: 0.5030341291 | R6: 0.009032980824 | S6: 6,029.97 | T6: 3,516.62 | U6: 0.7147069503 | V6: 0.01233798974 | W6: 172,622 | X6: 0.004541704637 | Y6: 289,113 | Z6: -0.402925
B7: 铅 | C7: 1,102,929 | D7: 1,563,727 | E7: -0.2946793142 | F7: 1,775,712 | G7: -0.3788806969 | H7: 0.001995482657 | I7: 918.91 | J7: 1,273.21 | K7: -0.2782753192 | L7: 1,548.16 | M7: -0.406452278 | N7: 0.001880187572 | O7: 1,102,929 | P7: 1,563,727 | Q7: -0.2946793142 | R7: 0.001995482657 | S7: 918.91 | T7: 1,273.21 | U7: -0.2782753192 | V7: 0.001880187572 | W7: 66,099 | X7: 0.001739072278 | Y7: 81,975 | Z7: -0.193669
B8: 黄金 | C8: 5,984,706 | D8: 4,212,550 | E8: 0.4206848583 | F8: 6,826,813 | G8: -0.1233528734 | H8: 0.01082787471 | I8: 38,064.50 | J8: 20,253.34 | K8: 0.8794180112 | L8: 42,303.94 | M8: -0.1002138782 | N8: 0.07788414388 | O8: 5,984,706 | P8: 4,212,550 | Q8: 0.4206848583 | R8: 0.01082787471 | S8: 38,064.50 | T8: 20,253.34 | U8: 0.8794180112 | V8: 0.07788414388 | W8: 351,567 | X8: 0.009249768129 | Y8: 337,615 | Z8: 0.041325
B9: 天然橡胶 | C9: 9,343,482 | D9: 4,928,050 | E9: 0.8959795457 | F9: 11,915,725 | G9: -0.2158696177 | H9: 0.01690476566 | I9: 16,076.60 | J9: 6,776.91 | K9: 1.37226093 | L9: 21,770.87 | M9: -0.2615547756 | N9: 0.0328944859 | O9: 9,343,482 | P9: 4,928,050 | Q9: 0.8959795457 | R9: 0.01690476566 | S9: 16,076.60 | T9: 6,776.91 | U9: 1.37226093 | V9: 0.0328944859 | W9: 190,494 | X9: 0.005011919008 | Y9: 237,734 | Z9: -0.198709
B10: 燃料油 | C10: 14,730,915 | D10: 22,359,647 | E10: -0.3411830249 | F10: 16,930,536 | G10: -0.1299203404 | H10: 0.02665201967 | I10: 5,138.07 | J10: 6,709.77 | K10: -0.2342400133 | L10: 5,389.04 | M10: -0.04656959887 | N10: 0.01051306395 | O10: 14,730,915 | P10: 22,359,647 | Q10: -0.3411830249 | R10: 0.02665201967 | S10: 5,138.07 | T10: 6,709.77 | U10: -0.2342400133 | V10: 0.01051306395 | W10: 350,582 | X10: 0.009223852666 | Y10: 453,335 | Z10: -0.22666
B11: 螺纹钢 | C11: 27,746,540 | D11: 27,028,516 | E11: 0.02656542446 | F11: 41,400,674 | G11: -0.3298046307 | H11: 0.05020063789 | I11: 9,143.59 | J11: 10,646.22 | K11: -0.1411424221 | L11: 13,798.83 | M11: -0.3373648041 | N11: 0.01870878542 | O11: 27,746,540 | P11: 27,028,516 | Q11: 0.02656542446 | R11: 0.05020063789 | S11: 9,143.59 | T11: 10,646.22 | U11: -0.1411424221 | V11: 0.01870878542 | W11: 2,148,906 | X11: 0.05653796355 | Y11: 2,180,197 | Z11: -0.014352
B12: 线材 | C12: 631 | D12: 6,088 | E12: -0.8963534823 | F12: 2,297 | G12: -0.7252938616 | H12: 1.141641535e-06 | I12: 0.23 | J12: 2.53 | K12: -0.9108920127 | L12: 0.82 | M12: -0.7265043842 | N12: 4.612934223e-07 | O12: 631 | P12: 6,088 | Q12: -0.8963534823 | R12: 1.141641535e-06 | S12: 0.23 | T12: 2.53 | U12: -0.9108920127 | V12: 4.612934223e-07 | W12: 59 | X12: 1.552296773e-06 | Y12: 38 | Z12: 0.552632
B13: 白银 | C13: 17,308,944 | D13: 13,291,761 | E13: 0.3022310588 | F13: 23,113,464 | G13: -0.2511315483 | H13: 0.03131633818 | I13: 20,088.85 | J13: 11,775.18 | K13: 0.70603382 | L13: 26,767.15 | M13: -0.2494960958 | N13: 0.04110399864 | O13: 17,308,944 | P13: 13,291,761 | Q13: 0.3022310588 | R13: 0.03131633818 | S13: 20,088.85 | T13: 11,775.18 | U13: 0.70603382 | V13: 0.04110399864 | W13: 589,103 | X13: 0.01549936756 | Y13: 689,628 | Z13: -0.145767
B14: 石油沥青 | C14: 7,692,575 | D14: 4,486,925 | E14: 0.7144425191 | F14: 8,508,004 | G14: -0.09584257365 | H14: 0.01391784965 | I14: 2,864.47 | J14: 1,666.39 | K14: 0.7189613925 | L14: 3,015.61 | M14: -0.0501189293 | N14: 0.005861012435 | O14: 7,692,575 | P14: 4,486,925 | Q14: 0.7144425191 | R14: 0.01391784965 | S14: 2,864.47 | T14: 1,666.39 | U14: 0.7189613925 | V14: 0.005861012435 | W14: 506,140 | X14: 0.0133166015 | Y14: 510,493 | Z14: -0.008527
B15: 热轧卷板 | C15: 8,998,863 | D15: 8,745,627 | E15: 0.02895572839 | F15: 13,269,720 | G15: -0.3218498205 | H15: 0.01628126112 | I15: 3,065.10 | J15: 3,551.59 | K15: -0.1369793649 | L15: 4,616.99 | M15: -0.336126787 | N15: 0.006271521523 | O15: 8,998,863 | P15: 8,745,627 | Q15: 0.02895572839 | R15: 0.01628126112 | S15: 3,065.10 | T15: 3,551.59 | U15: -0.1369793649 | V15: 0.006271521523 | W15: 1,442,034 | X15: 0.03794008008 | Y15: 1,292,787 | Z15: 0.115446
B16: 镍 | C16: 3,394,890 | D16: 5,520,340 | E16: -0.3850215748 | F16: 4,078,296 | G16: -0.1675714563 | H16: 0.006142230475 | I16: 4,272.70 | J16: 7,048.25 | K16: -0.3937926693 | L16: 5,131.30 | M16: -0.1673253598 | N16: 0.008742417343 | O16: 3,394,890 | P16: 5,520,340 | Q16: -0.3850215748 | R16: 0.006142230475 | S16: 4,272.70 | T16: 7,048.25 | U16: -0.3937926693 | V16: 0.008742417343 | W16: 165,516 | X16: 0.004354744961 | Y16: 173,417 | Z16: -0.045561
B17: 锡 | C17: 1,663,152 | D17: 1,601,617 | E17: 0.03842054624 | F17: 1,970,119 | G17: -0.1558114002 | H17: 0.003009070367 | I17: 4,135.32 | J17: 3,418.45 | K17: 0.209705486 | L17: 4,825.58 | M17: -0.1430418054 | N17: 0.008461312978 | O17: 1,663,152 | P17: 1,601,617 | Q17: 0.03842054624 | R17: 0.003009070367 | S17: 4,135.32 | T17: 3,418.45 | U17: 0.209705486 | V17: 0.008461312978 | W17: 44,975 | X17: 0.001183297413 | Y17: 52,100 | Z17: -0.136756
B18: 纸浆 | C18: 4,778,211 | D18: 10,203,058 | E18: -0.5316883428 | F18: 4,574,225 | G18: 0.04459465811 | H18: 0.008645014484 | I18: 2,874.99 | J18: 5,872.58 | K18: -0.5104388557 | L18: 2,676.00 | M18: 0.07436121661 | N18: 0.00588253936 | O18: 4,778,211 | P18: 10,203,058 | Q18: -0.5316883428 | R18: 0.008645014484 | S18: 2,874.99 | T18: 5,872.58 | U18: -0.5104388557 | V18: 0.00588253936 | W18: 208,751 | X18: 0.005492262774 | Y18: 216,988 | Z18: -0.037961
B19: 不锈钢 | C19: 4,716,479 | D19: 5,306,629 | E19: -0.1112099602 | F19: 4,442,912 | G19: 0.06157380565 | H19: 0.008533325395 | I19: 3,080.85 | J19: 3,719.20 | K19: -0.171634741 | L19: 2,891.22 | M19: 0.06558810449 | N19: 0.006303765857 | O19: 4,716,479 | P19: 5,306,629 | Q19: -0.1112099602 | R19: 0.008533325395 | S19: 3,080.85 | T19: 3,719.20 | U19: -0.171634741 | V19: 0.006303765857 | W19: 288,339 | X19: 0.007586232191 | Y19: 248,161 | Z19: 0.161903
B20: 氧化铝 | C20: 5,730,507 | D20: 5,870,857 | E20: -0.02390622017 | F20: 6,794,504 | G20: -0.1565967141 | H20: 0.01036796324 | I20: 4,508.79 | J20: 4,016.26 | K20: 0.1226324308 | L20: 6,386.61 | M20: -0.2940249313 | N20: 0.009225472891 | O20: 5,730,507 | P20: 5,870,857 | Q20: -0.02390622017 | R20: 0.01036796324 | S20: 4,508.79 | T20: 4,016.26 | U20: 0.1226324308 | V20: 0.009225472891 | W20: 186,824 | X20: 0.004915360887 | Y20: 366,506 | Z20: -0.490257
B21: 丁二烯橡胶 | C21: 3,976,473 | D21: 640,580 | E21: 5.207613413 | F21: 5,059,090 | G21: -0.213994414 | H21: 0.007194463928 | I21: 2,823.22 | J21: 395.23 | K21: 6.143233882 | L21: 3,391.87 | M21: -0.1676508386 | N21: 0.005776613531 | O21: 3,976,473 | P21: 640,580 | Q21: 5.207613413 | R21: 0.007194463928 | S21: 2,823.22 | T21: 395.23 | U21: 6.143233882 | V21: 0.005776613531 | W21: 63,745 | X21: 0.001677138268 | Y21: 100,418 | Z21: -0.365203
B22: 铜期权 | C22: 1,172,985 | D22: 776,542 | E22: 0.5105235776 | F22: 1,219,349 | G22: -0.03802356831 | H22: 0.002122232006 | I22: 22.00 | J22: 9.11 | K22: 1.416683882 | L22: 22.12 | M22: -0.005223170666 | N22: 4.502373086e-05 | O22: 1,172,985 | P22: 776,542 | Q22: 0.5105235776 | R22: 0.002122232006 | S22: 22.00 | T22: 9.11 | U22: 1.416683882 | V22: 4.502373086e-05 | W22: 51,887 | X22: 0.001365152926 | Y22: 58,000 | Z22: -0.105397
B23: 天胶期权 | C23: 559,639 | D23: 374,085 | E23: 0.4960209578 | F23: 1,463,237 | G23: -0.6175335916 | H23: 0.001012531104 | I23: 16.32 | J23: 6.54 | K23: 1.493696447 | L23: 24.23 | M23: -0.3265819906 | N23: 3.338837776e-05 | O23: 559,639 | P23: 374,085 | Q23: 0.4960209578 | R23: 0.001012531104 | S23: 16.32 | T23: 6.54 | U23: 1.493696447 | V23: 3.338837776e-05 | W23: 81,243 | X23: 0.002137512656 | Y23: 55,875 | Z23: 0.454013
B24: 黄金期权 | C24: 1,561,211 | D24: 434,517 | E24: 2.592980252 | F24: 924,101 | G24: 0.6894376264 | H24: 0.00282463284 | I24: 57.58 | J24: 9.78 | K24: 4.889952999 | L24: 48.08 | M24: 0.1974907 | N24: 0.0001178170745 | O24: 1,561,211 | P24: 434,517 | Q24: 2.592980252 | R24: 0.00282463284 | S24: 57.58 | T24: 9.78 | U24: 4.889952999 | V24: 0.0001178170745 | W24: 68,863 | X24: 0.001811793435 | Y24: 87,375 | Z24: -0.211868
B25: 铝期权 | C25: 1,288,082 | D25: 1,387,263 | E25: -0.07149401375 | F25: 1,458,798 | G25: -0.1170251125 | H25: 0.002330472126 | I25: 6.56 | J25: 6.05 | K25: 0.08401605253 | L25: 7.16 | M25: -0.0833292935 | N25: 1.342538208e-05 | O25: 1,288,082 | P25: 1,387,263 | Q25: -0.07149401375 | R25: 0.002330472126 | S25: 6.56 | T25: 6.05 | U25: 0.08401605253 | V25: 1.342538208e-05 | W25: 53,828 | X25: 0.001416220859 | Y25: 52,831 | Z25: 0.018871
B26: 锌期权 | C26: 1,876,278 | D26: 738,095 | E26: 1.542054885 | F26: 1,713,960 | G26: 0.09470349366 | H26: 0.003394670199 | I26: 12.42 | J26: 3.56 | K26: 2.487323301 | L26: 13.12 | M26: -0.05362751508 | N26: 2.541342109e-05 | O26: 1,876,278 | P26: 738,095 | Q26: 1.542054885 | R26: 0.003394670199 | S26: 12.42 | T26: 3.56 | U26: 2.487323301 | V26: 2.541342109e-05 | W26: 37,607 | X26: 0.0009894444872 | Y26: 43,505 | Z26: -0.135571
B27: 白银期权 | C27: 5,658,311 | D27: 1,960,922 | E27: 1.885535988 | F27: 6,225,774 | G27: -0.09114738184 | H27: 0.01023734208 | I27: 43.92 | J27: 10.69 | K27: 3.110041208 | L27: 54.86 | M27: -0.1994527475 | N27: 8.986506739e-05 | O27: 5,658,311 | P27: 1,960,922 | Q27: 1.885535988 | R27: 0.01023734208 | S27: 43.92 | T27: 10.69 | U27: 3.110041208 | V27: 8.986506739e-05 | W27: 113,194 | X27: 0.002978147134 | Y27: 219,816 | Z27: -0.485051
B28: 螺纹钢期权 | C28: 2,238,030 | D28: 2,156,232 | E28: 0.03793562103 | F28: 4,046,777 | G28: -0.4469598893 | H28: 0.004049172748 | I28: 8.56 | J28: 6.94 | K28: 0.2325085217 | L28: 11.27 | M28: -0.2406003322 | N28: 1.751112382e-05 | O28: 2,238,030 | P28: 2,156,232 | Q28: 0.03793562103 | R28: 0.004049172748 | S28: 8.56 | T28: 6.94 | U28: 0.2325085217 | V28: 1.751112382e-05 | W28: 369,298 | X28: 0.009716272774 | Y28: 268,572 | Z28: 0.375043
B29: 丁二烯橡胶期权 | C29: 1,835,661 | D29: 427,252 | E29: 3.296436295 | F29: 1,398,107 | G29: 0.3129617404 | H29: 0.003321183584 | I29: 8.32 | J29: 1.34 | K29: 5.227299319 | L29: 5.63 | M29: 0.4790644046 | N29: 1.703188192e-05 | O29: 1,835,661 | P29: 427,252 | Q29: 3.296436295 | R29: 0.003321183584 | S29: 8.32 | T29: 1.34 | U29: 5.227299319 | V29: 1.703188192e-05 | W29: 28,105 | X29: 0.0007394457764 | Y29: 27,325 | Z29: 0.028545
B30: 铅期权 | C30: 201,375 | F30: 286,064 | G30: -0.2960491359 | H30: 0.0003643392457 | I30: 0.84 | L30: 1.43 | M30: -0.4091644666 | N30: 1.724923812e-06 | O30: 201,375 | R30: 0.0003643392457 | S30: 0.84 | V30: 1.724923812e-06 | W30: 8,664 | X30: 0.0002279508346 | Y30: 10,627 | Z30: -0.184718
B31: 镍期权 | C31: 613,589 | F31: 630,004 | G31: -0.02605539012 | H31: 0.001110140551 | I31: 3.68 | L31: 3.86 | M31: -0.04741060102 | N31: 7.52991141e-06 | O31: 613,589 | R31: 0.001110140551 | S31: 3.68 | V31: 7.52991141e-06 | W31: 18,397 | X31: 0.0004840271819 | Y31: 19,670 | Z31: -0.064718
B32: 锡期权 | C32: 222,154 | F32: 159,627 | G32: 0.3917069167 | H32: 0.000401933809 | I32: 2.27 | L32: 1.63 | M32: 0.3924691148 | N32: 4.652602155e-06 | O32: 222,154 | R32: 0.000401933809 | S32: 2.27 | V32: 4.652602155e-06 | W32: 5,432 | X32: 0.0001429165436 | Y32: 6,860 | Z32: -0.208163
B33: 氧化铝期权 | C33: 5,652,528 | F33: 3,868,534 | G33: 0.4611550525 | H33: 0.01022687915 | I33: 41.21 | L33: 34.17 | M33: 0.2060786773 | N33: 8.432895908e-05 | O33: 5,652,528 | R33: 0.01022687915 | S33: 41.21 | V33: 8.432895908e-05 | W33: 75,765 | X33: 0.001993385848 | Y33: 156,577 | Z33: -0.516117
B34: 总计 | C34: 152,006,364 | D34: 135,145,782 | E34: 0.1247584775 | F34: 187,700,883 | G34: -0.1901670276 | H34: 0.2750186667 | I34: 137,124.43 | J34: 104,311.67 | K34: 0.314564691 | L34: 167,183.70 | M34: -0.1797978401 | N34: 0.2805716584 | O34: 152,006,364 | P34: 135,145,782 | Q34: 0.1247584775 | R34: 0.2750186667 | S34: 137,124.43 | T34: 104,311.67 | U34: 0.314564691 | V34: 0.2805716584 | W34: 8,476,249 | X34: 0.2230110842 | Y34: 9,017,927 | Z34: -0.060067
A35: 上海国际能源交易中心 | B35: 原油 | C35: 3,002,485 | D35: 5,393,770 | E35: -0.4433420409 | F35: 2,574,011 | G35: 0.1664616041 | H35: 0.005432268753 | I35: 18,162.32 | J35: 30,402.00 | K35: -0.4025945261 | L35: 13,857.94 | M35: 0.3106072611 | N35: 0.03716210803 | O35: 3,002,485 | P35: 5,393,770 | Q35: -0.4433420409 | R35: 0.005432268753 | S35: 18,162.32 | T35: 30,402.00 | U35: -0.4025945261 | V35: 0.03716210803 | W35: 55,578 | X35: 0.00146226356 | Y35: 53,037 | Z35: 0.04791
B36: 20号胶 | C36: 3,449,287 | D36: 1,477,029 | E36: 1.335287256 | F36: 3,877,386 | G36: -0.1104091777 | H36: 0.00624064866 | I36: 5,071.61 | J36: 1,648.86 | K36: 2.075822239 | L36: 5,822.28 | M36: -0.128930517 | N36: 0.01037706712 | O36: 3,449,287 | P36: 1,477,029 | Q36: 1.335287256 | R36: 0.00624064866 | S36: 5,071.61 | T36: 1,648.86 | U36: 2.075822239 | V36: 0.01037706712 | W36: 152,372 | X36: 0.004008924812 | Y36: 124,803 | Z36: 0.2209
B37: 低硫燃料油 | C37: 2,735,132 | D37: 3,555,896 | E37: -0.2308177742 | F37: 2,715,569 | G37: 0.00720401507 | H37: 0.004948558311 | I37: 1,128.37 | J37: 1,493.00 | K37: -0.2442298713 | L37: 1,051.42 | M37: 0.07318184442 | N37: 0.002308761852 | O37: 2,735,132 | P37: 3,555,896 | Q37: -0.2308177742 | R37: 0.004948558311 | S37: 1,128.37 | T37: 1,493.00 | U37: -0.2442298713 | V37: 0.002308761852 | W37: 131,603 | X37: 0.003462490038 | Y37: 143,497 | Z37: -0.082887
B38: 铜(BC) | C38: 174,522 | D38: 267,462 | E38: -0.3474886152 | F38: 182,848 | G38: -0.04553508925 | H38: 0.0003157552519 | I38: 581.20 | J38: 811.63 | K38: -0.2839041177 | L38: 601.78 | M38: -0.03419125431 | N38: 0.001189202768 | O38: 174,522 | P38: 267,462 | Q38: -0.3474886152 | R38: 0.0003157552519 | S38: 581.20 | T38: 811.63 | U38: -0.2839041177 | V38: 0.001189202768 | W38: 11,588 | X38: 0.0003048816103 | Y38: 10,124 | Z38: 0.144607
B39: SCFIS欧线 | C39: 1,318,044 | D39: 1,961,695 | E39: -0.3281096195 | F39: 1,532,820 | G39: -0.1401182135 | H39: 0.002384681101 | I39: 993.02 | J39: 1,938.21 | K39: -0.4876635117 | L39: 1,608.73 | M39: -0.3827341723 | N39: 0.002031821527 | O39: 1,318,044 | P39: 1,961,695 | Q39: -0.3281096195 | R39: 0.002384681101 | S39: 993.02 | T39: 1,938.21 | U39: -0.4876635117 | V39: 0.002031821527 | W39: 80,270 | X39: 0.002111912915 | Y39: 83,079 | Z39: -0.033811
B40: 原油期权 | C40: 1,238,367 | D40: 1,878,503 | E40: -0.3407692189 | F40: 1,073,511 | G40: 0.1535671269 | H40: 0.002240524885 | I40: 68.56 | J40: 90.35 | K40: -0.2411383769 | L40: 39.36 | M40: 0.7418582012 | N40: 0.0001402815745 | O40: 1,238,367 | P40: 1,878,503 | Q40: -0.3407692189 | R40: 0.002240524885 | S40: 68.56 | T40: 90.35 | U40: -0.2411383769 | V40: 0.0001402815745 | W40: 38,953 | X40: 0.001024857902 | Y40: 38,968 | Z40: -0.000385
B41: 总计 | C41: 11,917,837 | D41: 14,534,355 | E41: -0.1800229869 | F41: 11,956,145 | G41: -0.003204042775 | H41: 0.02156243696 | I41: 26,005.08 | J41: 36,384.05 | K41: -0.285261671 | L41: 22,981.52 | M41: 0.1315648915 | N41: 0.05320924286 | O41: 11,917,837 | P41: 14,534,355 | Q41: -0.1800229869 | R41: 0.02156243696 | S41: 26,005.08 | T41: 36,384.05 | U41: -0.285261671 | V41: 0.05320924286 | W41: 470,364 | X41: 0.01237533084 | Y41: 453,508 | Z41: 0.037168
A42: 郑州商品交易所 | B42: 一号棉CF | C42: 5,035,836 | D42: 8,306,847 | E42: -0.3937728719 | F42: 6,936,784 | G42: -0.2740388053 | H42: 0.009111124469 | I42: 3,407.25 | J42: 6,545.90 | K42: -0.4794832062 | L42: 4,742.51 | M42: -0.2815510797 | N42: 0.00697161248 | O42: 5,035,836 | P42: 8,306,847 | Q42: -0.3937728719 | R42: 0.009111124469 | S42: 3,407.25 | T42: 6,545.90 | U42: -0.4794832062 | V42: 0.00697161248 | W42: 694,249 | X42: 0.01826577089 | Y42: 791,150 | Z42: -0.1225
B43: 白糖SR | C43: 5,546,716 | D43: 8,777,316 | E43: -0.3680624009 | F43: 9,676,613 | G43: -0.426791585 | H43: 0.01003543798 | I43: 3,252.18 | J43: 5,580.84 | K43: -0.4172594597 | L43: 5,807.50 | M43: -0.4400026221 | N43: 0.006654324951 | O43: 5,546,716 | P43: 8,777,316 | Q43: -0.3680624009 | R43: 0.01003543798 | S43: 3,252.18 | T43: 5,580.84 | U43: -0.4172594597 | V43: 0.006654324951 | W43: 377,912 | X43: 0.009942908103 | Y43: 524,364 | Z43: -0.2793
B44: PTA | C44: 17,143,691 | D44: 22,810,727 | E44: -0.2484373251 | F44: 18,707,134 | G44: -0.08357469402 | H44: 0.03101735294 | I44: 4,360.54 | J44: 6,708.67 | K44: -0.3500148317 | L44: 4,542.11 | M44: -0.03997641969 | N44: 0.008922133706 | O44: 17,143,691 | P44: 22,810,727 | Q44: -0.2484373251 | R44: 0.03101735294 | S44: 4,360.54 | T44: 6,708.67 | U44: -0.3500148317 | V44: 0.008922133706 | W44: 1,288,739 | X44: 0.03390687103 | Y44: 1,442,957 | Z44: -0.1069
B45: 菜籽油 | C45: 10,496,673 | D45: 9,756,981 | E45: 0.07581156507 | F45: 15,092,257 | G45: -0.3044994529 | H45: 0.01899118522 | I45: 9,109.31 | J45: 7,718.58 | K45: 0.1801793473 | L45: 13,419.30 | M45: -0.3211782426 | N45: 0.01863865095 | O45: 10,496,673 | P45: 9,756,981 | Q45: 0.07581156507 | R45: 0.01899118522 | S45: 9,109.31 | T45: 7,718.58 | U45: 0.1801793473 | V45: 0.01863865095 | W45: 292,858 | X45: 0.007705127599 | Y45: 332,954 | Z45: -0.1204
B46: 甲醇MA | C46: 13,377,147 | D46: 21,998,981 | E46: -0.3919196985 | F46: 17,188,580 | G46: -0.2217421683 | H46: 0.02420270465 | I46: 3,495.96 | J46: 5,245.93 | K46: -0.3335855641 | L46: 4,490.41 | M46: -0.2214614855 | N46: 0.007153119561 | O46: 13,377,147 | P46: 21,998,981 | Q46: -0.3919196985 | R46: 0.02420270465 | S46: 3,495.96 | T46: 5,245.93 | U46: -0.3335855641 | V46: 0.007153119561 | W46: 822,366 | X46: 0.02163654387 | Y46: 1,167,275 | Z46: -0.2955
B47: 玻璃FG | C47: 15,775,641 | D47: 23,153,317 | E47: -0.3186444517 | F47: 23,310,124 | G47: -0.3232279245 | H47: 0.0285421981 | I47: 4,321.51 | J47: 8,443.00 | K47: -0.4881548727 | L47: 6,195.49 | M47: -0.3024749329 | N47: 0.008842277207 | O47: 15,775,641 | P47: 23,153,317 | Q47: -0.3186444517 | R47: 0.0285421981 | S47: 4,321.51 | T47: 8,443.00 | U47: -0.4881548727 | V47: 0.008842277207 | W47: 847,792 | X47: 0.02230550484 | Y47: 926,094 | Z47: -0.0846
B48: 油菜籽RS | C48: 319 | D48: 236 | E48: 0.3516949153 | F48: 620 | G48: -0.485483871 | H48: 5.771531689e-07 | I48: 0.19 | J48: 0.14 | K48: 0.2874994784 | L48: 0.36 | M48: -0.4833042629 | N48: 3.788270104e-07 | O48: 319 | P48: 236 | Q48: 0.3516949153 | R48: 5.771531689e-07 | S48: 0.19 | T48: 0.14 | U48: 0.2874994784 | V48: 3.788270104e-07 | W48: 69 | X48: 1.815397921e-06 | Y48: 68 | Z48: 0.0147
B49: 菜籽粕RM | C49: 20,317,255 | D49: 18,880,468 | E49: 0.07609912 | F49: 22,220,427 | G49: -0.08564965921 | H49: 0.03675914767 | I49: 4,835.47 | J49: 4,888.19 | K49: -0.01078377176 | L49: 5,085.03 | M49: -0.04907599135 | N49: 0.009893908989 | O49: 20,317,255 | P49: 18,880,468 | Q49: 0.07609912 | R49: 0.03675914767 | S49: 4,835.47 | T49: 4,888.19 | U49: -0.01078377176 | V49: 0.009893908989 | W49: 762,987 | X49: 0.02007427556 | Y49: 1,080,322 | Z49: -0.2937
B50: 硅铁SF | C50: 3,545,907 | D50: 3,907,940 | E50: -0.09264036807 | F50: 4,056,179 | G50: -0.1258011542 | H50: 0.006415459128 | I50: 1,125.66 | J50: 1,310.61 | K50: -0.1411174432 | L50: 1,277.58 | M50: -0.1189112493 | N50: 0.002303218546 | O50: 3,545,907 | P50: 3,907,940 | Q50: -0.09264036807 | R50: 0.006415459128 | S50: 1,125.66 | T50: 1,310.61 | U50: -0.1411174432 | V50: 0.002303218546 | W50: 228,329 | X50: 0.006007362202 | Y50: 292,492 | Z50: -0.2194
B51: 锰硅SM | C51: 8,639,828 | D51: 3,269,342 | E51: 1.642681004 | F51: 4,352,395 | G51: 0.9850744245 | H51: 0.01563167432 | I51: 2,847.04 | J51: 1,045.37 | K51: 1.723485555 | L51: 1,359.12 | M51: 1.094775387 | N51: 0.005825359165 | O51: 8,639,828 | P51: 3,269,342 | Q51: 1.642681004 | R51: 0.01563167432 | S51: 2,847.04 | T51: 1,045.37 | U51: 1.723485555 | V51: 0.005825359165 | W51: 556,706 | X51: 0.01464699877 | Y51: 470,048 | Z51: 0.1844
B52: 棉纱 | C52: 97,127 | D52: 113,885 | E52: -0.1471484392 | F52: 75,034 | G52: 0.2944398539 | H52: 0.0001757277612 | I52: 95.11 | J52: 124.41 | K52: -0.2354974635 | L52: 73.76 | M52: 0.289478167 | N52: 0.0001946139042 | O52: 97,127 | P52: 113,885 | Q52: -0.1471484392 | R52: 0.0001757277612 | S52: 95.11 | T52: 124.41 | U52: -0.2354974635 | V52: 0.0001946139042 | W52: 11,029 | X52: 0.0002901742561 | Y52: 11,679 | Z52: -0.0557
B53: 苹果AP | C53: 1,881,424 | D53: 1,457,556 | E53: 0.2908073515 | F53: 2,867,501 | G53: -0.3438802637 | H53: 0.003403980638 | I53: 1,286.22 | J53: 1,201.83 | K53: 0.07021555382 | L53: 2,162.84 | M53: -0.4053106454 | N53: 0.002631746852 | O53: 1,881,424 | P53: 1,457,556 | Q53: 0.2908073515 | R53: 0.003403980638 | S53: 1,286.22 | T53: 1,201.83 | U53: 0.07021555382 | V53: 0.002631746852 | W53: 124,101 | X53: 0.003265111556 | Y53: 124,837 | Z53: -0.0059
B54: 红枣CJ | C54: 1,004,601 | D54: 943,871 | E54: 0.06434141954 | F54: 1,684,306 | G54: -0.4035519674 | H54: 0.001817581977 | I54: 463.03 | J54: 650.54 | K54: -0.2882359619 | L54: 794.76 | M54: -0.417394065 | N54: 0.0009474108919 | O54: 1,004,601 | P54: 943,871 | Q54: 0.06434141954 | R54: 0.001817581977 | S54: 463.03 | T54: 650.54 | U54: -0.2882359619 | V54: 0.0009474108919 | W54: 137,260 | X54: 0.003611326357 | Y54: 136,047 | Z54: 0.0089
B55: 尿素 | C55: 3,594,374 | D55: 5,848,579 | E55: -0.3854278108 | F55: 3,406,141 | G55: 0.05526283263 | H55: 0.006503148415 | I55: 1,223.41 | J55: 2,423.68 | K55: -0.4952263662 | L55: 1,192.09 | M55: 0.02627585097 | N55: 0.002503233441 | O55: 3,594,374 | P55: 5,848,579 | Q55: -0.3854278108 | R55: 0.006503148415 | S55: 1,223.41 | T55: 2,423.68 | U55: -0.4952263662 | V55: 0.002503233441 | W55: 234,997 | X55: 0.006182798047 | Y55: 280,349 | Z55: -0.1618
B56: 纯碱 | C56: 16,042,975 | D56: 20,344,698 | E56: -0.2114419688 | F56: 21,000,049 | G56: -0.2360505921 | H56: 0.02902587417 | I56: 4,673.56 | J56: 8,040.42 | K56: -0.418742107 | L56: 6,150.80 | M56: -0.2401702637 | N56: 0.009562612245 | O56: 16,042,975 | P56: 20,344,698 | Q56: -0.2114419688 | R56: 0.02902587417 | S56: 4,673.56 | T56: 8,040.42 | U56: -0.418742107 | V56: 0.009562612245 | W56: 1,092,966 | X56: 0.02875606093 | Y56: 1,248,536 | Z56: -0.1246
B57: 短纤PF | C57: 2,754,901 | D57: 3,041,091 | E57: -0.09410767386 | F57: 3,445,442 | G57: -0.2004216005 | H57: 0.004984325524 | I57: 962.97 | J57: 1,128.95 | K57: -0.1470244939 | L57: 1,189.53 | M57: -0.1904678341 | N57: 0.001970335236 | O57: 2,754,901 | P57: 3,041,091 | Q57: -0.09410767386 | R57: 0.004984325524 | S57: 962.97 | T57: 1,128.95 | U57: -0.1470244939 | V57: 0.001970335236 | W57: 190,526 | X57: 0.005012760932 | Y57: 224,205 | Z57: -0.1502
B58: 花生PK | C58: 1,212,383 | D58: 2,002,743 | E58: -0.394638753 | F58: 1,867,405 | G58: -0.3507659024 | H58: 0.002193513136 | I58: 483.06 | J58: 884.65 | K58: -0.4539491495 | L58: 734.00 | M58: -0.3418691543 | N58: 0.0009884038804 | O58: 1,212,383 | P58: 2,002,743 | Q58: -0.394638753 | R58: 0.002193513136 | S58: 483.06 | T58: 884.65 | U58: -0.4539491495 | V58: 0.0009884038804 | W58: 122,227 | X58: 0.003215806401 | Y58: 163,249 | Z58: -0.2513
B59: 对二甲苯PX | C59: 3,549,882 | D59: 1,370,833 | E59: 1.589580204 | F59: 2,815,714 | G59: 0.2607395495 | H59: 0.006422650926 | I59: 1,293.69 | J59: 583.64 | K59: 1.21659858 | L59: 959.68 | M59: 0.3480364064 | N59: 0.002647023456 | O59: 3,549,882 | P59: 1,370,833 | Q59: 1.589580204 | R59: 0.006422650926 | S59: 1,293.69 | T59: 583.64 | U59: 1.21659858 | V59: 0.002647023456 | W59: 129,417 | X59: 0.003404976127 | Y59: 117,195 | Z59: 0.1043
B60: 烧碱SH | C60: 21,300,460 | D60: 1,914,764 | E60: 10.12432655 | F60: 2,873,202 | G60: 6.413491986 | H60: 0.03853801877 | I60: 19,845.32 | J60: 1,582.06 | K60: 11.54397662 | L60: 2,298.97 | M60: 7.632277102 | N60: 0.04060571022 | O60: 21,300,460 | P60: 1,914,764 | Q60: 10.12432655 | R60: 0.03853801877 | S60: 19,845.32 | T60: 1,582.06 | U60: 11.54397662 | V60: 0.04060571022 | W60: 399,413 | X60: 0.01050860188 | Y60: 181,608 | Z60: 1.1993
B61: 瓶片PR | C61: 296,506 | F61: 253,367 | G61: 0.1702628993 | H61: 0.0005364557288 | I61: 280.76 | L61: 235.08 | M61: 0.194310507 | N61: 0.0005744633557 | O61: 296,506 | R61: 0.0005364557288 | S61: 280.76 | V61: 0.0005744633557 | W61: 22,926 | X61: 0.0006031856918 | Y61: 24,506 | Z61: -0.0645
B62: 优质强筋小麦 | C62: 0 | D62: 0 | H62: 0 | I62: 0.00 | J62: 0.00 | L62: 0.00 | N62: 0 | O62: 0 | P62: 0 | R62: 0 | S62: 0.00 | T62: 0.00 | V62: 0 | W62: 0 | X62: 0 | Y62: 0 | Z62: 0
B63: 早籼稻 | C63: 0 | D63: 0 | H63: 0 | I63: 0.00 | J63: 0.00 | L63: 0.00 | N63: 0 | O63: 0 | P63: 0 | R63: 0 | S63: 0.00 | T63: 0.00 | V63: 0 | W63: 0 | X63: 0 | Y63: 0 | Z63: 0
B64: 普麦PM | C64: 0 | D64: 0 | H64: 0 | I64: 0.00 | J64: 0.00 | L64: 0.00 | N64: 0 | O64: 0 | P64: 0 | R64: 0 | S64: 0.00 | T64: 0.00 | V64: 0 | W64: 0 | X64: 0 | Y64: 0 | Z64: 0
B65: 动力煤ZC | C65: 0 | D65: 0 | H65: 0 | I65: 0.00 | J65: 0.00 | L65: 0.00 | N65: 0 | O65: 0 | P65: 0 | R65: 0 | S65: 0.00 | T65: 0.00 | V65: 0 | W65: 0 | X65: 0 | Y65: 0 | Z65: 0
B66: 粳稻JR | C66: 0 | D66: 0 | H66: 0 | I66: 0.00 | J66: 0.00 | L66: 0.00 | N66: 0 | O66: 0 | P66: 0 | R66: 0 | S66: 0.00 | T66: 0.00 | V66: 0 | W66: 0 | X66: 0 | Y66: 0 | Z66: 0
B67: 晚籼稻LR | C67: 0 | D67: 0 | H67: 0 | I67: 0.00 | J67: 0.00 | L67: 0.00 | N67: 0 | O67: 0 | P67: 0 | R67: 0 | S67: 0.00 | T67: 0.00 | V67: 0 | W67: 0 | X67: 0 | Y67: 0 | Z67: 0
B68: 白糖期权 | C68: 2,452,086 | D68: 1,817,267 | E68: 0.3493262135 | F68: 4,522,999 | G68: -0.457862803 | H68: 0.004436455189 | I68: 9.64 | J68: 6.06 | K68: 0.5908052264 | L68: 17.50 | M68: -0.4488520153 | N68: 1.973330962e-05 | O68: 2,452,086 | P68: 1,817,267 | Q68: 0.3493262135 | R68: 0.004436455189 | S68: 9.64 | T68: 6.06 | U68: 0.5908052264 | V68: 1.973330962e-05 | W68: 275,788 | X68: 0.00725601394 | Y68: 215,444 | Z68: 0.2801
B69: 一号棉期权 | C69: 2,240,997 | D69: 3,129,877 | E69: -0.2839983808 | F69: 3,358,686 | G69: -0.3327756748 | H69: 0.004054540815 | I69: 11.59 | J69: 17.43 | K69: -0.334603874 | L69: 17.41 | M69: -0.3340658567 | N69: 2.372384996e-05 | O69: 2,240,997 | P69: 3,129,877 | Q69: -0.2839983808 | R69: 0.004054540815 | S69: 11.59 | T69: 17.43 | U69: -0.334603874 | V69: 2.372384996e-05 | W69: 524,113 | X69: 0.0137894732 | Y69: 415,102 | Z69: 0.2626
B70: PTA期权 | C70: 6,681,532 | D70: 8,876,061 | E70: -0.2472413157 | F70: 5,558,453 | G70: 0.2020488434 | H70: 0.01208861244 | I70: 12.07 | J70: 16.32 | K70: -0.2606116634 | L70: 8.79 | M70: 0.3729129281 | N70: 2.468823883e-05 | O70: 6,681,532 | P70: 8,876,061 | Q70: -0.2472413157 | R70: 0.01208861244 | S70: 12.07 | T70: 16.32 | U70: -0.2606116634 | V70: 2.468823883e-05 | W70: 294,533 | X70: 0.007749197042 | Y70: 325,343 | Z70: -0.0947
B71: 甲醇期权 | C71: 3,297,438 | D71: 6,158,978 | E71: -0.4646127978 | F71: 3,718,890 | G71: -0.1133273638 | H71: 0.005965914705 | I71: 7.01 | J71: 12.98 | K71: -0.4598966091 | L71: 8.09 | M71: -0.1338290271 | N71: 1.433884123e-05 | O71: 3,297,438 | P71: 6,158,978 | Q71: -0.4646127978 | R71: 0.005965914705 | S71: 7.01 | T71: 12.98 | U71: -0.4598966091 | V71: 1.433884123e-05 | W71: 173,305 | X71: 0.004559674445 | Y71: 271,569 | Z71: -0.3618
B72: 菜籽粕期权 | C72: 2,554,225 | D72: 2,555,949 | E72: -0.0006745048512 | F72: 3,155,714 | G72: -0.1906031408 | H72: 0.004621250949 | I72: 8.84 | J72: 7.31 | K72: 0.2104812217 | L72: 9.51 | M72: -0.0701664915 | N72: 1.809335052e-05 | O72: 2,554,225 | P72: 2,555,949 | Q72: -0.0006745048512 | R72: 0.004621250949 | S72: 8.84 | T72: 7.31 | U72: 0.2104812217 | V72: 1.809335052e-05 | W72: 258,704 | X72: 0.006806531939 | Y72: 210,557 | Z72: 0.2287
B73: 菜籽油期权 | C73: 929,962 | D73: 1,120,682 | E73: -0.1701820856 | F73: 1,586,344 | G73: -0.4137702793 | H73: 0.0016825408 | I73: 8.23 | J73: 4.76 | K73: 0.7313110465 | L73: 8.94 | M73: -0.07888954059 | N73: 1.684721027e-05 | O73: 929,962 | P73: 1,120,682 | Q73: -0.1701820856 | R73: 0.0016825408 | S73: 8.23 | T73: 4.76 | U73: 0.7313110465 | V73: 1.684721027e-05 | W73: 118,673 | X73: 0.003122300253 | Y73: 64,120 | Z73: 0.8508
B74: 花生期权 | C74: 856,900 | D74: 857,644 | E74: -0.0008674928059 | F74: 666,102 | G74: 0.2864396144 | H74: 0.001550352823 | I74: 1.80 | J74: 1.66 | K74: 0.08277799289 | L74: 1.31 | M74: 0.3780785209 | N74: 3.684888357e-06 | O74: 856,900 | P74: 857,644 | Q74: -0.0008674928059 | R74: 0.001550352823 | S74: 1.80 | T74: 1.66 | U74: 0.08277799289 | V74: 3.684888357e-06 | W74: 71,273 | X74: 0.001875200812 | Y74: 53,395 | Z74: 0.3348
B75: 对二甲苯期权 | C75: 500,049 | D75: 119,566 | E75: 3.182200626 | F75: 641,873 | G75: -0.2209533662 | H75: 0.000904717445 | I75: 0.91 | J75: 0.50 | K75: 0.8120664385 | L75: 0.73 | M75: 0.2455368601 | N75: 1.856787409e-06 | O75: 500,049 | P75: 119,566 | Q75: 3.182200626 | R75: 0.000904717445 | S75: 0.91 | T75: 0.50 | U75: 0.8120664385 | V75: 1.856787409e-06 | W75: 16,373 | X75: 0.0004307755096 | Y75: 7,356 | Z75: 1.2258
B76: 烧碱期权 | C76: 4,436,394 | D76: 139,312 | E76: 30.84502412 | F76: 518,058 | G76: 7.563508333 | H76: 0.008026579485 | I76: 53.04 | J76: 2.01 | K76: 25.32661669 | L76: 2.66 | M76: 18.92852913 | N76: 0.0001085179594 | O76: 4,436,394 | P76: 139,312 | Q76: 30.84502412 | R76: 0.008026579485 | S76: 53.04 | T76: 2.01 | U76: 25.32661669 | V76: 0.0001085179594 | W76: 226,934 | X76: 0.005970659591 | Y76: 36,440 | Z76: 5.2276
B77: 苹果期权 | C77: 342,973 | D77: 49,576 | E77: 5.918125706 | F77: 96,686 | G77: 2.547287094 | H77: 0.0006205265009 | I77: 1.42 | J77: 0.64 | K77: 1.210900172 | L77: 1.31 | M77: 0.08332629307 | N77: 2.912332518e-06 | O77: 342,973 | P77: 49,576 | Q77: 5.918125706 | R77: 0.0006205265009 | S77: 1.42 | T77: 0.64 | U77: 1.210900172 | V77: 2.912332518e-06 | W77: 20,651 | X77: 0.0005433301807 | Y77: 20,847 | Z77: -0.0094
B78: 短纤期权 | C78: 570,402 | D78: 135,731 | E78: 3.202444541 | F78: 520,832 | G78: 0.09517464365 | H78: 0.001032004144 | I78: 0.66 | J78: 0.17 | K78: 2.897308082 | L78: 0.68 | M78: -0.0309157507 | N78: 1.354964642e-06 | O78: 570,402 | P78: 135,731 | Q78: 3.202444541 | R78: 0.001032004144 | S78: 0.66 | T78: 0.17 | U78: 2.897308082 | V78: 1.354964642e-06 | W78: 30,092 | X78: 0.0007917239745 | Y78: 31,622 | Z78: -0.0484
B79: 尿素期权 | C79: 232,265 | D79: 421,131 | E79: -0.4484732779 | F79: 264,018 | G79: -0.120268315 | H79: 0.0004202272125 | I79: 1.68 | J79: 1.81 | K79: -0.07267718441 | L79: 1.17 | M79: 0.4334594818 | N79: 3.434100764e-06 | O79: 232,265 | P79: 421,131 | Q79: -0.4484732779 | R79: 0.0004202272125 | S79: 1.68 | T79: 1.81 | U79: -0.07267718441 | V79: 3.434100764e-06 | W79: 44,623 | X79: 0.001174036253 | Y79: 32,283 | Z79: 0.3822
B80: 纯碱期权 | C80: 4,878,758 | D80: 6,043,122 | E80: -0.1926759049 | F80: 6,669,019 | G80: -0.2684444294 | H80: 0.008826929906 | I80: 18.39 | J80: 38.66 | K80: -0.5243281209 | L80: 21.88 | M80: -0.159744753 | N80: 3.762507944e-05 | O80: 4,878,758 | P80: 6,043,122 | Q80: -0.1926759049 | R80: 0.008826929906 | S80: 18.39 | T80: 38.66 | U80: -0.5243281209 | V80: 3.762507944e-05 | W80: 510,231 | X80: 0.01342423618 | Y80: 457,351 | Z80: 0.1156
B81: 硅铁期权 | C81: 516,952 | D81: 160,647 | E81: 2.217937465 | F81: 320,455 | G81: 0.6131812579 | H81: 0.0009352993259 | I81: 1.14 | J81: 0.26 | K81: 3.352959124 | L81: 0.58 | M81: 0.9529327219 | N81: 2.335372505e-06 | O81: 516,952 | P81: 160,647 | Q81: 2.217937465 | R81: 0.0009352993259 | S81: 1.14 | T81: 0.26 | U81: 3.352959124 | V81: 2.335372505e-06 | W81: 42,137 | X81: 0.001108629307 | Y81: 29,734 | Z81: 0.4171
B82: 锰硅期权 | C82: 2,078,379 | D82: 90,193 | E82: 22.0436841 | F82: 669,459 | G82: 2.104565029 | H82: 0.003760322966 | I82: 9.51 | J82: 0.17 | K82: 56.2677669 | L82: 1.14 | M82: 7.329921772 | N82: 1.945416908e-05 | O82: 2,078,379 | P82: 90,193 | Q82: 22.0436841 | R82: 0.003760322966 | S82: 9.51 | T82: 0.17 | U82: 56.2677669 | V82: 1.945416908e-05 | W82: 187,386 | X82: 0.004930147171 | Y82: 83,278 | Z82: 1.2501
B83: 玻璃期权 | C83: 3,079,540 | F83: 5,555,084 | G83: -0.4456357456 | H83: 0.005571681096 | I83: 10.49 | L83: 16.26 | M83: -0.3547062864 | N83: 2.146481167e-05 | O83: 3,079,540 | R83: 0.005571681096 | S83: 10.49 | V83: 2.146481167e-05 | W83: 224,367 | X83: 0.005903121527 | Y83: 296,338 | Z83: -0.2429
B84: 红枣期权 | C84: 82,837 | F84: 67,130 | G84: 0.233978847 | H84: 0.0001498734704 | I84: 0.53 | L84: 0.65 | M84: -0.1725477275 | N84: 1.094531687e-06 | O84: 82,837 | R84: 0.0001498734704 | S84: 0.53 | V84: 1.094531687e-06 | W84: 33,923 | X84: 0.0008925180243 | Y84: 27,090 | Z84: 0.2522
B85: 瓶片期权 | C85: 72,245 | F85: 4,078 | G85: 16.71579205 | H85: 0.0001307098141 | I85: 0.41 | L85: 0.02 | M85: 24.75460006 | N85: 8.333989618e-07 | O85: 72,245 | R85: 0.0001307098141 | S85: 0.41 | V85: 8.333989618e-07 | W85: 7,359 | X85: 0.0001936161348 | Y85: 1,559 | Z85: 3.7203
B86: 动力煤期权 | C86: 0 | D86: 0 | H86: 0 | I86: 0.00 | J86: 0.00 | L86: 0.00 | N86: 0 | O86: 0 | P86: 0 | R86: 0 | S86: 0.00 | T86: 0.00 | V86: 0 | W86: 0 | X86: 0 | Y86: 0 | Z86: 0
B87: 总计 | C87: 187,417,580 | D87: 189,575,911 | E87: -0.01138504881 | F87: 199,723,154 | G87: -0.06161315678 | H87: 0.3390866778 | I87: 67,519.61 | J87: 64,218.14 | K87: 0.05141021865 | L87: 62,829.53 | M87: 0.07464761286 | N87: 0.1381525311 | O87: 187,417,580 | P87: 189,575,911 | Q87: -0.01138504881 | R87: 0.3390866778 | S87: 67,519.61 | T87: 64,218.14 | U87: 0.05141021865 | V87: 0.1381525311 | W87: 11,397,334 | X87: 0.2998651659 | Y87: 12,119,363 | Z87: -0.0596
A88: 大连商品交易所 | B88: 豆一 | C88: 2,792,585 | D88: 2,311,868 | E88: 0.2079344495 | F88: 3,337,195 | G88: -0.1631939398 | H88: 0.005052505587 | I88: 1,102.30 | J88: 1,105.21 | K88: -0.002629751046 | L88: 1,285.37 | M88: -0.1424237287 | N88: 0.002255426332 | O88: 2,792,585 | P88: 2,311,868 | Q88: 0.2079344495 | R88: 0.005052505587 | S88: 1,102.30 | T88: 1,105.21 | U88: -0.002629751046 | V88: 0.002255426332 | W88: 272,956 | X88: 0.007181503695 | Y88: 264,346 | Z88: 0.032571
B89: 豆二 | C89: 3,528,402 | D89: 2,999,842 | E89: 0.1761959463 | F89: 3,686,821 | G89: -0.04296899687 | H89: 0.006383788074 | I89: 1,208.11 | J89: 1,166.49 | K89: 0.03567369811 | L89: 1,251.60 | M89: -0.0347518678 | N89: 0.002471920926 | O89: 3,528,402 | P89: 2,999,842 | Q89: 0.1761959463 | R89: 0.006383788074 | S89: 1,208.11 | T89: 1,166.49 | U89: 0.03567369811 | V89: 0.002471920926 | W89: 252,565 | X89: 0.006645014144 | Y89: 242,292 | Z89: 0.042399
B90: 豆粕 | C90: 35,604,970 | D90: 28,864,472 | E90: 0.2335223038 | F90: 39,895,295 | G90: -0.1075396234 | H90: 0.06441856196 | I90: 9,912.18 | J90: 8,972.87 | K90: 0.1046832961 | L90: 10,737.86 | M90: -0.07689480272 | N90: 0.02028140112 | O90: 35,604,970 | P90: 28,864,472 | Q90: 0.2335223038 | R90: 0.06441856196 | S90: 9,912.18 | T90: 8,972.87 | U90: 0.1046832961 | V90: 0.02028140112 | W90: 4,039,581 | X90: 0.1062818398 | Y90: 4,170,496 | Z90: -0.031391
B91: 玉米 | C91: 12,180,088 | D91: 13,564,522 | E91: -0.1020628666 | F91: 20,756,539 | G91: -0.4131927293 | H91: 0.02203691657 | I91: 2,740.51 | J91: 3,220.69 | K91: -0.1490917597 | L91: 4,474.49 | M91: -0.387524755 | N91: 0.005607391501 | O91: 12,180,088 | P91: 13,564,522 | Q91: -0.1020628666 | R91: 0.02203691657 | S91: 2,740.51 | T91: 3,220.69 | U91: -0.1490917597 | V91: 0.005607391501 | W91: 2,072,124 | X91: 0.05451782031 | Y91: 2,028,193 | Z91: 0.02166
B92: 豆油 | C92: 8,964,311 | D92: 12,239,983 | E92: -0.2676206331 | F92: 13,583,401 | G92: -0.3400540115 | H92: 0.01621874765 | I92: 6,863.83 | J92: 9,137.90 | K92: -0.2488617499 | L92: 10,618.97 | M92: -0.3536260681 | N92: 0.01404414732 | O92: 8,964,311 | P92: 12,239,983 | Q92: -0.2676206331 | R92: 0.01621874765 | S92: 6,863.83 | T92: 9,137.90 | U92: -0.2488617499 | V92: 0.01404414732 | W92: 753,577 | X92: 0.01982669738 | Y92: 817,735 | Z92: -0.078458
B93: 聚乙烯 | C93: 7,085,679 | D93: 6,135,443 | E93: 0.1548765101 | F93: 9,004,305 | G93: -0.213078744 | H93: 0.01281981846 | I93: 2,800.92 | J93: 2,504.96 | K93: 0.118151713 | L93: 3,704.50 | M93: -0.2439140394 | N93: 0.005730992719 | O93: 7,085,679 | P93: 6,135,443 | Q93: 0.1548765101 | R93: 0.01281981846 | S93: 2,800.92 | T93: 2,504.96 | U93: 0.118151713 | V93: 0.005730992719 | W93: 592,818 | X93: 0.01559710963 | Y93: 637,943 | Z93: -0.070735
B94: 棕榈油 | C94: 18,137,114 | D94: 13,835,813 | E94: 0.3108816952 | F94: 30,732,146 | G94: -0.4098324927 | H94: 0.03281471103 | I94: 15,440.01 | J94: 10,045.24 | K94: 0.5370477062 | L94: 29,068.69 | M94: -0.4688439718 | N94: 0.03159195315 | O94: 18,137,114 | P94: 13,835,813 | Q94: 0.3108816952 | R94: 0.03281471103 | S94: 15,440.01 | T94: 10,045.24 | U94: 0.5370477062 | V94: 0.03159195315 | W94: 516,282 | X94: 0.01358343869 | Y94: 600,927 | Z94: -0.140857
B95: 聚氯乙烯 | C95: 17,885,884 | D95: 15,701,369 | E95: 0.1391289511 | F95: 23,523,109 | G95: -0.2396462559 | H95: 0.03236017125 | I95: 4,652.17 | J95: 4,601.46 | K95: 0.01102063354 | L95: 6,072.68 | M95: -0.2339186473 | N95: 0.009518848574 | O95: 17,885,884 | P95: 15,701,369 | Q95: 0.1391289511 | R95: 0.03236017125 | S95: 4,652.17 | T95: 4,601.46 | U95: 0.01102063354 | V95: 0.009518848574 | W95: 1,107,706 | X95: 0.02914387202 | Y95: 1,138,567 | Z95: -0.027105
B96: 焦炭 | C96: 354,335 | D96: 519,297 | E96: -0.3176640728 | F96: 470,743 | G96: -0.2472856739 | H96: 0.0006410832856 | I96: 621.36 | J96: 1,271.93 | K96: -0.5114831241 | L96: 863.34 | M96: -0.2802910788 | N96: 0.001271364585 | O96: 354,335 | P96: 519,297 | Q96: -0.3176640728 | R96: 0.0006410832856 | S96: 621.36 | T96: 1,271.93 | U96: -0.5114831241 | V96: 0.001271364585 | W96: 32,035 | X96: 0.0008428445275 | Y96: 29,472 | Z96: 0.086964
B97: 焦煤 | C97: 3,774,113 | D97: 2,447,914 | E97: 0.5417669902 | F97: 4,287,814 | G97: -0.1198048703 | H97: 0.006828342564 | I97: 2,575.17 | J97: 2,671.80 | K97: -0.03616517964 | L97: 3,020.87 | M97: -0.147540313 | N97: 0.005269078953 | O97: 3,774,113 | P97: 2,447,914 | Q97: 0.5417669902 | R97: 0.006828342564 | S97: 2,575.17 | T97: 2,671.80 | U97: -0.03616517964 | V97: 0.005269078953 | W97: 294,868 | X97: 0.00775801093 | Y97: 276,318 | Z97: 0.067133
B98: 铁矿石 | C98: 6,620,141 | D98: 8,508,134 | E98: -0.221904474 | F98: 8,522,329 | G98: -0.223200489 | H98: 0.0119775403 | I98: 5,144.65 | J98: 8,189.89 | K98: -0.3718296178 | L98: 6,734.25 | M98: -0.236046998 | N98: 0.01052651513 | O98: 6,620,141 | P98: 8,508,134 | Q98: -0.221904474 | R98: 0.0119775403 | S98: 5,144.65 | T98: 8,189.89 | U98: -0.3718296178 | V98: 0.01052651513 | W98: 746,293 | X98: 0.0196350545 | Y98: 616,311 | Z98: 0.210903
B99: 鸡蛋 | C99: 2,927,263 | D99: 3,933,276 | E99: -0.2557697451 | F99: 3,986,208 | G99: -0.2656522189 | H99: 0.00529617278 | I99: 958.67 | J99: 1,332.75 | K99: -0.2806844889 | L99: 1,388.55 | M99: -0.3095898274 | N99: 0.001961545885 | O99: 2,927,263 | P99: 3,933,276 | Q99: -0.2557697451 | R99: 0.00529617278 | S99: 958.67 | T99: 1,332.75 | U99: -0.2806844889 | V99: 0.001961545885 | W99: 299,724 | X99: 0.007885772848 | Y99: 345,543 | Z99: -0.1326
B100: 纤维板 | C100: 5,867 | D100: 1,556,270 | E100: -0.9962300886 | F100: 5,798 | G100: 0.0119006554 | H100: 1.061491424e-05 | I100: 0.78 | J100: 210.71 | K100: -0.9963202453 | L100: 0.76 | M100: 0.01724481763 | N100: 1.586439005e-06 | O100: 5,867 | P100: 1,556,270 | Q100: -0.9962300886 | R100: 1.061491424e-05 | S100: 0.78 | T100: 210.71 | U100: -0.9963202453 | V100: 1.586439005e-06 | W100: 372 | X100: 9.787362705e-06 | Y100: 135 | Z100: 1.755556
B101: 聚丙烯 | C101: 5,361,414 | D101: 7,083,119 | E101: -0.2430715904 | F101: 6,560,361 | G101: -0.1827562538 | H101: 0.009700178934 | I101: 1,984.59 | J101: 2,618.31 | K101: -0.2420341303 | L101: 2,441.54 | M101: -0.1871562712 | N101: 0.004060683063 | O101: 5,361,414 | P101: 7,083,119 | Q101: -0.2430715904 | R101: 0.009700178934 | S101: 1,984.59 | T101: 2,618.31 | U101: -0.2420341303 | V101: 0.004060683063 | W101: 448,529 | X101: 0.01180084948 | Y101: 525,602 | Z101: -0.146638
B102: 玉米淀粉 | C102: 2,248,369 | D102: 4,333,599 | E102: -0.4811774232 | F102: 3,089,018 | G102: -0.2721411788 | H102: 0.004067878662 | I102: 567.86 | J102: 1,230.11 | K102: -0.5383704619 | L102: 772.40 | M102: -0.2648175969 | N102: 0.001161897515 | O102: 2,248,369 | P102: 4,333,599 | Q102: -0.4811774232 | R102: 0.004067878662 | S102: 567.86 | T102: 1,230.11 | U102: -0.5383704619 | V102: 0.001161897515 | W102: 234,381 | X102: 0.006166591016 | Y102: 297,397 | Z102: -0.211892
B103: 乙二醇 | C103: 3,150,747 | D103: 16,433,803 | E103: -0.8082764531 | F103: 4,504,299 | G103: -0.3005022535 | H103: 0.005700512901 | I103: 1,501.11 | J103: 7,624.49 | K103: -0.8031203807 | L103: 2,131.94 | M103: -0.2958954891 | N103: 0.003071430471 | O103: 3,150,747 | P103: 16,433,803 | Q103: -0.8082764531 | R103: 0.005700512901 | S103: 1,501.11 | T103: 7,624.49 | U103: -0.8031203807 | V103: 0.003071430471 | W103: 268,904 | X103: 0.007074895109 | Y103: 355,535 | Z103: -0.243664
B104: 粳米 | C104: 74,237 | D104: 107,886 | E104: -0.3118940363 | F104: 112,339 | G104: -0.3391698342 | H104: 0.0001343138552 | I104: 25.86 | J104: 38.08 | K104: -0.3210421385 | L104: 38.67 | M104: -0.3313720416 | N104: 5.290309123e-05 | O104: 74,237 | P104: 107,886 | Q104: -0.3118940363 | R104: 0.0001343138552 | S104: 25.86 | T104: 38.08 | U104: -0.3210421385 | V104: 5.290309123e-05 | W104: 15,445 | X104: 0.000406359723 | Y104: 14,765 | Z104: 0.046055
B105: 苯乙烯 | C105: 4,993,022 | D105: 12,572,813 | E105: -0.6028715292 | F105: 5,726,397 | G105: -0.1280691856 | H105: 0.009033662915 | I105: 2,096.44 | J105: 5,438.65 | K105: -0.6145295851 | L105: 2,413.88 | M105: -0.1315057023 | N105: 0.004289546021 | O105: 4,993,022 | P105: 12,572,813 | Q105: -0.6028715292 | R105: 0.009033662915 | S105: 2,096.44 | T105: 5,438.65 | U105: -0.6145295851 | V105: 0.004289546021 | W105: 335,058 | X105: 0.008815414444 | Y105: 389,101 | Z105: -0.138892
B106: 液化石油气 | C106: 2,072,162 | D106: 5,545,554 | E106: -0.626338144 | F106: 1,925,047 | G106: 0.07642151075 | H106: 0.003749074811 | I106: 1,868.94 | J106: 4,933.74 | K106: -0.6211907399 | L106: 1,682.82 | M106: 0.1106005603 | N106: 0.003824066289 | O106: 2,072,162 | P106: 5,545,554 | Q106: -0.626338144 | R106: 0.003749074811 | S106: 1,868.94 | T106: 4,933.74 | U106: -0.6211907399 | V106: 0.003824066289 | W106: 97,010 | X106: 0.002552344236 | Y106: 157,320 | Z106: -0.383359
B107: 生猪 | C107: 1,031,238 | D107: 1,812,837 | E107: -0.4311468709 | F107: 1,272,688 | G107: -0.1897165684 | H107: 0.001865775171 | I107: 2,150.97 | J107: 4,092.27 | K107: -0.4743813047 | L107: 2,757.65 | M107: -0.219996623 | N107: 0.004401129032 | O107: 1,031,238 | P107: 1,812,837 | Q107: -0.4311468709 | R107: 0.001865775171 | S107: 2,150.97 | T107: 4,092.27 | U107: -0.4743813047 | V107: 0.004401129032 | W107: 130,872 | X107: 0.003443257344 | Y107: 151,057 | Z107: -0.133625
B108: 原木 | C108: 541,063 | F108: 406,032 | G108: 0.3325624581 | H108: 0.0009789223355 | I108: 416.84 | L108: 297.62 | M108: 0.4005770999 | N108: 0.000852901593 | O108: 541,063 | R108: 0.0009789223355 | S108: 416.84 | V108: 0.000852901593 | W108: 28,862 | X108: 0.0007593625333 | Y108: 19,635 | Z108: 0.469926
B109: 胶合板 | C109: 63 | D109: 0 | F109: 111 | G109: -0.4324324324 | H109: 1.139832277e-07 | I109: 0.05 | J109: 0.00 | L109: 0.10 | M109: -0.5015350986 | N109: 1.026492396e-07 | O109: 63 | P109: 0 | R109: 1.139832277e-07 | S109: 0.05 | T109: 0.00 | V109: 1.026492396e-07 | W109: 16 | X109: 4.209618368e-07 | Y109: 11 | Z109: 0.454545
B110: 豆粕期权 | C110: 4,385,851 | D110: 5,140,975 | E110: -0.1468834219 | F110: 5,236,179 | G110: -0.1623947539 | H110: 0.007935134179 | I110: 19.13 | J110: 20.66 | K110: -0.07402255394 | L110: 20.27 | M110: -0.05639827494 | N110: 3.913674541e-05 | O110: 4,385,851 | P110: 5,140,975 | Q110: -0.1468834219 | R110: 0.007935134179 | S110: 19.13 | T110: 20.66 | U110: -0.07402255394 | V110: 3.913674541e-05 | W110: 792,230 | X110: 0.02084366225 | Y110: 653,485 | Z110: 0.212316
B111: 玉米期权 | C111: 1,257,868 | D111: 1,658,993 | E111: -0.2417882414 | F111: 2,556,495 | G111: -0.5079716565 | H111: 0.002275807217 | I111: 2.92 | J111: 2.92 | K111: -0.0001371302882 | L111: 4.79 | M111: -0.3913414769 | N111: 5.96754898e-06 | O111: 1,257,868 | P111: 1,658,993 | Q111: -0.2417882414 | R111: 0.002275807217 | S111: 2.92 | T111: 2.92 | U111: -0.0001371302882 | V111: 5.96754898e-06 | W111: 404,101 | X111: 0.0106319437 | Y111: 292,585 | Z111: 0.381141
B112: 铁矿石期权 | C112: 3,579,190 | D112: 6,472,944 | E112: -0.4470537672 | F112: 4,139,368 | G112: -0.1353293546 | H112: 0.006475676648 | I112: 29.65 | J112: 73.63 | K112: -0.5972774324 | L112: 33.99 | M112: -0.1275619939 | N112: 6.067260415e-05 | O112: 3,579,190 | P112: 6,472,944 | Q112: -0.4470537672 | R112: 0.006475676648 | S112: 29.65 | T112: 73.63 | U112: -0.5972774324 | V112: 6.067260415e-05 | W112: 273,299 | X112: 0.007190528064 | Y112: 286,688 | Z112: -0.046702
B113: 液化石油气期权 | C113: 1,098,609 | D113: 1,563,581 | E113: -0.2973763432 | F113: 523,519 | G113: 1.098508364 | H113: 0.001987666664 | I113: 4.61 | J113: 7.43 | K113: -0.3797839449 | L113: 2.18 | M113: 1.109665401 | N113: 9.428838452e-06 | O113: 1,098,609 | P113: 1,563,581 | Q113: -0.2973763432 | R113: 0.001987666664 | S113: 4.61 | T113: 7.43 | U113: -0.3797839449 | V113: 9.428838452e-06 | W113: 19,841 | X113: 0.0005220189877 | Y113: 32,429 | Z113: -0.388171
B114: 聚乙烯期权 | C114: 327,032 | D114: 87,843 | E114: 2.722914746 | F114: 555,599 | G114: -0.4113884294 | H114: 0.0005916851258 | I114: 0.64 | J114: 0.40 | K114: 0.5861878329 | L114: 0.73 | M114: -0.1327858228 | N114: 1.303265584e-06 | O114: 327,032 | P114: 87,843 | Q114: 2.722914746 | R114: 0.0005916851258 | S114: 0.64 | T114: 0.40 | U114: 0.5861878329 | V114: 1.303265584e-06 | W114: 24,658 | X114: 0.0006487548107 | Y114: 20,205 | Z114: 0.220391
B115: 聚丙烯期权 | C115: 266,577 | D115: 92,911 | E115: 1.869165115 | F115: 284,664 | G115: -0.06353806593 | H115: 0.0004823064586 | I115: 0.39 | J115: 0.37 | K115: 0.05576705226 | L115: 0.43 | M115: -0.09649717672 | N115: 7.932829318e-07 | O115: 266,577 | P115: 92,911 | Q115: 1.869165115 | R115: 0.0004823064586 | S115: 0.39 | T115: 0.37 | U115: 0.05576705226 | V115: 7.932829318e-07 | W115: 32,201 | X115: 0.0008472120066 | Y115: 33,810 | Z115: -0.047589
B116: 聚氯乙烯期权 | C116: 2,236,831 | D116: 380,298 | E116: 4.881784811 | F116: 2,625,231 | G116: -0.1479488853 | H116: 0.004047003448 | I116: 3.63 | J116: 1.25 | K116: 1.910446851 | L116: 3.67 | M116: -0.01165560062 | N116: 7.419433754e-06 | O116: 2,236,831 | P116: 380,298 | Q116: 4.881784811 | R116: 0.004047003448 | S116: 3.63 | T116: 1.25 | U116: 1.910446851 | V116: 7.419433754e-06 | W116: 121,450 | X116: 0.003195363442 | Y116: 155,926 | Z116: -0.221105
B117: 棕榈油期权 | C117: 4,795,705 | D117: 2,278,160 | E117: 1.105078221 | F117: 6,170,734 | G117: -0.2228307038 | H117: 0.008676665636 | I117: 25.90 | J117: 11.45 | K117: 1.26267063 | L117: 36.94 | M117: -0.2988820121 | N117: 5.299451142e-05 | O117: 4,795,705 | P117: 2,278,160 | Q117: 1.105078221 | R117: 0.008676665636 | S117: 25.90 | T117: 11.45 | U117: 1.26267063 | V117: 5.299451142e-05 | W117: 122,688 | X117: 0.003227935364 | Y117: 203,125 | Z117: -0.395998
B118: 黄大豆1号期权 | C118: 427,540 | D118: 536,265 | E118: -0.2027449116 | F118: 499,714 | G118: -0.1444306143 | H118: 0.0007735299869 | I118: 1.45 | J118: 1.08 | K118: 0.3368231647 | L118: 1.24 | M118: 0.1730675958 | N118: 2.964285294e-06 | O118: 427,540 | P118: 536,265 | Q118: -0.2027449116 | R118: 0.0007735299869 | S118: 1.45 | T118: 1.08 | U118: 0.3368231647 | V118: 2.964285294e-06 | W118: 69,574 | X118: 0.001830499927 | Y118: 40,476 | Z118: 0.718895
B119: 黄大豆2号期权 | C119: 921,539 | D119: 866,752 | E119: 0.06320954552 | F119: 792,060 | G119: 0.1634712017 | H119: 0.001667301424 | I119: 2.19 | J119: 2.08 | K119: 0.05536380817 | L119: 2.14 | M119: 0.02417875028 | N119: 4.485887169e-06 | O119: 921,539 | P119: 866,752 | Q119: 0.06320954552 | R119: 0.001667301424 | S119: 2.19 | T119: 2.08 | U119: 0.05536380817 | V119: 4.485887169e-06 | W119: 34,312 | X119: 0.0009027526589 | Y119: 69,456 | Z119: -0.505989
B120: 豆油期权 | C120: 625,098 | D120: 874,126 | E120: -0.284887991 | F120: 1,239,639 | G120: -0.4957419055 | H120: 0.001130963296 | I120: 6.03 | J120: 5.77 | K120: 0.04445488627 | L120: 6.35 | M120: -0.05085054946 | N120: 1.233898163e-05 | O120: 625,098 | P120: 874,126 | Q120: -0.284887991 | R120: 0.001130963296 | S120: 6.03 | T120: 5.77 | U120: 0.04445488627 | V120: 1.233898163e-05 | W120: 127,662 | X120: 0.003358801875 | Y120: 50,429 | Z120: 1.53152
B121: 苯乙烯期权 | C121: 2,439,795 | D121: 2,157,847 | E121: 0.1306617198 | F121: 1,835,148 | G121: 0.3294813279 | H121: 0.004414217604 | I121: 4.25 | J121: 4.84 | K121: -0.1218414396 | L121: 3.58 | M121: 0.1892929135 | N121: 8.703846482e-06 | O121: 2,439,795 | P121: 2,157,847 | Q121: 0.1306617198 | R121: 0.004414217604 | S121: 4.25 | T121: 4.84 | U121: -0.1218414396 | V121: 8.703846482e-06 | W121: 50,300 | X121: 0.001323398774 | Y121: 100,331 | Z121: -0.498659
B122: 乙二醇期权 | C122: 631,055 | D122: 801,879 | E122: -0.2130296466 | F122: 706,191 | G122: -0.106396145 | H122: 0.001141741044 | I122: 2.17 | J122: 5.85 | K122: -0.6290232599 | L122: 2.04 | M122: 0.06636816394 | N122: 4.443690245e-06 | O122: 631,055 | P122: 801,879 | Q122: -0.2130296466 | R122: 0.001141741044 | S122: 2.17 | T122: 5.85 | U122: -0.6290232599 | V122: 4.443690245e-06 | W122: 44,401 | X122: 0.001168195407 | Y122: 39,741 | Z122: 0.117259
B123: 鸡蛋期权 | C123: 484,648 | F123: 581,394 | G123: -0.1664035061 | H123: 0.000876853069 | I123: 1.04 | L123: 1.37 | M123: -0.2400848071 | N123: 2.137767399e-06 | O123: 484,648 | R123: 0.000876853069 | S123: 1.04 | V123: 2.137767399e-06 | W123: 33,047 | X123: 0.0008694703637 | Y123: 52,839 | Z123: -0.374572
B124: 玉米淀粉期权 | C124: 174,415 | F124: 250,771 | G124: -0.3044849684 | H124: 0.0003155616613 | I124: 0.39 | L124: 0.59 | M124: -0.3313717927 | N124: 8.016085528e-07 | O124: 174,415 | R124: 0.0003155616613 | S124: 0.39 | V124: 8.016085528e-07 | W124: 32,936 | X124: 0.000866549941 | Y124: 25,098 | Z124: 0.312296
B125: 生猪期权 | C125: 121,237 | F125: 163,570 | G125: -0.2588066271 | H125: 0.0002193489616 | I125: 2.14 | L125: 2.85 | M125: -0.2503399658 | N125: 4.375401329e-06 | O125: 121,237 | R125: 0.0002193489616 | S125: 2.14 | V125: 4.375401329e-06 | W125: 33,223 | X125: 0.0008741009439 | Y125: 26,427 | Z125: 0.257161
B126: 原木期权 | C126: 79,144 | F126: 45,481 | G126: 0.7401552297 | H126: 0.0001431918821 | I126: 1.62 | L126: 1.07 | M126: 0.5129992983 | N126: 3.313478495e-06 | O126: 79,144 | R126: 0.0001431918821 | S126: 1.62 | V126: 3.313478495e-06 | W126: 16,034 | X126: 0.0004218563807 | Y126: 14,767 | Z126: 0.085799
B127: 总计 | C127: 163,185,201 | D127: 183,420,388 | E127: -0.1103213619 | F127: 213,593,752 | G127: -0.2360019922 | H127: 0.2952440623 | I127: 64,741.45 | J127: 80,545.27 | K127: -0.1962104239 | L127: 91,882.79 | M127: -0.2953909449 | N127: 0.1324681135 | O127: 163,185,201 | P127: 183,420,388 | Q127: -0.1103213619 | R127: 0.2952440623 | S127: 64,741.45 | T127: 80,545.27 | U127: -0.1962104239 | V127: 0.1324681135 | W127: 14,771,935 | X127: 0.3886513056 | Y127: 15,176,518 | Z127: -0.02666
A128: 中国金融期货交易所 | B128: 沪深300股指期货 | C128: 2,449,644 | D128: 2,915,331 | E128: -0.1597372648 | F128: 2,984,949 | G128: -0.1793347223 | H128: 0.004432036982 | I128: 27,908.64 | J128: 28,642.01 | K128: -0.02560475109 | L128: 35,481.60 | M128: -0.2134333844 | N128: 0.05710414143 | O128: 2,449,644 | P128: 2,915,331 | Q128: -0.1597372648 | R128: 0.004432036982 | S128: 27,908.64 | T128: 28,642.01 | U128: -0.02560475109 | V128: 0.05710414143 | W128: 270,058 | X128: 0.007105256982 | Y128: 285,729 | Z128: -0.0548
B129: 5年期国债期货 | C129: 1,298,584 | D129: 1,270,577 | E129: 0.02204274121 | F129: 1,433,371 | G129: -0.09403497071 | H129: 0.002349472949 | I129: 13,836.95 | J129: 13,031.39 | K129: 0.06181725608 | L129: 15,233.89 | M129: -0.09169900313 | N129: 0.02831192907 | O129: 1,298,584 | P129: 1,270,577 | Q129: 0.02204274121 | R129: 0.002349472949 | S129: 13,836.95 | T129: 13,031.39 | U129: 0.06181725608 | V129: 0.02831192907 | W129: 143,518 | X129: 0.003775975055 | Y129: 132,169 | Z129: 0.0859
B130: 10年期国债期货 | C130: 1,501,913 | D130: 1,562,159 | E130: -0.03856585661 | F130: 1,674,562 | G130: -0.10310099 | H130: 0.002717347484 | I130: 16,396.74 | J130: 16,090.30 | K130: 0.01904488921 | L130: 18,141.69 | M130: -0.09618477092 | N130: 0.03354952555 | O130: 1,501,913 | P130: 1,562,159 | Q130: -0.03856585661 | R130: 0.002717347484 | S130: 16,396.74 | T130: 16,090.30 | U130: 0.01904488921 | V130: 0.03354952555 | W130: 199,773 | X130: 0.005256050563 | Y130: 190,654 | Z130: 0.0478
B131: 上证50股指期货 | C131: 1,208,659 | D131: 1,741,087 | E131: -0.305802065 | F131: 1,478,845 | G131: -0.1827006887 | H131: 0.002186775461 | I131: 9,387.50 | J131: 11,770.65 | K131: -0.2024655821 | L131: 11,874.07 | M131: -0.2094119115 | N131: 0.01920786063 | O131: 1,208,659 | P131: 1,741,087 | Q131: -0.305802065 | R131: 0.002186775461 | S131: 9,387.50 | T131: 11,770.65 | U131: -0.2024655821 | V131: 0.01920786063 | W131: 107,366 | X131: 0.002824811785 | Y131: 120,404 | Z131: -0.1083
B132: 中证500股指期货 | C132: 2,013,675 | D132: 2,506,556 | E132: -0.1966367398 | F132: 2,444,946 | G132: -0.1763928528 | H132: 0.003643256763 | I132: 22,128.87 | J132: 24,935.29 | K132: -0.1125481637 | L132: 28,753.16 | M132: -0.2303847641 | N132: 0.0452780928 | O132: 2,013,675 | P132: 2,506,556 | Q132: -0.1966367398 | R132: 0.003643256763 | S132: 22,128.87 | T132: 24,935.29 | U132: -0.1125481637 | V132: 0.0452780928 | W132: 224,962 | X132: 0.005918776045 | Y132: 242,312 | Z132: -0.0716
B133: 2年期国债期货 | C133: 715,667 | D133: 762,745 | E133: -0.06172180742 | F133: 877,658 | G133: -0.1845718947 | H133: 0.001294825946 | I133: 14,725.14 | J133: 15,443.77 | K133: -0.04653215183 | L133: 18,062.38 | M133: -0.1847619966 | N133: 0.03012924756 | O133: 715,667 | P133: 762,745 | Q133: -0.06172180742 | R133: 0.001294825946 | S133: 14,725.14 | T133: 15,443.77 | U133: -0.04653215183 | V133: 0.03012924756 | W133: 78,022 | X133: 0.002052767777 | Y133: 63,767 | Z133: 0.2235
B134: 中证1000股指期货 | C134: 5,094,495 | D134: 3,168,670 | E134: 0.6077707682 | F134: 5,547,323 | G134: -0.08163000424 | H134: 0.009217253709 | I134: 58,023.84 | J134: 33,027.51 | K134: 0.7568334709 | L134: 68,548.52 | M134: -0.1535362354 | N134: 0.1187231562 | O134: 5,094,495 | P134: 3,168,670 | Q134: 0.6077707682 | R134: 0.009217253709 | S134: 58,023.84 | T134: 33,027.51 | U134: 0.7568334709 | V134: 0.1187231562 | W134: 341,470 | X134: 0.0089841149 | Y134: 348,251 | Z134: -0.0195
B135: 30年期国债期货 | C135: 1,885,837 | D135: 612,597 | E135: 2.078430028 | F135: 1,937,919 | G135: -0.02687522027 | H135: 0.003411964892 | I135: 22,634.73 | J135: 6,308.19 | K135: 2.588152833 | L135: 22,708.72 | M135: -0.003258163311 | N135: 0.04631315232 | O135: 1,885,837 | P135: 612,597 | Q135: 2.078430028 | R135: 0.003411964892 | S135: 22,634.73 | T135: 6,308.19 | U135: 2.588152833 | V135: 0.04631315232 | W135: 127,486 | X135: 0.003354171295 | Y135: 110,384 | Z135: 0.1549
B136: 沪深300股指期权 | C136: 1,908,509 | D136: 3,006,391 | E136: -0.3651827058 | F136: 2,169,761 | G136: -0.120405888 | H136: 0.00345298438 | I136: 99.60 | J136: 141.41 | K136: -0.2956784794 | L136: 118.04 | M136: -0.1561863288 | N136: 0.0002037952922 | O136: 1,908,509 | P136: 3,006,391 | Q136: -0.3651827058 | R136: 0.00345298438 | S136: 99.60 | T136: 141.41 | U136: -0.2956784794 | V136: 0.0002037952922 | W136: 176,295 | X136: 0.004638341688 | Y136: 189,371 | Z136: -0.069
B137: 中证1000股指期权 | C137: 4,137,383 | D137: 3,545,763 | E137: 0.1668526633 | F137: 4,186,224 | G137: -0.01166707754 | H137: 0.007485591566 | I137: 385.18 | J137: 318.04 | K137: 0.2110763344 | L137: 409.86 | M137: -0.06023307985 | N137: 0.0007881117186 | O137: 4,137,383 | P137: 3,545,763 | Q137: 0.1668526633 | R137: 0.007485591566 | S137: 385.18 | T137: 318.04 | U137: 0.2110763344 | V137: 0.0007881117186 | W137: 221,339 | X137: 0.005823454499 | Y137: 210,616 | Z137: 0.0509
B138: 上证50股指期权 | C138: 673,828 | D138: 1,471,660 | E138: -0.5421306552 | F138: 884,861 | G138: -0.2384928254 | H138: 0.001219128418 | I138: 21.85 | J138: 45.30 | K138: -0.5176170359 | L138: 29.46 | M138: -0.2581433917 | N138: 4.471609619e-05 | O138: 673,828 | P138: 1,471,660 | Q138: -0.5421306552 | R138: 0.001219128418 | S138: 21.85 | T138: 45.30 | U138: -0.5176170359 | V138: 4.471609619e-05 | W138: 67,702 | X138: 0.001781247392 | Y138: 76,128 | Z138: -0.1107
B139: 总计 | C139: 22,888,194 | D139: 22,563,536 | E139: 0.01438861356 | F139: 25,620,419 | G139: -0.1066424792 | H139: 0.04141063855 | I139: 185,549.04 | J139: 149,753.87 | K139: 0.2390266758 | L139: 219,361.39 | M139: -0.1541399127 | N139: 0.3796537286 | O139: 22,888,194 | P139: 22,563,536 | Q139: 0.01438861356 | R139: 0.04141063855 | S139: 185,549.04 | T139: 149,753.87 | U139: 0.2390266758 | V139: 0.3796537286 | W139: 1,957,991 | X139: 0.05151496798 | Y139: 1,969,785 | Z139: -0.006
A140: 广州期货交易所 | B140: 工业硅期货 | C140: 6,495,457 | D140: 2,674,203 | E140: 1.42893191 | F140: 6,530,549 | G140: -0.005373514539 | H140: 0.01175195483 | I140: 3,485.22 | J140: 1,814.94 | K140: 0.9202983634 | L140: 3,818.44 | M140: -0.08726633435 | N140: 0.007131136435 | O140: 6,495,457 | P140: 2,674,203 | Q140: 1.42893191 | R140: 0.01175195483 | S140: 3,485.22 | T140: 1,814.94 | U140: 0.9202983634 | V140: 0.007131136435 | W140: 257,906 | X140: 0.006785536467 | Y140: 334,235 | Z140: -0.2284
B141: 碳酸锂期货 | C141: 4,311,393 | D141: 3,150,550 | E141: 0.3684572535 | F141: 4,809,821 | G141: -0.1036271412 | H141: 0.007800420478 | I141: 3,393.69 | J141: 3,201.98 | K141: 0.05987112343 | L141: 3,718.53 | M141: -0.0873579214 | N141: 0.006943855917 | O141: 4,311,393 | P141: 3,150,550 | Q141: 0.3684572535 | R141: 0.007800420478 | S141: 3,393.69 | T141: 3,201.98 | U141: 0.05987112343 | V141: 0.006943855917 | W141: 378,934 | X141: 0.009969797041 | Y141: 376,499 | Z141: 0.0065
B142: 多晶硅期货 | C142: 680,256 | F142: 728,629 | G142: -0.06638906769 | H142: 0.001230758326 | I142: 888.85 | L142: 918.97 | M142: -0.03277841681 | N142: 0.001818689013 | O142: 680,256 | R142: 0.001230758326 | S142: 888.85 | V142: 0.001818689013 | W142: 33,263 | X142: 0.0008751533485 | Y142: 39,882 | Z142: -0.166
B143: 工业硅期权 | C143: 2,217,782 | D143: 402,767 | E143: 4.506364722 | F143: 2,695,713 | G143: -0.1772929833 | H143: 0.0040125389 | I143: 9.75 | J143: 1.59 | K143: 5.12170907 | L143: 10.97 | M143: -0.1112418628 | N143: 1.995027911e-05 | O143: 2,217,782 | P143: 402,767 | Q143: 4.506364722 | R143: 0.0040125389 | S143: 9.75 | T143: 1.59 | U143: 5.12170907 | V143: 1.995027911e-05 | W143: 117,799 | X143: 0.003099305213 | Y143: 164,768 | Z143: -0.2851
B144: 碳酸锂期权 | C144: 1,497,846 | D144: 772,285 | E144: 0.9394990191 | F144: 1,584,749 | G144: -0.05483707515 | H144: 0.002709989233 | I144: 11.26 | J144: 10.05 | K144: 0.1204254995 | L144: 8.80 | M144: 0.2802709252 | N144: 2.304779071e-05 | O144: 1,497,846 | P144: 772,285 | Q144: 0.9394990191 | R144: 0.002709989233 | S144: 11.26 | T144: 10.05 | U144: 0.1204254995 | V144: 2.304779071e-05 | W144: 127,153 | X144: 0.003345410027 | Y144: 125,026 | Z144: 0.017
B145: 多晶硅期权 | C145: 94,987 | F145: 32,745 | G145: 1.900809284 | H145: 0.00017185595 | I145: 3.93 | L145: 0.96 | M145: 3.081287084 | N145: 8.046050807e-06 | O145: 94,987 | R145: 0.00017185595 | S145: 3.93 | V145: 8.046050807e-06 | W145: 19,268 | X145: 0.0005069432919 | Y145: 9,805 | Z145: 0.9651
B146: 总计 | C146: 15,297,721 | D146: 6,999,805 | E146: 1.185449595 | F146: 16,382,206 | G146: -0.06619896002 | H146: 0.02767751772 | I146: 7,792.70 | J146: 5,028.56 | K146: 0.5496881093 | L146: 8,476.67 | M146: -0.08068874943 | N146: 0.01594472548 | O146: 15,297,721 | P146: 6,999,805 | Q146: 1.185449595 | R146: 0.02767751772 | S146: 7,792.70 | T146: 5,028.56 | U146: 0.5496881093 | V146: 0.01594472548 | W146: 934,323 | X146: 0.02458214539 | Y146: 1,050,215 | Z146: -0.1104
A147: 全国期货市场交易总额 | C147: =SUM(C34,C41,C87,C127,C139,C146) -> 552,712,897 | D147: =SUM(D34,D41,D87,D127,D139,D146) -> 552,239,777 | E147: =IFERROR((C147-D147)/ABS(D147),"-") -> 0.0008567293044 | F147: =SUM(F34,F41,F87,F127,F139,F146) -> 654,976,559 | G147: =IFERROR((C147-F147)/ABS(F147),"-") -> -0.1561333159 | H147: =IFERROR(C147/C147,"-") -> 1 | I147: =SUM(I34,I41,I87,I127,I139,I146) -> 488,732.31 | J147: =SUM(J34,J41,J87,J127,J139,J146) -> 440,241.56 | K147: =IFERROR((I147-J147)/ABS(J147),"-") -> 0.1101457812 | L147: =SUM(L34,L41,L87,L127,L139,L146) -> 572,715.61 | M147: =IFERROR((I147-L147)/ABS(L147),"-") -> -0.1466404882 | N147: =IFERROR(I147/I147,"-") -> 1 | O147: =SUM(O34,O41,O87,O127,O139,O146) -> 552,712,897 | P147: =SUM(P34,P41,P87,P127,P139,P146) -> 552,239,777 | Q147: =IFERROR((O147-P147)/ABS(P147),"-") -> 0.0008567293044 | R147: =IFERROR(O147/O147,"-") -> 1 | S147: =SUM(S34,S41,S87,S127,S139,S146) -> 488,732.31 | T147: =SUM(T34,T41,T87,T127,T139,T146) -> 440,241.56 | U147: =IFERROR((S147-T147)/ABS(T147),"-") -> 0.1101457812 | V147: =IFERROR(S147/S147,"-") -> 1 | W147: =SUM(W34,W41,W87,W127,W139,W146) -> 38,008,196 | X147: =IFERROR(W147/W147,"-") -> 1 | Y147: =SUM(Y34,Y41,Y87,Y127,Y139,Y146) -> 39,787,316 | Z147: =IFERROR((W147-Y147)/ABS(Y147),"-") -> -0.04471575816
A148: 注：1.自本月起，本表持仓数据根据上海期货交易所、郑州商品交易所、大连商品交易所、中国金融期货交易所和广州期货交易所提供数据计算，其余数据根据证监会官网发布的市场数据计算。

Sheet 2月
M2: 2025年 | N2: 2月 | O2: 全国期货市场成交情况统计
A3: 交易所名称 | B3: 品种名称 | C3: 本月成交量（手） | D3: 去年同期成交量（手） | E3: 同比增减（％） | F3: 上月成交量（手） | G3: 环比增减（％） | H3: 本月成交量占全国份额（％） | I3: 本月成交额 （亿元） | J3: 去年同期成交额（亿元） | K3: 同比增减（％） | L3: 上月成交额 （亿元） | M3: 环比增减（％） | N3: 本月交易额占全国份额（％） | O3: 今年累计成交总量（手） | P3: 去年同期成交总量（手） | Q3: 同比增减（％） | R3: 今年累计成交总量占全国份额(%) | S3: 今年累计成交总额（亿元） | T3: 去年同期成交总额（亿元） | U3: 同比增减（％） | V3: 今年累计成交总额占全国份额(%) | W3: 本月月末持仓量(手） | X3: 本月月末持仓量占全国份额（%） | Y3: 上月月末持仓量（手） | Z3: 环比增减（％）
A4: 上海期货交易所 | B4: 铜 | C4: 3,045,297 | D4: 1,750,318 | E4: 0.739853558 | F4: 2,479,111 | G4: 0.2283826743 | H4: 0.005413375871 | I4: 11,750.14 | J4: 6,016.46 | K4: 0.9529986089 | L4: 9,301.15 | M4: 0.263300089 | N4: 0.02278937469 | O4: 5,524,408 | P4: 4,261,742 | Q4: 0.2962793149 | R4: 0.0049534561 | S4: 21,051.29 | T4: 14,596.72 | U4: 0.442193001 | V4: 0.02096053782 | W4: 477,555 | X4: 0.01035460851 | Y4: 390,262 | Z4: 0.223678
B5: 铝 | C5: 4,358,459 | D5: 3,502,210 | E5: 0.2444881946 | F5: 4,485,468 | G5: -0.02831566294 | H5: 0.007747676758 | I5: 4,493.28 | J5: 3,297.86 | K5: 0.3624867108 | L5: 4,513.44 | M5: -0.004466553249 | N5: 0.008714715094 | O5: 8,843,927 | P5: 8,793,977 | Q5: 0.005680023953 | R5: 0.007929900208 | S5: 9,006.73 | T5: 8,333.52 | U5: 0.08078360003 | V5: 0.008967899827 | W5: 468,172 | X5: 0.01015116117 | Y5: 397,948 | Z5: 0.176465
B6: 锌 | C6: 3,925,152 | D6: 2,470,886 | E6: 0.5885605406 | F6: 4,992,645 | G6: -0.2138131191 | H6: 0.006977422277 | I6: 4,658.87 | J6: 2,533.53 | K6: 0.8388859823 | L6: 6,029.97 | M6: -0.2273815999 | N6: 0.009035866448 | O6: 8,917,797 | P6: 5,792,597 | Q6: 0.5395162135 | R6: 0.007996135686 | S6: 10,688.84 | T6: 6,050.15 | U6: 0.7667074975 | V6: 0.01064276343 | W6: 186,585 | X6: 0.004045637944 | Y6: 172,622 | Z6: 0.080888
B7: 铅 | C7: 1,043,158 | D7: 790,778 | E7: 0.3191540483 | F7: 1,102,929 | G7: -0.05419297162 | H7: 0.001854336817 | I7: 893.16 | J7: 633.60 | K7: 0.4096535097 | L7: 918.91 | M7: -0.02802535656 | N7: 0.001732273512 | O7: 2,146,087 | P7: 2,354,505 | Q7: -0.08851881818 | R7: 0.001924287225 | S7: 1,812.06 | T7: 1,906.81 | U7: -0.04968881729 | V7: 0.001804252247 | W7: 80,205 | X7: 0.001739048644 | Y7: 66,099 | Z7: 0.213407
B8: 黄金 | C8: 7,639,436 | D8: 2,064,808 | E8: 2.699828749 | F8: 5,984,706 | G8: 0.2764931143 | H8: 0.01358000173 | I8: 52,048.76 | J8: 9,953.58 | K8: 4.229150324 | L8: 38,064.50 | M8: 0.3673834206 | N8: 0.1009484632 | O8: 13,624,142 | P8: 6,277,358 | Q8: 1.170362436 | R8: 0.01221607624 | S8: 90,113.26 | T8: 30,206.92 | U8: 1.983198996 | V8: 0.08972478018 | W8: 329,682 | X8: 0.007148345305 | Y8: 351,567 | Z8: -0.06225
B9: 天然橡胶 | C9: 8,439,368 | D9: 3,353,694 | E9: 1.516439484 | F9: 9,343,482 | G9: -0.09676413996 | H9: 0.01500197554 | I9: 14,934.02 | J9: 4,557.81 | K9: 2.27657462 | L9: 16,076.60 | M9: -0.07107093296 | N9: 0.02896449811 | O9: 17,782,850 | P9: 8,281,744 | Q9: 1.14723493 | R9: 0.01594497851 | S9: 31,010.62 | T9: 11,334.72 | U9: 1.73589519 | V9: 0.03087692989 | W9: 234,217 | X9: 0.005078421001 | Y9: 190,494 | Z9: 0.229524
B10: 燃料油 | C10: 13,128,304 | D10: 9,288,474 | E10: 0.4133972922 | F10: 14,730,915 | G10: -0.1087923595 | H10: 0.02333711428 | I10: 4,530.26 | J10: 2,849.28 | K10: 0.5899668446 | L10: 5,138.07 | M10: -0.1182954151 | N10: 0.008786436145 | O10: 27,859,219 | P10: 31,648,121 | Q10: -0.119719651 | R10: 0.02497994687 | S10: 9,668.34 | T10: 9,559.05 | U10: 0.01143261003 | V10: 0.009626657048 | W10: 431,476 | X10: 0.009355498447 | Y10: 350,582 | Z10: 0.230742
B11: 螺纹钢 | C11: 30,211,500 | D11: 20,536,791 | E11: 0.4710915644 | F11: 27,746,540 | G11: 0.08883846418 | H11: 0.05370451721 | I11: 10,028.11 | J11: 7,820.13 | K11: 0.2823453877 | L11: 9,143.59 | M11: 0.09673639197 | N11: 0.0194494892 | O11: 57,958,040 | P11: 47,565,307 | Q11: 0.218493975 | R11: 0.05196803111 | S11: 19,171.69 | T11: 18,466.35 | U11: 0.0381961636 | V11: 0.01908904394 | W11: 2,702,579 | X11: 0.05859879492 | Y11: 2,148,906 | Z11: 0.257653
B12: 白银 | C12: 19,364,965 | D12: 6,972,715 | E12: 1.777248891 | F12: 17,308,944 | G12: 0.118783734 | H12: 0.0344235174 | I12: 23,379.92 | J12: 6,160.55 | K12: 2.795103167 | L12: 20,088.85 | M12: 0.1638254236 | N12: 0.04534529841 | O12: 36,673,909 | P12: 20,264,476 | Q12: 0.8097634994 | R12: 0.03288363174 | S12: 43,468.77 | T12: 17,935.73 | U12: 1.42358562 | V12: 0.04328137432 | W12: 741,070 | X12: 0.01606828476 | Y12: 589,103 | Z12: 0.257963
B13: 石油沥青 | C13: 8,021,289 | D13: 2,019,824 | E13: 2.971281161 | F13: 7,692,575 | G13: 0.04273133509 | H13: 0.01425879063 | I13: 3,034.32 | J13: 747.82 | K13: 3.057573665 | L13: 2,864.47 | M13: 0.05929632477 | N13: 0.005885054105 | O13: 15,713,864 | P13: 6,506,749 | Q13: 1.415010015 | R13: 0.01408982383 | S13: 5,898.78 | T13: 2,414.21 | U13: 1.443360678 | V13: 0.005873354819 | W13: 468,483 | X13: 0.01015790445 | Y13: 506,140 | Z13: -0.0744
B14: 热轧卷板 | C14: 9,967,466 | D14: 6,124,232 | E14: 0.627545462 | F14: 8,998,863 | G14: 0.1076361536 | H14: 0.01771835061 | I14: 3,411.50 | J14: 2,407.22 | K14: 0.4171927283 | L14: 3,065.10 | M14: 0.1130165626 | N14: 0.006616600231 | O14: 18,966,329 | P14: 14,869,859 | Q14: 0.2754881536 | R14: 0.01700614402 | S14: 6,476.60 | T14: 5,958.81 | U14: 0.08689349812 | V14: 0.006448676175 | W14: 1,606,101 | X14: 0.03482435966 | Y14: 1,442,034 | Z14: 0.113775
B15: 镍 | C15: 3,367,278 | D15: 4,295,069 | E15: -0.2160130606 | F15: 3,394,890 | G15: -0.008133400493 | H15: 0.00598573521 | I15: 4,215.28 | J15: 5,622.69 | K15: -0.2503080322 | L15: 4,272.70 | M15: -0.01343811863 | N15: 0.008175535672 | O15: 6,762,168 | P15: 9,815,409 | Q15: -0.3110661003 | R15: 0.006063292634 | S15: 8,487.99 | T15: 12,670.94 | U15: -0.3301218252 | V15: 0.008451394677 | W15: 181,607 | X15: 0.003937702228 | Y15: 165,516 | Z15: 0.097217
B16: 锡 | C16: 1,848,605 | D16: 1,065,820 | E16: 0.7344439023 | F16: 1,663,152 | G16: 0.1115069458 | H16: 0.003286114196 | I16: 4,813.33 | J16: 2,297.14 | K16: 1.095356252 | L16: 4,135.32 | M16: 0.1639569792 | N16: 0.00933544533 | O16: 3,511,757 | P16: 2,667,437 | Q16: 0.3165285628 | R16: 0.00314881416 | S16: 8,948.65 | T16: 5,715.59 | U16: 0.5656556379 | V16: 0.008910070347 | W16: 60,706 | X16: 0.00131626067 | Y16: 44,975 | Z16: 0.349772
B17: 纸浆 | C17: 3,416,648 | D17: 5,062,395 | E17: -0.3250925698 | F17: 4,778,211 | G17: -0.2849524644 | H17: 0.006073496229 | I17: 2,080.36 | J17: 2,895.87 | K17: -0.2816131189 | L17: 2,874.99 | M17: -0.2763941022 | N17: 0.004034849046 | O17: 8,194,859 | P17: 15,265,453 | Q17: -0.4631761665 | R17: 0.007347913895 | S17: 4,955.34 | T17: 8,768.45 | U17: -0.434866762 | V17: 0.004933982037 | W17: 258,359 | X17: 0.005601881039 | Y17: 208,751 | Z17: 0.237642
B18: 不锈钢 | C18: 3,682,876 | D18: 3,157,122 | E18: 0.1665295164 | F18: 4,716,479 | G18: -0.2191471647 | H18: 0.00654674801 | I18: 2,433.48 | J18: 2,181.85 | K18: 0.1153312118 | L18: 3,080.85 | M18: -0.2101272336 | N18: 0.004719734464 | O18: 8,399,355 | P18: 8,463,751 | Q18: -0.007608446893 | R18: 0.007531275073 | S18: 5,514.34 | T18: 5,901.05 | U18: -0.06553218514 | V18: 0.005490564333 | W18: 300,135 | X18: 0.006507691103 | Y18: 288,339 | Z18: 0.04091
B19: 氧化铝 | C19: 3,147,845 | D19: 1,013,449 | E19: 2.106071445 | F19: 5,730,507 | G19: -0.450686475 | H19: 0.005595667079 | I19: 2,153.80 | J19: 653.23 | K19: 2.297137799 | L19: 4,508.79 | M19: -0.5223112791 | N19: 0.004177283741 | O19: 8,878,352 | P19: 6,884,306 | Q19: 0.289650983 | R19: 0.007960767357 | S19: 6,662.58 | T19: 4,669.49 | U19: 0.4268316978 | V19: 0.006633860676 | W19: 237,481 | X19: 0.005149192833 | Y19: 186,824 | Z19: 0.271148
B20: 丁二烯橡胶 | C20: 2,899,552 | D20: 477,118 | E20: 5.077221987 | F20: 3,976,473 | G20: -0.2708231641 | H20: 0.005154296883 | I20: 2,060.46 | J20: 310.75 | K20: 5.630582047 | L20: 2,823.22 | M20: -0.2701718005 | N20: 0.003996265233 | O20: 6,876,025 | P20: 1,117,698 | Q20: 5.151952495 | R20: 0.006165382423 | S20: 4,883.68 | T20: 705.98 | U20: 5.917580045 | V20: 0.00486262789 | W20: 61,795 | X20: 0.001339872963 | Y20: 63,745 | Z20: -0.030591
B21: 线材 | C21: 1,134 | D21: 1,512 | E21: -0.25 | F21: 631 | G21: 0.7971473851 | H21: 2.015819225e-06 | I21: 0.40 | J21: 0.61 | K21: -0.3438952604 | L21: 0.23 | M21: 0.7887016576 | N21: 7.821238385e-07 | O21: 1,765 | P21: 7,600 | Q21: -0.7677631579 | R21: 1.582585866e-06 | S21: 0.63 | T21: 3.14 | U21: -0.8000724395 | V21: 6.260006128e-07 | W21: 160 | X21: 3.469207445e-06 | Y21: 59 | Z21: 1.711864
B22: 铜期权 | C22: 1,475,487 | D22: 612,236 | E22: 1.409997125 | F22: 1,172,985 | G22: 0.2578907659 | H22: 0.002622852787 | I22: 28.68 | J22: 7.72 | K22: 2.714242871 | L22: 22.00 | M22: 0.3034989306 | N22: 5.563044199e-05 | O22: 2,648,472 | P22: 1,388,778 | Q22: 0.907052099 | R22: 0.002374750342 | S22: 50.69 | T22: 16.83 | U22: 2.012148319 | V22: 5.046894721e-05 | W22: 66,851 | X22: 0.001449499918 | Y22: 51,887 | Z22: 0.288396
B23: 天胶期权 | C23: 913,097 | D23: 400,244 | E23: 1.281350876 | F23: 559,639 | G23: 0.6315821449 | H23: 0.001623137995 | I23: 17.29 | J23: 5.45 | K23: 2.170361464 | L23: 16.32 | M23: 0.05952808249 | N23: 3.353267056e-05 | O23: 1,472,736 | P23: 774,329 | Q23: 0.9019512378 | R23: 0.001320527579 | S23: 33.61 | T23: 12.00 | U23: 1.801282474 | V23: 3.346245402e-05 | W23: 90,298 | X23: 0.001957890587 | Y23: 81,243 | Z23: 0.111456
B24: 黄金期权 | C24: 1,414,002 | D24: 227,365 | E24: 5.219083852 | F24: 1,561,211 | G24: -0.09429154675 | H24: 0.002513555922 | I24: 93.24 | J24: 5.27 | K24: 16.7062782 | L24: 57.58 | M24: 0.619212556 | N24: 0.0001808308189 | O24: 2,975,213 | P24: 661,882 | Q24: 3.495080694 | R24: 0.002667722403 | S24: 150.82 | T24: 15.04 | U24: 9.026494568 | V24: 0.0001501667319 | W24: 123,457 | X24: 0.002676862147 | Y24: 68,863 | Z24: 0.792791
B25: 铝期权 | C25: 1,187,070 | D25: 761,240 | E25: 0.5593899427 | F25: 1,288,082 | G25: -0.07842047323 | H25: 0.002110157431 | I25: 6.40 | J25: 2.70 | K25: 1.371969115 | L25: 6.56 | M25: -0.02419842784 | N25: 1.241791033e-05 | O25: 2,475,152 | P25: 2,148,503 | Q25: 0.1520356267 | R25: 0.0022193431 | S25: 12.96 | T25: 8.75 | U25: 0.481239002 | V25: 1.290817165e-05 | W25: 61,022 | X25: 0.001323112354 | Y25: 53,828 | Z25: 0.133648
B26: 锌期权 | C26: 1,371,531 | D26: 523,710 | E26: 1.61887495 | F26: 1,876,278 | G26: -0.2690150393 | H26: 0.002438058693 | I26: 8.29 | J26: 2.29 | K26: 2.624990056 | L26: 12.42 | M26: -0.3322629135 | N26: 1.608529322e-05 | O26: 3,247,809 | P26: 1,261,805 | Q26: 1.573938921 | R26: 0.002912145393 | S26: 20.71 | T26: 5.85 | U26: 2.541168472 | V26: 2.062459693e-05 | W26: 38,810 | X26: 0.0008414996308 | Y26: 37,607 | Z26: 0.031989
B27: 白银期权 | C27: 6,737,197 | D27: 748,411 | E27: 8.002001574 | F27: 5,658,311 | G27: 0.1906727997 | H27: 0.01197616511 | I27: 62.07 | J27: 4.50 | K27: 12.79732689 | L27: 43.92 | M27: 0.4132866736 | N27: 0.0001203875344 | O27: 12,395,508 | P27: 2,709,333 | Q27: 3.575114244 | R27: 0.01111442253 | S27: 105.99 | T27: 15.18 | U27: 5.980092752 | V27: 0.0001055345274 | W27: 239,333 | X27: 0.005189348909 | Y27: 113,194 | Z27: 1.114361
B28: 螺纹钢期权 | C28: 2,816,265 | D28: 2,531,483 | E28: 0.1124961139 | F28: 2,238,030 | G28: 0.2583678503 | H28: 0.005006244382 | I28: 8.12 | J28: 6.51 | K28: 0.2474844946 | L28: 8.56 | M28: -0.05129061402 | N28: 1.574735318e-05 | O28: 5,054,295 | P28: 4,687,715 | Q28: 0.07820014655 | R28: 0.004531929648 | S28: 16.68 | T28: 13.45 | U28: 0.2397542428 | V28: 1.660564872e-05 | W28: 415,144 | X28: 0.009001379097 | Y28: 369,298 | Z28: 0.124144
B29: 丁二烯橡胶期权 | C29: 1,486,234 | D29: 278,643 | E29: 4.333828591 | F29: 1,835,661 | G29: -0.190354864 | H29: 0.002641956852 | I29: 5.80 | J29: 0.99 | K29: 4.831681486 | L29: 8.32 | M29: -0.3033100189 | N29: 1.12476697e-05 | O29: 3,321,895 | P29: 705,895 | Q29: 3.705933602 | R29: 0.002978574546 | S29: 14.12 | T29: 2.33 | U29: 5.058532685 | V29: 1.406241414e-05 | W29: 20,879 | X29: 0.000452709889 | Y29: 28,105 | Z29: -0.257107
B30: 铅期权 | C30: 101,856 | F30: 201,375 | G30: -0.4941973929 | H30: 0.0001810610961 | I30: 0.36 | L30: 0.84 | M30: -0.5679148686 | N30: 7.064795437e-07 | O30: 303,231 | R30: 0.0002718918383 | S30: 1.21 | V30: 1.202080367e-06 | W30: 5,350 | X30: 0.0001160016239 | Y30: 8,664 | Z30: -0.382502
B31: 镍期权 | C31: 614,066 | F31: 613,589 | G31: 0.0007773933366 | H31: 0.001091574998 | I31: 3.51 | L31: 3.68 | M31: -0.04659451848 | N31: 6.804995822e-06 | O31: 1,227,655 | R31: 0.001100775893 | S31: 7.19 | V31: 7.157758142e-06 | W31: 27,686 | X31: 0.0006003029832 | Y31: 18,397 | Z31: 0.504919
B32: 锡期权 | C32: 277,552 | F32: 222,154 | G32: 0.2493675558 | H32: 0.0004933815322 | I32: 3.06 | L32: 2.27 | M32: 0.3473600375 | N32: 5.942099657e-06 | O32: 499,706 | R32: 0.000448060993 | S32: 5.34 | V32: 5.314598448e-06 | W32: 12,453 | X32: 0.0002700127519 | Y32: 5,432 | Z32: 1.292526
B33: 氧化铝期权 | C33: 2,323,385 | F33: 5,652,528 | G33: -0.5889653267 | H33: 0.004130091843 | I33: 11.99 | L33: 41.21 | M33: -0.7090124354 | N33: 2.326009697e-05 | O33: 7,975,913 | R33: 0.007151596136 | S33: 53.21 | V33: 5.297775386e-05 | W33: 66,983 | X33: 0.001452362014 | Y33: 75,765 | Z33: -0.115911
B34: 总计 | C34: 148,226,074 | D34: 80,030,547 | E34: 0.8521187166 | F34: 152,006,364 | G34: -0.02486928771 | H34: 0.2634893912 | I34: 151,168.28 | J34: 60,975.42 | K34: 1.479167579 | L34: 137,124.43 | M34: 0.1024168162 | N34: 0.2931905581 | O34: 300,232,438 | P34: 215,176,329 | Q34: 0.3952856218 | R34: 0.2692031801 | S34: 288,292.72 | T34: 165,287.09 | U34: 0.7441938345 | V34: 0.2870498813 | W34: 9,994,634 | X34: 0.2167091168 | Y34: 8,476,249 | Z34: 0.179134
A35: 上海国际能源交易中心 | B35: 原油 | C35: 2,234,274 | D35: 2,972,649 | E35: -0.2483895677 | F35: 3,002,485 | G35: -0.2558583973 | H35: 0.003971686493 | I35: 12,832.74 | J35: 17,347.43 | K35: -0.2602512484 | L35: 18,162.32 | M35: -0.2934416242 | N35: 0.02488907418 | O35: 5,236,759 | P35: 8,366,419 | Q35: -0.3740740214 | R35: 0.00469553585 | S35: 30,995.06 | T35: 47,749.44 | U35: -0.350881027 | V35: 0.03086144387 | W35: 61,640 | X35: 0.001336512168 | Y35: 55,578 | Z35: 0.109072
B36: 20号胶 | C36: 4,253,978 | D36: 1,093,121 | E36: 2.891589312 | F36: 3,449,287 | G36: 0.2332919818 | H36: 0.007561949413 | I36: 6,445.39 | J36: 1,254.95 | K36: 4.135966783 | L36: 5,071.61 | M36: 0.2708765229 | N36: 0.01250081518 | O36: 7,703,265 | P36: 2,570,150 | Q36: 1.997204443 | R36: 0.006907126521 | S36: 11,517.00 | T36: 2,903.81 | U36: 2.966162008 | V36: 0.01146734548 | W36: 206,157 | X36: 0.004470008745 | Y36: 152,372 | Z36: 0.352985
B37: 低硫燃料油 | C37: 2,200,411 | D37: 2,245,033 | E37: -0.0198758771 | F37: 2,735,132 | G37: -0.195500985 | H37: 0.003911491002 | I37: 863.84 | J37: 964.48 | K37: -0.1043527531 | L37: 1,128.37 | M37: -0.2344354079 | N37: 0.001675410868 | O37: 4,935,543 | P37: 5,800,929 | Q37: -0.1491805881 | R37: 0.00442545076 | S37: 1,992.20 | T37: 2,457.49 | U37: -0.1893326187 | V37: 0.001983615528 | W37: 125,669 | X37: 0.00272482394 | Y37: 131,603 | Z37: -0.04509
B38: 铜(BC) | C38: 237,477 | D38: 158,810 | E38: 0.4953529375 | F38: 174,522 | G38: 0.3607281603 | H38: 0.0004221434763 | I38: 814.62 | J38: 484.93 | K38: 0.6798618418 | L38: 581.20 | M38: 0.4016117802 | N38: 0.001579952396 | O38: 411,999 | P38: 426,272 | Q38: -0.03348331582 | R38: 0.0003694185802 | S38: 1,395.82 | T38: 1,296.56 | U38: 0.07655894192 | V38: 0.001389803712 | W38: 16,608 | X38: 0.0003601037328 | Y38: 11,588 | Z38: 0.433207
B39: SCFIS欧线 | C39: 2,270,303 | D39: 425,941 | E39: 4.33008797 | F39: 1,318,044 | G39: 0.7224789157 | H39: 0.004035732305 | I39: 2,204.84 | J39: 392.84 | K39: 4.612549739 | L39: 993.02 | M39: 1.22034124 | N39: 0.00427627508 | O39: 3,588,347 | P39: 2,387,636 | Q39: 0.502886956 | R39: 0.003217488523 | S39: 3,197.85 | T39: 2,331.05 | U39: 0.3718493828 | V39: 0.00318406703 | W39: 98,033 | X39: 0.002125605084 | Y39: 80,270 | Z39: 0.221291
B40: 原油期权 | C40: 885,831 | D40: 776,586 | E40: 0.140673409 | F40: 1,238,367 | G40: -0.2846781285 | H40: 0.001574669453 | I40: 35.76 | J40: 43.94 | K40: -0.1861160034 | L40: 68.56 | M40: -0.4783968638 | N40: 6.935873719e-05 | O40: 2,124,198 | P40: 2,655,089 | Q40: -0.1999522427 | R40: 0.001904660471 | S40: 104.32 | T40: 134.28 | U40: -0.2231346964 | V40: 0.0001038715884 | W40: 39,425 | X40: 0.0008548343969 | Y40: 38,953 | Z40: 0.012117
B41: 总计 | C41: 12,082,274 | D41: 7,672,140 | E41: 0.5748244949 | F41: 11,917,837 | G41: 0.01379755404 | H41: 0.02147767214 | I41: 23,197.18 | J41: 20,488.58 | K41: 0.1322006736 | L41: 26,005.08 | M41: -0.107974809 | N41: 0.04499088644 | O41: 24,000,111 | P41: 22,206,495 | Q41: 0.08076988287 | R41: 0.0215196807 | S41: 49,202.26 | T41: 56,872.63 | U41: -0.1348692911 | V41: 0.04899014721 | W41: 547,532 | X41: 0.01187188807 | Y41: 470,364 | Z41: 0.16406
A42: 郑州商品交易所 | B42: 一号棉CF | C42: 5,319,018 | D42: 4,860,188 | E42: 0.09440581311 | F42: 5,035,836 | G42: 0.05623336423 | H42: 0.009455184076 | I42: 3,661.00 | J42: 3,937.10 | K42: -0.07012621405 | L42: 3,407.25 | M42: 0.07447422662 | N42: 0.007100510809 | O42: 10,354,854 | P42: 13,167,035 | Q42: -0.2135773923 | R42: 0.009284671718 | S42: 7,068.26 | T42: 10,483.00 | U42: -0.3257410869 | V42: 0.007037785611 | W42: 804,517 | X42: 0.01744397729 | Y42: 694,249 | Z42: 0.1588
B43: 白糖SR | C43: 4,044,401 | D43: 5,371,702 | E43: -0.2470913316 | F43: 5,546,716 | G43: -0.2708476511 | H43: 0.007189401489 | I43: 2,398.69 | J43: 3,439.43 | K43: -0.3025894331 | L43: 3,252.18 | M43: -0.2624355735 | N43: 0.004652263649 | O43: 9,591,117 | P43: 14,149,018 | Q43: -0.3221355009 | R43: 0.008599867536 | S43: 5,650.88 | T43: 9,020.27 | U43: -0.3735357797 | V43: 0.00562651748 | W43: 474,707 | X43: 0.01029285662 | Y43: 377,912 | Z43: 0.2561
B44: PTA | C44: 14,059,605 | D44: 11,127,147 | E44: 0.2635408699 | F44: 17,143,691 | G44: -0.1798962662 | H44: 0.02499261204 | I44: 3,582.27 | J44: 3,288.31 | K44: 0.0893952537 | L44: 4,360.54 | M44: -0.178478768 | N44: 0.006947809002 | O44: 31,203,296 | P44: 33,937,874 | Q44: -0.08057599601 | R44: 0.02797841089 | S44: 7,942.81 | T44: 9,996.98 | U44: -0.2054794268 | V44: 0.0079085655 | W44: 1,605,071 | X44: 0.03480202664 | Y44: 1,288,739 | Z44: 0.2455
B45: 菜籽油 | C45: 10,504,430 | D45: 6,233,083 | E45: 0.685270355 | F45: 10,496,673 | G45: 0.0007389960609 | H45: 0.01867286767 | I45: 9,215.49 | J45: 4,811.68 | K45: 0.9152343828 | L45: 9,109.31 | M45: 0.01165598822 | N45: 0.01787342094 | O45: 21,001,103 | P45: 15,990,064 | Q45: 0.3133845493 | R45: 0.01883062253 | S45: 18,324.80 | T45: 12,530.26 | U45: 0.4624438541 | V45: 0.01824580128 | W45: 395,948 | X45: 0.008585160933 | Y45: 292,858 | Z45: 0.352
B46: 甲醇MA | C46: 11,050,032 | D46: 16,010,197 | E46: -0.3098128649 | F46: 13,377,147 | G46: -0.1739619816 | H46: 0.01964273981 | I46: 2,824.70 | J46: 3,994.83 | K46: -0.2929116531 | L46: 3,495.96 | M46: -0.1920114216 | N46: 0.005478492324 | O46: 24,427,179 | P46: 38,009,178 | Q46: -0.3573347206 | R46: 0.02190261089 | S46: 6,320.66 | T46: 9,240.75 | U46: -0.3160020119 | V46: 0.006293408429 | W46: 1,022,746 | X46: 0.02217573773 | Y46: 822,366 | Z46: 0.2437
B47: 玻璃FG | C47: 17,761,928 | D47: 12,292,403 | E47: 0.4449516502 | F47: 15,775,641 | G47: 0.1259084813 | H47: 0.0315739294 | I47: 4,560.72 | J47: 4,226.78 | K47: 0.07900697822 | L47: 4,321.51 | M47: 0.05535436224 | N47: 0.008845508156 | O47: 33,537,569 | P47: 35,445,720 | Q47: -0.05383304388 | R47: 0.03007143494 | S47: 8,882.23 | T47: 12,669.77 | U47: -0.2989434151 | V47: 0.008843935894 | W47: 1,657,501 | X47: 0.03593884256 | Y47: 847,792 | Z47: 0.9551
B48: 菜籽粕RM | C48: 26,569,763 | D48: 11,397,635 | E48: 1.331164579 | F48: 20,317,255 | G48: 0.307743738 | H48: 0.04723089864 | I48: 6,781.11 | J48: 2,819.62 | K48: 1.404972321 | L48: 4,835.47 | M48: 0.4023666489 | N48: 0.01315194056 | O48: 46,887,018 | P48: 30,278,103 | Q48: 0.548545429 | R48: 0.04204120792 | S48: 11,616.58 | T48: 7,707.81 | U48: 0.5071189112 | V48: 0.01156649973 | W48: 1,184,663 | X48: 0.02568651062 | Y48: 762,987 | Z48: 0.5527
B49: 硅铁SF | C49: 3,214,283 | D49: 1,928,143 | E49: 0.6670355881 | F49: 3,545,907 | G49: -0.09352303938 | H49: 0.005713768488 | I49: 1,015.41 | J49: 635.23 | K49: 0.5984864654 | L49: 1,125.66 | M49: -0.0979421454 | N49: 0.001969381677 | O49: 6,760,190 | P49: 5,836,083 | Q49: 0.1583437042 | R49: 0.006061519061 | S49: 2,141.07 | T49: 1,945.84 | U49: 0.1003308877 | V49: 0.002131835167 | W49: 294,112 | X49: 0.006377097125 | Y49: 228,329 | Z49: 0.2881
B50: 锰硅SM | C50: 12,764,791 | D50: 1,667,793 | E50: 6.653702228 | F50: 8,639,828 | G50: 0.4774357777 | H50: 0.0226909269 | I50: 4,296.13 | J50: 526.47 | K50: 7.160314864 | L50: 2,847.04 | M50: 0.5089809909 | N50: 0.00833233702 | O50: 21,404,619 | P50: 4,937,135 | Q50: 3.335433202 | R50: 0.01919243484 | S50: 7,143.17 | T50: 1,571.83 | U50: 3.544485286 | V50: 0.007112377983 | W50: 561,397 | X50: 0.01217251657 | Y50: 556,706 | Z50: 0.0084
B51: 棉纱 | C51: 113,143 | D51: 33,978 | E51: 2.329889929 | F51: 97,127 | G51: 0.1648975053 | H51: 0.0002011250746 | I51: 112.74 | J51: 37.85 | K51: 1.978564536 | L51: 95.11 | M51: 0.1853337775 | N51: 0.000218662786 | O51: 210,270 | P51: 147,863 | Q51: 0.4220596092 | R51: 0.0001885384306 | S51: 207.86 | T51: 162.26 | U51: 0.2809732769 | V51: 0.0002069599908 | W51: 24,579 | X51: 0.0005329353112 | Y51: 11,029 | Z51: 1.2286
B52: 苹果AP | C52: 1,841,587 | D52: 875,829 | E52: 1.102678719 | F52: 1,881,424 | G52: -0.02117385555 | H52: 0.00327363887 | I52: 1,317.13 | J52: 720.87 | K52: 0.8271358508 | L52: 1,286.22 | M52: 0.02403513454 | N52: 0.002554578903 | O52: 3,723,011 | P52: 2,333,385 | Q52: 0.595540813 | R52: 0.003338234893 | S52: 2,603.35 | T52: 1,922.71 | U52: 0.3540051241 | V52: 0.002592130785 | W52: 134,219 | X52: 0.002910209713 | Y52: 124,101 | Z52: 0.0815
B53: 红枣CJ | C53: 1,635,026 | D53: 555,822 | E53: 1.941635991 | F53: 1,004,601 | G53: 0.627537699 | H53: 0.002906452243 | I53: 770.65 | J53: 351.20 | K53: 1.194331515 | L53: 463.03 | M53: 0.6643685407 | N53: 0.00149468 | O53: 2,639,627 | P53: 1,499,693 | Q53: 0.7601115695 | R53: 0.002366819479 | S53: 1,233.68 | T53: 1,001.74 | U53: 0.231539506 | V53: 0.001228364965 | W53: 161,740 | X53: 0.003506935076 | Y53: 137,260 | Z53: 0.1783
B54: 尿素 | C54: 4,285,858 | D54: 3,178,253 | E54: 0.3484949121 | F54: 3,594,374 | G54: 0.1923795354 | H54: 0.007618619887 | I54: 1,536.93 | J54: 1,346.09 | K54: 0.1417733523 | L54: 1,223.41 | M54: 0.256263317 | N54: 0.002980865511 | O54: 7,880,232 | P54: 9,026,832 | Q54: -0.1270213071 | R54: 0.007065803842 | S54: 2,760.34 | T54: 3,769.77 | U54: -0.2677702619 | V54: 0.002748437626 | W54: 318,521 | X54: 0.006906346403 | Y54: 234,997 | Z54: 0.3554
B55: 纯碱 | C55: 21,285,801 | D55: 9,235,197 | E55: 1.304856193 | F55: 16,042,975 | G55: 0.3267988637 | H55: 0.03783803075 | I55: 6,386.88 | J55: 3,443.86 | K55: 0.8545704593 | L55: 4,673.56 | M55: 0.3665997094 | N55: 0.01238734467 | O55: 37,328,776 | P55: 29,579,895 | Q55: 0.2619644525 | R55: 0.03347081772 | S55: 11,060.44 | T55: 11,484.28 | U55: -0.03690616294 | V55: 0.01101275819 | W55: 1,636,777 | X55: 0.03548949346 | Y55: 1,092,966 | Z55: 0.4976
B56: 短纤PF | C56: 2,194,253 | D56: 1,431,649 | E56: 0.5326752577 | F56: 2,754,901 | G56: -0.2035093094 | H56: 0.003900544428 | I56: 764.21 | J56: 530.79 | K56: 0.4397673467 | L56: 962.97 | M56: -0.2063957133 | N56: 0.001482192054 | O56: 4,949,154 | P56: 4,472,740 | Q56: 0.1065150221 | R56: 0.004437655052 | S56: 1,727.18 | T56: 1,659.74 | U56: 0.04063342175 | V56: 0.001719734913 | W56: 231,484 | X56: 0.005019162601 | Y56: 190,526 | Z56: 0.215
B57: 花生PK | C57: 1,301,868 | D57: 1,256,954 | E57: 0.03573241344 | F57: 1,212,383 | G57: 0.07380918406 | H57: 0.002314224464 | I57: 528.52 | J57: 565.14 | K57: -0.06479085172 | L57: 483.06 | M57: 0.0940966087 | N57: 0.001025062782 | O57: 2,514,251 | P57: 3,259,697 | Q57: -0.2286856723 | R57: 0.002254401187 | S57: 1,011.58 | T57: 1,449.79 | U57: -0.3022530323 | V57: 0.00100722363 | W57: 117,877 | X57: 0.002555873537 | Y57: 122,227 | Z57: -0.0356
B58: 对二甲苯PX | C58: 2,918,249 | D58: 739,664 | E58: 2.945371141 | F58: 3,549,882 | G58: -0.177930703 | H58: 0.005187533013 | I58: 1,056.29 | J58: 315.24 | K58: 2.3507012 | L58: 1,293.69 | M58: -0.1835072478 | N58: 0.002048662771 | O58: 6,468,131 | P58: 2,110,497 | Q58: 2.064743044 | R58: 0.005799644588 | S58: 2,349.97 | T58: 898.88 | U58: 1.61433629 | V58: 0.002339840263 | W58: 218,229 | X58: 0.004731760447 | Y58: 129,417 | Z58: 0.6862
B59: 烧碱SH | C59: 16,510,522 | D59: 615,572 | E59: 25.82143112 | F59: 21,300,460 | G59: -0.2248748619 | H59: 0.02934940711 | I59: 14,900.49 | J59: 495.26 | K59: 29.08596117 | L59: 19,845.32 | M59: -0.2491688437 | N59: 0.02889946136 | O59: 37,810,982 | P59: 2,530,336 | Q59: 13.94306764 | R59: 0.03390318735 | S59: 34,745.81 | T59: 2,077.32 | U59: 15.7262374 | V59: 0.03459601909 | W59: 350,531 | X59: 0.007600404718 | Y59: 399,413 | Z59: -0.1224
B60: 瓶片PR | C60: 206,238 | F60: 296,506 | G60: -0.3044390333 | H60: 0.0003666124562 | I60: 195.82 | L60: 280.76 | M60: -0.3025377801 | N60: 0.0003797898642 | O60: 502,744 | R60: 0.0004507850133 | S60: 476.58 | V60: 0.0004745229249 | W60: 20,795 | X60: 0.0004508885551 | Y60: 22,926 | Z60: -0.093
B61: 优质强筋小麦 | C61: 0 | D61: 0 | F61: 0 | H61: 0 | I61: 0.00 | J61: 0.00 | L61: 0.00 | N61: 0 | O61: 0 | P61: 0 | R61: 0 | S61: 0.00 | T61: 0.00 | V61: 0 | W61: 0 | X61: 0 | Y61: 0 | Z61: 0
B62: 早籼稻 | C62: 0 | D62: 0 | F62: 0 | H62: 0 | I62: 0.00 | J62: 0.00 | L62: 0.00 | N62: 0 | O62: 0 | P62: 0 | R62: 0 | S62: 0.00 | T62: 0.00 | V62: 0 | W62: 0 | X62: 0 | Y62: 0 | Z62: 0
B63: 普麦PM | C63: 0 | D63: 0 | F63: 0 | H63: 0 | I63: 0.00 | J63: 0.00 | L63: 0.00 | N63: 0 | O63: 0 | P63: 0 | R63: 0 | S63: 0.00 | T63: 0.00 | V63: 0 | W63: 0 | X63: 0 | Y63: 0 | Z63: 0
B64: 油菜籽RS | C64: 417 | D64: 60 | E64: 5.95 | F64: 319 | G64: 0.3072100313 | H64: 7.412668578e-07 | I64: 0.24 | J64: 0.04 | K64: 5.696427584 | L64: 0.19 | M64: 0.3080720516 | N64: 4.697134054e-07 | O64: 736 | P64: 296 | Q64: 1.486486486 | R64: 6.599338228e-07 | S64: 0.43 | T64: 0.18 | U64: 1.374466572 | V64: 4.254857794e-07 | W64: 76 | X64: 1.647873536e-06 | Y64: 69 | Z64: 0.1014
B65: 动力煤ZC | C65: 0 | D65: 0 | F65: 0 | H65: 0 | I65: 0.00 | J65: 0.00 | L65: 0.00 | N65: 0 | O65: 0 | P65: 0 | R65: 0 | S65: 0.00 | T65: 0.00 | V65: 0 | W65: 0 | X65: 0 | Y65: 0 | Z65: 0
B66: 粳稻JR | C66: 0 | D66: 0 | F66: 0 | H66: 0 | I66: 0.00 | J66: 0.00 | L66: 0.00 | N66: 0 | O66: 0 | P66: 0 | R66: 0 | S66: 0.00 | T66: 0.00 | V66: 0 | W66: 0 | X66: 0 | Y66: 0 | Z66: 0
B67: 晚籼稻LR | C67: 0 | D67: 0 | F67: 0 | H67: 0 | I67: 0.00 | J67: 0.00 | L67: 0.00 | N67: 0 | O67: 0 | P67: 0 | R67: 0 | S67: 0.00 | T67: 0.00 | V67: 0 | W67: 0 | X67: 0 | Y67: 0 | Z67: 0
B68: 花生期权 | C68: 668,626 | D68: 726,342 | E68: -0.07946119046 | F68: 856,900 | G68: -0.2197152527 | H68: 0.001188561856 | I68: 1.37 | J68: 1.37 | K68: 0.000857103575 | L68: 1.80 | M68: -0.2400745395 | N68: 2.65433468e-06 | O68: 1,525,526 | P68: 1,583,986 | Q68: -0.03690689185 | R68: 0.001367861691 | S68: 3.17 | T68: 3.03 | U68: 0.04581606525 | V68: 3.155828249e-06 | W68: 73,548 | X68: 0.001594707932 | Y68: 71,273 | Z68: 0.0319
B69: 对二甲苯期权 | C69: 415,928 | D69: 133,337 | E69: 2.119374217 | F69: 500,049 | G69: -0.1682255139 | H69: 0.000739361251 | I69: 0.57 | J69: 0.35 | K69: 0.6278927684 | L69: 0.91 | M69: -0.3716588501 | N69: 1.105905547e-06 | O69: 915,977 | P69: 252,903 | Q69: 2.621851065 | R69: 0.0008213100586 | S69: 1.48 | T69: 0.85 | U69: 0.7362666027 | V69: 1.471303714e-06 | W69: 23,690 | X69: 0.0005136595273 | Y69: 16,373 | Z69: 0.4469
B70: 烧碱期权 | C70: 5,516,374 | D70: 104,835 | E70: 51.61958315 | F70: 4,436,394 | G70: 0.2434364486 | H70: 0.009806007726 | I70: 44.71 | J70: 0.85 | K70: 51.54981205 | L70: 53.04 | M70: -0.1570248965 | N70: 8.671150388e-05 | O70: 9,952,768 | P70: 244,147 | Q70: 39.76547326 | R70: 0.008924141621 | S70: 97.74 | T70: 2.87 | U70: 33.11285732 | V70: 9.732307845e-05 | W70: 273,557 | X70: 0.005931412381 | Y70: 226,934 | Z70: 0.2054
B71: 苹果期权 | C71: 239,578 | D71: 59,827 | E71: 3.004513013 | F71: 342,973 | G71: -0.3014668793 | H71: 0.0004258782524 | I71: 1.60 | J71: 0.46 | K71: 2.434473275 | L71: 1.42 | M71: 0.1212322189 | N71: 3.095258179e-06 | O71: 582,551 | P71: 109,403 | Q71: 4.324817418 | R71: 0.0005223438973 | S71: 3.02 | T71: 1.11 | U71: 1.723828804 | V71: 3.006241911e-06 | W71: 36,731 | X71: 0.0007964216166 | Y71: 20,651 | Z71: 0.7787
B72: 短纤期权 | C72: 377,097 | D72: 41,035 | E72: 8.189642988 | F72: 570,402 | G72: -0.3388925705 | H72: 0.0006703345523 | I72: 0.36 | J72: 0.07 | K72: 4.407216416 | L72: 0.66 | M72: -0.4632181391 | N72: 6.894235997e-07 | O72: 947,499 | P72: 176,766 | Q72: 4.360188045 | R72: 0.0008495742352 | S72: 1.02 | T72: 0.24 | U72: 3.318516475 | V72: 1.013292759e-06 | W72: 35,727 | X72: 0.0007746523399 | Y72: 30,092 | Z72: 0.1873
B73: 尿素期权 | C73: 288,675 | D73: 173,045 | E73: 0.6682076916 | F73: 232,265 | G73: 0.2428691365 | H73: 0.0005131539813 | I73: 1.97 | J73: 0.87 | K73: 1.264764047 | L73: 1.68 | M73: 0.1756665451 | N73: 3.826991924e-06 | O73: 520,940 | P73: 594,176 | Q73: -0.1232564089 | R73: 0.0004671004424 | S73: 3.65 | T73: 2.68 | U73: 0.3619321418 | V73: 3.635801116e-06 | W73: 64,602 | X73: 0.001400735871 | Y73: 44,623 | Z73: 0.4477
B74: 纯碱期权 | C74: 5,784,085 | D74: 2,740,921 | E74: 1.110270599 | F74: 4,878,758 | G74: 0.1855650557 | H74: 0.01028189572 | I74: 20.34 | J74: 15.56 | K74: 0.3072580693 | L74: 18.39 | M74: 0.1063511007 | N74: 3.94576076e-05 | O74: 10,662,843 | P74: 8,784,043 | Q74: 0.2138878419 | R74: 0.009560829813 | S74: 38.73 | T74: 54.22 | U74: -0.2856445653 | V74: 3.85658529e-05 | W74: 753,984 | X74: 0.01634829316 | Y74: 510,231 | Z74: 0.4777
B75: 硅铁期权 | C75: 741,787 | D75: 50,577 | E75: 13.66648872 | F75: 516,952 | G75: 0.4349243257 | H75: 0.001318614193 | I75: 1.65 | J75: 0.10 | K75: 14.85076274 | L75: 1.14 | M75: 0.4474903888 | N75: 3.204292869e-06 | O75: 1,258,739 | P75: 211,224 | Q75: 4.959261258 | R75: 0.001128647337 | S75: 2.79 | T75: 0.37 | U75: 6.623442084 | V75: 2.781453176e-06 | W75: 66,616 | X75: 0.00144440452 | Y75: 42,137 | Z75: 0.5809
B76: 锰硅期权 | C76: 3,719,675 | D76: 33,765 | E76: 109.163631 | F76: 2,078,379 | G76: 0.7897000499 | H76: 0.006612162589 | I76: 11.32 | J76: 0.07 | K76: 152.7773372 | L76: 9.51 | M76: 0.190964422 | N76: 2.196199689e-05 | O76: 5,798,054 | P76: 123,958 | Q76: 45.77434292 | R76: 0.005198820572 | S76: 20.83 | T76: 0.24 | U76: 85.92039589 | V76: 2.074162424e-05 | W76: 227,870 | X76: 0.004940801878 | Y76: 187,386 | Z76: 0.216
B77: 玻璃期权 | C77: 2,937,030 | F77: 3,079,540 | G77: -0.04627639193 | H77: 0.005220918464 | I77: 10.54 | L77: 10.49 | M77: 0.004891641971 | N77: 2.044592052e-05 | O77: 6,016,570 | R77: 0.005394752772 | S77: 21.03 | V77: 2.094173881e-05 | W77: 442,086 | X77: 0.009585550265 | Y77: 224,367 | Z77: 0.9704
B78: 红枣期权 | C78: 186,495 | F78: 82,837 | G78: 1.251349035 | H78: 0.0003315169368 | I78: 0.99 | L78: 0.53 | M78: 0.858944952 | N78: 1.928657987e-06 | O78: 269,332 | R78: 0.0002414963266 | S78: 1.53 | V78: 1.522749968e-06 | W78: 59,031 | X78: 0.001279942404 | Y78: 33,923 | Z78: 0.7401
B79: 瓶片期权 | C79: 22,164 | F79: 72,245 | G79: -0.6932106028 | H79: 3.939913342e-05 | I79: 0.09 | L79: 0.41 | M79: -0.7702972436 | N79: 1.814594179e-07 | O79: 94,409 | R79: 8.46517558e-05 | S79: 0.50 | V79: 4.987097425e-07 | W79: 2,455 | X79: 5.323065173e-05 | Y79: 7,359 | Z79: -0.6664
B80: 白糖期权 | C80: 1,547,472 | D80: 1,297,869 | E80: 0.1923175606 | F80: 2,452,086 | G80: -0.3689160984 | H80: 0.002750814645 | I80: 5.85 | J80: 5.25 | K80: 0.1152677882 | L80: 9.64 | M80: -0.3933813382 | N80: 1.13468692e-05 | O80: 3,999,558 | P80: 3,115,136 | Q80: 0.2839112 | R80: 0.003586200544 | S80: 15.49 | T80: 11.31 | U80: 0.3702102026 | V80: 1.542792391e-05 | W80: 264,480 | X80: 0.005734599906 | Y80: 275,788 | Z80: -0.041
B81: 一号棉期权 | C81: 2,188,207 | D81: 1,681,353 | E81: 0.3014560298 | F81: 2,240,997 | G81: -0.02355647955 | H81: 0.003889796948 | I81: 10.47 | J81: 10.07 | K81: 0.03938980072 | L81: 11.59 | M81: -0.09696943718 | N81: 2.03071029e-05 | O81: 4,429,204 | P81: 4,811,230 | Q81: -0.07940298011 | R81: 0.003971442293 | S81: 22.06 | T81: 27.50 | U81: -0.1975997853 | V81: 2.196977872e-05 | W81: 481,399 | X81: 0.01043795622 | Y81: 524,113 | Z81: -0.0815
B82: PTA期权 | C82: 3,998,514 | D82: 3,629,430 | E82: 0.1016920012 | F82: 6,681,532 | G82: -0.4015573075 | H82: 0.007107831916 | I82: 6.48 | J82: 6.82 | K82: -0.050303004 | L82: 12.07 | M82: -0.463227896 | N82: 1.256146808e-05 | O82: 10,680,046 | P82: 12,505,491 | Q82: -0.1459714776 | R82: 0.009576254869 | S82: 18.54 | T82: 23.14 | U82: -0.198626533 | V82: 1.846266244e-05 | W82: 422,333 | X82: 0.009157254924 | Y82: 294,533 | Z82: 0.4339
B83: 甲醇期权 | C83: 1,832,985 | D83: 3,436,122 | E83: -0.4665541561 | F83: 3,297,438 | G83: -0.4441184338 | H83: 0.003258347797 | I83: 3.92 | J83: 9.78 | K83: -0.5989498395 | L83: 7.01 | M83: -0.4402802284 | N83: 7.60755421e-06 | O83: 5,130,423 | P83: 9,595,100 | Q83: -0.4653080218 | R83: 0.004600189759 | S83: 10.93 | T83: 22.76 | U83: -0.5196624455 | V83: 1.088316927e-05 | W83: 218,058 | X83: 0.004728052731 | Y83: 173,305 | Z83: 0.2582
B84: 菜籽粕期权 | C84: 3,481,627 | D84: 1,218,606 | E84: 1.857057162 | F84: 2,554,225 | G84: 0.363085476 | H84: 0.006189004092 | I84: 9.45 | J84: 3.62 | K84: 1.612182319 | L84: 8.84 | M84: 0.0685600327 | N84: 1.832644698e-05 | O84: 6,035,852 | P84: 3,774,555 | Q84: 0.599089694 | R84: 0.005412041962 | S84: 18.29 | T84: 10.92 | U84: 0.6746955323 | V84: 1.821301533e-05 | W84: 303,292 | X84: 0.006576142902 | Y84: 258,704 | Z84: 0.1724
B85: 菜籽油期权 | C85: 878,005 | D85: 513,607 | E85: 0.7094879937 | F85: 929,962 | G85: -0.0558700248 | H85: 0.001560757812 | I85: 6.03 | J85: 2.64 | K85: 1.28248512 | L85: 8.23 | M85: -0.2679690339 | N85: 1.169008855e-05 | O85: 1,807,967 | P85: 1,634,289 | Q85: 0.1062712898 | R85: 0.001621112193 | S85: 14.26 | T85: 7.40 | U85: 0.928091521 | V85: 1.419967385e-05 | W85: 107,947 | X85: 0.00234056585 | Y85: 118,673 | Z85: -0.0904
B86: 动力煤期权 | C86: 0 | D86: 0 | F86: 0 | H86: 0 | I86: 0.00 | J86: 0.00 | L86: 0.00 | N86: 0 | O86: 0 | P86: 0 | R86: 0 | S86: 0.00 | T86: 0.00 | V86: 0 | W86: 0 | X86: 0 | Y86: 0 | Z86: 0
B87: 总计 | C87: 192,405,537 | D87: 104,651,940 | E87: 0.8385281439 | F87: 187,417,580 | G87: 0.0266141362 | H87: 0.3420236159 | I87: 66,043.15 | J87: 35,543.67 | K87: 0.8580846193 | L87: 67,519.61 | M87: -0.02186713741 | N87: 0.1280905374 | O87: 379,823,117 | P87: 294,227,851 | Q87: 0.2909149005 | R87: 0.3405681 | S87: 133,562.75 | T87: 99,761.81 | U87: 0.3388164828 | V87: 0.1329869588 | W87: 15,072,896 | X87: 0.3268187689 | Y87: 11,397,334 | Z87: 0.3225
A88: 大连商品交易所 | B88: 豆一 | C88: 3,403,895 | D88: 1,831,600 | E88: 0.8584270583 | F88: 2,792,585 | G88: 0.2189047066 | H88: 0.006050826262 | I88: 1,391.38 | J88: 852.78 | K88: 0.6315907681 | L88: 1,102.30 | M88: 0.2622531433 | N88: 0.002698581005 | O88: 6,196,480 | P88: 4,143,468 | Q88: 0.4954815628 | R88: 0.005556068932 | S88: 2,493.68 | T88: 1,957.98 | U88: 0.2735974897 | V88: 0.002482930696 | W88: 347,251 | X88: 0.007529285965 | Y88: 272,956 | Z88: 0.272187
B89: 豆二 | C89: 3,859,113 | D89: 1,810,711 | E89: 1.13126943 | F89: 3,528,402 | G89: 0.09372826566 | H89: 0.006860030138 | I89: 1,385.40 | J89: 647.92 | K89: 1.138233431 | L89: 1,208.11 | M89: 0.1467555815 | N89: 0.00268698838 | O89: 7,387,515 | P89: 4,810,553 | Q89: 0.535689348 | R89: 0.006624009531 | S89: 2,593.51 | T89: 1,814.41 | U89: 0.4293932733 | V89: 0.002582331099 | W89: 365,132 | X89: 0.00791699158 | Y89: 252,565 | Z89: 0.445695
B90: 豆粕 | C90: 41,887,248 | D90: 18,290,895 | E90: 1.290060054 | F90: 35,604,970 | G90: 0.1764438504 | H90: 0.07445954127 | I90: 12,352.55 | J90: 5,530.60 | K90: 1.233494252 | L90: 9,912.18 | M90: 0.246200024 | N90: 0.02395775181 | O90: 77,492,218 | P90: 47,155,367 | Q90: 0.643338244 | R90: 0.06948333649 | S90: 22,264.73 | T90: 14,503.46 | U90: 0.5351320342 | V90: 0.02216874628 | W90: 4,622,385 | X90: 0.1002250778 | Y90: 4,039,581 | Z90: 0.144273
B91: 玉米 | C91: 13,436,757 | D91: 8,370,921 | E91: 0.6051706855 | F91: 12,180,088 | G91: 0.1031740493 | H91: 0.023885426 | I91: 3,069.66 | J91: 2,031.84 | K91: 0.5107790066 | L91: 2,740.51 | M91: 0.1201046511 | N91: 0.005953602448 | O91: 25,616,845 | P91: 21,935,443 | Q91: 0.1678289333 | R91: 0.02296932398 | S91: 5,810.18 | T91: 5,252.53 | U91: 0.1061664594 | V91: 0.005785127416 | W91: 2,077,444 | X91: 0.04504427619 | Y91: 2,072,124 | Z91: 0.002567
B92: 豆油 | C92: 9,715,871 | D92: 7,078,221 | E92: 0.3726430695 | F92: 8,964,311 | G92: 0.08383912606 | H92: 0.01727111071 | I92: 7,724.43 | J92: 5,105.21 | K92: 0.5130490081 | L92: 6,863.83 | M92: 0.1253820614 | N92: 0.01498151441 | O92: 18,680,182 | P92: 19,318,204 | Q92: -0.03302698325 | R92: 0.01674957054 | S92: 14,588.26 | T92: 14,243.11 | U92: 0.02423257233 | V92: 0.0145253678 | W92: 913,362 | X92: 0.01980401406 | Y92: 753,577 | Z92: 0.212035
B93: 聚乙烯 | C93: 5,477,472 | D93: 3,852,264 | E93: 0.4218838584 | F93: 7,085,679 | G93: -0.2269658278 | H93: 0.009736854816 | I93: 2,142.91 | J93: 1,575.42 | K93: 0.3602155893 | L93: 2,800.92 | M93: -0.2349253959 | N93: 0.004156176617 | O93: 12,563,151 | P93: 9,987,707 | Q93: 0.257861389 | R93: 0.01126473949 | S93: 4,943.84 | T93: 4,080.38 | U93: 0.2116118627 | V93: 0.004922522092 | W93: 611,941 | X93: 0.01326843921 | Y93: 592,818 | Z93: 0.032258
B94: 棕榈油 | C94: 17,397,498 | D94: 7,424,715 | E94: 1.343187314 | F94: 18,137,114 | G94: -0.04077914491 | H94: 0.03092611193 | I94: 15,754.22 | J94: 5,348.37 | K94: 1.945612778 | L94: 15,440.01 | M94: 0.02035025338 | N94: 0.03055526854 | O94: 35,534,612 | P94: 21,260,528 | Q94: 0.6713889702 | R94: 0.03186208198 | S94: 31,194.22 | T94: 15,393.60 | U94: 1.026440733 | V94: 0.03105974558 | W94: 683,201 | X94: 0.01481353747 | Y94: 516,282 | Z94: 0.32331
B95: 聚氯乙烯 | C95: 16,760,498 | D95: 10,430,584 | E95: 0.6068609389 | F95: 17,885,884 | G95: -0.06292034545 | H95: 0.02979376904 | I95: 4,383.58 | J95: 3,051.40 | K95: 0.4365796486 | L95: 4,652.17 | M95: -0.05773381242 | N95: 0.008501946678 | O95: 34,646,382 | P95: 26,131,953 | Q95: 0.3258244418 | R95: 0.03106565125 | S95: 9,035.75 | T95: 7,652.86 | U95: 0.1807024969 | V95: 0.008996796945 | W95: 1,275,791 | X95: 0.02766239772 | Y95: 1,107,706 | Z95: 0.151742
B96: 焦炭 | C96: 415,486 | D96: 328,332 | E96: 0.2654447328 | F96: 354,335 | G96: 0.172579621 | H96: 0.0007385755436 | I96: 713.04 | J96: 769.31 | K96: -0.07314239136 | L96: 621.36 | M96: 0.147556682 | N96: 0.001382944041 | O96: 769,821 | P96: 847,629 | Q96: -0.09179487724 | R96: 0.0006902593959 | S96: 1,334.40 | T96: 2,041.24 | U96: -0.346279065 | V96: 0.001328646647 | W96: 51,708 | X96: 0.001121161116 | Y96: 32,035 | Z96: 0.61411
B97: 焦煤 | C97: 4,578,295 | D97: 1,764,800 | E97: 1.594228808 | F97: 3,774,113 | G97: 0.2130784107 | H97: 0.008138461268 | I97: 3,051.81 | J97: 1,832.28 | K97: 0.6655790372 | L97: 2,575.17 | M97: 0.1850929302 | N97: 0.005918988077 | O97: 8,352,408 | P97: 4,212,714 | Q97: 0.9826667559 | R97: 0.007489180082 | S97: 5,626.98 | T97: 4,504.08 | U97: 0.249308256 | V97: 0.005602725807 | W97: 450,531 | X97: 0.009768659371 | Y97: 294,868 | Z97: 0.527907
B98: 铁矿石 | C98: 8,367,732 | D98: 7,423,282 | E98: 0.1272280913 | F98: 6,620,141 | G98: 0.2639809333 | H98: 0.01487463407 | I98: 6,778.07 | J98: 6,680.05 | K98: 0.01467371313 | L98: 5,144.65 | M98: 0.3175001053 | N98: 0.01314606058 | O98: 14,987,873 | P98: 15,931,416 | Q98: -0.05922530678 | R98: 0.01343886457 | S98: 11,922.72 | T98: 14,869.95 | U98: -0.1982000151 | V98: 0.01187132329 | W98: 877,638 | X98: 0.01902942677 | Y98: 746,293 | Z98: 0.175997
B99: 鸡蛋 | C99: 2,643,482 | D99: 3,023,774 | E99: -0.1257673358 | F99: 2,927,263 | G99: -0.09694414202 | H99: 0.004699102148 | I99: 862.05 | J99: 1,032.57 | K99: -0.1651427242 | L99: 958.67 | M99: -0.1007871438 | N99: 0.001671942474 | O99: 5,570,745 | P99: 6,957,050 | Q99: -0.199266212 | R99: 0.004995004135 | S99: 1,820.72 | T99: 2,365.33 | U99: -0.2302453148 | V99: 0.001812870842 | W99: 394,096 | X99: 0.008545004857 | Y99: 299,724 | Z99: 0.314863
B100: 纤维板 | C100: 6,308 | D100: 147,030 | E100: -0.957097191 | F100: 5,867 | G100: 0.07516618374 | H100: 1.121321664e-05 | I100: 0.83 | J100: 17.98 | K100: -0.9539446422 | L100: 0.78 | M100: 0.06818392868 | N100: 1.606311506e-06 | O100: 12,175 | P100: 1,703,300 | Q100: -0.9928521106 | R100: 1.09167042e-05 | S100: 1.60 | T100: 228.69 | U100: -0.9929880402 | V100: 1.596640047e-06 | W100: 507 | X100: 1.099305109e-05 | Y100: 372 | Z100: 0.362903
B101: 聚丙烯 | C101: 4,497,213 | D101: 4,523,575 | E101: -0.005827691593 | F101: 5,361,414 | G101: -0.1611890072 | H101: 0.007994328416 | I101: 1,659.86 | J101: 1,676.48 | K101: -0.009910040882 | L101: 1,984.59 | M101: -0.1636231259 | N101: 0.00321930009 | O101: 9,858,627 | P101: 11,606,694 | Q101: -0.1506085195 | R101: 0.008839730167 | S101: 3,644.45 | T101: 4,294.78 | U101: -0.1514240587 | V101: 0.003628738395 | W101: 516,198 | X101: 0.01119248715 | Y101: 448,529 | Z101: 0.150869
B102: 玉米淀粉 | C102: 2,707,574 | D102: 2,178,791 | E102: 0.242695605 | F102: 2,248,369 | G102: 0.2042391618 | H102: 0.004813033265 | I102: 705.19 | J102: 629.00 | K102: 0.1211191133 | L102: 567.86 | M102: 0.2418401861 | N102: 0.001367709565 | O102: 4,955,943 | P102: 6,512,390 | Q102: -0.238997818 | R102: 0.004443742404 | S102: 1,273.04 | T102: 1,859.12 | U102: -0.3152424713 | V102: 0.001267556199 | W102: 271,162 | X102: 0.005879482682 | Y102: 234,381 | Z102: 0.156928
B103: 乙二醇 | C103: 2,546,404 | D103: 7,495,692 | E103: -0.660284334 | F103: 3,150,747 | G103: -0.1918094344 | H103: 0.004526534513 | I103: 1,190.84 | J103: 3,486.83 | K103: -0.6584747376 | L103: 1,501.11 | M103: -0.2066924602 | N103: 0.002309631117 | O103: 5,697,151 | P103: 23,929,495 | Q103: -0.7619192967 | R103: 0.005108345976 | S103: 2,691.95 | T103: 11,111.32 | U103: -0.7577293384 | V103: 0.002680342013 | W103: 421,568 | X103: 0.009140667776 | Y103: 268,904 | Z103: 0.567727
B104: 粳米 | C104: 67,345 | D104: 30,863 | E104: 1.182062664 | F104: 74,237 | G104: -0.09283780325 | H104: 0.0001197137087 | I104: 23.75 | J104: 10.78 | K104: 1.202841586 | L104: 25.86 | M104: -0.0813368168 | N104: 4.606782547e-05 | O104: 141,582 | P104: 138,749 | Q104: 0.02041816518 | R104: 0.0001269493893 | S104: 49.61 | T104: 48.86 | U104: 0.01522964183 | V104: 4.939403923e-05 | W104: 12,358 | X104: 0.00026795291 | Y104: 15,445 | Z104: -0.199871
B105: 苯乙烯 | C105: 4,194,009 | D105: 8,467,643 | E105: -0.5047017216 | F105: 4,993,022 | G105: -0.1600259322 | H105: 0.007455347418 | I105: 1,796.59 | J105: 3,815.66 | K105: -0.5291527387 | L105: 2,096.44 | M105: -0.1430267118 | N105: 0.003484487962 | O105: 9,187,031 | P105: 21,040,456 | Q105: -0.5633635031 | R105: 0.008237544141 | S105: 3,893.03 | T105: 9,254.31 | U105: -0.5793277279 | V105: 0.003876249641 | W105: 375,884 | X105: 0.00815012232 | Y105: 335,058 | Z105: 0.121848
B106: 液化石油气 | C106: 1,477,784 | D106: 3,128,846 | E106: -0.5276904009 | F106: 2,072,162 | G106: -0.2868395425 | H106: 0.002626935977 | I106: 1,316.62 | J106: 2,696.25 | K106: -0.5116852774 | L106: 1,868.94 | M106: -0.2955281564 | N106: 0.002553579619 | O106: 3,549,946 | P106: 8,674,400 | Q106: -0.5907560177 | R106: 0.003183056297 | S106: 3,185.56 | T106: 7,629.99 | U106: -0.582494185 | V106: 0.00317183067 | W106: 107,364 | X106: 0.002327924926 | Y106: 97,010 | Z106: 0.106731
B107: 生猪 | C107: 801,467 | D107: 937,483 | E107: -0.1450863642 | F107: 1,031,238 | G107: -0.2228108351 | H107: 0.001424702457 | I107: 1,692.12 | J107: 2,164.02 | K107: -0.2180656821 | L107: 2,150.97 | M107: -0.2133244207 | N107: 0.003281860537 | O107: 1,832,705 | P107: 2,750,320 | Q107: -0.3336393583 | R107: 0.001643293501 | S107: 3,843.09 | T107: 6,256.29 | U107: -0.3857230949 | V107: 0.003826524987 | W107: 150,200 | X107: 0.003256718489 | Y107: 130,872 | Z107: 0.147686
B108: 原木 | C108: 599,958 | F108: 541,063 | G108: 0.1088505405 | H108: 0.001066496359 | I108: 475.80 | L108: 416.84 | M108: 0.141450518 | N108: 0.000922818658 | O108: 1,141,021 | R108: 0.001023095585 | S108: 892.64 | V108: 0.0008887952401 | W108: 43,866 | X108: 0.0009511265861 | Y108: 28,862 | Z108: 0.519853
B109: 胶合板 | C109: 59 | F109: 63 | G109: -0.06349206349 | H109: 1.048794835e-07 | I109: 0.04 | L109: 0.05 | M109: -0.1077380003 | N109: 8.681774181e-08 | O109: 122 | R109: 1.093912043e-07 | S109: 0.09 | V109: 9.452175033e-08 | W109: 12 | X109: 2.601905584e-07 | Y109: 16 | Z109: -0.25
B110: 豆粕期权 | C110: 9,782,694 | D110: 2,834,901 | E110: 2.450806219 | F110: 4,385,851 | G110: 1.230512163 | H110: 0.0173898965 | I110: 29.69 | J110: 8.62 | K110: 2.442720175 | L110: 19.13 | M110: 0.5520642333 | N110: 5.757775795e-05 | O110: 14,168,545 | P110: 7,975,876 | Q110: 0.7764249344 | R110: 0.01270421476 | S110: 48.81 | T110: 29.28 | U110: 0.6671824307 | V110: 4.860389332e-05 | W110: 933,812 | X110: 0.02024742214 | Y110: 792,230 | Z110: 0.178713
B111: 玉米期权 | C111: 1,647,123 | D111: 957,302 | E111: 0.7205886961 | F111: 1,257,868 | G111: 0.3094561592 | H111: 0.002927956093 | I111: 2.75 | J111: 1.75 | K111: 0.5669831861 | L111: 2.92 | M111: -0.05734958002 | N111: 5.332207106e-06 | O111: 2,904,991 | P111: 2,616,295 | Q111: 0.1103453548 | R111: 0.002604757902 | S111: 5.67 | T111: 4.67 | U111: 0.2128622603 | V111: 5.641380583e-06 | W111: 339,961 | X111: 0.007371220201 | Y111: 404,101 | Z111: -0.158723
B112: 铁矿石期权 | C112: 4,599,418 | D112: 5,456,412 | E112: -0.1570618201 | F112: 3,579,190 | G112: 0.2850443816 | H112: 0.008176009901 | I112: 35.81 | J112: 70.19 | K112: -0.4898498941 | L112: 29.65 | M112: 0.2075403551 | N112: 6.944718411e-05 | O112: 8,178,608 | P112: 11,929,356 | Q112: -0.3144132843 | R112: 0.007333342449 | S112: 65.46 | T112: 143.82 | U112: -0.5448491093 | V112: 6.517724986e-05 | W112: 421,384 | X112: 0.009136678187 | Y112: 273,299 | Z112: 0.541842
B113: 液化石油气期权 | C113: 744,051 | D113: 914,630 | E113: -0.1865005521 | F113: 1,098,609 | G113: -0.3227335658 | H113: 0.001322638721 | I113: 2.63 | J113: 2.95 | K113: -0.1108599253 | L113: 4.61 | M113: -0.4300328677 | N113: 5.094110472e-06 | O113: 1,842,660 | P113: 2,478,211 | Q113: -0.2564555641 | R113: 0.001652219644 | S113: 7.23 | T113: 10.38 | U113: -0.3032812966 | V113: 7.203499098e-06 | W113: 26,504 | X113: 0.0005746742132 | Y113: 19,841 | Z113: 0.33582
B114: 聚乙烯期权 | C114: 231,601 | D114: 77,999 | E114: 1.969281657 | F114: 327,032 | G114: -0.2918093642 | H114: 0.0004116981907 | I114: 0.46 | J114: 0.27 | K114: 0.6957948215 | L114: 0.64 | M114: -0.2721038452 | N114: 8.992132626e-07 | O114: 558,633 | P114: 165,842 | Q114: 2.368465166 | R114: 0.0005008978413 | S114: 1.10 | T114: 0.67 | U114: 0.6305855162 | V114: 1.095835375e-06 | W114: 39,821 | X114: 0.0008634206854 | Y114: 24,658 | Z114: 0.614932
B115: 聚丙烯期权 | C115: 250,793 | D115: 77,865 | E115: 2.220869454 | F115: 266,577 | G115: -0.05920990933 | H115: 0.0004458142424 | I115: 0.35 | J115: 0.20 | K115: 0.7320188535 | L115: 0.39 | M115: -0.09484063832 | N115: 6.806337955e-07 | O115: 517,370 | P115: 170,776 | Q115: 2.029524055 | R115: 0.0004638994047 | S115: 0.74 | T115: 0.57 | U115: 0.2962187565 | V115: 7.354517236e-07 | W115: 60,568 | X115: 0.001313268478 | Y115: 32,201 | Z115: 0.880935
B116: 聚氯乙烯期权 | C116: 2,032,506 | D116: 468,965 | E116: 3.334024927 | F116: 2,236,831 | G116: -0.09134574762 | H116: 0.003613019991 | I116: 3.12 | J116: 1.06 | K116: 1.953726174 | L116: 3.63 | M116: -0.1387078795 | N116: 6.057334921e-06 | O116: 4,269,337 | P116: 849,263 | Q116: 4.02710821 | R116: 0.003828097673 | S116: 6.75 | T116: 2.30 | U116: 1.930314303 | V116: 6.720167771e-06 | W116: 211,559 | X116: 0.004587137861 | Y116: 121,450 | Z116: 0.741943
B117: 棕榈油期权 | C117: 5,034,603 | D117: 1,266,259 | E117: 2.975966212 | F117: 4,795,705 | G117: 0.04981499071 | H117: 0.008949602749 | I117: 30.04 | J117: 5.80 | K117: 4.177808789 | L117: 25.90 | M117: 0.1597879625 | N117: 5.825991425e-05 | O117: 9,830,308 | P117: 3,544,419 | Q117: 1.773461038 | R117: 0.008814337958 | S117: 55.94 | T117: 17.25 | U117: 2.243179551 | V117: 5.569763563e-05 | W117: 251,585 | X117: 0.005455003469 | Y117: 122,688 | Z117: 1.050608
B118: 黄大豆1号期权 | C118: 739,718 | D118: 232,856 | E118: 2.176718659 | F118: 427,540 | G118: 0.7301726154 | H118: 0.001314936301 | I118: 2.07 | J118: 0.50 | K118: 3.184133687 | L118: 1.45 | M118: 0.4322336206 | N118: 4.02433583e-06 | O118: 1,167,258 | P118: 769,121 | Q118: 0.5176519689 | R118: 0.00104662097 | S118: 3.52 | T118: 1.58 | U118: 1.230703198 | V118: 3.508488341e-06 | W118: 69,930 | X118: 0.001516260479 | Y118: 69,574 | Z118: 0.005117
B119: 黄大豆2号期权 | C119: 858,091 | D119: 353,714 | E119: 1.425945821 | F119: 921,539 | G119: -0.06885004324 | H119: 0.00152535832 | I119: 2.51 | J119: 0.69 | K119: 2.649317891 | L119: 2.19 | M119: 0.1455862485 | N119: 4.871205925e-06 | O119: 1,779,630 | P119: 1,220,466 | Q119: 0.4581561469 | R119: 0.001595703844 | S119: 4.70 | T119: 2.77 | U119: 0.7008774528 | V119: 4.683700041e-06 | W119: 45,470 | X119: 0.0009859053907 | Y119: 34,312 | Z119: 0.325192
B120: 豆油期权 | C120: 1,369,936 | D120: 539,171 | E120: 1.540819146 | F120: 625,098 | G120: 1.191553964 | H120: 0.002435223391 | I120: 9.00 | J120: 2.73 | K120: 2.292979099 | L120: 6.03 | M120: 0.492599817 | N120: 1.745754031e-05 | O120: 1,995,034 | P120: 1,413,297 | Q120: 0.4116169496 | R120: 0.001788845671 | S120: 15.03 | T120: 8.51 | U120: 0.766918383 | V120: 1.496671978e-05 | W120: 111,858 | X120: 0.00242536629 | Y120: 127,662 | Z120: -0.123796
B121: 苯乙烯期权 | C121: 1,545,217 | D121: 1,747,460 | E121: -0.1157354103 | F121: 2,439,795 | G121: -0.3666611334 | H121: 0.002746806116 | I121: 2.63 | J121: 3.22 | K121: -0.1850022245 | L121: 4.25 | M121: -0.3829076289 | N121: 5.091218681e-06 | O121: 3,985,012 | P121: 3,905,307 | Q121: 0.02040940699 | R121: 0.003573157884 | S121: 6.88 | T121: 8.06 | U121: -0.1470659021 | V121: 6.849215037e-06 | W121: 54,349 | X121: 0.001178424721 | Y121: 50,300 | Z121: 0.080497
B122: 乙二醇期权 | C122: 412,936 | D122: 387,049 | E122: 0.06688300448 | F122: 631,055 | G122: -0.345641822 | H122: 0.0007340426168 | I122: 1.50 | J122: 2.10 | K122: -0.2821201213 | L122: 2.17 | M122: -0.3074379252 | N122: 2.917177367e-06 | O122: 1,043,991 | P122: 1,188,928 | Q122: -0.1219056158 | R122: 0.0009360937113 | S122: 3.68 | T122: 7.95 | U122: -0.5375916894 | V122: 3.660017268e-06 | W122: 85,151 | X122: 0.00184629052 | Y122: 44,401 | Z122: 0.917772
B123: 鸡蛋期权 | C123: 508,094 | F123: 484,648 | G123: 0.04837737905 | H123: 0.0009031972251 | I123: 1.24 | L123: 1.04 | M123: 0.1913866439 | N123: 2.414201573e-06 | O123: 992,742 | R123: 0.0008901413357 | S123: 2.29 | V123: 2.27968169e-06 | W123: 48,808 | X123: 0.001058281731 | Y123: 33,047 | Z123: 0.476927
B124: 玉米淀粉期权 | C124: 384,994 | F124: 174,415 | G124: 1.207344552 | H124: 0.0006843724045 | I124: 0.91 | L124: 0.39 | M124: 1.312916696 | N124: 1.757448815e-06 | O124: 559,409 | R124: 0.0005015936411 | S124: 1.30 | V124: 1.292312689e-06 | W124: 22,302 | X124: 0.0004835641527 | Y124: 32,936 | Z124: -0.322869
B125: 生猪期权 | C125: 150,345 | F125: 121,237 | G125: 0.2400917212 | H125: 0.000267256033 | I125: 2.26 | L125: 2.14 | M125: 0.05716517022 | N125: 4.384510276e-06 | O125: 271,582 | R125: 0.0002435137873 | S125: 4.40 | V125: 4.380077631e-06 | W125: 27,695 | X125: 0.0006004981262 | Y125: 33,223 | Z125: -0.166391
B126: 原木期权 | C126: 102,926 | F126: 79,144 | G126: 0.3004902456 | H126: 0.0001829631477 | I126: 2.32 | L126: 1.62 | M126: 0.4321682545 | N126: 4.498197821e-06 | O126: 182,070 | R126: 0.0001632529227 | S126: 3.94 | V126: 3.921683335e-06 | W126: 25,462 | X126: 0.0005520809997 | Y126: 16,034 | Z126: 0.588
B127: 总计 | C127: 175,236,514 | D127: 113,854,605 | E127: 0.5391253959 | F127: 163,185,201 | G127: 0.07385052643 | H127: 0.3115036454 | I127: 68,600.06 | J127: 49,054.84 | K127: 0.3984362594 | L127: 64,741.45 | M127: 0.05960042484 | N127: 0.1330496778 | O127: 338,421,715 | P127: 297,274,993 | Q127: 0.1384129946 | R127: 0.3034455653 | S127: 133,341.51 | T127: 129,600.11 | U127: 0.02886884281 | V127: 0.1327666738 | W127: 17,345,818 | X127: 0.3761015059 | Y127: 14,771,935 | Z127: 0.17424
A128: 中国金融期货交易所 | B128: 沪深300股指期货 | C128: 2,314,595 | D128: 2,086,836 | E128: 0.1091408237 | F128: 2,449,644 | G128: -0.05513005155 | H128: 0.004114466578 | I128: 27,148.23 | J128: 20,894.70 | K128: 0.2992880333 | L128: 27,908.64 | M128: -0.02724625353 | N128: 0.05265393949 | O128: 4,764,239 | P128: 5,002,167 | Q128: -0.04756498534 | R128: 0.004271851163 | S128: 55,056.87 | T128: 49,536.71 | U128: 0.1114357813 | V128: 0.05481952068 | W128: 287,086 | X128: 0.006224755553 | Y128: 270,058 | Z128: 0.0631
B129: 5年期国债期货 | C129: 1,485,988 | D129: 900,988 | E129: 0.6492872269 | F129: 1,298,584 | G129: 0.1443141145 | H129: 0.002641519558 | I129: 15,765.22 | J129: 9,269.44 | K129: 0.7007745653 | L129: 13,836.95 | M129: 0.1393563945 | N129: 0.03057661517 | O129: 2,784,572 | P129: 2,171,565 | Q129: 0.2822881194 | R129: 0.0024967843 | S129: 29,602.18 | T129: 22,300.83 | U129: 0.327402679 | V129: 0.02947456145 | W129: 147,057 | X129: 0.003188570245 | Y129: 143,518 | Z129: 0.0247
B130: 10年期国债期货 | C130: 1,958,285 | D130: 1,281,770 | E130: 0.5277974988 | F130: 1,501,913 | G130: 0.3038604766 | H130: 0.003481083378 | I130: 21,265.53 | J130: 13,279.88 | K130: 0.6013339051 | L130: 16,396.74 | M130: 0.2969365976 | N130: 0.04124444653 | O130: 3,460,198 | P130: 2,843,929 | Q130: 0.2166963381 | R130: 0.003102583823 | S130: 37,662.27 | T130: 29,370.18 | U130: 0.282329954 | V130: 0.03749990273 | W130: 176,930 | X130: 0.003836292958 | Y130: 199,773 | Z130: -0.1143
B131: 上证50股指期货 | C131: 1,124,288 | D131: 1,236,013 | E131: -0.0903914441 | F131: 1,208,659 | G131: -0.06980546209 | H131: 0.001998554995 | I131: 8,909.26 | J131: 8,648.95 | K131: 0.03009702531 | L131: 9,387.50 | M131: -0.05094460909 | N131: 0.01727948951 | O131: 2,332,947 | P131: 2,977,100 | Q131: -0.2163692855 | R131: 0.002091835098 | S131: 18,296.76 | T131: 20,419.61 | U131: -0.1039610985 | V131: 0.01821788383 | W131: 110,692 | X131: 0.002400084441 | Y131: 107,366 | Z131: 0.031
B132: 中证500股指期货 | C132: 1,969,728 | D132: 2,651,492 | E132: -0.2571246679 | F132: 2,013,675 | G132: -0.02182427651 | H132: 0.003501424665 | I132: 23,041.18 | J132: 26,170.31 | K132: -0.1195681926 | L132: 22,128.87 | M132: 0.04122707612 | N132: 0.04468830988 | O132: 3,983,403 | P132: 5,158,048 | Q132: -0.2277305291 | R132: 0.003571715176 | S132: 45,170.04 | T132: 51,105.60 | U132: -0.1161430017 | V132: 0.04497531321 | W132: 224,844 | X132: 0.004875190492 | Y132: 224,962 | Z132: -0.0005
B133: 2年期国债期货 | C133: 917,101 | D133: 553,951 | E133: 0.6555633982 | F133: 715,667 | G133: 0.2814633063 | H133: 0.001630255579 | I133: 18,819.48 | J133: 11,237.10 | K133: 0.6747634958 | L133: 14,725.14 | M133: 0.2780516047 | N133: 0.03650034988 | O133: 1,632,768 | P133: 1,316,696 | Q133: 0.2400493356 | R133: 0.001464020147 | S133: 33,544.62 | T133: 26,680.87 | U133: 0.2572537333 | V133: 0.03340000983 | W133: 96,417 | X133: 0.002090566089 | Y133: 78,022 | Z133: 0.2358
B134: 中证1000股指期货 | C134: 4,796,528 | D134: 3,984,706 | E134: 0.2037344788 | F134: 5,094,495 | G134: -0.05848803463 | H134: 0.008526396257 | I134: 59,245.19 | J134: 38,430.54 | K134: 0.5416172831 | L134: 58,023.84 | M134: 0.02104899977 | N134: 0.1149059107 | O134: 9,891,023 | P134: 7,153,376 | Q134: 0.3827069904 | R134: 0.008868778015 | S134: 117,269.03 | T134: 71,458.06 | U134: 0.6410890036 | V134: 0.1167634792 | W134: 349,116 | X134: 0.007569723914 | Y134: 341,470 | Z134: 0.0224
B135: 30年期国债期货 | C135: 2,226,635 | D135: 557,717 | E135: 2.992410129 | F135: 1,885,837 | G135: 0.180714452 | H135: 0.003958107266 | I135: 26,579.50 | J135: 5,892.51 | K135: 3.510727779 | L135: 22,634.73 | M135: 0.1742794956 | N135: 0.05155089049 | O135: 4,112,472 | P135: 1,170,314 | Q135: 2.513990262 | R135: 0.003687444793 | S135: 49,214.24 | T135: 12,200.69 | U135: 3.033724282 | V135: 0.0490020742 | W135: 114,231 | X135: 0.002476818973 | Y135: 127,486 | Z135: -0.104
B136: 沪深300股指期权 | C136: 1,860,459 | D136: 1,843,737 | E136: 0.009069623271 | F136: 1,908,509 | G136: -0.02517672172 | H136: 0.003307186084 | I136: 87.93 | J136: 97.19 | K136: -0.09524095558 | L136: 99.60 | M136: -0.1171337306 | N136: 0.0001705490967 | O136: 3,768,968 | P136: 4,850,128 | Q136: -0.2229137045 | R136: 0.003379442201 | S136: 187.54 | T136: 238.61 | U136: -0.2140343188 | V136: 0.000186727539 | W136: 193,784 | X136: 0.004201730597 | Y136: 176,295 | Z136: 0.0992
B137: 中证1000股指期权 | C137: 4,334,145 | D137: 3,523,842 | E137: 0.2299487321 | F137: 4,137,383 | G137: 0.04755711521 | H137: 0.007704455745 | I137: 363.56 | J137: 384.21 | K137: -0.05375147914 | L137: 385.18 | M137: -0.05612716012 | N137: 0.0007051177156 | O137: 8,471,528 | P137: 7,069,605 | Q137: 0.1983028755 | R137: 0.007595988937 | S137: 748.73 | T137: 702.25 | U137: 0.06618671086 | V137: 0.0007455047034 | W137: 223,881 | X137: 0.0048543102 | Y137: 221,339 | Z137: 0.0115
B138: 上证50股指期权 | C138: 622,087 | D138: 884,640 | E138: -0.296790785 | F138: 673,828 | G138: -0.07678665772 | H138: 0.001105833275 | I138: 19.35 | J138: 30.74 | K138: -0.3705997974 | L138: 21.85 | M138: -0.1146513204 | N138: 3.752654463e-05 | O138: 1,295,915 | P138: 2,356,300 | Q138: -0.4500212197 | R138: 0.001161981168 | S138: 41.20 | T138: 76.05 | U138: -0.4581858716 | V138: 4.102516186e-05 | W138: 68,880 | X138: 0.001493493805 | Y138: 67,702 | Z138: 0.0174
B139: 总计 | C139: 23,609,839 | D139: 19,505,692 | E139: 0.2104076595 | F139: 22,888,194 | G139: 0.03152913681 | H139: 0.04196928338 | I139: 201,244.43 | J139: 134,335.58 | K139: 0.4980725174 | L139: 185,549.04 | M139: 0.08458890305 | N139: 0.3903131451 | O139: 46,498,033 | P139: 42,069,228 | Q139: 0.1052742161 | R139: 0.04169242482 | S139: 386,793.48 | T139: 284,089.45 | U139: 0.3615200397 | V139: 0.3851260026 | W139: 1,992,918 | X139: 0.04321153727 | Y139: 1,957,991 | Z139: 0.0178
A140: 广州期货交易所 | B140: 工业硅期货 | C140: 5,278,073 | D140: 1,702,678 | E140: 2.099865623 | F140: 6,495,457 | G140: -0.1874208389 | H140: 0.009382399492 | I140: 2,811.45 | J140: 1,136.73 | K140: 1.473271843 | L140: 3,485.22 | M140: -0.1933213767 | N140: 0.005452800966 | O140: 11,773,530 | P140: 4,376,881 | Q140: 1.689936053 | R140: 0.01055672644 | S140: 6,296.67 | T140: 2,951.67 | U140: 1.133257008 | V140: 0.006269521592 | W140: 356,189 | X140: 0.007723084566 | Y140: 257,906 | Z140: 0.3811
B141: 碳酸锂期货 | C141: 2,838,657 | D141: 2,984,637 | E141: -0.04891047052 | F141: 4,311,393 | G141: -0.3415916851 | H141: 0.005046048813 | I141: 2,190.99 | J141: 3,114.43 | K141: -0.2965038654 | L141: 3,393.69 | M141: -0.3543926344 | N141: 0.004249418741 | O141: 7,150,050 | P141: 6,135,187 | Q141: 0.1654167998 | R141: 0.006411086725 | S141: 5,584.68 | T141: 6,316.41 | U141: -0.1158465354 | V141: 0.005560600241 | W141: 400,492 | X141: 0.008683686425 | Y141: 378,934 | Z141: 0.0569
B142: 多晶硅期货 | C142: 248,858 | F142: 680,256 | G142: -0.6341700771 | H142: 0.0004423745509 | I142: 329.01 | L142: 888.85 | M142: -0.629853324 | N142: 0.0006381057359 | O142: 929,114 | R142: 0.0008330893394 | S142: 1,217.86 | V142: 0.001212607514 | W142: 33,517 | X142: 0.000726733912 | Y142: 33,263 | Z142: 0.0076
B143: 工业硅期权 | C143: 1,511,798 | D143: 271,135 | E143: 4.575812787 | F143: 2,217,782 | G143: -0.3183288529 | H143: 0.002687399888 | I143: 5.31 | J143: 0.99 | K143: 4.368711658 | L143: 9.75 | M143: -0.4559138722 | N143: 1.028909035e-05 | O143: 3,729,580 | P143: 673,902 | Q143: 4.534306175 | R143: 0.003344124982 | S143: 15.06 | T143: 2.58 | U143: 4.833408501 | V143: 1.499046994e-05 | W143: 159,625 | X143: 0.00346107649 | Y143: 117,799 | Z143: 0.3551
B144: 碳酸锂期权 | C144: 1,064,539 | D144: 878,687 | E144: 0.2115110386 | F144: 1,497,846 | G144: -0.2892867491 | H144: 0.001892344076 | I144: 6.19 | J144: 13.38 | K144: -0.5370944601 | L144: 11.26 | M144: -0.4500701337 | N144: 1.201425816e-05 | O144: 2,562,385 | P144: 1,650,972 | Q144: 0.5520463097 | R144: 0.002297560501 | S144: 17.46 | T144: 23.44 | U144: -0.2550254797 | V144: 1.738345507e-05 | W144: 194,208 | X144: 0.004210923997 | Y144: 127,153 | Z144: 0.5274
B145: 多晶硅期权 | C145: 48,281 | F145: 94,987 | G145: -0.4917093918 | H145: 8.582519224e-05 | I145: 1.32 | L145: 3.93 | M145: -0.6635037694 | N145: 2.566393969e-06 | O145: 143,268 | R145: 0.0001284611398 | S145: 5.26 | V145: 5.232933034e-06 | W145: 22,215 | X145: 0.0004816777712 | Y145: 19,268 | Z145: 0.1529
B146: 总计 | C146: 10,990,206 | D146: 5,837,137 | E146: 0.8828076161 | F146: 15,297,721 | G146: -0.2815788705 | H146: 0.01953639201 | I146: 5,344.27 | J146: 4,265.53 | K146: 0.2528957043 | L146: 7,792.70 | M146: -0.3141958853 | N146: 0.01036519519 | O146: 26,287,927 | P146: 12,836,942 | Q146: 1.047834056 | R146: 0.02357104913 | S146: 13,136.97 | T146: 9,294.09 | U146: 0.4134749814 | V146: 0.0130803362 | W146: 1,166,246 | X146: 0.02528718316 | Y146: 934,323 | Z146: 0.2482
A147: 全国期货市场交易总额 | C147: =SUM(C34,C41,C87,C127,C139,C146) -> 562,550,444 | D147: =SUM(D34,D41,D87,D127,D139,D146) -> 331,552,061 | E147: =IFERROR((C147-D147)/ABS(D147),"-") -> 0.696718284 | F147: =SUM(F34,F41,F87,F127,F139,F146) -> 552,712,897 | G147: =IFERROR((C147-F147)/ABS(F147),"-") -> 0.01779865651 | H147: =IFERROR(C147/C147,"-") -> 1 | I147: =SUM(I34,I41,I87,I127,I139,I146) -> 515,597.38 | J147: =SUM(J34,J41,J87,J127,J139,J146) -> 304,663.61 | K147: =IFERROR((I147-J147)/ABS(J147),"-") -> 0.6923497027 | L147: =SUM(L34,L41,L87,L127,L139,L146) -> 488,732.31 | M147: =IFERROR((I147-L147)/ABS(L147),"-") -> 0.05496887892 | N147: =IFERROR(I147/I147,"-") -> 1 | O147: =SUM(O34,O41,O87,O127,O139,O146) -> 1,115,263,341 | P147: =SUM(P34,P41,P87,P127,P139,P146) -> 883,791,838 | Q147: =IFERROR((O147-P147)/ABS(P147),"-") -> 0.2619072649 | R147: =IFERROR(O147/O147,"-") -> 1 | S147: =SUM(S34,S41,S87,S127,S139,S146) -> 1,004,329.69 | T147: =SUM(T34,T41,T87,T127,T139,T146) -> 744,905.17 | U147: =IFERROR((S147-T147)/ABS(T147),"-") -> 0.3482651516 | V147: =IFERROR(S147/S147,"-") -> 1 | W147: =SUM(W34,W41,W87,W127,W139,W146) -> 46,120,044 | X147: =IFERROR(W147/W147,"-") -> 1 | Y147: =SUM(Y34,Y41,Y87,Y127,Y139,Y146) -> 38,008,196 | Z147: =IFERROR((W147-Y147)/ABS(Y147),"-") -> 0.2134236521
A148: 注：1.自本月起，本表持仓数据根据上海期货交易所、郑州商品交易所、大连商品交易所、中国金融期货交易所和广州期货交易所提供数据计算，其余数据根据证监会官网发布的市场数据计算。

Sheet 3月
M2: 2025年 | N2: 3月 | O2: 全国期货市场成交情况统计
A3: 交易所名称 | B3: 品种名称 | C3: 本月成交量（手） | D3: 去年同期成交量（手） | E3: 同比增减（％） | F3: 上月成交量（手） | G3: 环比增减（％） | H3: 本月成交量占全国份额（％） | I3: 本月成交额 （亿元） | J3: 去年同期成交额（亿元） | K3: 同比增减（％） | L3: 上月成交额 （亿元） | M3: 环比增减（％） | N3: 本月交易额占全国份额（％） | O3: 今年累计成交总量（手） | P3: 去年同期成交总量（手） | Q3: 同比增减（％） | R3: 今年累计成交总量占全国份额(%) | S3: 今年累计成交总额（亿元） | T3: 去年同期成交总额（亿元） | U3: 同比增减（％） | V3: 今年累计成交总额占全国份额(%) | W3: 本月月末持仓量(手） | X3: 本月月末持仓量占全国份额（%） | Y3: 上月月末持仓量（手） | Z3: 环比增减（％）
A4: 上海期货交易所 | B4: 铜 | C4: 4,745,680 | D4: 4,204,651 | E4: 0.1286739375 | F4: 3,045,297 | G4: 0.5583636013 | H4: 0.006462198497 | I4: 18,962.06 | J4: 15,058.45 | K4: 0.2592305133 | L4: 11,750.14 | M4: 0.6137728193 | N4: 0.03078571587 | O4: 10,270,088 | P4: 8,466,393 | Q4: 0.2130417286 | R4: 0.005552482998 | S4: 40,013.35 | T4: 29,655.17 | U4: 0.3492874043 | V4: 0.02469553425 | W4: 571,026 | X4: 0.01086136932 | Y4: 477,555 | Z4: 0.195728
B5: 铝 | C5: 6,050,161 | D5: 5,508,854 | E5: 0.09826127176 | F5: 4,358,459 | G5: 0.388142231 | H5: 0.008238511935 | I5: 6,285.74 | J5: 5,311.20 | K5: 0.1834888775 | L5: 4,493.28 | M5: 0.3989197908 | N5: 0.01020517507 | O5: 14,894,088 | P5: 14,302,831 | Q5: 0.0413384595 | R5: 0.008052430552 | S5: 15,292.47 | T5: 13,644.71 | U5: 0.1207615774 | V5: 0.009438244342 | W5: 498,242 | X5: 0.009476959672 | Y5: 468,172 | Z5: 0.064229
B6: 锌 | C6: 5,567,886 | D6: 3,831,627 | E6: 0.4531388363 | F6: 3,925,152 | G6: 0.418514748 | H6: 0.007581797453 | I6: 6,650.47 | J6: 4,043.05 | K6: 0.6449130016 | L6: 4,658.87 | M6: 0.4274849643 | N6: 0.01079731564 | O6: 14,485,683 | P6: 9,624,224 | Q6: 0.5051273744 | R6: 0.007831627983 | S6: 17,339.31 | T6: 10,093.20 | U6: 0.7179200671 | V6: 0.01070151575 | W6: 225,779 | X6: 0.004294496405 | Y6: 186,585 | Z6: 0.21006
B7: 铅 | C7: 1,527,363 | D7: 1,340,002 | E7: 0.1398214331 | F7: 1,043,158 | G7: 0.4641722539 | H7: 0.002079812141 | I7: 1,337.26 | J7: 1,091.60 | K7: 0.2250414635 | L7: 893.16 | M7: 0.4972291023 | N7: 0.002171096746 | O7: 3,673,450 | P7: 3,694,507 | Q7: -0.005699542591 | R7: 0.001986036407 | S7: 3,149.32 | T7: 2,998.41 | U7: 0.05032950315 | V7: 0.001943706503 | W7: 93,420 | X7: 0.001776922806 | Y7: 80,205 | Z7: 0.164765
B8: 黄金 | C8: 8,955,445 | D8: 6,377,434 | E8: 0.4042395421 | F8: 7,639,436 | G8: 0.1722652039 | H8: 0.01219464086 | I8: 62,251.13 | J8: 32,368.80 | K8: 0.9231832832 | L8: 52,048.76 | M8: 0.1960154787 | N8: 0.1010673698 | O8: 22,579,587 | P8: 12,654,792 | Q8: 0.7842716814 | R8: 0.01220756559 | S8: 152,364.39 | T8: 62,575.72 | U8: 1.434880368 | V8: 0.09403661368 | W8: 393,691 | X8: 0.007488316381 | Y8: 329,682 | Z8: 0.194154
B9: 天然橡胶 | C9: 8,126,357 | D9: 11,824,739 | E9: -0.3127664805 | F9: 8,439,368 | G9: -0.03708938868 | H9: 0.01106567067 | I9: 13,981.46 | J9: 17,418.89 | K9: -0.1973390313 | L9: 14,934.02 | M9: -0.06378452934 | N9: 0.02269949903 | O9: 25,909,207 | P9: 20,106,483 | Q9: 0.2885996522 | R9: 0.01400771165 | S9: 44,992.08 | T9: 28,753.61 | U9: 0.5647453319 | V9: 0.027768317 | W9: 229,274 | X9: 0.004360974088 | Y9: 234,217 | Z9: -0.021104
B10: 燃料油 | C10: 16,561,181 | D10: 13,680,491 | E10: 0.2105691967 | F10: 13,128,304 | G10: 0.2614867084 | H10: 0.02255138125 | I10: 5,157.18 | J10: 4,482.68 | K10: 0.1504673502 | L10: 4,530.26 | M10: 0.1383842026 | N10: 0.008372903179 | O10: 44,420,400 | P10: 45,328,612 | Q10: -0.02003617494 | R10: 0.02401571591 | S10: 14,825.52 | T10: 14,041.74 | U10: 0.05581805343 | V10: 0.009150048258 | W10: 460,322 | X10: 0.00875569107 | Y10: 431,476 | Z10: 0.066854
B11: 螺纹钢 | C11: 42,265,756 | D11: 48,547,057 | E11: -0.1293858246 | F11: 30,211,500 | G11: 0.3989956143 | H11: 0.05755333374 | I11: 13,676.68 | J11: 17,404.15 | K11: -0.2141713767 | L11: 10,028.11 | M11: 0.3638345383 | N11: 0.02220467066 | O11: 100,223,796 | P11: 96,112,364 | Q11: 0.04277734756 | R11: 0.05418560418 | S11: 32,848.37 | T11: 35,870.50 | U11: -0.08425103247 | V11: 0.02027343517 | W11: 3,163,141 | X11: 0.06016546115 | Y11: 2,702,579 | Z11: 0.170416
B12: 线材 | C12: 1,429 | D12: 3,865 | E12: -0.6302716688 | F12: 1,134 | G12: 0.2601410935 | H12: 1.945871119e-06 | I12: 0.49 | J12: 1.50 | K12: -0.671053238 | L12: 0.40 | M12: 0.221184295 | N12: 7.995234113e-07 | O12: 3,194 | P12: 11,465 | Q12: -0.7214129961 | R12: 1.726823635e-06 | S12: 1.12 | T12: 4.64 | U12: -0.7584611709 | V12: 6.919638927e-07 | W12: 157 | X12: 2.986265045e-06 | Y12: 160 | Z12: -0.01875
B13: 白银 | C13: 20,861,780 | D13: 18,464,657 | E13: 0.1298222328 | F13: 19,364,965 | G13: 0.07729500157 | H13: 0.02840751238 | I13: 25,718.26 | J13: 17,306.03 | K13: 0.4860864692 | L13: 23,379.92 | M13: 0.1000150207 | N13: 0.04175469651 | O13: 57,535,689 | P13: 38,729,133 | Q13: 0.4855919703 | R13: 0.03110644572 | S13: 69,187.03 | T13: 35,241.76 | U13: 0.9632115956 | V13: 0.04270101474 | W13: 887,250 | X13: 0.01687620166 | Y13: 741,070 | Z13: 0.197255
B14: 石油沥青 | C14: 8,338,235 | D14: 2,697,793 | E14: 2.090761597 | F14: 8,021,289 | G14: 0.0395131007 | H14: 0.01135418521 | I14: 2,959.63 | J14: 990.70 | K14: 1.987408489 | L14: 3,034.32 | M14: -0.02461600584 | N14: 0.004805079043 | O14: 24,052,099 | P14: 9,204,542 | Q14: 1.613068526 | R14: 0.01300367346 | S14: 8,858.41 | T14: 3,404.91 | U14: 1.601658034 | V14: 0.005467254676 | W14: 436,975 | X14: 0.008311612535 | Y14: 468,483 | Z14: -0.067255
B15: 热轧卷板 | C15: 15,595,336 | D15: 12,622,613 | E15: 0.2355077352 | F15: 9,967,466 | G15: 0.5646239476 | H15: 0.02123618888 | I15: 5,283.02 | J15: 4,751.14 | K15: 0.1119466788 | L15: 3,411.50 | M15: 0.5485896675 | N15: 0.008577203312 | O15: 34,561,665 | P15: 27,492,472 | Q15: 0.2571319523 | R15: 0.0186856293 | S15: 11,759.61 | T15: 10,709.96 | U15: 0.09800756884 | V15: 0.007257826017 | W15: 1,856,096 | X15: 0.03530442423 | Y15: 1,606,101 | Z15: 0.155653
B16: 镍 | C16: 6,603,725 | D16: 8,147,952 | E16: -0.1895233305 | F16: 3,367,278 | G16: 0.9611463621 | H16: 0.008992300738 | I16: 8,630.00 | J16: 11,172.28 | K16: -0.2275523463 | L16: 4,215.28 | M16: 1.047310793 | N16: 0.01401117139 | O16: 13,365,893 | P16: 17,963,361 | Q16: -0.2559358463 | R16: 0.007226217889 | S16: 17,117.98 | T16: 23,843.22 | U16: -0.2820605877 | V16: 0.01056491833 | W16: 184,613 | X16: 0.003511486298 | Y16: 181,607 | Z16: 0.016552
B17: 锡 | C17: 4,189,517 | D17: 2,078,109 | E17: 1.016023702 | F17: 1,848,605 | G17: 1.266312706 | H17: 0.005704870632 | I17: 11,600.49 | J17: 4,660.76 | K17: 1.488967096 | L17: 4,813.33 | M17: 1.410074171 | N17: 0.01883388438 | O17: 7,701,274 | P17: 4,745,546 | Q17: 0.6228425559 | R17: 0.004163663734 | S17: 20,549.13 | T17: 10,376.35 | U17: 0.9803808389 | V17: 0.0126825628 | W17: 71,213 | X17: 0.001354527979 | Y17: 60,706 | Z17: 0.17308
B18: 纸浆 | C18: 4,627,956 | D18: 7,757,476 | E18: -0.4034198752 | F18: 3,416,648 | G18: 0.3545311077 | H18: 0.006301893576 | I18: 2,700.31 | J18: 4,695.11 | K18: -0.4248686956 | L18: 2,080.36 | M18: 0.2980009681 | N18: 0.004384062727 | O18: 12,822,815 | P18: 23,022,929 | Q18: -0.4430415435 | R18: 0.006932604888 | S18: 7,655.65 | T18: 13,463.57 | U18: -0.4313801638 | V18: 0.00472493273 | W18: 317,297 | X18: 0.006035241656 | Y18: 258,359 | Z18: 0.228124
B19: 不锈钢 | C19: 5,690,103 | D19: 5,961,764 | E19: -0.04556721802 | F19: 3,682,876 | G19: 0.5450161776 | H19: 0.007748220498 | I19: 3,830.90 | J19: 4,077.99 | K19: -0.06059150282 | L19: 2,433.48 | M19: 0.57424578 | N19: 0.006219630075 | O19: 14,089,458 | P19: 14,425,515 | Q19: -0.02329601404 | R19: 0.007617410483 | S19: 9,345.24 | T19: 9,979.04 | U19: -0.0635131465 | V19: 0.005767715336 | W19: 293,518 | X19: 0.005582946136 | Y19: 300,135 | Z19: -0.022047
B20: 氧化铝 | C20: 4,508,928 | D20: 1,934,408 | E20: 1.330908474 | F20: 3,147,845 | G20: 0.432385648 | H20: 0.006139812997 | I20: 2,810.87 | J20: 1,270.82 | K20: 1.21185579 | L20: 2,153.80 | M20: 0.3050779107 | N20: 0.004563571573 | O20: 13,387,280 | P20: 8,818,714 | Q20: 0.5180535393 | R20: 0.007237780688 | S20: 9,473.46 | T20: 5,940.32 | U20: 0.5947730987 | V20: 0.005846849756 | W20: 401,964 | X20: 0.00764567543 | Y20: 237,481 | Z20: 0.692615
B21: 丁二烯橡胶 | C21: 2,318,845 | D21: 891,591 | E21: 1.600794535 | F21: 2,899,552 | G21: -0.2002747321 | H21: 0.003157574188 | I21: 1,588.45 | J21: 606.65 | K21: 1.618416391 | L21: 2,060.46 | M21: -0.2290805619 | N21: 0.002578919301 | O21: 9,194,870 | P21: 2,009,289 | Q21: 3.576180928 | R21: 0.004971170582 | S21: 6,472.13 | T21: 1,312.63 | U21: 3.930671461 | V21: 0.00399448653 | W21: 48,555 | X21: 0.0009235547723 | Y21: 61,795 | Z21: -0.214257
B22: 铜期权 | C22: 2,425,479 | D22: 1,655,928 | E22: 0.4647249156 | F22: 1,475,487 | G22: 0.6438497933 | H22: 0.003302777842 | I22: 54.91 | J22: 32.81 | K22: 0.6738315561 | L22: 28.68 | M22: 0.9145241888 | N22: 8.915543429e-05 | O22: 5,073,951 | P22: 3,044,706 | Q22: 0.6664830693 | R22: 0.002743211807 | S22: 105.60 | T22: 49.64 | U22: 1.127557957 | V22: 6.517543746e-05 | W22: 88,227 | X22: 0.00167814781 | Y22: 66,851 | Z22: 0.319756
B23: 天胶期权 | C23: 971,472 | D23: 1,678,878 | E23: -0.4213564059 | F23: 913,097 | G23: 0.06393077625 | H23: 0.001322854659 | I23: 16.59 | J23: 34.16 | K23: -0.5143421227 | L23: 17.29 | M23: -0.04057305312 | N23: 2.693112564e-05 | O23: 2,444,208 | P23: 2,453,207 | Q23: -0.003668259548 | R23: 0.001321451517 | S23: 50.20 | T23: 46.15 | U23: 0.08759231522 | V23: 3.097960007e-05 | W23: 91,197 | X23: 0.001734639575 | Y23: 90,298 | Z23: 0.009956
B24: 黄金期权 | C24: 2,125,352 | D24: 1,162,828 | E24: 0.827744086 | F24: 1,414,002 | G24: 0.5030756675 | H24: 0.002894094524 | I24: 94.67 | J24: 34.79 | K24: 1.72144103 | L24: 93.24 | M24: 0.01533386884 | N24: 0.0001536935967 | O24: 5,100,565 | P24: 1,824,710 | Q24: 1.795274318 | R24: 0.002757600562 | S24: 245.48 | T24: 49.83 | U24: 3.926703183 | V24: 0.0001515074534 | W24: 89,894 | X24: 0.001709855477 | Y24: 123,457 | Z24: -0.27186
B25: 铝期权 | C25: 1,452,407 | D25: 1,347,903 | E25: 0.07753080155 | F25: 1,187,070 | G25: 0.2235226229 | H25: 0.001977744461 | I25: 7.00 | J25: 6.18 | K25: 0.1325851477 | L25: 6.40 | M25: 0.09375598386 | N25: 1.136955359e-05 | O25: 3,927,559 | P25: 3,496,406 | Q25: 0.1233131965 | R25: 0.002123419446 | S25: 19.97 | T25: 14.94 | U25: 0.3368982188 | V25: 1.232327304e-05 | W25: 76,832 | X25: 0.001461405834 | Y25: 61,022 | Z25: 0.259087
B26: 锌期权 | C26: 1,714,938 | D26: 779,298 | E26: 1.200619019 | F26: 1,371,531 | G26: 0.2503822371 | H26: 0.002335233257 | I26: 9.55 | J26: 3.79 | K26: 1.52141691 | L26: 8.29 | M26: 0.1517522986 | N26: 1.550824029e-05 | O26: 4,962,747 | P26: 2,041,103 | Q26: 1.431404491 | R26: 0.002683089798 | S26: 30.27 | T26: 9.64 | U26: 2.14033045 | V26: 1.867963739e-05 | W26: 54,832 | X26: 0.001042948312 | Y26: 38,810 | Z26: 0.412832
B27: 白银期权 | C27: 7,214,213 | D27: 2,930,471 | E27: 1.461793002 | F27: 6,737,197 | G27: 0.0708033326 | H27: 0.009823603025 | I27: 66.11 | J27: 22.37 | K27: 1.954792354 | L27: 62.07 | M27: 0.06502752785 | N27: 0.0001073289312 | O27: 19,609,721 | P27: 5,639,804 | Q27: 2.477021719 | R27: 0.01060191913 | S27: 172.10 | T27: 37.56 | U27: 3.582237934 | V27: 0.0001062166618 | W27: 264,436 | X27: 0.005029783334 | Y27: 239,333 | Z27: 0.104887
B28: 螺纹钢期权 | C28: 3,684,118 | D28: 5,166,388 | E28: -0.2869064422 | F28: 2,816,265 | G28: 0.3081574355 | H28: 0.00501666817 | I28: 11.27 | J28: 22.61 | K28: -0.5016099257 | L28: 8.12 | M28: 0.3881110845 | N28: 1.829811032e-05 | O28: 8,738,413 | P28: 9,854,103 | Q28: -0.1132208584 | R28: 0.004724388886 | S28: 27.95 | T28: 36.07 | U28: -0.2250882179 | V28: 1.724903025e-05 | W28: 541,997 | X28: 0.01030921462 | Y28: 415,144 | Z28: 0.305564
B29: 丁二烯橡胶期权 | C29: 1,230,692 | D29: 511,698 | E29: 1.405113954 | F29: 1,486,234 | G29: -0.1719392774 | H29: 0.001675834863 | I29: 4.08 | J29: 2.42 | K29: 0.6867618413 | L29: 5.80 | M29: -0.2967032569 | N29: 6.621793179e-06 | O29: 4,552,587 | P29: 1,217,593 | Q29: 2.739005563 | R29: 0.002461338395 | S29: 18.20 | T29: 4.75 | U29: 2.832664653 | V29: 1.123389616e-05 | W29: 18,863 | X29: 0.0003587892837 | Y29: 20,879 | Z29: -0.096556
B30: 铅期权 | C30: 309,509 | F30: 101,856 | G30: 2.038691879 | H30: 0.0004214587993 | I30: 0.83 | L30: 0.36 | M30: 1.286271581 | N30: 1.352078357e-06 | O30: 612,740 | R30: 0.0003312754898 | S30: 2.04 | V30: 1.259101416e-06 | W30: 10,025 | X30: 0.0001906834846 | Y30: 5,350 | Z30: 0.873832
B31: 镍期权 | C31: 1,582,429 | F31: 614,066 | G31: 1.576968925 | H31: 0.002154795584 | I31: 11.91 | L31: 3.51 | M31: 2.394196551 | N31: 1.933478301e-05 | O31: 2,810,084 | R31: 0.001519260948 | S31: 19.10 | V31: 1.178679837e-05 | W31: 41,904 | X31: 0.000797047455 | Y31: 27,686 | Z31: 0.513545
B32: 锡期权 | C32: 1,545,149 | F32: 277,552 | G32: 4.567061307 | H32: 0.00210403136 | I32: 19.59 | L32: 3.06 | M32: 5.392712676 | N32: 3.179798266e-05 | O32: 2,044,855 | R32: 0.001105542876 | S32: 24.92 | V32: 1.538213565e-05 | W32: 27,375 | X32: 0.0005206943032 | Y32: 12,453 | Z32: 1.198265
B33: 氧化铝期权 | C33: 2,460,353 | F33: 2,323,385 | G33: 0.05895191714 | H33: 0.003350265812 | I33: 11.11 | L33: 11.99 | M33: -0.07323233144 | N33: 1.804499837e-05 | O33: 10,436,266 | R33: 0.005642326485 | S33: 64.32 | V33: 3.969822686e-05 | W33: 121,252 | X33: 0.002306309613 | Y33: 66,983 | Z33: 0.810191
B34: 总计 | C34: 193,251,794 | D34: 171,108,475 | E34: 0.1294110008 | F34: 148,226,074 | G34: 0.3037638304 | H34: 0.2631512139 | I34: 193,732.00 | J34: 146,870.92 | K34: 0.3190630575 | L34: 151,168.28 | M34: 0.2815651277 | N34: 0.3145322005 | O34: 493,484,232 | P34: 386,284,804 | Q34: 0.2775139661 | R34: 0.2668003242 | S34: 482,024.72 | T34: 312,158.00 | U34: 0.5441690197 | V34: 0.2974971591 | W34: 11,559,367 | X34: 0.219868367 | Y34: 9,994,634 | Z34: 0.156557
A35: 上海国际能源交易中心 | B35: 原油 | C35: 3,033,336 | D35: 3,709,607 | E35: -0.1823025997 | F35: 2,234,274 | G35: 0.3576383201 | H35: 0.004130497492 | I35: 15,910.66 | J35: 23,066.17 | K35: -0.3102163456 | L35: 12,832.74 | M35: 0.2398491896 | N35: 0.02583164456 | O35: 8,270,095 | P35: 12,076,026 | Q35: -0.3151641939 | R35: 0.004471194587 | S35: 46,905.73 | T35: 70,815.60 | U35: -0.3376356649 | V35: 0.0289493887 | W35: 44,028 | X35: 0.0008374476267 | Y35: 61,640 | Z35: -0.285724
B36: 20号胶 | C36: 5,001,636 | D36: 2,801,439 | E36: 0.7853810131 | F36: 4,253,978 | G36: 0.1757550227 | H36: 0.006810734108 | I36: 7,377.88 | J36: 3,389.91 | K36: 1.176422659 | L36: 6,445.39 | M36: 0.1446754853 | N36: 0.0119782995 | O36: 12,704,901 | P36: 5,371,589 | Q36: 1.365203481 | R36: 0.006868855144 | S36: 18,894.87 | T36: 6,293.72 | U36: 2.002176985 | V36: 0.01166158231 | W36: 198,521 | X36: 0.003776027535 | Y36: 206,157 | Z36: -0.03704
B37: 低硫燃料油 | C37: 3,150,340 | D37: 3,010,620 | E37: 0.04640904531 | F37: 2,200,411 | G37: 0.4317052587 | H37: 0.004289821988 | I37: 1,134.69 | J37: 1,330.45 | K37: -0.1471387594 | L37: 863.84 | M37: 0.3135448851 | N37: 0.001842216627 | O37: 8,085,883 | P37: 8,811,549 | Q37: -0.08235396523 | R37: 0.004371601088 | S37: 3,126.89 | T37: 3,787.94 | U37: -0.1745127231 | V37: 0.001929863383 | W37: 119,231 | X37: 0.002267868583 | Y37: 125,669 | Z37: -0.05123
B38: 铜(BC) | C38: 289,430 | D38: 288,666 | E38: 0.002646657383 | F38: 237,477 | G38: 0.2187706599 | H38: 0.0003941171994 | I38: 1,028.69 | J38: 918.84 | K38: 0.1195616931 | L38: 814.62 | M38: 0.2627901154 | N38: 0.001670127501 | O38: 701,429 | P38: 714,938 | Q38: -0.01889534477 | R38: 0.0003792248515 | S38: 2,424.51 | T38: 2,215.39 | U38: 0.09439435456 | V38: 0.001496367516 | W38: 15,608 | X38: 0.0002968765912 | Y38: 16,608 | Z38: -0.060212
B39: SCFIS欧线 | C39: 2,159,299 | D39: 562,369 | E39: 2.839647989 | F39: 2,270,303 | G39: -0.04889391416 | H39: 0.002940320197 | I39: 2,278.42 | J39: 499.47 | K39: 3.561642594 | L39: 2,204.84 | M39: 0.03337478695 | N39: 0.003699115971 | O39: 5,747,646 | P39: 2,950,005 | Q39: 0.948351274 | R39: 0.003107442379 | S39: 5,476.28 | T39: 2,830.53 | U39: 0.9347195384 | V39: 0.003379860526 | W39: 84,789 | X39: 0.001612754311 | Y39: 98,033 | Z39: -0.135097
B40: 原油期权 | C40: 1,381,582 | D40: 1,067,123 | E40: 0.294679245 | F40: 885,831 | G40: 0.5596451242 | H40: 0.001881301968 | I40: 54.31 | J40: 55.42 | K40: -0.01995892158 | L40: 35.76 | M40: 0.518816925 | N40: 8.818222589e-05 | O40: 3,505,780 | P40: 3,722,212 | Q40: -0.05814607013 | R40: 0.001895386276 | S40: 158.64 | T40: 189.71 | U40: -0.1637787297 | V40: 9.790734913e-05 | W40: 40,210 | X40: 0.0007648262258 | Y40: 39,425 | Z40: 0.019911
B41: 总计 | C41: 15,015,623 | D41: 11,439,824 | E41: 0.3125746515 | F41: 12,082,274 | G41: 0.2427812016 | H41: 0.02044679295 | I41: 27,784.66 | J41: 29,260.26 | K41: -0.05043003825 | L41: 23,197.18 | M41: 0.1977601047 | N41: 0.04510958639 | O41: 39,015,734 | P41: 33,646,319 | Q41: 0.1595840246 | R41: 0.02109370433 | S41: 76,986.92 | T41: 86,132.89 | U41: -0.1061843803 | V41: 0.04751496979 | W41: 502,387 | X41: 0.009555800873 | Y41: 547,532 | Z41: -0.082452
A42: 郑州商品交易所 | B42: 一号棉CF | C42: 6,001,483 | D42: 7,649,526 | E42: -0.2154438066 | F42: 5,319,018 | G42: 0.1283065784 | H42: 0.00817222704 | I42: 4,094.13 | J42: 6,134.65 | K42: -0.3326231668 | L42: 3,661.00 | M42: 0.1183067604 | N42: 0.006646989532 | O42: 16,356,337 | P42: 20,816,561 | Q42: -0.2142632493 | R42: 0.008842989768 | S42: 11,162.38 | T42: 16,617.66 | U42: -0.3282817089 | V42: 0.006889226272 | W42: 817,722 | X42: 0.01555372373 | Y42: 804,517 | Z42: 0.0164
B43: 白糖SR | C43: 6,119,886 | D43: 8,609,494 | E43: -0.289170072 | F43: 4,044,401 | G43: 0.5131748805 | H43: 0.008333456556 | I43: 3,671.50 | J43: 5,513.03 | K43: -0.3340318547 | L43: 2,398.69 | M43: 0.5306254945 | N43: 0.005960843409 | O43: 15,711,003 | P43: 22,758,512 | Q43: -0.3096647531 | R43: 0.008494092459 | S43: 9,322.38 | T43: 14,533.31 | U43: -0.3585504481 | V43: 0.005753609951 | W43: 572,685 | X43: 0.01089292482 | Y43: 474,707 | Z43: 0.2064
B44: PTA | C44: 18,176,188 | D44: 19,996,548 | E44: -0.09103371242 | F44: 14,059,605 | G44: 0.2927950679 | H44: 0.02475053834 | I44: 4,423.56 | J44: 5,881.80 | K44: -0.2479243023 | L44: 3,582.27 | M44: 0.234848255 | N44: 0.007181843134 | O44: 49,379,484 | P44: 53,934,422 | Q44: -0.08445326437 | R44: 0.02669682532 | S44: 12,366.37 | T44: 15,878.79 | U44: -0.2212018173 | V44: 0.007632305321 | W44: 1,729,937 | X44: 0.03290477957 | Y44: 1,605,071 | Z44: 0.0778
B45: 菜籽油 | C45: 15,683,337 | D45: 11,596,872 | E45: 0.3523764857 | F45: 10,504,430 | G45: 0.4930212301 | H45: 0.02135601996 | I45: 14,216.84 | J45: 9,470.73 | K45: 0.5011343583 | L45: 9,215.49 | M45: 0.5427119359 | N45: 0.02308165657 | O45: 36,684,440 | P45: 27,586,936 | Q45: 0.329775804 | R45: 0.01983329932 | S45: 32,541.64 | T45: 22,000.99 | U45: 0.4790988971 | V45: 0.02008412952 | W45: 480,890 | X45: 0.009146910812 | Y45: 395,948 | Z45: 0.2145
B46: 甲醇MA | C46: 17,194,371 | D46: 23,960,704 | E46: -0.282392913 | F46: 11,050,032 | G46: 0.556047168 | H46: 0.02341359688 | I46: 4,383.91 | J46: 6,046.97 | K46: -0.2750248868 | L46: 2,824.70 | M46: 0.5519918891 | N46: 0.00711745871 | O46: 41,621,550 | P46: 61,969,882 | Q46: -0.3283584113 | R46: 0.02250252858 | S46: 10,704.56 | T46: 15,287.73 | U46: -0.2997937423 | V46: 0.006606667369 | W46: 1,049,414 | X46: 0.0199606901 | Y46: 1,022,746 | Z46: 0.0261
B47: 玻璃FG | C47: 35,988,412 | D47: 24,658,001 | E47: 0.4595024147 | F47: 17,761,928 | G47: 1.026154593 | H47: 0.04900546643 | I47: 8,668.84 | J47: 7,672.35 | K47: 0.1298808045 | L47: 4,560.72 | M47: 0.9007606606 | N47: 0.01407423097 | O47: 69,525,981 | P47: 60,103,721 | Q47: 0.1567666667 | R47: 0.0375889503 | S47: 17,551.07 | T47: 20,342.12 | U47: -0.1372056725 | V47: 0.01083220861 | W47: 2,168,029 | X47: 0.04123763834 | Y47: 1,657,501 | Z47: 0.308
B48: 菜籽粕RM | C48: 36,703,107 | D48: 26,329,438 | E48: 0.3939950788 | F48: 26,569,763 | G48: 0.381386315 | H48: 0.04997866752 | I48: 9,690.02 | J48: 6,945.39 | K48: 0.3951737992 | L48: 6,781.11 | M48: 0.4289740452 | N48: 0.01573216997 | O48: 83,590,125 | P48: 56,607,541 | Q48: 0.4766605919 | R48: 0.04519267487 | S48: 21,306.60 | T48: 14,653.19 | U48: 0.4540586483 | V48: 0.01315006019 | W48: 1,378,746 | X48: 0.02622484704 | Y48: 1,184,663 | Z48: 0.1638
B49: 硅铁SF | C49: 3,002,938 | D49: 2,708,477 | E49: 0.1087182945 | F49: 3,214,283 | G49: -0.0657518333 | H49: 0.004089104497 | I49: 903.71 | J49: 881.96 | K49: 0.02466454207 | L49: 1,015.41 | M49: -0.1100027269 | N49: 0.001467212508 | O49: 9,763,128 | P49: 8,544,560 | Q49: 0.1426133119 | R49: 0.005278397052 | S49: 3,044.78 | T49: 2,827.80 | U49: 0.07673140984 | V49: 0.001879181907 | W49: 397,311 | X49: 0.007557171664 | Y49: 294,112 | Z49: 0.3509
B50: 锰硅SM | C50: 7,029,978 | D50: 2,512,025 | E50: 1.798530269 | F50: 12,764,791 | G50: -0.4492680687 | H50: 0.009572729991 | I50: 2,204.06 | J50: 780.18 | K50: 1.825059128 | L50: 4,296.13 | M50: -0.4869665942 | N50: 0.003578383841 | O50: 28,434,597 | P50: 7,449,160 | Q50: 2.81715482 | R50: 0.0153730539 | S50: 9,347.23 | T50: 2,352.01 | U50: 2.974138296 | V50: 0.005768946296 | W50: 653,215 | X50: 0.01242466956 | Y50: 561,397 | Z50: 0.1636
B51: 棉纱 | C51: 123,058 | D51: 88,148 | E51: 0.3960384807 | F51: 113,143 | G51: 0.08763246511 | H51: 0.0001675682352 | I51: 121.35 | J51: 94.48 | K51: 0.2844196586 | L51: 112.74 | M51: 0.07636219094 | N51: 0.0001970188423 | O51: 333,328 | P51: 236,011 | Q51: 0.4123409502 | R51: 0.0001802124824 | S51: 329.21 | T51: 256.74 | U51: 0.2822415114 | V51: 0.0002031809081 | W51: 7,097 | X51: 0.0001349905925 | Y51: 24,579 | Z51: -0.7113
B52: 苹果AP | C52: 3,195,079 | D52: 1,830,851 | E52: 0.7451332741 | F52: 1,841,587 | G52: 0.7349595756 | H52: 0.004350743141 | I52: 2,371.02 | J52: 1,482.25 | K52: 0.5996089898 | L52: 1,317.13 | M52: 0.8001355766 | N52: 0.003849452703 | O52: 6,918,090 | P52: 4,164,236 | Q52: 0.6613107422 | R52: 0.00374023836 | S52: 4,974.37 | T52: 3,404.96 | U52: 0.4609217159 | V52: 0.003070095953 | W52: 105,039 | X52: 0.00199792544 | Y52: 134,219 | Z52: -0.2174
B53: 红枣CJ | C53: 1,196,648 | D53: 772,693 | E53: 0.5486719823 | F53: 1,635,026 | G53: -0.2681168373 | H53: 0.001629477105 | I53: 552.11 | J53: 490.19 | K53: 0.1263161231 | L53: 770.65 | M53: -0.2835871489 | N53: 0.0008963673778 | O53: 3,836,275 | P53: 2,272,386 | Q53: 0.6882145023 | R53: 0.002074067108 | S53: 1,785.79 | T53: 1,491.93 | U53: 0.1969673567 | V53: 0.001102157603 | W53: 144,042 | X53: 0.002739793564 | Y53: 161,740 | Z53: -0.1094
B54: 尿素 | C54: 5,698,673 | D54: 5,221,683 | E54: 0.0913479428 | F54: 4,285,858 | G54: 0.3296457792 | H54: 0.007759890278 | I54: 2,072.80 | J54: 2,149.58 | K54: -0.03572079806 | L54: 1,536.93 | M54: 0.3486640193 | N54: 0.003365275355 | O54: 13,578,905 | P54: 14,248,515 | Q54: -0.04699507282 | R54: 0.007341381996 | S54: 4,833.13 | T54: 5,919.35 | U54: -0.1835026937 | V54: 0.002982925663 | W54: 313,880 | X54: 0.005970247594 | Y54: 318,521 | Z54: -0.0146
B55: 纯碱 | C55: 24,469,199 | D55: 21,316,235 | E55: 0.147913738 | F55: 21,285,801 | G55: 0.1495550015 | H55: 0.03331973942 | I55: 7,125.63 | J55: 7,860.14 | K55: -0.09344821198 | L55: 6,386.88 | M55: 0.115665949 | N55: 0.01156876107 | O55: 61,797,975 | P55: 50,896,130 | Q55: 0.2141979164 | R55: 0.03341083401 | S55: 18,186.07 | T55: 19,344.42 | U55: -0.0598806706 | V55: 0.01122412014 | W55: 1,821,756 | X55: 0.03465125008 | Y55: 1,636,777 | Z55: 0.113
B56: 短纤PF | C56: 3,598,164 | D56: 1,870,938 | E56: 0.9231871927 | F56: 2,194,253 | G56: 0.639812729 | H56: 0.004899624499 | I56: 1,198.49 | J56: 686.77 | K56: 0.7451092894 | L56: 764.21 | M56: 0.5682598108 | N56: 0.001945794383 | O56: 8,547,318 | P56: 6,343,678 | Q56: 0.3473757653 | R56: 0.00462107412 | S56: 2,925.67 | T56: 2,346.51 | U56: 0.2468172083 | V56: 0.001805670386 | W56: 312,852 | X56: 0.005950694215 | Y56: 231,484 | Z56: 0.3515
B57: 花生PK | C57: 922,174 | D57: 1,856,914 | E57: -0.5033835708 | F57: 1,301,868 | G57: -0.2916532244 | H57: 0.00125572551 | I57: 377.80 | J57: 854.03 | K57: -0.5576339624 | L57: 528.52 | M57: -0.2851819244 | N57: 0.0006133670512 | O57: 3,436,425 | P57: 5,116,611 | Q57: -0.3283786866 | R57: 0.001857889765 | S57: 1,389.38 | T57: 2,303.82 | U57: -0.39692354 | V57: 0.0008575008556 | W57: 104,718 | X57: 0.001991819764 | Y57: 117,877 | Z57: -0.1116
B58: 对二甲苯PX | C58: 3,902,036 | D58: 1,585,775 | E58: 1.460649209 | F58: 2,918,249 | G58: 0.33711551 | H58: 0.005313407388 | I58: 1,333.35 | J58: 670.98 | K58: 0.987166829 | L58: 1,056.29 | M58: 0.2623051043 | N58: 0.002164757561 | O58: 10,370,167 | P58: 3,696,272 | Q58: 1.805574644 | R58: 0.005606590318 | S58: 3,683.33 | T58: 1,569.86 | U58: 1.346274537 | V58: 0.002273283376 | W58: 251,643 | X58: 0.004786450285 | Y58: 218,229 | Z58: 0.1531
B59: 烧碱SH | C59: 11,512,010 | D59: 1,007,100 | E59: 10.43085096 | F59: 16,510,522 | G59: -0.3027470603 | H59: 0.01567591867 | I59: 9,383.69 | J59: 801.04 | K59: 10.71442011 | L59: 14,900.49 | M59: -0.37024273 | N59: 0.01523482219 | O59: 49,322,992 | P59: 3,537,436 | Q59: 12.94314752 | R59: 0.02666628314 | S59: 44,129.50 | T59: 2,878.36 | U59: 14.3314668 | V59: 0.02723594877 | W59: 348,748 | X59: 0.006633464725 | Y59: 350,531 | Z59: -0.0051
B60: 瓶片PR | C60: 567,043 | F60: 206,238 | G60: 1.749459362 | H60: 0.0007721431749 | I60: 518.14 | L60: 195.82 | M60: 1.64604307 | N60: 0.0008412299587 | O60: 1,069,787 | R60: 0.0005783761667 | S60: 994.72 | V60: 0.0006139249242 | W60: 47,482 | X60: 0.0009031454577 | Y60: 20,795 | Z60: 1.2833
B61: 优质强筋小麦 | C61: 0 | D61: 0 | F61: 0 | H61: 0 | I61: 0.00 | J61: 0.00 | L61: 0.00 | N61: 0 | O61: 0 | P61: 0 | R61: 0 | S61: 0.00 | T61: 0.00 | V61: 0 | W61: 0 | X61: 0 | Y61: 0 | Z61: 0
B62: 早籼稻 | C62: 0 | D62: 0 | F62: 0 | H62: 0 | I62: 0.00 | J62: 0.00 | L62: 0.00 | N62: 0 | O62: 0 | P62: 0 | R62: 0 | S62: 0.00 | T62: 0.00 | V62: 0 | W62: 0 | X62: 0 | Y62: 0 | Z62: 0
B63: 普麦PM | C63: 0 | D63: 0 | F63: 0 | H63: 0 | I63: 0.00 | J63: 0.00 | L63: 0.00 | N63: 0 | O63: 0 | P63: 0 | R63: 0 | S63: 0.00 | T63: 0.00 | V63: 0 | W63: 0 | X63: 0 | Y63: 0 | Z63: 0
B64: 油菜籽RS | C64: 5,508 | D64: 877 | E64: 5.28050171 | F64: 417 | G64: 12.20863309 | H64: 7.500250611e-06 | I64: 3.33 | J64: 0.52 | K64: 5.392757018 | L64: 0.24 | M64: 12.7467122 | N64: 5.405131283e-06 | O64: 6,244 | P64: 1,173 | Q64: 4.323103154 | R64: 3.375794233e-06 | S64: 3.76 | T64: 0.70 | U64: 4.360768779 | V64: 2.31847521e-06 | W64: 152 | X64: 2.891161063e-06 | Y64: 76 | Z64: 1
B65: 动力煤ZC | C65: 0 | D65: 0 | F65: 0 | H65: 0 | I65: 0.00 | J65: 0.00 | L65: 0.00 | N65: 0 | O65: 0 | P65: 0 | R65: 0 | S65: 0.00 | T65: 0.00 | V65: 0 | W65: 0 | X65: 0 | Y65: 0 | Z65: 0
B66: 粳稻JR | C66: 0 | D66: 0 | F66: 0 | H66: 0 | I66: 0.00 | J66: 0.00 | L66: 0.00 | N66: 0 | O66: 0 | P66: 0 | R66: 0 | S66: 0.00 | T66: 0.00 | V66: 0 | W66: 0 | X66: 0 | Y66: 0 | Z66: 0
B67: 晚籼稻LR | C67: 0 | D67: 0 | F67: 0 | H67: 0 | I67: 0.00 | J67: 0.00 | L67: 0.00 | N67: 0 | O67: 0 | P67: 0 | R67: 0 | S67: 0.00 | T67: 0.00 | V67: 0 | W67: 0 | X67: 0 | Y67: 0 | Z67: 0
B68: 白糖期权 | C68: 2,492,832 | D68: 2,403,248 | E68: 0.03727621952 | F68: 1,547,472 | G68: 0.6109060455 | H68: 0.003394492507 | I68: 8.47 | J68: 8.41 | K68: 0.006725470806 | L68: 5.85 | M68: 0.4477300418 | N68: 1.375112046e-05 | O68: 6,492,390 | P68: 5,518,384 | Q68: 0.1765020339 | R68: 0.003510085317 | S68: 23.96 | T68: 19.72 | U68: 0.2151468946 | V68: 1.479049476e-05 | W68: 331,023 | X68: 0.006296321108 | Y68: 264,480 | Z68: 0.2516
B69: 一号棉期权 | C69: 2,210,890 | D69: 3,218,085 | E69: -0.3129796137 | F69: 2,188,207 | G69: 0.01036602113 | H69: 0.003010571727 | I69: 8.30 | J69: 15.00 | K69: -0.4467411781 | L69: 10.47 | M69: -0.2074949412 | N69: 1.347176394e-05 | O69: 6,640,094 | P69: 8,029,315 | Q69: -0.1730186199 | R69: 0.003589940908 | S69: 30.36 | T69: 42.50 | U69: -0.2855271749 | V69: 1.873929732e-05 | W69: 538,265 | X69: 0.01023822901 | Y69: 481,399 | Z69: 0.1181
B70: PTA期权 | C70: 6,154,238 | D70: 7,151,006 | E70: -0.1393885 | F70: 3,998,514 | G70: 0.5391312873 | H70: 0.008380233718 | I70: 9.53 | J70: 13.25 | K70: -0.2809428238 | L70: 6.48 | M70: 0.470683346 | N70: 1.546443385e-05 | O70: 16,834,284 | P70: 19,656,497 | Q70: -0.1435765996 | R70: 0.009101389948 | S70: 28.07 | T70: 36.39 | U70: -0.2285952318 | V70: 1.732289957e-05 | W70: 487,888 | X70: 0.009280018345 | Y70: 422,333 | Z70: 0.1552
B71: 甲醇期权 | C71: 3,897,971 | D71: 6,726,318 | E71: -0.4204896349 | F71: 1,832,985 | G71: 1.126570048 | H71: 0.005307872072 | I71: 7.59 | J71: 15.46 | K71: -0.5091380347 | L71: 3.92 | M71: 0.9348481237 | N71: 1.232157963e-05 | O71: 9,028,394 | P71: 16,321,418 | Q71: -0.4468376461 | R71: 0.004881165982 | S71: 18.52 | T71: 38.22 | U71: -0.5154046264 | V71: 1.142997377e-05 | W71: 302,559 | X71: 0.005754913157 | Y71: 218,058 | Z71: 0.3875
B72: 菜籽粕期权 | C72: 5,882,188 | D72: 3,572,426 | E72: 0.6465527907 | F72: 3,481,627 | G72: 0.689494021 | H72: 0.008009782887 | I72: 22.18 | J72: 10.63 | K72: 1.087100732 | L72: 9.45 | M72: 1.347345897 | N72: 3.601055516e-05 | O72: 11,918,040 | P72: 7,346,981 | Q72: 0.6221683437 | R72: 0.006443441815 | S72: 40.47 | T72: 21.55 | U72: 0.8780734743 | V72: 2.49786692e-05 | W72: 538,064 | X72: 0.01023440583 | Y72: 303,292 | Z72: 0.7741
B73: 菜籽油期权 | C73: 1,488,726 | D73: 1,338,572 | E73: 0.1121747653 | F73: 878,005 | G73: 0.6955780434 | H73: 0.002027200089 | I73: 11.68 | J73: 7.24 | K73: 0.6137349761 | L73: 6.03 | M73: 0.9384568317 | N73: 1.896917253e-05 | O73: 3,296,693 | P73: 2,972,861 | Q73: 0.1089294118 | R73: 0.001782344205 | S73: 25.94 | T73: 14.64 | U73: 0.7725915682 | V73: 1.601277754e-05 | W73: 169,614 | X73: 0.003226193371 | Y73: 107,947 | Z73: 0.5713
B74: 花生期权 | C74: 567,036 | D74: 675,147 | E74: -0.1601295718 | F74: 668,626 | G74: -0.1519384529 | H74: 0.000772133643 | I74: 0.94 | J74: 1.54 | K74: -0.3925163153 | L74: 1.37 | M74: -0.3161640488 | N74: 1.519434776e-06 | O74: 2,092,562 | P74: 2,259,133 | Q74: -0.07373226809 | R74: 0.001131335479 | S74: 4.11 | T74: 4.57 | U74: -0.1019096005 | V74: 2.533760148e-06 | W74: 58,334 | X74: 0.001109559141 | Y74: 73,548 | Z74: -0.2069
B75: 对二甲苯期权 | C75: 911,755 | D75: 620,531 | E75: 0.4693141841 | F75: 415,928 | G75: 1.192098152 | H75: 0.001241537944 | I75: 0.97 | J75: 0.74 | K75: 0.3104027276 | L75: 0.57 | M75: 0.7012585014 | N75: 1.574935588e-06 | O75: 1,827,732 | P75: 873,434 | Q75: 1.092581695 | R75: 0.000988156173 | S75: 2.45 | T75: 1.59 | U75: 0.5381586976 | V75: 1.510698896e-06 | W75: 4,260 | X75: 8.102859294e-05 | Y75: 23,690 | Z75: -0.8202
B76: 烧碱期权 | C76: 4,598,356 | D76: 449,604 | E76: 9.22756915 | F76: 5,516,374 | G76: -0.1664169253 | H76: 0.006261587218 | I76: 26.31 | J76: 2.05 | K76: 11.85857609 | L76: 44.71 | M76: -0.4115994185 | N76: 4.270947799e-05 | O76: 14,551,124 | P76: 693,751 | Q76: 19.97456292 | R76: 0.007867008404 | S76: 124.05 | T76: 4.91 | U76: 24.25902849 | V76: 7.656196838e-05 | W76: 243,337 | X76: 0.004628463549 | Y76: 273,557 | Z76: -0.1105
B77: 苹果期权 | C77: 1,485,279 | D77: 591,575 | E77: 1.510719689 | F77: 239,578 | G77: 5.199563399 | H77: 0.002022506305 | I77: 4.82 | J77: 2.40 | K77: 1.009633956 | L77: 1.60 | M77: 2.022640417 | N77: 7.831731984e-06 | O77: 2,067,830 | P77: 700,978 | Q77: 1.949921396 | R77: 0.00111796422 | S77: 7.84 | T77: 3.51 | U77: 1.235253112 | V77: 4.840630478e-06 | W77: 3,981 | X77: 7.572179072e-05 | Y77: 36,731 | Z77: -0.8916
B78: 短纤期权 | C78: 608,345 | D78: 81,989 | E78: 6.419836807 | F78: 377,097 | G78: 0.6132321392 | H78: 0.0008283841608 | I78: 0.71 | J78: 0.12 | K78: 5.120369411 | L78: 0.36 | M78: 0.9948686931 | N78: 1.151263967e-06 | O78: 1,555,844 | P78: 258,755 | Q78: 5.012807482 | R78: 0.0008411609868 | S78: 1.73 | T78: 0.35 | U78: 3.912410566 | V78: 1.065741882e-06 | W78: 45,028 | X78: 0.0008564684232 | Y78: 35,727 | Z78: 0.2603
B79: 尿素期权 | C79: 620,793 | D79: 467,385 | E79: 0.3282261947 | F79: 288,675 | G79: 1.150491037 | H79: 0.0008453346183 | I79: 2.54 | J79: 2.10 | K79: 0.212442924 | L79: 1.97 | M79: 0.2878389124 | N79: 4.125661009e-06 | O79: 1,141,733 | P79: 1,061,561 | Q79: 0.07552274434 | R79: 0.0006172734908 | S79: 6.19 | T79: 4.78 | U79: 0.2963448697 | V79: 3.822019111e-06 | W79: 99,675 | X79: 0.001895897888 | Y79: 64,602 | Z79: 0.5429
B80: 纯碱期权 | C80: 9,156,198 | D80: 5,731,748 | E80: 0.5974529934 | F80: 5,784,085 | G80: 0.5829985209 | H80: 0.01246800647 | I80: 27.11 | J80: 30.27 | K80: -0.1045081925 | L80: 20.34 | M80: 0.3323499591 | N80: 4.40071774e-05 | O80: 19,819,041 | P80: 14,515,791 | Q80: 0.3653435076 | R80: 0.01071508717 | S80: 65.84 | T80: 84.49 | U80: -0.2207512194 | V80: 4.063434748e-05 | W80: 924,029 | X80: 0.01757576754 | Y80: 753,984 | Z80: 0.2255
B81: 硅铁期权 | C81: 598,309 | D81: 172,655 | E81: 2.465344183 | F81: 741,787 | G81: -0.193422101 | H81: 0.0008147181269 | I81: 0.97 | J81: 0.33 | K81: 1.922901808 | L81: 1.65 | M81: -0.4155841719 | N81: 1.567576068e-06 | O81: 1,857,048 | P81: 383,879 | Q81: 3.837586844 | R81: 0.001004005754 | S81: 3.76 | T81: 0.70 | U81: 4.394951253 | V81: 2.320003353e-06 | W81: 79,755 | X81: 0.001517003622 | Y81: 66,616 | Z81: 0.1972
B82: 锰硅期权 | C82: 2,452,888 | D82: 132,207 | E82: 17.55338976 | F82: 3,719,675 | G82: -0.3405638934 | H82: 0.003340100712 | I82: 4.56 | J82: 0.29 | K82: 14.77540725 | L82: 11.32 | M82: -0.59736277 | N82: 7.402189633e-06 | O82: 8,250,942 | P82: 256,165 | Q82: 31.20948217 | R82: 0.004460839593 | S82: 25.39 | T82: 0.53 | U82: 47.02725125 | V82: 1.567069927e-05 | W82: 255,554 | X82: 0.00486084062 | Y82: 227,870 | Z82: 0.1215
B83: 玻璃期权 | C83: 8,798,892 | F83: 2,937,030 | G83: 1.995846825 | H83: 0.01198146244 | I83: 27.62 | L83: 10.54 | M83: 1.620483021 | N83: 4.485000233e-05 | O83: 14,815,462 | R83: 0.008009921712 | S83: 48.66 | V83: 3.00303563e-05 | W83: 1,177,542 | X83: 0.02239778671 | Y83: 442,086 | Z83: 1.6636
B84: 红枣期权 | C84: 280,019 | F84: 186,495 | G84: 0.5014826135 | H84: 0.0003813022287 | I84: 0.51 | L84: 0.99 | M84: -0.4828184724 | N84: 8.349734691e-07 | O84: 549,351 | R84: 0.0002970044743 | S84: 2.04 | V84: 1.261294882e-06 | W84: 7,896 | X84: 0.0001501882089 | Y84: 59,031 | Z84: -0.8662
B85: 瓶片期权 | C85: 72,271 | F85: 22,164 | G85: 2.260738134 | H85: 9.841151269e-05 | I85: 0.31 | L85: 0.09 | M85: 2.28119923 | N85: 4.98409792e-07 | O85: 166,680 | R85: 9.011489152e-05 | S85: 0.81 | V85: 4.985957177e-07 | W85: 7,667 | X85: 0.0001458324465 | Y85: 2,455 | Z85: 2.123
B86: 动力煤期权 | C86: 0 | D86: 0 | F86: 0 | H86: 0 | I86: 0.00 | J86: 0.00 | L86: 0.00 | N86: 0 | O86: 0 | P86: 0 | R86: 0 | S86: 0.00 | T86: 0.00 | V86: 0 | W86: 0 | X86: 0 | Y86: 0 | Z86: 0
B87: 总计 | C87: 253,366,278 | D87: 196,904,795 | E87: 0.2867450892 | F87: 192,405,537 | G87: 0.3168346501 | H87: 0.3450091833 | I87: 77,479.39 | J87: 64,526.87 | K87: 0.2007304933 | L87: 66,043.15 | M87: 0.1731631726 | N87: 0.1257911017 | O87: 633,189,395 | P87: 491,132,646 | Q87: 0.2892431406 | R87: 0.3423313754 | S87: 211,042.14 | T87: 164,288.68 | U87: 0.2845811134 | V87: 0.1302514867 | W87: 17,979,829 | X87: 0.3419906679 | Y87: 15,072,896 | Z87: 0.1929
A88: 大连商品交易所 | B88: 豆一 | C88: 5,207,852 | D88: 2,487,943 | E88: 1.093236059 | F88: 3,403,895 | G88: 0.5299684626 | H88: 0.007091538697 | I88: 2,109.69 | J88: 1,166.77 | K88: 0.8081480902 | L88: 1,391.38 | M88: 0.516257922 | N88: 0.003425176799 | O88: 11,404,332 | P88: 6,631,411 | Q88: 0.7197444104 | R88: 0.00616570759 | S88: 4,603.37 | T88: 3,124.75 | U88: 0.4731965575 | V88: 0.002841121237 | W88: 398,723 | X88: 0.007584029028 | Y88: 347,251 | Z88: 0.148227
B89: 豆二 | C89: 5,177,669 | D89: 3,589,355 | E89: 0.4425068014 | F89: 3,859,113 | G89: 0.3416733327 | H89: 0.007050438468 | I89: 1,831.65 | J89: 1,367.22 | K89: 0.3396935807 | L89: 1,385.40 | M89: 0.3221054276 | N89: 0.002973762825 | O89: 12,565,184 | P89: 8,399,908 | Q89: 0.4958716215 | R89: 0.006793317693 | S89: 4,425.16 | T89: 3,181.63 | U89: 0.3908473611 | V89: 0.002731132078 | W89: 337,337 | X89: 0.006416418417 | Y89: 365,132 | Z89: -0.076123
B90: 豆粕 | C90: 61,128,540 | D90: 43,615,153 | E90: 0.4015436332 | F90: 41,887,248 | G90: 0.4593591825 | H90: 0.08323881073 | I90: 17,857.52 | J90: 14,145.30 | K90: 0.2624349364 | L90: 12,352.55 | M90: 0.4456542469 | N90: 0.02899245218 | O90: 138,620,758 | P90: 90,770,520 | Q90: 0.5271561516 | R90: 0.07494477184 | S90: 40,122.25 | T90: 28,648.76 | U90: 0.4004880899 | V90: 0.02476274682 | W90: 4,340,032 | X90: 0.08255086532 | Y90: 4,622,385 | Z90: -0.061084
B91: 玉米 | C91: 15,922,550 | D91: 12,136,042 | E91: 0.3120051826 | F91: 13,436,757 | G91: 0.1849994757 | H91: 0.0216817566 | I91: 3,663.20 | J91: 2,952.12 | K91: 0.2408705573 | L91: 3,069.66 | M91: 0.1933549778 | N91: 0.005947355951 | O91: 41,539,395 | P91: 34,071,485 | Q91: 0.2191835783 | R91: 0.0224581118 | S91: 9,473.37 | T91: 8,204.65 | U91: 0.1546343847 | V91: 0.005846797851 | W91: 2,284,634 | X91: 0.04345555831 | Y91: 2,077,444 | Z91: 0.099733
B92: 豆油 | C92: 12,091,234 | D92: 13,252,094 | E92: -0.08759823165 | F92: 9,715,871 | G92: 0.2444827643 | H92: 0.01646464873 | I92: 9,597.18 | J92: 10,182.25 | K92: -0.057459195 | L92: 7,724.43 | M92: 0.2424454559 | N92: 0.01558143671 | O92: 30,771,416 | P92: 32,570,298 | Q92: -0.05523075042 | R92: 0.01663644597 | S92: 24,185.44 | T92: 24,425.36 | U92: -0.009822433572 | V92: 0.01492682756 | W92: 841,571 | X92: 0.0160073507 | Y92: 913,362 | Z92: -0.078601
B93: 聚乙烯 | C93: 8,075,644 | D93: 7,313,492 | E93: 0.1042117774 | F93: 5,477,472 | G93: 0.4743377967 | H93: 0.01099661471 | I93: 3,131.70 | J93: 3,010.46 | K93: 0.04027043549 | L93: 2,142.91 | M93: 0.461420056 | N93: 0.00508444448 | O93: 20,638,795 | P93: 17,301,199 | Q93: 0.1929112543 | R93: 0.01115828397 | S93: 8,075.53 | T93: 7,090.84 | U93: 0.1388677229 | V93: 0.004984076146 | W93: 685,298 | X93: 0.01303491378 | Y93: 611,941 | Z93: 0.119876
B94: 棕榈油 | C94: 24,624,617 | D94: 19,565,696 | E94: 0.2585607484 | F94: 17,397,498 | G94: 0.4154114 | H94: 0.03353137231 | I94: 22,013.74 | J94: 15,600.24 | K94: 0.411115427 | L94: 15,754.22 | M94: 0.3973237471 | N94: 0.03574025085 | O94: 60,159,229 | P94: 40,826,224 | Q94: 0.4735437938 | R94: 0.03252485238 | S94: 53,207.97 | T94: 30,993.84 | U94: 0.7167268758 | V94: 0.03283901822 | W94: 648,891 | X94: 0.01234242364 | Y94: 683,201 | Z94: -0.050219
B95: 聚氯乙烯 | C95: 17,420,879 | D95: 19,712,715 | E95: -0.1162618138 | F95: 16,760,498 | G95: 0.03940103689 | H95: 0.02372203311 | I95: 4,448.80 | J95: 5,851.35 | K95: -0.2396967415 | L95: 4,383.58 | M95: 0.01487724007 | N95: 0.007222812509 | O95: 52,067,261 | P95: 45,844,668 | Q95: 0.1357320987 | R95: 0.02814996146 | S95: 13,484.55 | T95: 13,504.20 | U95: -0.001455666894 | V95: 0.008322424886 | W95: 1,267,819 | X95: 0.02411492715 | Y95: 1,275,791 | Z95: -0.006249
B96: 焦炭 | C96: 502,537 | D96: 514,097 | E96: -0.0224860289 | F96: 415,486 | G96: 0.2095160848 | H96: 0.0006843052726 | I96: 817.49 | J96: 1,131.06 | K96: -0.2772336387 | L96: 713.04 | M96: 0.1464868829 | N96: 0.001327235989 | O96: 1,272,358 | P96: 1,361,726 | Q96: -0.06562847445 | R96: 0.0006878953873 | S96: 2,151.89 | T96: 3,172.30 | U96: -0.3216613768 | V96: 0.001328110392 | W96: 52,346 | X96: 0.0009956626117 | Y96: 51,708 | Z96: 0.012339
B97: 焦煤 | C97: 6,584,739 | D97: 3,074,862 | E97: 1.141474642 | F97: 4,578,295 | G97: 0.4382513578 | H97: 0.008966447478 | I97: 4,205.87 | J97: 3,060.31 | K97: 0.3743304998 | L97: 3,051.81 | M97: 0.3781539815 | N97: 0.00682841112 | O97: 14,937,147 | P97: 7,287,576 | Q97: 1.049672895 | R97: 0.008075710233 | S97: 9,832.85 | T97: 7,564.38 | U97: 0.299888207 | V97: 0.006068664465 | W97: 556,391 | X97: 0.01058299997 | Y97: 450,531 | Z97: 0.234967
B98: 铁矿石 | C98: 10,469,453 | D98: 14,808,300 | E98: -0.2930010197 | F98: 8,367,732 | G98: 0.2511697315 | H98: 0.01425626748 | I98: 8,019.97 | J98: 12,069.62 | K98: -0.3355243006 | L98: 6,778.07 | M98: 0.1832225419 | N98: 0.01302076545 | O98: 25,457,326 | P98: 30,739,716 | Q98: -0.1718425115 | R98: 0.01376340395 | S98: 19,942.69 | T98: 26,939.57 | U98: -0.25972484 | V98: 0.01230827846 | W98: 948,819 | X98: 0.01804729308 | Y98: 877,638 | Z98: 0.081105
B99: 鸡蛋 | C99: 4,553,667 | D99: 4,645,945 | E99: -0.01986205175 | F99: 2,643,482 | G99: 0.7226018562 | H99: 0.00620073415 | I99: 1,453.53 | J99: 1,650.46 | K99: -0.1193152952 | L99: 862.05 | M99: 0.6861389917 | N99: 0.002359875839 | O99: 10,124,412 | P99: 11,602,995 | Q99: -0.1274311503 | R99: 0.005473723837 | S99: 3,274.25 | T99: 4,015.78 | U99: -0.1846538436 | V99: 0.002020812286 | W99: 598,385 | X99: 0.01138175929 | Y99: 394,096 | Z99: 0.518374
B100: 纤维板 | C100: 3,609 | D100: 209,346 | E100: -0.9827605973 | F100: 6,308 | G100: -0.4278693722 | H100: 4.914379894e-06 | I100: 0.48 | J100: 26.72 | K100: -0.9821666165 | L100: 0.83 | M100: -0.4246785236 | N100: 7.735970557e-07 | O100: 15,784 | P100: 1,912,646 | Q100: -0.9917475581 | R100: 8.533558002e-06 | S100: 2.08 | T100: 255.41 | U100: -0.9918559781 | V100: 1.283764641e-06 | W100: 281 | X100: 5.344843806e-06 | Y100: 507 | Z100: -0.445759
B101: 聚丙烯 | C101: 6,976,749 | D101: 8,127,040 | E101: -0.1415387398 | F101: 4,497,213 | G101: 0.5513494691 | H101: 0.009500247994 | I101: 2,545.82 | J101: 3,051.41 | K101: -0.1656889722 | L101: 1,659.86 | M101: 0.5337541012 | N101: 0.004133249772 | O101: 16,835,376 | P101: 19,733,734 | Q101: -0.1468732679 | R101: 0.009101980334 | S101: 6,190.27 | T101: 7,346.19 | U101: -0.1573493127 | V101: 0.003820526084 | W101: 563,434 | X101: 0.01071696343 | Y101: 516,198 | Z101: 0.091508
B102: 玉米淀粉 | C102: 2,957,504 | D102: 2,754,852 | E102: 0.07356184652 | F102: 2,707,574 | G102: 0.0923077264 | H102: 0.004027236961 | I102: 792.41 | J102: 790.79 | K102: 0.002044602896 | L102: 705.19 | M102: 0.1236835797 | N102: 0.001286507642 | O102: 7,913,447 | P102: 9,267,242 | Q102: -0.1460839158 | R102: 0.004278374238 | S102: 2,065.45 | T102: 2,649.91 | U102: -0.2205570308 | V102: 0.001274760504 | W102: 314,249 | X102: 0.005977266268 | Y102: 271,162 | Z102: 0.158898
B103: 乙二醇 | C103: 3,630,291 | D103: 8,090,247 | E103: -0.5512756285 | F103: 2,546,404 | G103: 0.4256539811 | H103: 0.004943371876 | I103: 1,631.33 | J103: 3,688.26 | K103: -0.5576963371 | L103: 1,190.84 | M103: 0.3698978701 | N103: 0.002648532241 | O103: 9,327,442 | P103: 32,019,742 | Q103: -0.7086971532 | R103: 0.005042845117 | S103: 4,323.28 | T103: 14,799.58 | U103: -0.7078783986 | V103: 0.002668249675 | W103: 442,583 | X103: 0.008418281161 | Y103: 421,568 | Z103: 0.04985
B104: 粳米 | C104: 90,253 | D104: 28,807 | E104: 2.133023224 | F104: 67,345 | G104: 0.3401588834 | H104: 0.000122897625 | I104: 31.69 | J104: 10.17 | K104: 2.117542884 | L104: 23.75 | M104: 0.3342528876 | N104: 5.145295429e-05 | O104: 231,835 | P104: 167,556 | Q104: 0.3836269665 | R104: 0.000125340688 | S104: 81.30 | T104: 59.03 | U104: 0.3772754804 | V104: 5.017672636e-05 | W104: 14,559 | X104: 0.0002769237757 | Y104: 12,358 | Z104: 0.178103
B105: 苯乙烯 | C105: 8,295,249 | D105: 11,237,718 | E105: -0.261838658 | F105: 4,194,009 | G105: 0.9778805911 | H105: 0.01129565112 | I105: 3,306.31 | J105: 5,195.83 | K105: -0.3636601796 | L105: 1,796.59 | M105: 0.8403242191 | N105: 0.005367941345 | O105: 17,482,280 | P105: 32,278,174 | Q105: -0.4583869583 | R105: 0.009451726457 | S105: 7,199.35 | T105: 14,450.14 | U105: -0.5017802649 | V105: 0.00444330941 | W105: 513,060 | X105: 0.009758809834 | Y105: 375,884 | Z105: 0.364942
B106: 液化石油气 | C106: 2,055,566 | D106: 3,188,266 | E106: -0.3552714861 | F106: 1,477,784 | G106: 0.3909786545 | H106: 0.002799066839 | I106: 1,873.06 | J106: 2,982.89 | K106: -0.3720663088 | L106: 1,316.62 | M106: 0.4226284468 | N106: 0.003040992463 | O106: 5,605,512 | P106: 11,862,666 | Q106: -0.5274660856 | R106: 0.003030598187 | S106: 5,058.62 | T106: 10,612.88 | U106: -0.5233505776 | V106: 0.003122093124 | W106: 159,388 | X106: 0.003031686707 | Y106: 107,364 | Z106: 0.484557
B107: 生猪 | C107: 1,342,805 | D107: 1,673,382 | E107: -0.1975502306 | F107: 801,467 | G107: 0.675433923 | H107: 0.001828499278 | I107: 2,896.18 | J107: 4,252.09 | K107: -0.3188806891 | L107: 1,692.12 | M107: 0.7115710482 | N107: 0.00470207449 | O107: 3,175,510 | P107: 4,423,702 | Q107: -0.2821600551 | R107: 0.001716827089 | S107: 6,739.27 | T107: 10,508.38 | U107: -0.358676105 | V107: 0.00415936112 | W107: 156,432 | X107: 0.002975461232 | Y107: 150,200 | Z107: 0.041491
B108: 原木 | C108: 523,375 | F108: 599,958 | G108: -0.1276472686 | H108: 0.0007126804037 | I108: 398.41 | L108: 475.80 | M108: -0.1626475086 | N108: 0.0006468433761 | O108: 1,664,396 | R108: 0.000899849202 | S108: 1,291.06 | V108: 0.0007968183472 | W108: 41,544 | X108: 0.0007901999683 | Y108: 43,866 | Z108: -0.052934
B109: 胶合板 | C109: 60 | D109: 0 | F109: 59 | G109: 0.01694915254 | H109: 8.170207637e-08 | I109: 0.05 | J109: 0.00 | L109: 0.04 | M109: 0.02848334562 | N109: 7.474466513e-08 | O109: 182 | P109: 0 | R109: 9.839758974e-08 | S109: 0.14 | T109: 0.00 | V109: 8.700419915e-08 | W109: 0 | X109: 0 | Y109: 12 | Z109: -1
B110: 豆粕期权 | C110: 8,601,206 | D110: 7,543,301 | E110: 0.1402443042 | F110: 9,782,694 | G110: -0.1207732757 | H110: 0.01171227316 | I110: 29.77 | J110: 27.50 | K110: 0.08234445708 | L110: 29.69 | M110: 0.002734030428 | N110: 4.832979526e-05 | O110: 22,769,751 | P110: 15,519,177 | Q110: 0.4672009347 | R110: 0.01231037702 | S110: 78.58 | T110: 56.78 | U110: 0.3839103524 | V110: 4.84996962e-05 | W110: 1,378,251 | X110: 0.02621543175 | Y110: 933,812 | Z110: 0.475941
B111: 玉米期权 | C111: 1,751,558 | D111: 1,640,374 | E111: 0.06777966488 | F111: 1,647,123 | G111: 0.06340449377 | H111: 0.002385098758 | I111: 3.20 | J111: 2.18 | K111: 0.4715963774 | L111: 2.75 | M111: 0.1657358748 | N111: 5.203333027e-06 | O111: 4,656,549 | P111: 4,256,669 | Q111: 0.09394200019 | R111: 0.002517545044 | S111: 8.87 | T111: 6.85 | U111: 0.2951314662 | V111: 5.474858811e-06 | W111: 499,219 | X111: 0.00949554299 | Y111: 339,961 | Z111: 0.46846
B112: 铁矿石期权 | C112: 6,373,796 | D112: 9,162,540 | E112: -0.3043636372 | F112: 4,599,418 | G112: 0.3857831578 | H112: 0.008679206126 | I112: 45.79 | J112: 110.51 | K112: -0.585671022 | L112: 35.81 | M112: 0.278775593 | N112: 7.434014969e-05 | O112: 14,552,404 | P112: 21,091,896 | Q112: -0.3100476126 | R112: 0.007867700431 | S112: 111.25 | T112: 254.33 | U112: -0.5625871603 | V112: 6.866048426e-05 | W112: 598,303 | X112: 0.01138019959 | Y112: 421,384 | Z112: 0.419852
B113: 液化石油气期权 | C113: 893,852 | D113: 766,045 | E113: 0.1668400681 | F113: 744,051 | G113: 0.2013316291 | H113: 0.001217159406 | I113: 3.12 | J113: 3.30 | K113: -0.0540623392 | L113: 2.63 | M113: 0.1877708442 | N113: 5.0649536e-06 | O113: 2,736,512 | P113: 3,244,256 | Q113: -0.1565055285 | R113: 0.001479484533 | S113: 10.35 | T113: 13.68 | U113: -0.2432078128 | V113: 6.390540822e-06 | W113: 26,899 | X113: 0.0005116404041 | Y113: 26,504 | Z113: 0.014903
B114: 聚乙烯期权 | C114: 453,130 | D114: 327,105 | E114: 0.3852738417 | F114: 231,601 | G114: 0.956511414 | H114: 0.0006170276978 | I114: 0.63 | J114: 0.58 | K114: 0.07960442691 | L114: 0.46 | M114: 0.3501505504 | N114: 1.01629398e-06 | O114: 1,011,763 | P114: 492,947 | Q114: 1.052478258 | R114: 0.0005470057175 | S114: 1.73 | T114: 1.25 | U114: 0.3759839398 | V114: 1.065598078e-06 | W114: 62,714 | X114: 0.001192870229 | Y114: 39,821 | Z114: 0.574898
B115: 聚丙烯期权 | C115: 571,384 | D115: 464,461 | E115: 0.2302087796 | F115: 250,793 | G115: 1.278309203 | H115: 0.0007780543201 | I115: 0.59 | J115: 0.88 | K115: -0.3257375962 | L115: 0.35 | M115: 0.6894535424 | N115: 9.625741949e-07 | O115: 1,088,754 | P115: 635,237 | Q115: 0.7139335398 | R115: 0.0005886306012 | S115: 1.33 | T115: 1.45 | U115: -0.0811697632 | V115: 8.217912908e-07 | W115: 72,165 | X115: 0.001372635777 | Y115: 60,568 | Z115: 0.191471
B116: 聚氯乙烯期权 | C116: 2,154,737 | D116: 2,109,717 | E116: 0.02133935499 | F116: 2,032,506 | G116: 0.06013807585 | H116: 0.002934108116 | I116: 3.02 | J116: 3.50 | K116: -0.1380834512 | L116: 3.12 | M116: -0.03434837821 | N116: 4.896395759e-06 | O116: 6,424,074 | P116: 2,958,980 | Q116: 1.1710434 | R116: 0.003473150538 | S116: 9.77 | T116: 5.80 | U116: 0.6829812191 | V116: 6.026869194e-06 | W116: 277,584 | X116: 0.005279868766 | Y116: 211,559 | Z116: 0.312088
B117: 棕榈油期权 | C117: 7,078,284 | D117: 3,571,299 | E117: 0.9819914266 | F117: 5,034,603 | G117: 0.405926942 | H117: 0.009638508332 | I117: 39.05 | J117: 23.76 | K117: 0.6431899331 | L117: 30.04 | M117: 0.2998918827 | N117: 6.339449176e-05 | O117: 16,908,592 | P117: 7,115,718 | Q117: 1.376231323 | R117: 0.009141564278 | S117: 94.99 | T117: 41.01 | U117: 1.316101828 | V117: 5.862356023e-05 | W117: 340,913 | X117: 0.006484436785 | Y117: 251,585 | Z117: 0.355061
B118: 黄大豆1号期权 | C118: 928,812 | D118: 489,065 | E118: 0.8991585986 | F118: 739,718 | G118: 0.2556298481 | H118: 0.001264764483 | I118: 3.01 | J118: 1.03 | K118: 1.908618391 | L118: 2.07 | M118: 0.4506806713 | N118: 4.886979211e-06 | O118: 2,096,070 | P118: 1,258,186 | Q118: 0.6659460525 | R118: 0.001133232065 | S118: 6.53 | T118: 2.61 | U118: 1.499036721 | V118: 4.032514714e-06 | W118: 115,655 | X118: 0.002199850215 | Y118: 69,930 | Z118: 0.653868
B119: 黄大豆2号期权 | C119: 1,210,378 | D119: 585,869 | E119: 1.06595331 | F119: 858,091 | G119: 0.4105473662 | H119: 0.001648173263 | I119: 3.36 | J119: 2.01 | K119: 0.6756494813 | L119: 2.51 | M119: 0.338203307 | N119: 5.456737216e-06 | O119: 2,990,008 | P119: 1,806,335 | Q119: 0.6552898549 | R119: 0.001616536157 | S119: 8.06 | T119: 4.77 | U119: 0.690272542 | V119: 4.977566582e-06 | W119: 60,727 | X119: 0.001155075907 | Y119: 45,470 | Z119: 0.33554
B120: 豆油期权 | C120: 1,000,634 | D120: 1,264,918 | E120: -0.2089337016 | F120: 1,369,936 | G120: -0.269576097 | H120: 0.001362564591 | I120: 6.31 | J120: 7.72 | K120: -0.1823969295 | L120: 9.00 | M120: -0.2984364512 | N120: 1.025237591e-05 | O120: 2,995,668 | P120: 2,678,215 | Q120: 0.1185315593 | R120: 0.001619596213 | S120: 21.35 | T120: 16.23 | U120: 0.3151772414 | V120: 1.317458355e-05 | W120: 130,233 | X120: 0.002477135386 | Y120: 111,858 | Z120: 0.164271
B121: 苯乙烯期权 | C121: 3,554,539 | D121: 2,342,093 | E121: 0.5176762836 | F121: 1,545,217 | G121: 1.300349401 | H121: 0.004840220281 | I121: 6.50 | J121: 5.14 | K121: 0.2653402689 | L121: 2.63 | M121: 1.477026642 | N121: 1.055666842e-05 | O121: 7,539,551 | P121: 6,247,400 | Q121: 0.2068302014 | R121: 0.004076228825 | S121: 13.38 | T121: 13.20 | U121: 0.01343814856 | V121: 8.258586461e-06 | W121: 116,527 | X121: 0.00221643635 | Y121: 54,349 | Z121: 1.14405
B122: 乙二醇期权 | C122: 966,276 | D122: 1,086,715 | E122: -0.1108285061 | F122: 412,936 | G122: 1.340013949 | H122: 0.001315779259 | I122: 3.20 | J122: 2.78 | K122: 0.149911485 | L122: 1.50 | M122: 1.126916027 | N122: 5.193828807e-06 | O122: 2,010,267 | P122: 2,275,643 | Q122: -0.1166158312 | R122: 0.001086843008 | S122: 6.87 | T122: 10.73 | U122: -0.3593630098 | V122: 4.243088699e-06 | W122: 122,974 | X122: 0.002339063424 | Y122: 85,151 | Z122: 0.444187
B123: 鸡蛋期权 | C123: 794,219 | F123: 508,094 | G123: 0.563133987 | H123: 0.001081489023 | I123: 2.03 | L123: 1.24 | M123: 0.6347999126 | N123: 3.303791154e-06 | O123: 1,786,961 | R123: 0.000966113491 | S123: 4.32 | V123: 2.668992212e-06 | W123: 108,969 | X123: 0.00207267717 | Y123: 48,808 | Z123: 1.232605
B124: 玉米淀粉期权 | C124: 343,904 | F124: 384,994 | G124: -0.106728936 | H124: 0.0004682945145 | I124: 0.87 | L124: 0.91 | M124: -0.04023016413 | N124: 1.411965981e-06 | O124: 903,313 | R124: 0.0004883726482 | S124: 2.17 | V124: 1.33779834e-06 | W124: 44,430 | X124: 0.0008450939869 | Y124: 22,302 | Z124: 0.992198
B125: 生猪期权 | C125: 274,895 | F125: 150,345 | G125: 0.8284279491 | H125: 0.0003743248714 | I125: 4.53 | L125: 2.26 | M125: 1.004791559 | N125: 7.358084468e-06 | O125: 546,477 | R125: 0.0002954506574 | S125: 8.93 | V125: 5.51215329e-06 | W125: 44,536 | X125: 0.0008471101913 | Y125: 27,695 | Z125: 0.608088
B126: 原木期权 | C126: 123,411 | F126: 102,926 | G126: 0.199026485 | H126: 0.0001680489158 | I126: 2.30 | L126: 2.32 | M126: -0.007951246497 | N126: 3.735476583e-06 | O126: 305,481 | R126: 0.0001651571105 | S126: 6.24 | V126: 3.850897691e-06 | W126: 29,227 | X126: 0.0005559208183 | Y126: 25,462 | Z126: 0.147867
B127: 总计 | C127: 234,709,857 | D127: 211,378,854 | E127: 0.1103752933 | F127: 175,236,514 | G127: 0.3393889872 | H127: 0.319604711 | I127: 92,783.38 | J127: 92,376.20 | K127: 0.004407818692 | L127: 68,600.06 | M127: 0.3525260824 | N127: 0.1506377872 | O127: 573,131,572 | P127: 508,653,847 | Q127: 0.1267615007 | R127: 0.3098613477 | S127: 226,124.89 | T127: 221,976.31 | U127: 0.01868930392 | V127: 0.1395602957 | W127: 19,195,102 | X127: 0.3651061282 | Y127: 17,345,818 | Z127: 0.10661
A128: 中国金融期货交易所 | B128: 沪深300股指期货 | C128: 2,603,507 | D128: 2,100,980 | E128: 0.2391869509 | F128: 2,314,595 | G128: 0.1248218371 | H128: 0.003545198796 | I128: 30,672.93 | J128: 22,336.26 | K128: 0.3732344132 | L128: 27,148.23 | M128: 0.1298314479 | N128: 0.04979881178 | O128: 7,367,746 | P128: 7,103,147 | Q128: 0.0372509537 | R128: 0.003983343122 | S128: 85,729.80 | T128: 71,872.97 | U128: 0.1927960364 | V128: 0.05291092119 | W128: 295,235 | X128: 0.005615604844 | Y128: 287,086 | Z128: 0.0284
B129: 5年期国债期货 | C129: 1,296,934 | D129: 1,270,087 | E129: 0.02113792205 | F129: 1,485,988 | G129: -0.127224446 | H129: 0.001766036679 | I129: 13,691.32 | J129: 13,077.85 | K129: 0.04690949623 | L129: 15,765.22 | M129: -0.1315489637 | N129: 0.02222845084 | O129: 4,081,506 | P129: 3,441,652 | Q129: 0.1859147874 | R129: 0.002206650291 | S129: 43,293.50 | T129: 35,378.68 | U129: 0.2237174124 | V129: 0.02671998569 | W129: 167,252 | X129: 0.00318126625 | Y129: 147,057 | Z129: 0.1373
B130: 10年期国债期货 | C130: 1,779,789 | D130: 1,841,561 | E130: -0.03354328203 | F130: 1,958,285 | G130: -0.09114914326 | H130: 0.002423540947 | I130: 19,170.68 | J130: 19,137.58 | K130: 0.001729325607 | L130: 21,265.53 | M130: -0.098509271 | N130: 0.03112441494 | O130: 5,239,987 | P130: 4,685,490 | Q130: 0.118343439 | R130: 0.002832978522 | S130: 56,832.94 | T130: 48,507.76 | U130: 0.1716256686 | V130: 0.03507629025 | W130: 193,925 | X130: 0.003688607954 | Y130: 176,930 | Z130: 0.0961
B131: 上证50股指期货 | C131: 1,289,233 | D131: 1,267,096 | E131: 0.01747065731 | F131: 1,124,288 | G131: 0.1467106293 | H131: 0.001755550217 | I131: 10,386.66 | J131: 9,183.99 | K131: 0.1309532475 | L131: 8,909.26 | M131: 0.1658276918 | N131: 0.01686318974 | O131: 3,622,180 | P131: 4,244,196 | Q131: -0.1465568508 | R131: 0.001958317481 | S131: 28,683.42 | T131: 29,603.59 | U131: -0.03108310388 | V131: 0.01770290308 | W131: 109,962 | X131: 0.002091564821 | Y131: 110,692 | Z131: -0.0066
B132: 中证500股指期货 | C132: 2,291,436 | D132: 2,021,614 | E132: 0.1334686048 | F132: 1,969,728 | G132: 0.1633261039 | H132: 0.003120251318 | I132: 27,087.01 | J132: 21,571.78 | K132: 0.2556687116 | L132: 23,041.18 | M132: 0.1755916185 | N132: 0.04397692537 | O132: 6,274,839 | P132: 7,179,662 | Q132: -0.1260258491 | R132: 0.003392467217 | S132: 72,257.05 | T132: 72,677.38 | U132: -0.005783475872 | V132: 0.04459578065 | W132: 227,724 | X132: 0.004331491854 | Y132: 224,844 | Z132: 0.0128
B133: 2年期国债期货 | C133: 846,865 | D133: 747,331 | E133: 0.1331859645 | F133: 917,101 | G133: -0.07658480364 | H133: 0.001153177148 | I133: 17,348.53 | J133: 15,170.55 | K133: 0.1435658045 | L133: 18,819.48 | M133: -0.07816152442 | N133: 0.0281660736 | O133: 2,479,633 | P133: 2,064,027 | Q133: 0.2013568621 | R133: 0.001340603905 | S133: 50,893.15 | T133: 41,851.42 | U133: 0.2160434553 | V133: 0.03141035294 | W133: 113,274 | X133: 0.002154561699 | Y133: 96,417 | Z133: 0.1748
B134: 中证1000股指期货 | C134: 5,429,847 | D134: 3,575,582 | E134: 0.5185910993 | F134: 4,796,528 | G134: 0.1320369651 | H134: 0.007393829571 | I134: 68,407.52 | J134: 38,493.66 | K134: 0.7771113413 | L134: 59,245.19 | M134: 0.1546511753 | N134: 0.1110625455 | O134: 15,320,870 | P134: 10,728,958 | Q134: 0.4279923549 | R134: 0.008283168575 | S134: 185,676.55 | T134: 109,951.72 | U134: 0.6887098872 | V134: 0.1145962954 | W134: 365,602 | X134: 0.006954041229 | Y134: 349,116 | Z134: 0.0472
B135: 30年期国债期货 | C135: 2,740,893 | D135: 1,133,302 | E135: 1.418501864 | F135: 2,226,635 | G135: 0.2309574762 | H135: 0.003732277487 | I135: 31,803.75 | J135: 12,033.38 | K135: 1.642960066 | L135: 26,579.50 | M135: 0.1965516165 | N135: 0.05163474792 | O135: 6,853,365 | P135: 2,303,616 | Q135: 1.975046622 | R135: 0.003705245042 | S135: 81,017.99 | T135: 24,234.08 | U135: 2.343143102 | V135: 0.05000287305 | W135: 117,031 | X135: 0.002226022831 | Y135: 114,231 | Z135: 0.0245
B136: 沪深300股指期权 | C136: 2,084,282 | D136: 1,766,490 | E136: 0.1799002542 | F136: 1,860,459 | G136: 0.120305258 | H136: 0.002838169452 | I136: 92.39 | J136: 83.08 | K136: 0.1120434847 | L136: 87.93 | M136: 0.05071137644 | N136: 0.0001500055438 | O136: 5,853,250 | P136: 6,616,618 | Q136: -0.1153713272 | R136: 0.00316453677 | S136: 279.93 | T136: 321.69 | U136: -0.1298163952 | V136: 0.0001727678408 | W136: 193,760 | X136: 0.003685469523 | Y136: 193,784 | Z136: -0.0001
B137: 中证1000股指期权 | C137: 5,036,646 | D137: 3,262,361 | E137: 0.5438653172 | F137: 4,334,145 | G137: 0.1620852556 | H137: 0.006858407269 | I137: 411.86 | J137: 298.71 | K137: 0.3788089095 | L137: 363.56 | M137: 0.1328628319 | N137: 0.0006686724129 | O137: 13,508,174 | P137: 10,331,966 | Q137: 0.3074156458 | R137: 0.007303141557 | S137: 1,160.59 | T137: 1,000.96 | U137: 0.159479642 | V137: 0.00071629726 | W137: 217,664 | X137: 0.004140142642 | Y137: 223,881 | Z137: -0.0278
B138: 上证50股指期权 | C138: 769,630 | D138: 664,274 | E138: 0.158603227 | F138: 622,087 | G138: 0.2371742216 | H138: 0.001048006151 | I138: 23.25 | J138: 19.58 | K138: 0.1876430931 | L138: 19.35 | M138: 0.2018423257 | N138: 3.77537872e-05 | O138: 2,065,545 | P138: 3,020,574 | Q138: -0.3161746741 | R138: 0.001116728843 | S138: 64.46 | T138: 95.63 | U138: -0.3259489181 | V138: 3.978156376e-05 | W138: 67,055 | X138: 0.001275439507 | Y138: 68,880 | Z138: -0.0265
B139: 总计 | C139: 26,169,062 | D139: 19,650,678 | E139: 0.3317129312 | F139: 23,609,839 | G139: 0.1083964613 | H139: 0.03563444503 | I139: 219,095.91 | J139: 151,406.44 | K139: 0.4470713058 | L139: 201,244.43 | M139: 0.08870542778 | N139: 0.3557115914 | O139: 72,667,095 | P139: 61,719,906 | Q139: 0.1773688541 | R139: 0.03928718133 | S139: 605,889.39 | T139: 435,495.88 | U139: 0.3912631732 | V139: 0.3739442489 | W139: 2,068,484 | X139: 0.03934421315 | Y139: 1,992,918 | Z139: 0.0379
A140: 广州期货交易所 | B140: 工业硅期货 | C140: 4,998,967 | D140: 5,186,908 | E140: -0.03623372537 | F140: 5,278,073 | G140: -0.05288028415 | H140: 0.006807099727 | I140: 2,494.59 | J140: 3,341.73 | K140: -0.2535048019 | L140: 2,811.45 | M140: -0.1127041753 | N140: 0.004050070053 | O140: 16,772,497 | P140: 9,563,789 | Q140: 0.7537502134 | R140: 0.009067985048 | S140: 8,791.25 | T140: 6,293.40 | U140: 0.3969003517 | V140: 0.005425807254 | W140: 377,995 | X140: 0.007189765959 | Y140: 356,189 | Z140: 0.0612
B141: 碳酸锂期货 | C141: 2,880,839 | D141: 7,759,681 | E141: -0.6287425991 | F141: 2,838,657 | G141: 0.01485984393 | H141: 0.003922842133 | I141: 2,163.17 | J141: 8,921.04 | K141: -0.7575201839 | L141: 2,190.99 | M141: -0.01269617145 | N141: 0.003512002381 | O141: 10,030,889 | P141: 13,894,868 | Q141: -0.2780867728 | R141: 0.005423160992 | S141: 7,747.85 | T141: 15,237.45 | U141: -0.4915259348 | V141: 0.004781835148 | W141: 362,587 | X141: 0.006896693527 | Y141: 400,492 | Z141: -0.0946
B142: 多晶硅期货 | C142: 297,436 | F142: 248,858 | G142: 0.1952036905 | H142: 0.0004050189798 | I142: 389.36 | L142: 329.01 | M142: 0.1834321085 | N142: 0.0006321358899 | O142: 1,226,550 | R142: 0.0006631294708 | S142: 1,607.21 | V142: 0.0009919438848 | W142: 42,393 | X142: 0.0008063486245 | Y142: 33,517 | Z142: 0.2648
B143: 工业硅期权 | C143: 1,899,289 | D143: 1,012,438 | E143: 0.875955861 | F143: 1,511,798 | G143: 0.2563113591 | H143: 0.002586264249 | I143: 6.12 | J143: 4.54 | K143: 0.3494760039 | L143: 5.31 | M143: 0.1542919283 | N143: 9.941847362e-06 | O143: 5,628,869 | P143: 1,686,340 | Q143: 2.337920585 | R143: 0.003043226058 | S143: 21.18 | T143: 7.12 | U143: 1.975147687 | V143: 1.307125919e-05 | W143: 192,764 | X143: 0.00366652481 | Y143: 159,625 | Z143: 0.2076
B144: 碳酸锂期权 | C144: 1,696,609 | D144: 1,755,707 | E144: -0.03366051397 | F144: 1,064,539 | G144: 0.5937499706 | H144: 0.002310274635 | I144: 7.00 | J144: 25.55 | K144: -0.7260615457 | L144: 6.19 | M144: 0.1299248368 | N144: 1.136373157e-05 | O144: 4,258,994 | P144: 3,406,679 | Q144: 0.2501894073 | R144: 0.002302608485 | S144: 24.46 | T144: 48.99 | U144: -0.5007143148 | V144: 1.509508475e-05 | W144: 261,001 | X144: 0.004964446898 | Y144: 194,208 | Z144: 0.3439
B145: 多晶硅期权 | C145: 89,707 | F145: 48,281 | G145: 0.8580186823 | H145: 0.0001221541361 | I145: 1.37 | L145: 1.32 | M145: 0.03286135551 | N145: 2.218910607e-06 | O145: 232,975 | R145: 0.0001259570246 | S145: 6.62 | V145: 4.087166213e-06 | W145: 32,125 | X145: 0.0006110430864 | Y145: 22,215 | Z145: 0.4461
B146: 总计 | C146: 11,862,847 | D146: 15,714,734 | E146: -0.2451130894 | F146: 10,990,206 | G146: 0.07940169638 | H146: 0.01615365386 | I146: 5,061.61 | J146: 12,292.86 | K146: -0.5882484017 | L146: 5,344.27 | M146: -0.05289074515 | N146: 0.008217732812 | O146: 38,150,774 | P146: 28,551,676 | Q146: 0.3362008591 | R146: 0.02062606708 | S146: 18,198.58 | T146: 21,586.96 | U146: -0.1569642517 | V146: 0.0112318398 | W146: 1,268,865 | X146: 0.02413482291 | Y146: 1,166,246 | Z146: 0.088
A147: 全国期货市场交易总额 | C147: =SUM(C34,C41,C87,C127,C139,C146) -> 734,375,461 | D147: =SUM(D34,D41,D87,D127,D139,D146) -> 626,197,360 | E147: =IFERROR((C147-D147)/ABS(D147),"-") -> 0.1727540036 | F147: =SUM(F34,F41,F87,F127,F139,F146) -> 562,550,444 | G147: =IFERROR((C147-F147)/ABS(F147),"-") -> 0.3054393056 | H147: =IFERROR(C147/C147,"-") -> 1 | I147: =SUM(I34,I41,I87,I127,I139,I146) -> 615,936.94 | J147: =SUM(J34,J41,J87,J127,J139,J146) -> 496,733.54 | K147: =IFERROR((I147-J147)/ABS(J147),"-") -> 0.2399745199 | L147: =SUM(L34,L41,L87,L127,L139,L146) -> 515,597.38 | M147: =IFERROR((I147-L147)/ABS(L147),"-") -> 0.1946083565 | N147: =IFERROR(I147/I147,"-") -> 1 | O147: =SUM(O34,O41,O87,O127,O139,O146) -> 1,849,638,802 | P147: =SUM(P34,P41,P87,P127,P139,P146) -> 1,509,989,198 | Q147: =IFERROR((O147-P147)/ABS(P147),"-") -> 0.2249351217 | R147: =IFERROR(O147/O147,"-") -> 1 | S147: =SUM(S34,S41,S87,S127,S139,S146) -> 1,620,266.62 | T147: =SUM(T34,T41,T87,T127,T139,T146) -> 1,241,638.72 | U147: =IFERROR((S147-T147)/ABS(T147),"-") -> 0.3049420912 | V147: =IFERROR(S147/S147,"-") -> 1 | W147: =SUM(W34,W41,W87,W127,W139,W146) -> 52,574,034 | X147: =IFERROR(W147/W147,"-") -> 1 | Y147: =SUM(Y34,Y41,Y87,Y127,Y139,Y146) -> 46,120,044 | Z147: =IFERROR((W147-Y147)/ABS(Y147),"-") -> 0.1399389385
A148: 注：1.自本月起，本表持仓数据根据上海期货交易所、郑州商品交易所、大连商品交易所、中国金融期货交易所和广州期货交易所提供数据计算，其余数据根据证监会官网发布的市场数据计算。

Sheet 4月
M2: 2025年 | N2: 4月 | O2: 全国期货市场成交情况统计
A3: 交易所名称 | B3: 品种名称 | C3: 本月成交量（手） | D3: 去年同期成交量（手） | E3: 同比增减（％） | F3: 上月成交量（手） | G3: 环比增减（％） | H3: 本月成交量占全国份额（％） | I3: 本月成交额 （亿元） | J3: 去年同期成交额（亿元） | K3: 同比增减（％） | L3: 上月成交额 （亿元） | M3: 环比增减（％） | N3: 本月交易额占全国份额（％） | O3: 今年累计成交总量（手） | P3: 去年同期成交总量（手） | Q3: 同比增减（％） | R3: 今年累计成交总量占全国份额(%) | S3: 今年累计成交总额（亿元） | T3: 去年同期成交总额（亿元） | U3: 同比增减（％） | V3: 今年累计成交总额占全国份额(%) | W3: 本月月末持仓量(手） | X3: 本月月末持仓量占全国份额（%） | Y3: 上月月末持仓量（手） | Z3: 环比增减（％）
A4: 上海期货交易所 | B4: 铜 | C4: 5,690,832 | D4: 6,321,610 | E4: -0.09978122662 | F4: 4,745,680 | G4: 0.1991604997 | H4: 0.007038000542 | I4: 21,581.22 | J4: 24,608.58 | K4: -0.1230204312 | L4: 18,962.06 | M4: 0.1381264262 | N4: 0.03075217064 | O4: 15,960,920 | P4: 14,788,003 | Q4: 0.07931544239 | R4: 0.006004351919 | S4: 61,594.57 | T4: 54,263.75 | U4: 0.1350960796 | V4: 0.02652599757 | W4: 517,075 | X4: 0.01233432567 | Y4: 571,026 | Z4: -0.094481
B5: 铝 | C5: 6,561,601 | D5: 9,122,442 | E5: -0.2807188031 | F5: 6,050,161 | G5: 0.08453328763 | H5: 0.008114903303 | I5: 6,485.27 | J5: 9,291.98 | K5: -0.3020565333 | L5: 6,285.74 | M5: 0.03174337163 | N5: 0.00924119551 | O5: 21,455,689 | P5: 23,425,273 | Q5: -0.08407944701 | R5: 0.00807143369 | S5: 21,777.75 | T5: 22,936.69 | U5: -0.05052800013 | V5: 0.009378691377 | W5: 512,828 | X5: 0.01223301758 | Y5: 498,242 | Z5: 0.029275
B6: 锌 | C6: 6,748,128 | D6: 6,811,159 | E6: -0.009254078491 | F6: 5,567,886 | G6: 0.21197309 | H6: 0.008345586115 | I6: 7,575.76 | J6: 7,675.45 | K6: -0.01298752875 | L6: 6,650.47 | M6: 0.1391330381 | N6: 0.01079508974 | O6: 21,233,811 | P6: 16,435,383 | Q6: 0.2919571756 | R6: 0.007987965219 | S6: 24,915.07 | T6: 17,768.65 | U6: 0.4021929225 | V6: 0.01072979609 | W6: 202,437 | X6: 0.004828939487 | Y6: 225,779 | Z6: -0.103384
B7: 铅 | C7: 1,327,942 | D7: 1,935,924 | E7: -0.3140526178 | F7: 1,527,363 | G7: -0.1305655565 | H7: 0.001642300549 | I7: 1,119.08 | J7: 1,634.15 | K7: -0.3151927439 | L7: 1,337.26 | M7: -0.1631532132 | N7: 0.001594634445 | O7: 5,001,392 | P7: 5,630,431 | Q7: -0.1117212874 | R7: 0.001881477863 | S7: 4,268.40 | T7: 4,632.57 | U7: -0.07860970911 | V7: 0.001838208409 | W7: 66,347 | X7: 0.001582643727 | Y7: 93,420 | Z7: -0.289799
B8: 黄金 | C8: 18,032,347 | D8: 10,676,256 | E8: 0.6890141076 | F8: 8,955,445 | G8: 1.013562363 | H8: 0.02230107442 | I8: 139,195.92 | J8: 59,565.26 | K8: 1.336864032 | L8: 62,251.13 | M8: 1.236038595 | N8: 0.1983472898 | O8: 40,611,934 | P8: 23,331,048 | Q8: 0.7406819445 | R8: 0.01527783761 | S8: 291,560.31 | T8: 122,140.98 | U8: 1.387080123 | V8: 0.1255618455 | W8: 413,625 | X8: 0.009866625644 | Y8: 393,691 | Z8: 0.050634
B9: 天然橡胶 | C9: 11,490,088 | D9: 9,354,820 | E9: 0.2282532427 | F9: 8,126,357 | G9: 0.4139285291 | H9: 0.01421009188 | I9: 17,158.62 | J9: 13,668.17 | K9: 0.2553711578 | L9: 13,981.46 | M9: 0.2272411036 | N9: 0.02445018653 | O9: 37,399,295 | P9: 29,461,303 | Q9: 0.2694379132 | R9: 0.01406927224 | S9: 62,150.70 | T9: 42,421.78 | U9: 0.4650659196 | V9: 0.026765497 | W9: 159,400 | X9: 0.00380233334 | Y9: 229,274 | Z9: -0.304762
B10: 燃料油 | C10: 20,818,307 | D10: 15,278,775 | E10: 0.3625638836 | F10: 16,561,181 | G10: 0.2570544939 | H10: 0.02574654391 | I10: 6,161.01 | J10: 5,376.47 | K10: 0.1459210239 | L10: 5,157.18 | M10: 0.1946472889 | N10: 0.008779136117 | O10: 65,238,707 | P10: 60,607,387 | Q10: 0.07641510762 | R10: 0.02454220405 | S10: 20,986.53 | T10: 19,418.21 | U10: 0.08076556995 | V10: 0.009037949557 | W10: 356,238 | X10: 0.00849771408 | Y10: 460,322 | Z10: -0.226111
B11: 螺纹钢 | C11: 41,945,192 | D11: 40,770,215 | E11: 0.02881949482 | F11: 42,265,756 | G11: -0.00758448518 | H11: 0.05187471428 | I11: 13,070.28 | J11: 14,640.56 | K11: -0.1072553513 | L11: 13,676.68 | M11: -0.04433779043 | N11: 0.01862450592 | O11: 142,168,988 | P11: 136,882,579 | Q11: 0.03862002775 | R11: 0.05348267117 | S11: 45,918.65 | T11: 50,511.06 | U11: -0.09091880307 | V11: 0.01977508851 | W11: 2,530,870 | X11: 0.06037146411 | Y11: 3,163,141 | Z11: -0.199887
B12: 线材 | C12: 1,230 | D12: 4,144 | E12: -0.7031853282 | F12: 1,429 | G12: -0.1392582225 | H12: 1.52117312e-06 | I12: 0.41 | J12: 1.56 | K12: -0.7381132462 | L12: 0.49 | M12: -0.1689125526 | N12: 5.831951714e-07 | O12: 4,424 | P12: 15,609 | Q12: -0.7165737715 | R12: 1.664268281e-06 | S12: 1.53 | T12: 6.20 | U12: -0.7533359776 | V12: 6.590913309e-07 | W12: 11 | X12: 2.623943961e-07 | Y12: 157 | Z12: -0.929936
B13: 白银 | C13: 28,510,623 | D13: 45,072,609 | E13: -0.3674512385 | F13: 20,861,780 | G13: 0.3666438338 | H13: 0.03525983198 | I13: 34,723.10 | J13: 48,838.37 | K13: -0.2890200917 | L13: 25,718.26 | M13: 0.3501340618 | N13: 0.04947869504 | O13: 86,046,312 | P13: 83,801,742 | Q13: 0.02678428809 | R13: 0.03236983448 | S13: 103,910.13 | T13: 84,080.13 | U13: 0.2358464662 | V13: 0.04474939512 | W13: 851,231 | X13: 0.02030529493 | Y13: 887,250 | Z13: -0.040596
B14: 石油沥青 | C14: 7,515,429 | D14: 3,048,702 | E14: 1.465124174 | F14: 8,338,235 | G14: -0.0986786772 | H14: 0.009294527298 | I14: 2,539.31 | J14: 1,153.18 | K14: 1.201998822 | L14: 2,959.63 | M14: -0.1420163271 | N14: 0.00361839164 | O14: 31,567,528 | P14: 12,253,244 | Q14: 1.576258826 | R14: 0.01187541491 | S14: 11,397.72 | T14: 4,558.09 | U14: 1.500545431 | V14: 0.004908483149 | W14: 353,652 | X14: 0.008436027543 | Y14: 436,975 | Z14: -0.190681
B15: 热轧卷板 | C15: 18,011,238 | D15: 11,822,217 | E15: 0.5235076467 | F15: 15,595,336 | G15: 0.1549118275 | H15: 0.02227496837 | I15: 5,835.28 | J15: 4,449.76 | K15: 0.3113683659 | L15: 5,283.02 | M15: 0.1045357296 | N15: 0.008314985289 | O15: 52,572,903 | P15: 39,314,689 | Q15: 0.3372330886 | R15: 0.0197774446 | S15: 17,594.89 | T15: 15,159.72 | U15: 0.1606344003 | V15: 0.007577325347 | W15: 1,658,486 | X15: 0.03956158476 | Y15: 1,856,096 | Z15: -0.106465
B16: 镍 | C16: 5,605,962 | D16: 8,244,461 | E16: -0.3200329288 | F16: 6,603,725 | G16: -0.1510909373 | H16: 0.006933039597 | I16: 6,931.86 | J16: 11,501.45 | K16: -0.3973057517 | L16: 8,630.00 | M16: -0.1967718932 | N16: 0.009877552668 | O16: 18,971,855 | P16: 26,207,822 | Q16: -0.2760995172 | R16: 0.007137038089 | S16: 24,049.84 | T16: 35,344.66 | U16: -0.319562325 | V16: 0.01035717965 | W16: 156,742 | X16: 0.003738929312 | Y16: 184,613 | Z16: -0.15097
B17: 锡 | C17: 4,720,398 | D17: 5,230,339 | E17: -0.0974967397 | F17: 4,189,517 | G17: 0.1267165165 | H17: 0.005837839473 | I17: 12,555.48 | J17: 13,439.89 | K17: -0.06580497777 | L17: 11,600.49 | M17: 0.08232373615 | N17: 0.01789093733 | O17: 12,421,672 | P17: 9,975,885 | Q17: 0.2451699273 | R17: 0.004672919237 | S17: 33,104.61 | T17: 23,816.25 | U17: 0.3900013026 | V17: 0.01425666068 | W17: 53,905 | X17: 0.001285851811 | Y17: 71,213 | Z17: -0.243046
B18: 纸浆 | C18: 5,862,894 | D18: 7,963,025 | E18: -0.2637353267 | F18: 4,627,956 | G18: 0.2668430728 | H18: 0.00725079411 | I18: 3,154.06 | J18: 5,001.78 | K18: -0.3694109591 | L18: 2,700.31 | M18: 0.1680396728 | N18: 0.004494385958 | O18: 18,685,709 | P18: 30,985,954 | Q18: -0.396961959 | R18: 0.007029392584 | S18: 10,809.72 | T18: 18,465.34 | U18: -0.4145943361 | V18: 0.004655255869 | W18: 222,665 | X18: 0.005311458928 | Y18: 317,297 | Z18: -0.298244
B19: 不锈钢 | C19: 5,087,502 | D19: 6,708,520 | E19: -0.241635711 | F19: 5,690,103 | G19: -0.1059033554 | H19: 0.006291846576 | I19: 3,286.01 | J19: 4,682.84 | K19: -0.2982865753 | L19: 3,830.90 | M19: -0.1422358727 | N19: 0.004682399299 | O19: 19,176,960 | P19: 21,134,035 | Q19: -0.09260299796 | R19: 0.007214196711 | S19: 12,631.25 | T19: 14,661.87 | U19: -0.1384971136 | V19: 0.005439706345 | W19: 241,306 | X19: 0.005756122013 | Y19: 293,518 | Z19: -0.177883
B20: 氧化铝 | C20: 9,881,588 | D20: 3,194,791 | E20: 2.093031125 | F20: 4,508,928 | G20: 1.191560389 | H20: 0.01222081792 | I20: 5,587.29 | J20: 2,281.90 | K20: 1.44852626 | L20: 2,810.87 | M20: 0.9877423552 | N20: 0.007961611281 | O20: 23,268,868 | P20: 12,013,505 | Q20: 0.9368925222 | R20: 0.008753535023 | S20: 15,060.75 | T20: 8,222.21 | U20: 0.8317139538 | V20: 0.006485982295 | W20: 367,775 | X20: 0.008772918093 | Y20: 401,964 | Z20: -0.085055
B21: 丁二烯橡胶 | C21: 3,965,291 | D21: 516,915 | E21: 6.671069712 | F21: 2,318,845 | G21: 0.710028484 | H21: 0.004903978927 | I21: 2,299.72 | J21: 341.50 | K21: 5.734268639 | L21: 1,588.45 | M21: 0.4477764162 | N21: 0.003276991101 | O21: 13,160,161 | P21: 2,526,204 | Q21: 4.209460914 | R21: 0.004950732035 | S21: 8,771.86 | T21: 1,654.12 | U21: 4.303026203 | V21: 0.003777641902 | W21: 76,667 | X21: 0.001828817379 | Y21: 48,555 | Z21: 0.578972
B22: 铜期权 | C22: 2,468,840 | D22: 2,489,015 | E22: -0.008105616077 | F22: 2,425,479 | G22: 0.01787729352 | H22: 0.003053278898 | I22: 75.35 | J22: 76.35 | K22: -0.01308884268 | L22: 54.91 | M22: 0.3721392629 | N22: 0.0001073697701 | O22: 7,542,791 | P22: 5,533,721 | Q22: 0.3630595037 | R22: 0.00283752889 | S22: 180.95 | T22: 125.98 | U22: 0.4363016921 | V22: 7.792759443e-05 | W22: 74,603 | X22: 0.001779582648 | Y22: 88,227 | Z22: -0.15442
B23: 天胶期权 | C23: 1,011,588 | D23: 1,296,028 | E23: -0.219470567 | F23: 971,472 | G23: 0.04129403627 | H23: 0.001251057296 | I23: 20.40 | J23: 19.56 | K23: 0.04279825358 | L23: 16.59 | M23: 0.2299278238 | N23: 2.907168096e-05 | O23: 3,455,796 | P23: 3,749,235 | Q23: -0.07826636634 | R23: 0.001300038804 | S23: 70.60 | T23: 65.72 | U23: 0.07425672494 | V23: 3.040297992e-05 | W23: 50,042 | X23: 0.00119370367 | Y23: 91,197 | Z23: -0.451276
B24: 黄金期权 | C24: 4,044,639 | D24: 1,669,510 | E24: 1.422650358 | F24: 2,125,352 | G24: 0.9030442957 | H24: 0.005002110671 | I24: 384.75 | J24: 115.75 | K24: 2.324107775 | L24: 94.67 | M24: 3.064341951 | N24: 0.0005482542734 | O24: 9,145,204 | P24: 3,494,220 | Q24: 1.61723761 | R24: 0.003440341984 | S24: 630.24 | T24: 165.57 | U24: 2.806386182 | V24: 0.0002714140241 | W24: 196,766 | X24: 0.004693663249 | Y24: 89,894 | Z24: 1.188867
B25: 铝期权 | C25: 1,285,942 | D25: 2,291,463 | E25: -0.4388117984 | F25: 1,452,407 | G25: -0.1146131904 | H25: 0.001590358052 | I25: 9.92 | J25: 17.41 | K25: -0.4303355663 | L25: 7.00 | M25: 0.415931736 | N25: 1.41293356e-05 | O25: 5,213,501 | P25: 5,787,869 | Q25: -0.09923652384 | R25: 0.001961271326 | S25: 29.88 | T25: 32.34 | U25: -0.07602649033 | V25: 1.286910922e-05 | W25: 75,896 | X25: 0.001810425917 | Y25: 76,832 | Z25: -0.012182
B26: 锌期权 | C26: 1,258,288 | D26: 1,582,279 | E26: -0.2047622448 | F26: 1,714,938 | G26: -0.2662778479 | H26: 0.001556157628 | I26: 11.02 | J26: 14.69 | K26: -0.2500543856 | L26: 9.55 | M26: 0.1534378102 | N26: 1.569974927e-05 | O26: 6,221,035 | P26: 3,623,382 | Q26: 0.7169139219 | R26: 0.002340296389 | S26: 41.28 | T26: 24.33 | U26: 0.6968779455 | V26: 1.777904248e-05 | W26: 39,572 | X26: 0.0009439519129 | Y26: 54,832 | Z26: -0.278305
B27: 白银期权 | C27: 9,752,337 | D27: 6,970,172 | E27: 0.3991529908 | F27: 7,214,213 | G27: 0.3518227144 | H27: 0.01206096984 | I27: 109.26 | J27: 91.97 | K27: 0.1879999715 | L27: 66.11 | M27: 0.6528174951 | N27: 0.000155696094 | O27: 29,362,058 | P27: 12,609,976 | Q27: 1.3284785 | R27: 0.01104573729 | S27: 281.36 | T27: 129.53 | U27: 1.17216859 | V27: 0.0001211705536 | W27: 272,691 | X27: 0.006504780933 | Y27: 264,436 | Z27: 0.031217
B28: 螺纹钢期权 | C28: 3,417,924 | D28: 4,258,299 | E28: -0.1973499278 | F28: 3,684,118 | G28: -0.07225447176 | H28: 0.004227035865 | I28: 10.69 | J28: 15.10 | K28: -0.2924302507 | L28: 11.27 | M28: -0.05192395498 | N28: 1.522598602e-05 | O28: 12,156,337 | P28: 14,112,402 | Q28: -0.1386060998 | R28: 0.00457310264 | S28: 38.63 | T28: 51.17 | U28: -0.2449633164 | V28: 1.663761648e-05 | W28: 190,680 | X28: 0.004548487586 | Y28: 541,997 | Z28: -0.64819
B29: 丁二烯橡胶期权 | C29: 1,616,388 | D29: 286,917 | E29: 4.633643179 | F29: 1,230,692 | G29: 0.3133976657 | H29: 0.001999029249 | I29: 7.53 | J29: 1.29 | K29: 4.82600946 | L29: 4.08 | M29: 0.8464215846 | N29: 1.073105676e-05 | O29: 6,168,975 | P29: 1,504,510 | Q29: 3.100321699 | R29: 0.002320711894 | S29: 25.73 | T29: 6.04 | U29: 3.259135645 | V29: 1.108192582e-05 | W29: 26,142 | X29: 0.0006235922093 | Y29: 18,863 | Z29: 0.385888
B30: 铅期权 | C30: 123,459 | F30: 309,509 | G30: -0.6011133763 | H30: 0.0001526849692 | I30: 0.50 | L30: 0.83 | M30: -0.3950888274 | N30: 7.178430145e-07 | O30: 736,199 | R30: 0.000276951321 | S30: 2.54 | V30: 1.095519488e-06 | W30: 5,968 | X30: 0.0001423608869 | Y30: 10,025 | Z30: -0.404688
B31: 镍期权 | C31: 974,565 | F31: 1,582,429 | G31: -0.3841335061 | H31: 0.001205269985 | I31: 7.52 | L31: 11.91 | M31: -0.3681984568 | N31: 1.072151102e-05 | O31: 3,784,649 | R31: 0.00142375029 | S31: 26.62 | V31: 1.146484211e-05 | W31: 22,859 | X31: 0.0005452794091 | Y31: 41,904 | Z31: -0.454491
B32: 锡期权 | C32: 1,503,181 | F32: 1,545,149 | G32: -0.02716113462 | H32: 0.001859023196 | I32: 25.19 | L32: 19.59 | M32: 0.2862729118 | N32: 3.58978719e-05 | O32: 3,548,036 | R32: 0.001334738647 | S32: 50.12 | V32: 2.158249179e-05 | W32: 17,376 | X32: 0.0004144877297 | Y32: 27,375 | Z32: -0.36526
B33: 氧化铝期权 | C33: 2,781,249 | F33: 2,460,353 | G33: 0.1304268127 | H33: 0.003439643266 | I33: 12.69 | L33: 11.11 | M33: 0.1418804721 | N33: 1.808479144e-05 | O33: 13,217,515 | R33: 0.004972308084 | S33: 77.01 | V33: 3.316611925e-05 | W33: 79,008 | X33: 0.001884659677 | Y33: 121,252 | Z33: -0.348398
B34: 总计 | C34: 232,014,992 | D34: 212,920,607 | E34: 0.08967842648 | F34: 193,251,794 | G34: 0.2005838973 | H34: 0.2869389993 | I34: 289,934.53 | J34: 228,504.97 | K34: 0.2688324717 | L34: 193,732.00 | M34: 0.496575329 | N34: 0.4131423415 | O34: 725,499,224 | P34: 599,205,411 | Q34: 0.2107688126 | R34: 0.2729261633 | S34: 771,959.25 | T34: 540,662.98 | U34: 0.427801202 | V34: 0.3324479552 | W34: 9,792,863 | X34: 0.2335993066 | Y34: 11,559,367 | Z34: -0.15282
A35: 上海国际能源交易中心 | B35: 原油 | C35: 4,341,777 | D35: 3,024,309 | E35: 0.4356261215 | F35: 3,033,336 | G35: 0.4313537966 | H35: 0.005369588995 | I35: 21,051.16 | J35: 19,767.25 | K35: 0.06495123171 | L35: 15,910.66 | M35: 0.3230848547 | N35: 0.02999685791 | O35: 12,611,872 | P35: 15,100,335 | Q35: -0.1647952181 | R35: 0.004744470735 | S35: 67,956.89 | T35: 90,582.85 | U35: -0.249781991 | V35: 0.02926595946 | W35: 44,661 | X35: 0.001065345102 | Y35: 44,028 | Z35: 0.014377
B36: 20号胶 | C36: 5,216,108 | D36: 1,816,492 | E36: 1.871528198 | F36: 5,001,636 | G36: 0.04288036954 | H36: 0.006450896974 | I36: 6,608.68 | J36: 2,157.23 | K36: 2.063509563 | L36: 7,377.88 | M36: -0.1042568138 | N36: 0.009417046019 | O36: 17,921,009 | P36: 7,188,081 | Q36: 1.49315624 | R36: 0.006741719448 | S36: 25,503.56 | T36: 8,450.95 | U36: 2.017833005 | V36: 0.01098322867 | W36: 140,957 | X36: 0.003362393354 | Y36: 198,521 | Z36: -0.289964
B37: 低硫燃料油 | C37: 3,500,280 | D37: 3,073,715 | E37: 0.1387783187 | F37: 3,150,340 | G37: 0.1110800739 | H37: 0.004328887681 | I37: 1,204.08 | J37: 1,406.82 | K37: -0.1441078731 | L37: 1,134.69 | M37: 0.06115665778 | N37: 0.001715758711 | O37: 11,586,163 | P37: 11,885,264 | Q37: -0.02516570099 | R37: 0.004358608403 | S37: 4,330.98 | T37: 5,194.75 | U37: -0.1662786366 | V37: 0.001865155727 | W37: 118,187 | X37: 0.002819236954 | Y37: 119,231 | Z37: -0.008756
B38: 铜(BC) | C38: 288,098 | D38: 422,953 | E38: -0.3188415734 | F38: 289,430 | G38: -0.004602149052 | H38: 0.0003562983198 | I38: 970.41 | J38: 1,465.52 | K38: -0.3378395847 | L38: 1,028.69 | M38: -0.0566564464 | N38: 0.001382787754 | O38: 989,527 | P38: 1,137,891 | Q38: -0.130385072 | R38: 0.0003722509944 | S38: 3,394.93 | T38: 3,680.92 | U38: -0.07769557655 | V38: 0.00146204094 | W38: 5,277 | X38: 0.000125877748 | Y38: 15,608 | Z38: -0.661904
B39: SCFIS欧线 | C39: 2,010,620 | D39: 1,143,281 | E39: 0.7586402643 | F39: 2,159,299 | G39: -0.06885521644 | H39: 0.002486586258 | I39: 1,652.08 | J39: 1,372.46 | K39: 0.2037394946 | L39: 2,278.42 | M39: -0.2749021674 | N39: 0.002354130671 | O39: 7,758,266 | P39: 4,093,286 | Q39: 0.8953637738 | R39: 0.002918588612 | S39: 7,128.35 | T39: 4,202.98 | U39: 0.6960229228 | V39: 0.003069859933 | W39: 87,263 | X39: 0.002081574744 | Y39: 84,789 | Z39: 0.029178
B40: 原油期权 | C40: 2,070,788 | D40: 1,123,082 | E40: 0.8438439936 | F40: 1,381,582 | G40: 0.4988527644 | H40: 0.002560997595 | I40: 114.42 | J40: 65.97 | K40: 0.7343440023 | L40: 54.31 | M40: 1.106616497 | N40: 0.0001630431471 | O40: 5,576,568 | P40: 4,845,294 | Q40: 0.1509245879 | R40: 0.002097853806 | S40: 273.06 | T40: 255.68 | U40: 0.06796510973 | V40: 0.0001175929763 | W40: 54,054 | X40: 0.001289406062 | Y40: 40,210 | Z40: 0.344292
B41: 总计 | C41: 17,427,671 | D41: 10,603,832 | E41: 0.6435257556 | F41: 15,015,623 | G41: 0.1606358924 | H41: 0.02155325582 | I41: 31,600.84 | J41: 26,235.25 | K41: 0.2045183763 | L41: 27,784.66 | M41: 0.137348256 | N41: 0.04502962421 | O41: 56,443,405 | P41: 44,250,151 | Q41: 0.2755528224 | R41: 0.021233492 | S41: 108,587.75 | T41: 112,368.13 | U41: -0.03364278982 | V41: 0.04676383771 | W41: 450,399 | X41: 0.01074383396 | Y41: 502,387 | Z41: -0.103482
A42: 郑州商品交易所 | B42: 一号棉CF | C42: 8,931,105 | D42: 8,221,051 | E42: 0.08637022201 | F42: 6,001,483 | G42: 0.488149679 | H42: 0.01104533078 | I42: 5,798.93 | J42: 6,604.14 | K42: -0.1219253427 | L42: 4,094.13 | M42: 0.4164015986 | N42: 0.008263183832 | O42: 25,287,442 | P42: 29,037,612 | Q42: -0.1291487055 | R42: 0.009512904074 | S42: 16,961.31 | T42: 23,221.79 | U42: -0.2695951974 | V42: 0.007304469774 | W42: 758,897 | X42: 0.01810275636 | Y42: 817,722 | Z42: -0.0719
B43: 白糖SR | C43: 6,942,418 | D43: 10,411,652 | E43: -0.3332068725 | F43: 6,119,886 | G43: 0.1344031572 | H43: 0.008585869631 | I43: 4,164.26 | J43: 6,627.97 | K43: -0.3717150255 | L43: 3,671.50 | M43: 0.1342099778 | N43: 0.005933858533 | O43: 22,653,421 | P43: 33,170,164 | Q43: -0.3170542961 | R43: 0.008522009498 | S43: 13,486.64 | T43: 21,161.28 | U43: -0.362673756 | V43: 0.005808085471 | W43: 386,701 | X43: 0.009224379579 | Y43: 572,685 | Z43: -0.3248
B44: PTA | C44: 31,658,918 | D44: 19,705,087 | E44: 0.606636804 | F44: 18,176,188 | G44: 0.7417798495 | H44: 0.03915341062 | I44: 6,947.52 | J44: 5,907.54 | K44: 0.1760431721 | L44: 4,423.56 | M44: 0.5705719638 | N44: 0.009899876281 | O44: 81,038,402 | P44: 73,639,509 | Q44: 0.1004745021 | R44: 0.03048590461 | S44: 19,313.89 | T44: 21,786.33 | U44: -0.1134855853 | V44: 0.0083176206 | W44: 1,465,130 | X44: 0.03494926378 | Y44: 1,729,937 | Z44: -0.1531
B45: 菜籽油 | C45: 12,297,967 | D45: 14,851,909 | E45: -0.1719605204 | F45: 15,683,337 | G45: -0.2158577604 | H45: 0.01520921693 | I45: 11,492.45 | J45: 12,239.89 | K45: -0.06106569151 | L45: 14,216.84 | M45: -0.1916313801 | N45: 0.01637617357 | O45: 48,982,407 | P45: 42,438,845 | Q45: 0.1541880322 | R45: 0.01842673289 | S45: 44,034.10 | T45: 34,240.88 | U45: 0.2860094086 | V45: 0.01896349475 | W45: 335,486 | X45: 0.008002695124 | Y45: 480,890 | Z45: -0.3024
B46: 甲醇MA | C46: 18,091,581 | D46: 20,490,232 | E46: -0.117063145 | F46: 17,194,371 | G46: 0.05218044906 | H46: 0.02237433066 | I46: 4,218.28 | J46: 5,167.15 | K46: -0.1836351929 | L46: 4,383.91 | M46: -0.03777982353 | N46: 0.00601084359 | O46: 59,713,131 | P46: 82,460,114 | Q46: -0.2758543725 | R46: 0.02246353297 | S46: 14,922.85 | T46: 20,454.88 | U46: -0.2704506689 | V46: 0.006426594883 | W46: 805,402 | X46: 0.01921208831 | Y46: 1,049,414 | Z46: -0.2325
B47: 玻璃FG | C47: 42,210,739 | D47: 28,013,111 | E47: 0.506820824 | F47: 35,988,412 | G47: 0.1728980706 | H47: 0.05220312319 | I47: 9,856.08 | J47: 8,468.84 | K47: 0.1638044655 | L47: 8,668.84 | M47: 0.1369549223 | N47: 0.01404442398 | O47: 111,736,720 | P47: 88,116,832 | Q47: 0.2680519427 | R47: 0.04203433067 | S47: 27,407.14 | T47: 28,810.96 | U47: -0.04872519213 | V47: 0.01180301848 | W47: 1,302,967 | X47: 0.03108102174 | Y47: 2,168,029 | Z47: -0.399
B48: 油菜籽RS | C48: 715 | D48: 1,489 | E48: -0.5198119543 | F48: 5,508 | G48: -0.8701888163 | H48: 8.842591712e-07 | I48: 0.40 | J48: 0.84 | K48: -0.5177517198 | L48: 3.33 | M48: -0.8788409898 | N48: 5.747751392e-07 | O48: 6,959 | P48: 2,662 | Q48: 1.61419985 | R48: 2.617912063e-06 | S48: 4.16 | T48: 1.54 | U48: 1.706210036 | V48: 1.791486498e-06 | W48: 126 | X48: 3.005608537e-06 | Y48: 152 | Z48: -0.1711
B49: 菜籽粕RM | C49: 20,065,612 | D49: 21,847,016 | E49: -0.08153992289 | F49: 36,703,107 | G49: -0.4532993624 | H49: 0.02481566634 | I49: 5,275.62 | J49: 5,942.39 | K49: -0.1122050286 | L49: 9,690.02 | M49: -0.4555616554 | N49: 0.007517498433 | O49: 103,655,737 | P49: 78,454,557 | Q49: 0.3212200918 | R49: 0.03899433888 | S49: 26,582.22 | T49: 20,595.58 | U49: 0.2906761378 | V49: 0.01144776258 | W49: 925,242 | X49: 0.02207075598 | Y49: 1,378,746 | Z49: -0.3289
B50: 硅铁SF | C50: 4,402,718 | D50: 6,496,344 | E50: -0.3222775764 | F50: 3,002,938 | G50: 0.46613683 | H50: 0.005444956321 | I50: 1,276.25 | J50: 2,198.92 | K50: -0.4196025724 | L50: 903.71 | M50: 0.4122292173 | N50: 0.001818587596 | O50: 14,165,846 | P50: 15,040,904 | Q50: -0.05817855097 | R50: 0.005329061521 | S50: 4,321.02 | T50: 5,026.71 | U50: -0.1403881369 | V50: 0.001860868828 | W50: 381,353 | X50: 0.009096808194 | Y50: 397,311 | Z50: -0.0402
B51: 锰硅SM | C51: 7,278,622 | D51: 9,838,814 | E51: -0.2602134769 | F51: 7,029,978 | G51: 0.03536910073 | H51: 0.009001661898 | I51: 2,158.43 | J51: 3,504.97 | K51: -0.384180013 | L51: 2,204.06 | M51: -0.02070296194 | N51: 0.003075653287 | O51: 35,713,219 | P51: 17,287,974 | Q51: 1.065783937 | R51: 0.01343498589 | S51: 11,505.66 | T51: 5,856.98 | U51: 0.9644352376 | V51: 0.004954967425 | W51: 612,974 | X51: 0.01462190387 | Y51: 653,215 | Z51: -0.0616
B52: 棉纱 | C52: 136,504 | D52: 46,320 | E52: 1.946977547 | F52: 123,058 | G52: 0.1092655496 | H52: 0.0001688180614 | I52: 129.99 | J52: 49.16 | K52: 1.644015285 | L52: 121.35 | M52: 0.07119304367 | N52: 0.0001852300816 | O52: 469,832 | P52: 282,331 | Q52: 0.6641176491 | R52: 0.0001767464952 | S52: 459.20 | T52: 305.91 | U52: 0.5010995297 | V52: 0.0001977557303 | W52: 21,450 | X52: 0.0005116690724 | Y52: 7,097 | Z52: 2.0224
B53: 苹果AP | C53: 3,001,873 | D53: 2,187,087 | E53: 0.3725439363 | F53: 3,195,079 | G53: -0.06046986632 | H53: 0.003712494729 | I53: 2,357.53 | J53: 1,672.35 | K53: 0.4097111779 | L53: 2,371.02 | M53: -0.005691288736 | N53: 0.003359357657 | O53: 9,919,963 | P53: 6,351,323 | Q53: 0.5618734868 | R53: 0.003731799224 | S53: 7,331.90 | T53: 5,077.30 | U53: 0.4440541422 | V53: 0.003157517899 | W53: 106,981 | X53: 0.002551928626 | Y53: 105,039 | Z53: 0.0185
B54: 红枣CJ | C54: 1,357,876 | D54: 953,565 | E54: 0.4239994127 | F54: 1,196,648 | G54: 0.1347330209 | H54: 0.001679320708 | I54: 626.80 | J54: 597.75 | K54: 0.04859940069 | L54: 552.11 | M54: 0.1352900409 | N54: 0.0008931592128 | O54: 5,194,151 | P54: 3,225,951 | Q54: 0.6101146608 | R54: 0.001953992033 | S54: 2,412.59 | T54: 2,089.68 | U54: 0.1545268793 | V54: 0.001038993189 | W54: 110,339 | X54: 0.002632030479 | Y54: 144,042 | Z54: -0.234
B55: 尿素 | C55: 7,229,359 | D55: 7,857,077 | E55: -0.07989205146 | F55: 5,698,673 | G55: 0.2686039364 | H55: 0.008940737059 | I55: 2,624.98 | J55: 3,130.19 | K55: -0.161400003 | L55: 2,072.80 | M55: 0.2663955549 | N55: 0.003740468434 | O55: 20,808,264 | P55: 22,105,592 | Q55: -0.05868777457 | R55: 0.007827878335 | S55: 7,458.12 | T55: 9,049.55 | U55: -0.1758574789 | V55: 0.003211873574 | W55: 259,555 | X55: 0.006191434316 | Y55: 313,880 | Z55: -0.1731
B56: 纯碱 | C56: 24,398,624 | D56: 32,887,998 | E56: -0.2581298503 | F56: 24,469,199 | G56: -0.002884238262 | H56: 0.03017441543 | I56: 6,616.69 | J56: 13,456.71 | K56: -0.508297956 | L56: 7,125.63 | M56: -0.07142301453 | N56: 0.009428460342 | O56: 86,196,599 | P56: 83,784,128 | Q56: 0.02879389041 | R56: 0.03242637107 | S56: 24,802.76 | T56: 32,801.14 | U56: -0.2438444992 | V56: 0.01068142793 | W56: 1,228,378 | X56: 0.02930177304 | Y56: 1,821,756 | Z56: -0.3257
B57: 短纤PF | C57: 5,909,398 | D57: 2,861,271 | E57: 1.065305244 | F57: 3,598,164 | G57: 0.6423370363 | H57: 0.007308306822 | I57: 1,799.07 | J57: 1,063.29 | K57: 0.6919903424 | L57: 1,198.49 | M57: 0.5011192791 | N57: 0.002563587585 | O57: 14,456,716 | P57: 9,204,949 | Q57: 0.5705373273 | R57: 0.005438484151 | S57: 4,724.74 | T57: 3,409.80 | U57: 0.385636907 | V57: 0.002034731458 | W57: 225,729 | X57: 0.005384547694 | Y57: 312,852 | Z57: -0.2785
B58: 花生PK | C58: 1,112,152 | D58: 1,284,979 | E58: -0.1344979179 | F58: 922,174 | G58: 0.2060110131 | H58: 0.001375427421 | I58: 452.12 | J58: 595.49 | K58: -0.2407599561 | L58: 377.80 | M58: 0.1967249407 | N58: 0.0006442446143 | O58: 4,548,577 | P58: 6,401,590 | Q58: -0.2894613682 | R58: 0.001711133007 | S58: 1,841.50 | T58: 2,899.31 | U58: -0.3648492192 | V58: 0.0007930496159 | W58: 80,150 | X58: 0.001911900986 | Y58: 104,718 | Z58: -0.2346
B59: 对二甲苯PX | C59: 5,454,731 | D59: 1,392,538 | E59: 2.91711465 | F59: 3,902,036 | G59: 0.3979191889 | H59: 0.00674600827 | I59: 1,685.71 | J59: 601.03 | K59: 1.804712811 | L59: 1,333.35 | M59: 0.2642601892 | N59: 0.002402048319 | O59: 15,824,898 | P59: 5,088,810 | Q59: 2.109744321 | R59: 0.005953181688 | S59: 5,369.03 | T59: 2,170.89 | U59: 1.473196599 | V59: 0.002312199284 | W59: 170,756 | X59: 0.004073219773 | Y59: 251,643 | Z59: -0.3214
B60: 烧碱SH | C60: 9,376,528 | D60: 1,393,800 | E60: 5.727312383 | F60: 11,512,010 | G60: -0.1855003601 | H60: 0.01159619703 | I60: 6,897.57 | J60: 1,035.57 | K60: 5.660659659 | L60: 9,383.69 | M60: -0.264940768 | N60: 0.00982869227 | O60: 58,699,520 | P60: 4,931,236 | Q60: 10.903612 | R60: 0.0220822218 | S60: 51,027.07 | T60: 3,913.93 | U60: 12.03729854 | V60: 0.02197505107 | W60: 151,956 | X60: 0.003624763896 | Y60: 348,748 | Z60: -0.5643
B61: 瓶片PR | C61: 1,066,392 | F61: 567,043 | G61: 0.8806192828 | H61: 0.001318834834 | I61: 903.02 | L61: 518.14 | M61: 0.74278831 | N61: 0.001286753566 | O61: 2,136,179 | R61: 0.0008036109746 | S61: 1,897.74 | V61: 0.0008172701586 | W61: 45,242 | X61: 0.001079204297 | Y61: 47,482 | Z61: -0.0472
B62: 优质强筋小麦 | C62: 0 | D62: 0 | F62: 0 | H62: 0 | I62: 0.00 | J62: 0.00 | L62: 0.00 | N62: 0 | O62: 0 | P62: 0 | R62: 0 | S62: 0.00 | T62: 0.00 | V62: 0 | W62: 0 | X62: 0 | Y62: 0 | Z62: 0
B63: 早籼稻 | C63: 0 | D63: 0 | F63: 0 | H63: 0 | I63: 0.00 | J63: 0.00 | L63: 0.00 | N63: 0 | O63: 0 | P63: 0 | R63: 0 | S63: 0.00 | T63: 0.00 | V63: 0 | W63: 0 | X63: 0 | Y63: 0 | Z63: 0
B64: 普麦PM | C64: 0 | D64: 0 | F64: 0 | H64: 0 | I64: 0.00 | J64: 0.00 | L64: 0.00 | N64: 0 | O64: 0 | P64: 0 | R64: 0 | S64: 0.00 | T64: 0.00 | V64: 0 | W64: 0 | X64: 0 | Y64: 0 | Z64: 0
B65: 动力煤ZC | C65: 0 | D65: 0 | F65: 0 | H65: 0 | I65: 0.00 | J65: 0.00 | L65: 0.00 | N65: 0 | O65: 0 | P65: 0 | R65: 0 | S65: 0.00 | T65: 0.00 | V65: 0 | W65: 0 | X65: 0 | Y65: 0 | Z65: 0
B66: 粳稻JR | C66: 0 | D66: 0 | F66: 0 | H66: 0 | I66: 0.00 | J66: 0.00 | L66: 0.00 | N66: 0 | O66: 0 | P66: 0 | R66: 0 | S66: 0.00 | T66: 0.00 | V66: 0 | W66: 0 | X66: 0 | Y66: 0 | Z66: 0
B67: 晚籼稻LR | C67: 0 | D67: 0 | F67: 0 | H67: 0 | I67: 0.00 | J67: 0.00 | L67: 0.00 | N67: 0 | O67: 0 | P67: 0 | R67: 0 | S67: 0.00 | T67: 0.00 | V67: 0 | W67: 0 | X67: 0 | Y67: 0 | Z67: 0
B68: 白糖期权 | C68: 2,559,442 | D68: 2,792,680 | E68: -0.08351762465 | F68: 2,492,832 | G68: 0.02672061334 | H68: 0.003165328757 | I68: 7.92 | J68: 12.16 | K68: -0.349151849 | L68: 8.47 | M68: -0.06526216664 | N68: 1.128142393e-05 | O68: 9,051,832 | P68: 8,311,064 | Q68: 0.0891303448 | R68: 0.003405216293 | S68: 31.88 | T68: 31.89 | U68: -0.0001297758525 | V68: 1.372996792e-05 | W68: 182,081 | X68: 0.00434336673 | Y68: 331,023 | Z68: -0.4499
B69: 一号棉期权 | C69: 2,997,377 | D69: 3,304,446 | E69: -0.09292601543 | F69: 2,210,890 | G69: 0.3557332115 | H69: 0.003706934408 | I69: 19.46 | J69: 20.01 | K69: -0.0274402625 | L69: 8.30 | M69: 1.345298856 | N69: 2.773056176e-05 | O69: 9,637,471 | P69: 11,333,761 | Q69: -0.1496669993 | R69: 0.003625528321 | S69: 49.82 | T69: 62.51 | U69: -0.2029073575 | V69: 2.145667685e-05 | W69: 305,179 | X69: 0.007279750855 | Y69: 538,265 | Z69: -0.433
B70: PTA期权 | C70: 9,306,871 | D70: 7,007,600 | E70: 0.3281110509 | F70: 6,154,238 | G70: 0.5122702437 | H70: 0.0115100504 | I70: 21.25 | J70: 16.59 | K70: 0.2803977694 | L70: 9.53 | M70: 1.230747426 | N70: 3.02775296e-05 | O70: 26,141,155 | P70: 26,664,097 | Q70: -0.01961221488 | R70: 0.009834063085 | S70: 49.32 | T70: 52.98 | U70: -0.06916361228 | V70: 2.123810489e-05 | W70: 413,132 | X70: 0.009854865604 | Y70: 487,888 | Z70: -0.1532
B71: 甲醇期权 | C71: 3,754,983 | D71: 5,893,255 | E71: -0.362833782 | F71: 3,897,971 | G71: -0.03668267414 | H71: 0.004643885532 | I71: 7.78 | J71: 15.60 | K71: -0.5011092083 | L71: 7.59 | M71: 0.02550137588 | N71: 1.109018133e-05 | O71: 12,783,377 | P71: 22,214,673 | Q71: -0.4245525469 | R71: 0.004808989345 | S71: 26.30 | T71: 53.82 | U71: -0.5112606898 | V71: 1.132728063e-05 | W71: 186,929 | X71: 0.004459011097 | Y71: 302,559 | Z71: -0.3822
B72: 菜籽粕期权 | C72: 4,321,122 | D72: 2,248,954 | E72: 0.9213919004 | F72: 5,882,188 | G72: -0.2653886615 | H72: 0.005344044417 | I72: 12.57 | J72: 8.31 | K72: 0.5132788454 | L72: 22.18 | M72: -0.4333319612 | N72: 1.790995714e-05 | O72: 16,239,162 | P72: 9,595,935 | Q72: 0.6922959566 | R72: 0.006109024011 | S72: 53.04 | T72: 29.86 | U72: 0.7765888619 | V72: 2.284233149e-05 | W72: 201,420 | X72: 0.004804679933 | Y72: 538,064 | Z72: -0.6257
B73: 菜籽油期权 | C73: 1,500,209 | D73: 1,535,582 | E73: -0.02303556567 | F73: 1,488,726 | G73: 0.007713306545 | H73: 0.001855347646 | I73: 9.09 | J73: 11.16 | K73: -0.1854438879 | L73: 11.68 | M73: -0.2217958109 | N73: 1.295620952e-05 | O73: 4,796,902 | P73: 4,508,443 | Q73: 0.06398195563 | R73: 0.001804550598 | S73: 35.04 | T73: 25.80 | U73: 0.358082886 | V73: 1.508900767e-05 | W73: 87,374 | X73: 0.002084222542 | Y73: 169,614 | Z73: -0.4849
B74: 花生期权 | C74: 417,160 | D74: 387,111 | E74: 0.07762373066 | F74: 567,036 | G74: -0.2643147878 | H74: 0.0005159126655 | I74: 1.12 | J74: 2.67 | K74: -0.581746287 | L74: 0.94 | M74: 0.1952021422 | N74: 1.593894003e-06 | O74: 2,509,722 | P74: 2,646,244 | Q74: -0.05159085859 | R74: 0.00094413443 | S74: 5.22 | T74: 7.25 | U74: -0.2790184579 | V74: 2.249709664e-06 | W74: 24,979 | X74: 0.0005958499655 | Y74: 58,334 | Z74: -0.5718
B75: 对二甲苯期权 | C75: 1,146,746 | D75: 175,426 | E75: 5.536921551 | F75: 911,755 | G75: 0.2577348081 | H75: 0.001418210724 | I75: 1.11 | J75: 1.06 | K75: 0.04265368022 | L75: 0.97 | M75: 0.1410643248 | N75: 1.577280505e-06 | O75: 2,974,478 | P75: 1,048,860 | Q75: 1.835915184 | R75: 0.00111897138 | S75: 3.55 | T75: 2.65 | U75: 0.3398757087 | V75: 1.530821914e-06 | W75: 11,067 | X75: 0.0002639926165 | Y75: 4,260 | Z75: 1.5979
B76: 烧碱期权 | C76: 2,731,501 | D76: 424,713 | E76: 5.431404266 | F76: 4,598,356 | G76: -0.4059831383 | H76: 0.003378118616 | I76: 15.82 | J76: 1.81 | K76: 7.746754543 | L76: 26.31 | M76: -0.3987996812 | N76: 2.253613716e-05 | O76: 17,282,625 | P76: 1,118,464 | Q76: 14.45210664 | R76: 0.006501565234 | S76: 139.87 | T76: 6.72 | U76: 19.81562275 | V76: 6.023404381e-05 | W76: 104,558 | X76: 0.002494130297 | Y76: 243,337 | Z76: -0.5703
B77: 苹果期权 | C77: 128,600 | D77: 69,790 | E77: 0.8426708698 | F77: 1,485,279 | G77: -0.9134169405 | H77: 0.0001590429782 | I77: 1.91 | J77: 1.07 | K77: 0.7813960937 | L77: 4.82 | M77: -0.6033794977 | N77: 2.726270778e-06 | O77: 2,196,430 | P77: 770,768 | Q77: 1.849664231 | R77: 0.000826276849 | S77: 9.76 | T77: 4.58 | U77: 1.128889404 | V77: 4.201619381e-06 | W77: 18,371 | X77: 0.0004382224955 | Y77: 3,981 | Z77: 3.6147
B78: 短纤期权 | C78: 781,957 | D78: 125,636 | E78: 5.223988347 | F78: 608,345 | G78: 0.2853841159 | H78: 0.0009670666415 | I78: 1.68 | J78: 0.18 | K78: 8.479932827 | L78: 0.71 | M78: 1.364361605 | N78: 2.389047704e-06 | O78: 2,337,801 | P78: 384,391 | Q78: 5.08183074 | R78: 0.0008794593244 | S78: 3.40 | T78: 0.53 | U78: 5.441260859 | V78: 1.465677193e-06 | W78: 50,639 | X78: 0.001207944529 | Y78: 45,028 | Z78: 0.1246
B79: 尿素期权 | C79: 737,909 | D79: 336,029 | E79: 1.195968205 | F79: 620,793 | G79: 0.1886554778 | H79: 0.0009125913297 | I79: 2.50 | J79: 2.25 | K79: 0.1121041808 | L79: 2.54 | M79: -0.01661847977 | N79: 3.560832909e-06 | O79: 1,879,642 | P79: 1,397,590 | Q79: 0.3449166064 | R79: 0.0007071041048 | S79: 8.69 | T79: 7.02 | U79: 0.2374057097 | V79: 3.743082267e-06 | W79: 58,513 | X79: 0.001395771209 | Y79: 99,675 | Z79: -0.413
B80: 纯碱期权 | C80: 7,852,020 | D80: 5,569,249 | E80: 0.4098884787 | F80: 9,156,198 | G80: -0.1424366314 | H80: 0.009710798178 | I80: 22.13 | J80: 40.93 | K80: -0.4594320546 | L80: 27.11 | M80: -0.1836776368 | N80: 3.152980028e-05 | O80: 27,671,061 | P80: 20,085,040 | Q80: 0.3776950905 | R80: 0.01040959971 | S80: 87.97 | T80: 125.42 | U80: -0.2986469193 | V80: 3.788273072e-05 | W80: 534,134 | X80: 0.01274125167 | Y80: 924,029 | Z80: -0.422
B81: 硅铁期权 | C81: 862,633 | D81: 388,087 | E81: 1.22278252 | F81: 598,309 | G81: 0.4417850977 | H81: 0.001066840757 | I81: 1.58 | J81: 1.59 | K81: -0.006164974259 | L81: 0.97 | M81: 0.6399027268 | N81: 2.256226647e-06 | O81: 2,719,681 | P81: 771,966 | Q81: 2.52305801 | R81: 0.001023119083 | S81: 5.34 | T81: 2.29 | U81: 1.332963312 | V81: 2.300728046e-06 | W81: 73,176 | X81: 0.001745542939 | Y81: 79,755 | Z81: -0.0825
B82: 锰硅期权 | C82: 1,983,953 | D82: 563,105 | E82: 2.523238117 | F82: 2,452,888 | G82: -0.1911766864 | H82: 0.002453606483 | I82: 4.25 | J82: 3.87 | K82: 0.09820393623 | L82: 4.56 | M82: -0.06759244109 | N82: 6.057619692e-06 | O82: 10,234,895 | P82: 819,270 | Q82: 11.49270082 | R82: 0.003850273758 | S82: 29.64 | T82: 4.40 | U82: 5.737331571 | V82: 1.276539204e-05 | W82: 168,194 | X82: 0.004012105732 | Y82: 255,554 | Z82: -0.3418
B83: 玻璃期权 | C83: 10,574,558 | F83: 8,798,892 | G83: 0.2018056364 | H83: 0.01307783202 | I83: 26.38 | L83: 27.62 | M83: -0.04496978129 | N83: 3.759374533e-05 | O83: 25,390,020 | R83: 0.009551492978 | S83: 75.04 | V83: 3.23161966e-05 | W83: 568,228 | X83: 0.01355453117 | Y83: 1,177,542 | Z83: -0.5174
B84: 红枣期权 | C84: 70,998 | F84: 280,019 | G84: -0.7464529193 | H84: 8.780508061e-05 | I84: 0.56 | L84: 0.51 | M84: 0.08837020286 | N84: 7.976003412e-07 | O84: 620,349 | R84: 0.000233369612 | S84: 2.60 | V84: 1.121155076e-06 | W84: 21,516 | X84: 0.0005132434388 | Y84: 7,896 | Z84: 1.7249
B85: 瓶片期权 | C85: 83,842 | F85: 72,271 | G85: 0.1601057132 | H85: 0.0001036895908 | I85: 0.57 | L85: 0.31 | M85: 0.8683177573 | N85: 8.172846067e-07 | O85: 250,522 | R85: 9.424408188e-05 | S85: 1.38 | V85: 5.949108461e-07 | W85: 7,940 | X85: 0.0001894010459 | Y85: 7,667 | Z85: 0.0356
B86: 动力煤期权 | C86: 0 | D86: 0 | F86: 0 | H86: 0 | I86: 0.00 | J86: 0.00 | L86: 0.00 | N86: 0 | O86: 0 | P86: 0 | R86: 0 | S86: 0.00 | T86: 0.00 | V86: 0 | W86: 0 | X86: 0 | Y86: 0 | Z86: 0
B87: 总计 | C87: 262,735,713 | D87: 221,563,003 | E87: 0.1858284526 | F87: 253,366,278 | G87: 0.03697980281 | H87: 0.3249321172 | I87: 75,439.37 | J87: 79,003.46 | K87: -0.04511315205 | L87: 77,479.39 | M87: -0.02632984901 | N87: 0.1074973576 | O87: 895,925,108 | P87: 712,695,649 | Q87: 0.2570935564 | R87: 0.3370388199 | S87: 286,481.50 | T87: 243,292.14 | U87: 0.1775205742 | V87: 0.1233746336 | W87: 12,392,244 | X87: 0.2956050346 | Y87: 17,979,829 | Z87: -0.3108
A88: 大连商品交易所 | B88: 豆一 | C88: 7,188,647 | D88: 2,196,778 | E88: 2.272359337 | F88: 5,207,852 | G88: 0.3803477902 | H88: 0.008890387466 | I88: 2,986.77 | J88: 1,033.39 | K88: 1.890269209 | L88: 2,109.69 | M88: 0.415735167 | N88: 0.004255994179 | O88: 18,592,979 | P88: 8,828,189 | Q88: 1.106092088 | R88: 0.006994508407 | S88: 7,590.14 | T88: 4,158.14 | U88: 0.8253695802 | V88: 0.003268730366 | W88: 301,944 | X88: 0.007202583049 | Y88: 398,723 | Z88: -0.242722
B89: 豆二 | C89: 5,770,134 | D89: 3,510,697 | E89: 0.6435864445 | F89: 5,177,669 | G89: 0.1144269748 | H89: 0.007136075396 | I89: 2,055.02 | J89: 1,341.24 | K89: 0.5321822862 | L89: 1,831.65 | M89: 0.1219484388 | N89: 0.00292829778 | O89: 18,335,318 | P89: 11,910,605 | Q89: 0.5394111382 | R89: 0.006897578699 | S89: 6,480.18 | T89: 4,522.87 | U89: 0.4327595967 | V89: 0.002790720364 | W89: 311,738 | X89: 0.007436209477 | Y89: 337,337 | Z89: -0.075886
B90: 豆粕 | C90: 58,664,213 | D90: 34,378,185 | E90: 0.7064371781 | F90: 61,128,540 | G90: -0.0403138534 | H90: 0.07255156415 | I90: 17,669.09 | J90: 11,430.50 | K90: 0.5457843741 | L90: 17,857.52 | M90: -0.01055178195 | N90: 0.02517758274 | O90: 197,284,971 | P90: 125,148,705 | Q90: 0.5764044143 | R90: 0.07421679917 | S90: 57,791.35 | T90: 40,079.27 | U90: 0.4419262147 | V90: 0.02488812036 | W90: 4,179,278 | X90: 0.0996926479 | Y90: 4,340,032 | Z90: -0.03704
B91: 玉米 | C91: 18,088,625 | D91: 11,015,245 | E91: 0.6421445914 | F91: 15,922,550 | G91: 0.1360381974 | H91: 0.02237067489 | I91: 4,175.38 | J91: 2,657.69 | K91: 0.5710553076 | L91: 3,663.20 | M91: 0.1398186671 | N91: 0.005949708778 | O91: 59,628,020 | P91: 45,086,730 | Q91: 0.3225181777 | R91: 0.02243151499 | S91: 13,648.75 | T91: 10,862.34 | U91: 0.2565201637 | V91: 0.005877900044 | W91: 2,260,029 | X91: 0.05391081315 | Y91: 2,284,634 | Z91: -0.01077
B92: 豆油 | C92: 10,806,416 | D92: 13,339,281 | E92: -0.1898801742 | F92: 12,091,234 | G92: -0.1062602874 | H92: 0.01336457686 | I92: 8,399.35 | J92: 10,204.14 | K92: -0.1768681441 | L92: 9,597.18 | M92: -0.1248108264 | N92: 0.01196865775 | O92: 41,577,832 | P92: 45,909,579 | Q92: -0.09435388201 | R92: 0.01564119959 | S92: 32,584.79 | T92: 34,629.49 | U92: -0.05904513673 | V92: 0.01403279646 | W92: 710,059 | X92: 0.01693777295 | Y92: 841,571 | Z92: -0.15627
B93: 聚乙烯 | C93: 9,893,362 | D93: 7,572,841 | E93: 0.3064267426 | F93: 8,075,644 | G93: 0.2250864451 | H93: 0.01223537914 | I93: 3,604.04 | J93: 3,177.91 | K93: 0.1340907459 | L93: 3,131.70 | M93: 0.1508262236 | N93: 0.005135577299 | O93: 30,532,157 | P93: 24,874,040 | Q93: 0.2274707687 | R93: 0.01148591782 | S93: 11,679.57 | T93: 10,268.75 | U93: 0.1373893734 | V93: 0.005029863492 | W93: 561,843 | X93: 0.01340222315 | Y93: 685,298 | Z93: -0.180148
B94: 棕榈油 | C94: 19,331,901 | D94: 21,040,751 | E94: -0.08121620754 | F94: 24,624,617 | G94: -0.2149359724 | H94: 0.02390826679 | I94: 16,382.60 | J94: 16,316.95 | K94: 0.004023875071 | L94: 22,013.74 | M94: -0.2558009975 | N94: 0.02334439868 | O94: 79,491,130 | P94: 61,866,975 | Q94: 0.2848717753 | R94: 0.02990383505 | S94: 69,590.57 | T94: 47,310.79 | U94: 0.4709238242 | V94: 0.0299695125 | W94: 440,922 | X94: 0.01051776927 | Y94: 648,891 | Z94: -0.320499
B95: 聚氯乙烯 | C95: 20,080,652 | D95: 19,346,418 | E95: 0.03795193508 | F95: 17,420,879 | G95: 0.1526773132 | H95: 0.0248342667 | I95: 5,012.36 | J95: 5,701.42 | K95: -0.120857698 | L95: 4,448.80 | M95: 0.1266768049 | N95: 0.00714235951 | O95: 72,147,913 | P95: 65,191,086 | Q95: 0.1067143904 | R95: 0.02714138407 | S95: 18,496.90 | T95: 19,205.62 | U95: -0.03690157579 | V95: 0.007965780333 | W95: 1,056,675 | X95: 0.0252059635 | Y95: 1,267,819 | Z95: -0.166541
B96: 焦炭 | C96: 598,820 | D96: 603,543 | E96: -0.007825457341 | F96: 502,537 | G96: 0.1915938528 | H96: 0.0007405763313 | I96: 943.88 | J96: 1,317.58 | K96: -0.2836292332 | L96: 817.49 | M96: 0.1545981186 | N96: 0.001344977461 | O96: 1,871,178 | P96: 1,965,269 | Q96: -0.04787690642 | R96: 0.0007039200256 | S96: 3,095.77 | T96: 4,489.88 | U96: -0.3105006253 | V96: 0.001333208032 | W96: 40,666 | X96: 0.0009700482283 | Y96: 52,346 | Z96: -0.223131
B97: 焦煤 | C97: 8,855,737 | D97: 3,618,150 | E97: 1.447587027 | F97: 6,584,739 | G97: 0.3448880814 | H97: 0.0109521212 | I97: 5,078.25 | J97: 3,625.03 | K97: 0.4008838958 | L97: 4,205.87 | M97: 0.2074192643 | N97: 0.00723625351 | O97: 23,792,884 | P97: 10,905,726 | Q97: 1.181687308 | R97: 0.008950665043 | S97: 14,911.10 | T97: 11,189.42 | U97: 0.3326077514 | V97: 0.006421538366 | W97: 358,636 | X97: 0.008554916058 | Y97: 556,391 | Z97: -0.355425
B98: 铁矿石 | C98: 13,571,489 | D98: 13,122,951 | E98: 0.03417965974 | F98: 10,469,453 | G98: 0.2962939898 | H98: 0.01678421485 | I98: 9,807.10 | J98: 10,876.63 | K98: -0.09833258219 | L98: 8,019.97 | M98: 0.2228349328 | N98: 0.01397463148 | O98: 39,028,815 | P98: 43,862,667 | Q98: -0.1102042427 | R98: 0.01468228274 | S98: 29,749.79 | T98: 37,816.19 | U98: -0.2133054853 | V98: 0.01281189101 | W98: 974,787 | X98: 0.0232526042 | Y98: 948,819 | Z98: 0.027369
B99: 鸡蛋 | C99: 6,144,487 | D99: 8,244,264 | E99: -0.2546955071 | F99: 4,553,667 | G99: 0.3493492168 | H99: 0.007599047527 | I99: 1,952.06 | J99: 2,909.19 | K99: -0.3290021866 | L99: 1,453.53 | M99: 0.3429754236 | N99: 0.002781590732 | O99: 16,268,899 | P99: 19,847,259 | Q99: -0.1802949213 | R99: 0.006120210798 | S99: 5,226.32 | T99: 6,924.98 | U99: -0.2452947734 | V99: 0.002250738098 | W99: 429,614 | X99: 0.01024802783 | Y99: 598,385 | Z99: -0.282044
B100: 纤维板 | C100: 10,098 | D100: 195,296 | E100: -0.9482938719 | F100: 3,609 | G100: 1.798004988 | H100: 1.248846029e-05 | I100: 1.29 | J100: 25.09 | K100: -0.9487714598 | L100: 0.48 | M100: 1.698010649 | N100: 1.831869278e-06 | O100: 25,882 | P100: 2,107,942 | Q100: -0.9877216736 | R100: 9.736571348e-06 | S100: 3.37 | T100: 280.50 | U100: -0.9880014798 | V100: 1.449414807e-06 | W100: 158 | X100: 3.768937689e-06 | Y100: 281 | Z100: -0.437722
B101: 聚丙烯 | C101: 9,049,338 | D101: 8,026,560 | E101: 0.1274242017 | F101: 6,976,749 | G101: 0.297070885 | H101: 0.01119155261 | I101: 3,247.01 | J101: 3,048.02 | K101: 0.06528538885 | L101: 2,545.82 | M101: 0.2754259574 | N101: 0.004626823295 | O101: 25,884,714 | P101: 27,760,294 | Q101: -0.06756340549 | R101: 0.00973759233 | S101: 9,437.28 | T101: 10,394.20 | U101: -0.09206350323 | V101: 0.004064208777 | W101: 484,099 | X101: 0.01154771498 | Y101: 563,434 | Z101: -0.140806
B102: 玉米淀粉 | C102: 3,491,143 | D102: 2,810,618 | E102: 0.2421264647 | F102: 2,957,504 | G102: 0.180435597 | H102: 0.004317587714 | I102: 933.18 | J102: 793.45 | K102: 0.1761096781 | L102: 792.41 | M102: 0.1776575344 | N102: 0.001329742033 | O102: 11,404,590 | P102: 12,077,860 | Q102: -0.05574414673 | R102: 0.004290302304 | S102: 2,998.64 | T102: 3,443.36 | U102: -0.1291534161 | V102: 0.001291377263 | W102: 351,403 | X102: 0.008382379816 | Y102: 314,249 | Z102: 0.118231
B103: 乙二醇 | C103: 6,726,370 | D103: 6,397,198 | E103: 0.05145565293 | F103: 3,630,291 | G103: 0.8528459564 | H103: 0.008318677428 | I103: 2,841.91 | J103: 2,863.74 | K103: -0.007621692109 | L103: 1,631.33 | M103: 0.7420858919 | N103: 0.004049587986 | O103: 16,053,812 | P103: 38,416,940 | Q103: -0.5821163268 | R103: 0.006039297038 | S103: 7,165.19 | T103: 17,663.32 | U103: -0.5943462622 | V103: 0.00308572382 | W103: 290,589 | X103: 0.00693172047 | Y103: 442,583 | Z103: -0.343425
B104: 粳米 | C104: 56,291 | D104: 28,214 | E104: 0.9951442546 | F104: 90,253 | G104: -0.3762977408 | H104: 6.961654966e-05 | I104: 19.95 | J104: 10.09 | K104: 0.9772003359 | L104: 31.69 | M104: -0.3704393963 | N104: 2.843045895e-05 | O104: 288,126 | P104: 195,770 | Q104: 0.4717576748 | R104: 0.0001083903623 | S104: 101.25 | T104: 69.12 | U104: 0.4648594203 | V104: 4.360447368e-05 | W104: 12,719 | X104: 0.000303399484 | Y104: 14,559 | Z104: -0.126382
B105: 苯乙烯 | C105: 11,369,007 | D105: 8,959,414 | E105: 0.2689453797 | F105: 8,295,249 | G105: 0.3705443923 | H105: 0.01406034784 | I105: 4,146.48 | J105: 4,249.83 | K105: -0.02431803826 | L105: 3,306.31 | M105: 0.2541105757 | N105: 0.005908532156 | O105: 28,851,287 | P105: 41,237,588 | Q105: -0.3003643424 | R105: 0.01085358992 | S105: 11,345.83 | T105: 18,699.97 | U105: -0.3932702996 | V105: 0.004886135479 | W105: 536,633 | X105: 0.01280086291 | Y105: 513,060 | Z105: 0.045946
B106: 液化石油气 | C106: 2,482,642 | D106: 2,710,099 | E106: -0.08392940627 | F106: 2,055,566 | G106: 0.207765647 | H106: 0.003070348192 | I106: 2,201.82 | J106: 2,531.07 | K106: -0.1300862675 | L106: 1,873.06 | M106: 0.1755187863 | N106: 0.003137479735 | O106: 8,088,154 | P106: 14,572,765 | Q106: -0.4449815117 | R106: 0.003042689456 | S106: 7,260.44 | T106: 13,143.96 | U106: -0.4476213643 | V106: 0.003126743334 | W106: 120,876 | X106: 0.002883380457 | Y106: 159,388 | Z106: -0.241624
B107: 生猪 | C107: 1,306,252 | D107: 1,607,317 | E107: -0.1873090374 | F107: 1,342,805 | G107: -0.02722137615 | H107: 0.001615475959 | I107: 2,914.89 | J107: 4,444.70 | K107: -0.3441879433 | L107: 2,896.18 | M107: 0.00645921913 | N107: 0.004153571576 | O107: 4,481,762 | P107: 6,031,019 | Q107: -0.2568814656 | R107: 0.001685997816 | S107: 9,654.16 | T107: 14,953.08 | U107: -0.3543695976 | V107: 0.004157611379 | W107: 144,518 | X107: 0.003447337576 | Y107: 156,432 | Z107: -0.076161
B108: 原木 | C108: 397,533 | F108: 523,375 | G108: -0.2404432768 | H108: 0.0004916394421 | I108: 291.30 | L108: 398.41 | M108: -0.2688462894 | N108: 0.0004150914952 | O108: 2,061,929 | R108: 0.0007756788047 | S108: 1,582.36 | V108: 0.0006814511774 | W108: 34,889 | X108: 0.0008322434623 | Y108: 41,544 | Z108: -0.160192
B109: 胶合板 | C109: 49 | D109: 0 | F109: 60 | G109: -0.1833333333 | H109: 6.059957956e-08 | I109: 0.03 | J109: 0.00 | L109: 0.05 | M109: -0.2451018724 | N109: 4.952272802e-08 | O109: 231 | P109: 0 | R109: 8.690008428e-08 | S109: 0.18 | T109: 0.00 | V109: 7.567595328e-08 | W109: 14 | X109: 3.339565041e-07 | Y109: 0
B110: 豆粕期权 | C110: 11,289,720 | D110: 3,442,207 | E110: 2.279791134 | F110: 8,601,206 | G110: 0.3125740739 | H110: 0.01396229154 | I110: 33.74 | J110: 14.72 | K110: 1.292147967 | L110: 29.77 | M110: 0.1335828689 | N110: 4.80844044e-05 | O110: 34,059,471 | P110: 18,961,384 | Q110: 0.7962544823 | R110: 0.01281286104 | S110: 112.33 | T110: 71.50 | U110: 0.5709038709 | V110: 4.837418488e-05 | W110: 694,414 | X110: 0.01656457656 | Y110: 1,378,251 | Z110: -0.496163
B111: 玉米期权 | C111: 2,479,146 | D111: 1,065,278 | E111: 1.327229136 | F111: 1,751,558 | G111: 0.4153947514 | H111: 0.003066024597 | I111: 3.84 | J111: 1.66 | K111: 1.313575812 | L111: 3.20 | M111: 0.197586839 | N111: 5.469210627e-06 | O111: 7,135,695 | P111: 5,321,947 | Q111: 0.3408053481 | R111: 0.002684383103 | S111: 12.71 | T111: 8.51 | U111: 0.4937120597 | V111: 5.473151792e-06 | W111: 266,914 | X111: 0.006366976167 | Y111: 499,219 | Z111: -0.465337
B112: 铁矿石期权 | C112: 6,537,863 | D112: 6,629,164 | E112: -0.01377262653 | F112: 6,373,796 | G112: 0.02574086149 | H112: 0.008085545899 | I112: 47.75 | J112: 73.29 | K112: -0.3484465875 | L112: 45.79 | M112: 0.04290051524 | N112: 6.804595676e-05 | O112: 21,090,267 | P112: 27,721,060 | Q112: -0.2391969499 | R112: 0.007933965281 | S112: 159.00 | T112: 327.62 | U112: -0.5146826866 | V112: 6.847475905e-05 | W112: 402,442 | X112: 0.009599865959 | Y112: 598,303 | Z112: -0.327361
B113: 液化石油气期权 | C113: 992,489 | D113: 643,360 | E113: 0.5426650709 | F113: 893,852 | G113: 0.1103504831 | H113: 0.001227437064 | I113: 4.56 | J113: 3.01 | K113: 0.5128147262 | L113: 3.12 | M113: 0.4611426384 | N113: 6.495373021e-06 | O113: 3,729,001 | P113: 3,887,616 | Q113: -0.04080006873 | R113: 0.001402816022 | S113: 14.91 | T113: 16.70 | U113: -0.1067605052 | V113: 6.42222367e-06 | W113: 22,081 | X113: 0.0005267209691 | Y113: 26,899 | Z113: -0.179114
B114: 聚乙烯期权 | C114: 420,964 | D114: 175,340 | E114: 1.400844074 | F114: 453,130 | G114: -0.07098625119 | H114: 0.0005206171716 | I114: 0.91 | J114: 0.49 | K114: 0.8486292355 | L114: 0.63 | M114: 0.4472349446 | N114: 1.290905363e-06 | O114: 1,432,727 | P114: 668,287 | Q114: 1.1438798 | R114: 0.0005389787751 | S114: 2.63 | T114: 1.74 | U114: 0.5087314997 | V114: 1.133691438e-06 | W114: 33,555 | X114: 0.0008004221783 | Y114: 62,714 | Z114: -0.464952
B115: 聚丙烯期权 | C115: 756,568 | D115: 146,411 | E115: 4.167425945 | F115: 571,384 | G115: 0.3240972796 | H115: 0.0009356674022 | I115: 1.05 | J115: 0.29 | K115: 2.594071629 | L115: 0.59 | M115: 0.7628612631 | N115: 1.489321164e-06 | O115: 1,845,322 | P115: 781,648 | Q115: 1.360809469 | R115: 0.0006941932352 | S115: 2.38 | T115: 1.74 | U115: 0.3659535631 | V115: 1.023535108e-06 | W115: 51,461 | X115: 0.001227552547 | Y115: 72,165 | Z115: -0.286898
B116: 聚氯乙烯期权 | C116: 2,057,561 | D116: 908,081 | E116: 1.265834215 | F116: 2,154,737 | G116: -0.0450987754 | H116: 0.002544639419 | I116: 2.78 | J116: 2.01 | K116: 0.3812851129 | L116: 3.02 | M116: -0.07984293758 | N116: 3.954344376e-06 | O116: 8,481,635 | P116: 3,867,061 | Q116: 1.193302614 | R116: 0.003190713404 | S116: 12.54 | T116: 7.81 | U116: 0.6053857361 | V116: 5.400501189e-06 | W116: 99,579 | X116: 0.002375361052 | Y116: 277,584 | Z116: -0.641265
B117: 棕榈油期权 | C117: 5,251,062 | D117: 3,522,192 | E117: 0.490850584 | F117: 7,078,284 | G117: -0.2581447707 | H117: 0.006494125499 | I117: 30.80 | J117: 19.20 | K117: 0.6043952873 | L117: 39.05 | M117: -0.2111874689 | N117: 4.388957114e-05 | O117: 22,159,654 | P117: 10,637,910 | Q117: 1.083083425 | R117: 0.008336258875 | S117: 125.79 | T117: 60.21 | U117: 1.089172237 | V117: 5.417058918e-05 | W117: 140,613 | X117: 0.003354187565 | Y117: 340,913 | Z117: -0.58754
B118: 黄大豆1号期权 | C118: 1,855,619 | D118: 279,070 | E118: 5.649295876 | F118: 928,812 | G118: 0.9978413285 | H118: 0.002294892474 | I118: 5.78 | J118: 0.70 | K118: 7.25603534 | L118: 3.01 | M118: 0.9191730029 | N118: 8.231720745e-06 | O118: 3,951,689 | P118: 1,537,256 | Q118: 1.570612182 | R118: 0.001486589208 | S118: 12.31 | T118: 3.31 | U118: 2.714478735 | V118: 5.301617248e-06 | W118: 73,308 | X118: 0.001748691672 | Y118: 115,655 | Z118: -0.366149
B119: 黄大豆2号期权 | C119: 1,164,272 | D119: 446,552 | E119: 1.607248428 | F119: 1,210,378 | G119: -0.03809223234 | H119: 0.001439885586 | I119: 2.89 | J119: 1.15 | K119: 1.501371989 | L119: 3.36 | M119: -0.1407620218 | N119: 4.115120111e-06 | O119: 4,154,280 | P119: 2,252,887 | Q119: 0.8439806346 | R119: 0.001562802087 | S119: 10.95 | T119: 5.93 | U119: 0.8482957722 | V119: 4.716913782e-06 | W119: 65,859 | X119: 0.001571002957 | Y119: 60,727 | Z119: 0.084509
B120: 豆油期权 | C120: 1,359,533 | D120: 659,552 | E120: 1.061297669 | F120: 1,000,634 | G120: 0.3586716022 | H120: 0.001681369963 | I120: 8.13 | J120: 4.94 | K120: 0.6449303165 | L120: 6.31 | M120: 0.2872323933 | N120: 1.158290497e-05 | O120: 4,355,201 | P120: 3,337,767 | Q120: 0.3048247526 | R120: 0.001638386727 | S120: 29.47 | T120: 21.17 | U120: 0.39214142 | V120: 1.269353944e-05 | W120: 128,167 | X120: 0.003057300233 | Y120: 130,233 | Z120: -0.015864
B121: 苯乙烯期权 | C121: 3,231,392 | D121: 1,720,137 | E121: 0.8785666491 | F121: 3,554,539 | G121: -0.0909110858 | H121: 0.003996346869 | I121: 9.43 | J121: 3.54 | K121: 1.666756406 | L121: 6.50 | M121: 0.4502899154 | N121: 1.343747656e-05 | O121: 10,770,943 | P121: 7,967,537 | Q121: 0.3518535276 | R121: 0.004051930106 | S121: 22.81 | T121: 16.74 | U121: 0.3626904287 | V121: 9.823772996e-06 | W121: 101,991 | X121: 0.002432896987 | Y121: 116,527 | Z121: -0.124744
B122: 乙二醇期权 | C122: 1,033,871 | D122: 377,393 | E122: 1.739507622 | F122: 966,276 | G122: 0.06995413319 | H122: 0.001278615264 | I122: 3.52 | J122: 1.00 | K122: 2.516080599 | L122: 3.20 | M122: 0.1002494162 | N122: 5.015506403e-06 | O122: 3,044,138 | P122: 2,653,036 | Q122: 0.1474167708 | R122: 0.001145176834 | S122: 10.39 | T122: 11.73 | U122: -0.1140207984 | V122: 4.476532609e-06 | W122: 43,228 | X122: 0.001031162269 | Y122: 122,974 | Z122: -0.648479
B123: 鸡蛋期权 | C123: 1,290,404 | F123: 794,219 | G123: 0.6247458195 | H123: 0.001595876324 | I123: 3.11 | L123: 2.03 | M123: 0.5275894418 | N123: 4.429505504e-06 | O123: 3,077,365 | R123: 0.001157676528 | S123: 7.43 | V123: 3.20106229e-06 | W123: 79,831 | X123: 0.001904291549 | Y123: 108,969 | Z123: -0.267397
B124: 玉米淀粉期权 | C124: 422,504 | F124: 343,904 | G124: 0.2285521541 | H124: 0.0005225217299 | I124: 1.00 | L124: 0.87 | M124: 0.1526328014 | N124: 1.428404532e-06 | O124: 1,325,817 | R124: 0.0004987602123 | S124: 3.17 | V124: 1.365181743e-06 | W124: 47,075 | X124: 0.001122928745 | Y124: 44,430 | Z124: 0.059532
B125: 生猪期权 | C125: 231,814 | F125: 274,895 | G125: -0.1567180196 | H125: 0.0002866904273 | I125: 3.37 | L125: 4.53 | M125: -0.2562496194 | N125: 4.803170261e-06 | O125: 778,291 | R125: 0.0002927859459 | S125: 12.30 | V125: 5.297880887e-06 | W125: 29,443 | X125: 0.0007023343822 | Y125: 44,536 | Z125: -0.338894
B126: 原木期权 | C126: 138,905 | F126: 123,411 | G126: 0.1255479657 | H126: 0.0001717874408 | I126: 1.60 | L126: 2.30 | M126: -0.305892513 | N126: 2.275667246e-06 | O126: 444,386 | R126: 0.0001671739431 | S126: 7.84 | V126: 3.374824611e-06 | W126: 34,594 | X126: 0.0008252065217 | Y126: 29,227 | Z126: 0.183632
B127: 总计 | C127: 254,396,893 | D127: 188,738,557 | E127: 0.347879824 | F127: 234,709,857 | G127: 0.08387818156 | H127: 0.3146192808 | I127: 94,828.00 | J127: 88,683.66 | K127: 0.06928379492 | L127: 92,783.38 | M127: 0.02203657573 | N127: 0.1351252086 | O127: 827,528,465 | P127: 697,392,404 | Q127: 0.1866037833 | R127: 0.3113086292 | S127: 320,952.89 | T127: 310,659.97 | U127: 0.03313244199 | V127: 0.1382199042 | W127: 15,916,644 | X127: 0.3796761991 | Y127: 19,195,102 | Z127: -0.1708
A128: 中国金融期货交易所 | B128: 沪深300股指期货 | C128: 2,441,236 | D128: 1,903,721 | E128: 0.282349672 | F128: 2,603,507 | G128: -0.06232785239 | H128: 0.00301914031 | I128: 26,997.43 | J128: 20,210.79 | K128: 0.3357929708 | L128: 30,672.93 | M128: -0.1198286554 | N128: 0.03847000275 | O128: 9,808,982 | P128: 9,006,868 | Q128: 0.08905581829 | R128: 0.003690049188 | S128: 112,727.23 | T128: 92,083.77 | U128: 0.224181385 | V128: 0.04854652324 | W128: 247,043 | X128: 0.005892972618 | Y128: 295,235 | Z128: -0.1632
B129: 5年期国债期货 | C129: 1,250,324 | D129: 1,306,731 | E129: -0.04316649716 | F129: 1,296,934 | G129: -0.03593860597 | H129: 0.001546308341 | I129: 13,279.85 | J129: 13,498.14 | K129: -0.01617161224 | L129: 13,691.32 | M129: -0.03005331997 | N129: 0.01892313419 | O129: 5,331,830 | P129: 4,748,383 | Q129: 0.1228727758 | R129: 0.002005785612 | S129: 56,573.36 | T129: 48,876.82 | U129: 0.1574680922 | V129: 0.0243635869 | W129: 208,887 | X129: 0.00498279802 | Y129: 167,252 | Z129: 0.2489
B130: 10年期国债期货 | C130: 1,548,975 | D130: 1,531,230 | E130: 0.01158872279 | F130: 1,779,789 | G130: -0.1296861594 | H130: 0.001915657832 | I130: 16,862.41 | J130: 15,968.59 | K130: 0.05597415152 | L130: 19,170.68 | M130: -0.1204059175 | N130: 0.02402810423 | O130: 6,788,962 | P130: 6,216,720 | Q130: 0.09204886178 | R130: 0.002553945325 | S130: 73,695.36 | T130: 64,476.35 | U130: 0.1429827452 | V130: 0.03173725883 | W130: 238,440 | X130: 0.005687756346 | Y130: 193,925 | Z130: 0.2295
B131: 上证50股指期货 | C131: 1,284,320 | D131: 1,125,997 | E131: 0.1406069466 | F131: 1,289,233 | G131: -0.003810792929 | H131: 0.001588352082 | I131: 9,968.35 | J131: 8,184.23 | K131: 0.2179948515 | L131: 10,386.66 | M131: -0.04027434566 | N131: 0.01420439832 | O131: 4,906,500 | P131: 5,370,193 | Q131: -0.08634568627 | R131: 0.001845780362 | S131: 38,651.77 | T131: 37,787.82 | U131: 0.02286312253 | V131: 0.01664556956 | W131: 80,984 | X131: 0.001931795252 | Y131: 109,962 | Z131: -0.2635
B132: 中证500股指期货 | C132: 2,177,060 | D132: 1,856,501 | E132: 0.1726683692 | F132: 2,291,436 | G132: -0.0499145514 | H132: 0.002692426953 | I132: 23,748.98 | J132: 19,636.65 | K132: 0.2094215469 | L132: 27,087.01 | M132: -0.1232335395 | N132: 0.03384112579 | O132: 8,451,899 | P132: 9,036,163 | Q132: -0.06465841752 | R132: 0.003179526993 | S132: 96,006.04 | T132: 92,314.03 | U132: 0.03999401976 | V132: 0.04134546151 | W132: 197,818 | X132: 0.004718757695 | Y132: 227,724 | Z132: -0.1313
B133: 2年期国债期货 | C133: 890,971 | D133: 673,313 | E133: 0.3232642174 | F133: 846,865 | G133: 0.05208150059 | H133: 0.001101887102 | I133: 18,267.41 | J133: 13,688.84 | K133: 0.3344752062 | L133: 17,348.53 | M133: 0.05296625089 | N133: 0.02603015613 | O133: 3,370,604 | P133: 2,737,340 | Q133: 0.2313428365 | R133: 0.001267990354 | S133: 69,160.56 | T133: 55,540.26 | U133: 0.245232963 | V133: 0.02978432617 | W133: 148,234 | X133: 0.003535979174 | Y133: 113,274 | Z133: 0.3086
B134: 中证1000股指期货 | C134: 5,610,106 | D134: 3,302,455 | E134: 0.6987683405 | F134: 5,429,847 | G134: 0.03319780465 | H134: 0.00693816459 | I134: 63,907.08 | J134: 34,755.51 | K134: 0.8387611973 | L134: 68,407.52 | M134: -0.06578867105 | N134: 0.09106442801 | O134: 20,930,976 | P134: 14,031,413 | Q134: 0.4917226084 | R134: 0.007874041465 | S134: 249,583.64 | T134: 144,707.23 | U134: 0.7247489292 | V134: 0.1074843908 | W134: 302,180 | X134: 0.007208212601 | Y134: 365,602 | Z134: -0.1735
B135: 30年期国债期货 | C135: 2,376,905 | D135: 965,552 | E135: 1.461705843 | F135: 2,740,893 | G135: -0.1327990549 | H135: 0.002939580483 | I135: 28,421.27 | J135: 10,291.20 | K135: 1.761705509 | L135: 31,803.75 | M135: -0.1063545891 | N135: 0.04049890698 | O135: 9,230,270 | P135: 3,269,168 | Q135: 1.823430916 | R135: 0.003472343034 | S135: 109,439.26 | T135: 34,525.28 | U135: 2.169829733 | V135: 0.04713054259 | W135: 132,997 | X135: 0.003172515227 | Y135: 117,031 | Z135: 0.1364
B136: 沪深300股指期权 | C136: 1,825,205 | D136: 1,855,384 | E136: -0.01626563558 | F136: 2,084,282 | G136: -0.1243003586 | H136: 0.002257278686 | I136: 104.85 | J136: 78.38 | K136: 0.33770878 | L136: 92.39 | M136: 0.1348284961 | N136: 0.0001494078974 | O136: 7,678,455 | P136: 8,472,002 | Q136: -0.09366699866 | R136: 0.002888564444 | S136: 384.78 | T136: 400.07 | U136: -0.03821984549 | V136: 0.0001657078958 | W136: 178,206 | X136: 0.004250932341 | Y136: 193,760 | Z136: -0.0803
B137: 中证1000股指期权 | C137: 4,951,307 | D137: 3,567,286 | E137: 0.387975901 | F137: 5,036,646 | G137: -0.01694361684 | H137: 0.006123410663 | I137: 486.99 | J137: 295.75 | K137: 0.6466258509 | L137: 411.86 | M137: 0.1824086298 | N137: 0.0006939321492 | O137: 18,459,481 | P137: 13,899,252 | Q137: 0.3280916844 | R137: 0.006944287683 | S137: 1,647.58 | T137: 1,296.71 | U137: 0.2705861237 | V137: 0.0007095379782 | W137: 239,669 | X137: 0.005717072956 | Y137: 217,664 | Z137: 0.1011
B138: 上证50股指期权 | C138: 727,863 | D138: 690,449 | E138: 0.05418792699 | F138: 769,630 | G138: -0.05426893442 | H138: 0.0009001671792 | I138: 25.46 | J138: 18.04 | K138: 0.4114673252 | L138: 23.25 | M138: 0.09470661159 | N138: 3.627390207e-05 | O138: 2,793,408 | P138: 3,711,023 | Q138: -0.2472673977 | R138: 0.001050854505 | S138: 89.91 | T138: 113.66 | U138: -0.2089386219 | V138: 3.872146281e-05 | W138: 63,310 | X138: 0.00151019902 | Y138: 67,055 | Z138: -0.0558
B139: 总计 | C139: 25,084,272 | D139: 18,778,619 | E139: 0.335788963 | F139: 26,169,062 | G139: -0.041453148 | H139: 0.03102237422 | I139: 202,070.09 | J139: 136,626.10 | K139: 0.479000614 | L139: 219,095.91 | M139: -0.07770941425 | N139: 0.2879398703 | O139: 97,751,367 | P139: 80,498,525 | Q139: 0.2143249457 | R139: 0.03677316896 | S139: 807,959.48 | T139: 572,121.99 | U139: 0.4122153914 | V139: 0.3479516269 | W139: 2,037,768 | X139: 0.04860899125 | Y139: 2,068,484 | Z139: -0.0148
A140: 广州期货交易所 | B140: 工业硅期货 | C140: 7,349,856 | D140: 6,916,298 | E140: 0.0626864256 | F140: 4,998,967 | G140: 0.4702749588 | H140: 0.009089758846 | I140: 3,362.33 | J140: 4,146.67 | K140: -0.1891512378 | L140: 2,494.59 | M140: 0.3478482499 | N140: 0.004791147551 | O140: 24,122,353 | P140: 16,480,087 | Q140: 0.4637272849 | R140: 0.009074608263 | S140: 12,153.58 | T140: 10,440.08 | U140: 0.1641276048 | V140: 0.005233997605 | W140: 391,950 | X140: 0.009349589414 | Y140: 377,995 | Z140: 0.0369
B141: 碳酸锂期货 | C141: 3,415,562 | D141: 3,709,132 | E141: -0.07914789768 | F141: 2,880,839 | G141: 0.1856136355 | H141: 0.004224114718 | I141: 2,386.25 | J141: 4,140.97 | K141: -0.4237457236 | L141: 2,163.17 | M141: 0.1031251124 | N141: 0.003400287075 | O141: 13,446,451 | P141: 17,604,000 | Q141: -0.2361706998 | R141: 0.005058431711 | S141: 10,134.10 | T141: 19,378.42 | U141: -0.4770420082 | V141: 0.004364297607 | W141: 388,360 | X141: 0.009263953424 | Y141: 362,587 | Z141: 0.0711
B142: 多晶硅期货 | C142: 1,836,178 | F142: 297,436 | G142: 5.17335494 | H142: 0.002270849282 | I142: 2,131.01 | L142: 389.36 | M142: 4.47317134 | N142: 0.003036585431 | O142: 3,062,728 | R142: 0.001152170222 | S142: 3,738.22 | V142: 0.001609884455 | W142: 112,407 | X142: 0.002681360626 | Y142: 42,393 | Z142: 1.6515
B143: 工业硅期权 | C143: 2,229,413 | D143: 1,415,063 | E143: 0.5754867451 | F143: 1,899,289 | G143: 0.1738145169 | H143: 0.002757173275 | I143: 8.32 | J143: 5.78 | K143: 0.4392957789 | L143: 6.12 | M143: 0.3588277455 | N143: 1.18568004e-05 | O143: 7,858,282 | P143: 3,101,403 | Q143: 1.533782936 | R143: 0.002956213715 | S143: 29.50 | T143: 12.90 | U143: 1.2868383 | V143: 1.270421968e-05 | W143: 185,861 | X143: 0.004433534987 | Y143: 192,764 | Z143: -0.0358
B144: 碳酸锂期权 | C144: 1,362,310 | D144: 929,973 | E144: 0.4648919915 | F144: 1,696,609 | G144: -0.1970395065 | H144: 0.001684804352 | I144: 7.10 | J144: 13.18 | K144: -0.4615063795 | L144: 7.00 | M144: 0.01401203142 | N144: 1.011346756e-05 | O144: 5,621,304 | P144: 4,336,652 | Q144: 0.2962312863 | R144: 0.00211468308 | S144: 31.56 | T144: 62.17 | U144: -0.4924016716 | V144: 1.358951847e-05 | W144: 165,615 | X144: 0.003950586174 | Y144: 261,001 | Z144: -0.3655
B145: 多晶硅期权 | C145: 733,608 | F145: 89,707 | G145: 7.177823358 | H145: 0.0009072721707 | I145: 10.95 | L145: 1.37 | M145: 7.014165415 | N145: 1.56075279e-05 | O145: 966,583 | R145: 0.0003636196717 | S145: 17.58 | V145: 7.568900642e-06 | W145: 87,516 | X145: 0.002087609815 | Y145: 32,125 | Z145: 1.7242
B146: 总计 | C146: 16,926,927 | D146: 12,970,466 | E146: 0.305036149 | F146: 11,862,847 | G146: 0.4268857214 | H146: 0.02093397264 | I146: 7,905.96 | J146: 8,306.60 | K146: -0.04823199615 | L146: 5,061.61 | M146: 0.5619467217 | N146: 0.01126559785 | O146: 55,077,701 | P146: 41,522,142 | Q146: 0.3264657926 | R146: 0.02071972666 | S146: 26,104.53 | T146: 29,893.56 | U146: -0.126750533 | V146: 0.01124204231 | W146: 1,331,709 | X146: 0.03176663444 | Y146: 1,268,865 | Z146: 0.0495
A147: 全国期货市场交易总额 | C147: =SUM(C34,C41,C87,C127,C139,C146) -> 808,586,468 | D147: =SUM(D34,D41,D87,D127,D139,D146) -> 665,575,084 | E147: =IFERROR((C147-D147)/ABS(D147),"-") -> 0.2148688967 | F147: =SUM(F34,F41,F87,F127,F139,F146) -> 734,375,461 | G147: =IFERROR((C147-F147)/ABS(F147),"-") -> 0.1010532227 | H147: =IFERROR(C147/C147,"-") -> 1 | I147: =SUM(I34,I41,I87,I127,I139,I146) -> 701,778.79 | J147: =SUM(J34,J41,J87,J127,J139,J146) -> 567,360.05 | K147: =IFERROR((I147-J147)/ABS(J147),"-") -> 0.236919636 | L147: =SUM(L34,L41,L87,L127,L139,L146) -> 615,936.94 | M147: =IFERROR((I147-L147)/ABS(L147),"-") -> 0.1393679229 | N147: =IFERROR(I147/I147,"-") -> 1 | O147: =SUM(O34,O41,O87,O127,O139,O146) -> 2,658,225,270 | P147: =SUM(P34,P41,P87,P127,P139,P146) -> 2,175,564,282 | Q147: =IFERROR((O147-P147)/ABS(P147),"-") -> 0.2218555397 | R147: =IFERROR(O147/O147,"-") -> 1 | S147: =SUM(S34,S41,S87,S127,S139,S146) -> 2,322,045.41 | T147: =SUM(T34,T41,T87,T127,T139,T146) -> 1,808,998.77 | U147: =IFERROR((S147-T147)/ABS(T147),"-") -> 0.2836080669 | V147: =IFERROR(S147/S147,"-") -> 1 | W147: =SUM(W34,W41,W87,W127,W139,W146) -> 41,921,627 | X147: =IFERROR(W147/W147,"-") -> 1 | Y147: =SUM(Y34,Y41,Y87,Y127,Y139,Y146) -> 52,574,034 | Z147: =IFERROR((W147-Y147)/ABS(Y147),"-") -> -0.2026172654
A148: 注：1.自本月起，本表持仓数据根据上海期货交易所、郑州商品交易所、大连商品交易所、中国金融期货交易所和广州期货交易所提供数据计算，其余数据根据证监会官网发布的市场数据计算。

Sheet 5月
M2: 2025年 | N2: 5月 | O2: 全国期货市场成交情况统计
A3: 交易所名称 | B3: 品种名称 | C3: 本月成交量（手） | D3: 去年同期成交量（手） | E3: 同比增减（％） | F3: 上月成交量（手） | G3: 环比增减（％） | H3: 本月成交量占全国份额（％） | I3: 本月成交额 （亿元） | J3: 去年同期成交额（亿元） | K3: 同比增减（％） | L3: 上月成交额 （亿元） | M3: 环比增减（％） | N3: 本月交易额占全国份额（％） | O3: 今年累计成交总量（手） | P3: 去年同期成交总量（手） | Q3: 同比增减（％） | R3: 今年累计成交总量占全国份额(%) | S3: 今年累计成交总额（亿元） | T3: 去年同期成交总额（亿元） | U3: 同比增减（％） | V3: 今年累计成交总额占全国份额(%) | W3: 本月月末持仓量(手） | X3: 本月月末持仓量占全国份额（%） | Y3: 上月月末持仓量（手） | Z3: 环比增减（％）
A4: 上海期货交易所 | B4: 铜 | C4: 3,460,589 | D4: 6,774,925 | E4: -0.4892063012 | F4: 5,690,832 | G4: -0.3919010436 | H4: 0.005099532737 | I4: 13,452.10 | J4: 28,310.34 | K4: -0.5248345257 | L4: 21,581.22 | M4: -0.3766758003 | N4: 0.02457907294 | O4: 19,421,509 | P4: 21,562,928 | Q4: -0.09931021427 | R4: 0.005820339643 | S4: 75,046.67 | T4: 82,574.09 | U4: -0.09115964644 | V4: 0.0261546411 | W4: 530,818 | X4: 0.01085736728 | Y4: 517,075 | Z4: 0.026578
B5: 铝 | C5: 5,756,406 | D5: 8,933,815 | E5: -0.3556609354 | F5: 6,561,601 | G5: -0.1227131915 | H5: 0.008482654498 | I5: 5,740.92 | J5: 9,399.36 | K5: -0.3892222769 | L5: 6,485.27 | M5: -0.1147763142 | N5: 0.01048955148 | O5: 27,212,095 | P5: 32,359,088 | Q5: -0.1590586546 | R5: 0.008155063301 | S5: 27,518.67 | T5: 32,336.05 | U5: -0.1489787672 | V5: 0.009590576868 | W5: 514,908 | X5: 0.01053194366 | Y5: 512,828 | Z5: 0.004056
B6: 锌 | C6: 5,275,423 | D6: 7,092,442 | E6: -0.256190886 | F6: 6,748,128 | G6: -0.2182390435 | H6: 0.007773876728 | I6: 5,889.03 | J6: 8,581.32 | K6: -0.3137381548 | L6: 7,575.76 | M6: -0.2226482217 | N6: 0.01076018127 | O6: 26,509,234 | P6: 23,527,825 | Q6: 0.1267184281 | R6: 0.007944426232 | S6: 30,804.11 | T6: 26,349.97 | U6: 0.1690376192 | V6: 0.01073559176 | W6: 226,674 | X6: 0.004636396789 | Y6: 202,437 | Z6: 0.119726
B7: 铅 | C7: 1,035,611 | D7: 2,894,602 | E7: -0.642226807 | F7: 1,327,942 | G7: -0.2201383795 | H7: 0.001526078999 | I7: 870.61 | J7: 2,678.37 | K7: -0.6749467368 | L7: 1,119.08 | M7: -0.2220288851 | N7: 0.001590744198 | O7: 6,037,003 | P7: 8,525,033 | Q7: -0.2918498967 | R7: 0.001809200711 | S7: 5,139.02 | T7: 7,310.94 | U7: -0.2970783331 | V7: 0.001791007078 | W7: 85,871 | X7: 0.001756408007 | Y7: 66,347 | Z7: 0.294271
B8: 黄金 | C8: 11,937,242 | D8: 5,778,764 | E8: 1.065708515 | F8: 18,032,347 | G8: -0.3380095226 | H8: 0.01759075012 | I8: 92,364.77 | J8: 32,427.54 | K8: 1.848343578 | L8: 139,195.92 | M8: -0.3364405481 | N8: 0.1687647906 | O8: 52,549,176 | P8: 29,109,812 | Q8: 0.8052049254 | R8: 0.01574821258 | S8: 383,925.08 | T8: 154,568.52 | U8: 1.483850398 | V8: 0.1338023766 | W8: 409,146 | X8: 0.008368684545 | Y8: 413,625 | Z8: -0.010829
B9: 天然橡胶 | C9: 9,396,068 | D9: 10,190,382 | E9: -0.0779474214 | F9: 11,490,088 | G9: -0.1822457757 | H9: 0.01384606966 | I9: 13,810.09 | J9: 15,243.13 | K9: -0.09401226142 | L9: 17,158.62 | M9: -0.1951518094 | N9: 0.02523317404 | O9: 46,795,363 | P9: 39,651,685 | Q9: 0.1801607674 | R9: 0.01402387973 | S9: 75,960.79 | T9: 57,664.90 | U9: 0.3172793266 | V9: 0.02647322167 | W9: 233,478 | X9: 0.004775566009 | Y9: 159,400 | Z9: 0.46473
B10: 燃料油 | C10: 15,244,033 | D10: 12,536,516 | E10: 0.2159704498 | F10: 20,818,307 | G10: -0.2677582764 | H10: 0.02246364574 | I10: 4,479.00 | J10: 4,278.00 | K10: 0.04698493109 | L10: 6,161.01 | M10: -0.2730089248 | N10: 0.008183829946 | O10: 80,482,740 | P10: 73,143,903 | Q10: 0.1003342274 | R10: 0.02411948949 | S10: 25,465.53 | T10: 23,696.21 | U10: 0.07466697604 | V10: 0.008875034755 | W10: 422,773 | X10: 0.008647411611 | Y10: 356,238 | Z10: 0.186771
B11: 螺纹钢 | C11: 34,521,526 | D11: 32,093,538 | E11: 0.07565348513 | F11: 41,945,192 | G11: -0.1769849093 | H11: 0.05087100837 | I11: 10,538.62 | J11: 11,935.40 | K11: -0.1170277584 | L11: 13,070.28 | M11: -0.1936958946 | N11: 0.01925570243 | O11: 176,690,514 | P11: 168,976,117 | Q11: 0.0456537713 | R11: 0.05295153962 | S11: 56,457.28 | T11: 62,446.45 | U11: -0.0959090097 | V11: 0.01967602079 | W11: 3,099,768 | X11: 0.06340274756 | Y11: 2,530,870 | Z11: 0.224784
B12: 线材 | C12: 1,455 | D12: 17,019 | E12: -0.9145073154 | F12: 1,230 | G12: 0.1829268293 | H12: 2.144091694e-06 | I12: 0.48 | J12: 6.88 | K12: -0.930180758 | L12: 0.41 | M12: 0.1729477074 | N12: 8.771387644e-07 | O12: 5,879 | P12: 32,628 | Q12: -0.8198173348 | R12: 1.761849543e-06 | S12: 2.01 | T12: 13.08 | U12: -0.8462953806 | V12: 7.006817053e-07 | W12: 98 | X12: 2.004494937e-06 | Y12: 11 | Z12: 7.909091
B13: 白银 | C13: 18,853,758 | D13: 43,715,266 | E13: -0.5687145539 | F13: 28,510,623 | G13: -0.3387111183 | H13: 0.02778294566 | I13: 23,172.54 | J13: 52,373.14 | K13: -0.5575491403 | L13: 34,723.10 | M13: -0.3326477169 | N13: 0.04233983118 | O13: 104,900,070 | P13: 127,517,008 | Q13: -0.1773640893 | R13: 0.03143700296 | S13: 127,082.67 | T13: 136,453.26 | U13: -0.06867257009 | V13: 0.04428979482 | W13: 876,745 | X13: 0.0179329685 | Y13: 851,231 | Z13: 0.029973
B14: 石油沥青 | C14: 6,884,011 | D14: 4,365,907 | E14: 0.5767653777 | F14: 7,515,429 | G14: -0.08401622848 | H14: 0.01014429609 | I14: 2,381.00 | J14: 1,604.69 | K14: 0.4837729759 | L14: 2,539.31 | M14: -0.0623437056 | N14: 0.004350457988 | O14: 38,451,539 | P14: 16,619,151 | Q14: 1.313688527 | R14: 0.01152335881 | S14: 13,778.72 | T14: 6,162.79 | U14: 1.235793808 | V14: 0.004802045412 | W14: 420,464 | X14: 0.008600183256 | Y14: 353,652 | Z14: 0.18892
B15: 热轧卷板 | C15: 12,816,465 | D15: 9,179,119 | E15: 0.3962630836 | F15: 18,011,238 | G15: -0.2884184308 | H15: 0.01888637537 | I15: 4,081.78 | J15: 3,533.04 | K15: 0.1553166857 | L15: 5,835.28 | M15: -0.3005001728 | N15: 0.00745804211 | O15: 65,389,368 | P15: 48,493,808 | Q15: 0.348406543 | R15: 0.01959622864 | S15: 21,676.67 | T15: 18,692.76 | U15: 0.1596293219 | V15: 0.007554573258 | W15: 2,048,161 | X15: 0.04189314647 | Y15: 1,658,486 | Z15: 0.234958
B16: 镍 | C16: 3,675,879 | D16: 6,908,373 | E16: -0.4679095932 | F16: 5,605,962 | G16: -0.3442911315 | H16: 0.005416784628 | I16: 4,538.71 | J16: 10,414.03 | K16: -0.5641732554 | L16: 6,931.86 | M16: -0.3452386155 | N16: 0.008292932813 | O16: 22,647,734 | P16: 33,116,195 | Q16: -0.3161130377 | R16: 0.006787191666 | S16: 28,588.55 | T16: 45,758.69 | U16: -0.3752322987 | V16: 0.009963445144 | W16: 175,184 | X16: 0.003583218786 | Y16: 156,742 | Z16: 0.117658
B17: 锡 | C17: 2,142,576 | D17: 3,629,063 | E17: -0.4096062813 | F17: 4,720,398 | G17: -0.5461026803 | H17: 0.003157305434 | I17: 5,616.10 | J17: 9,889.42 | K17: -0.4321107403 | L17: 12,555.48 | M17: -0.5526975804 | N17: 0.01026148173 | O17: 14,564,248 | P17: 13,604,948 | Q17: 0.0705111111 | R17: 0.0043646902 | S17: 38,720.71 | T17: 33,705.67 | U17: 0.1487892604 | V17: 0.01349462012 | W17: 58,096 | X17: 0.001188297325 | Y17: 53,905 | Z17: 0.077748
B18: 纸浆 | C18: 5,910,535 | D18: 7,132,014 | E18: -0.1712670502 | F18: 5,862,894 | G18: 0.008125850476 | H18: 0.008709779384 | I18: 3,136.62 | J18: 4,521.71 | K18: -0.3063207806 | L18: 3,154.06 | M18: -0.005531966372 | N18: 0.00573108602 | O18: 24,596,244 | P18: 38,117,968 | Q18: -0.3547335997 | R18: 0.007371131359 | S18: 13,946.33 | T18: 22,987.05 | U18: -0.3932961869 | V18: 0.004860459747 | W18: 211,170 | X18: 0.004319277508 | Y18: 222,665 | Z18: -0.051625
B19: 不锈钢 | C19: 3,604,432 | D19: 6,208,997 | E19: -0.4194824059 | F19: 5,087,502 | G19: -0.2915124161 | H19: 0.005311500147 | I19: 2,315.25 | J19: 4,481.21 | K19: -0.4833431094 | L19: 3,286.01 | M19: -0.2954231359 | N19: 0.004230313555 | O19: 22,781,392 | P19: 27,343,032 | Q19: -0.1668300721 | R19: 0.006827246996 | S19: 14,946.49 | T19: 19,143.08 | U19: -0.2192221534 | V19: 0.005209026725 | W19: 230,264 | X19: 0.004709826756 | Y19: 241,306 | Z19: -0.045759
B20: 氧化铝 | C20: 26,486,377 | D20: 7,417,471 | E20: 2.570809647 | F20: 9,881,588 | G20: 1.680376575 | H20: 0.0390303924 | I20: 16,064.96 | J20: 5,903.64 | K20: 1.72119558 | L20: 5,587.29 | M20: 1.875268417 | N20: 0.02935317597 | O20: 49,755,245 | P20: 19,430,976 | Q20: 1.560614814 | R20: 0.01491091269 | S20: 31,125.70 | T20: 14,125.85 | U20: 1.203456354 | V20: 0.01084767154 | W20: 454,102 | X20: 0.009288215916 | Y20: 367,775 | Z20: 0.234728
B21: 丁二烯橡胶 | C21: 4,148,496 | D21: 1,110,345 | E21: 2.736222525 | F21: 3,965,291 | G21: 0.04620215767 | H21: 0.006113234239 | I21: 2,443.54 | J21: 761.18 | K21: 2.210186399 | L21: 2,299.72 | M21: 0.06253456569 | N21: 0.004464718312 | O21: 17,308,657 | P21: 3,636,549 | Q21: 3.759638052 | R21: 0.005187149078 | S21: 11,215.39 | T21: 2,415.30 | U21: 3.643469048 | V21: 0.003908694879 | W21: 87,987 | X21: 0.001799688735 | Y21: 76,667 | Z21: 0.147652
B22: 铜期权 | C22: 1,614,645 | D22: 3,248,102 | E22: -0.502895845 | F22: 2,468,840 | G22: -0.3459904247 | H22: 0.002379344972 | I22: 30.68 | J22: 116.36 | K22: -0.7363608585 | L22: 75.35 | M22: -0.5928676784 | N22: 5.605228728e-05 | O22: 9,157,436 | P22: 8,781,823 | Q22: 0.0427716432 | R22: 0.002744348433 | S22: 211.63 | T22: 242.35 | U22: -0.1267473526 | V22: 7.375509764e-05 | W22: 81,440 | X22: 0.0016657762 | Y22: 74,603 | Z22: 0.091645
B23: 天胶期权 | C23: 402,535 | D23: 1,373,828 | E23: -0.7069975281 | F23: 1,011,588 | G23: -0.6020761417 | H23: 0.0005931765981 | I23: 9.54 | J23: 42.14 | K23: -0.7736650037 | L23: 20.40 | M23: -0.5325156901 | N23: 1.742661023e-05 | O23: 3,858,331 | P23: 5,123,063 | Q23: -0.2468702805 | R23: 0.001156284863 | S23: 80.13 | T23: 107.86 | U23: -0.2570238292 | V23: 2.792786675e-05 | W23: 69,719 | X23: 0.001426034515 | Y23: 50,042 | Z23: 0.39321
B24: 黄金期权 | C24: 4,092,989 | D24: 2,056,710 | E24: 0.9900661736 | F24: 4,044,639 | G24: 0.01195409529 | H24: 0.006031438983 | I24: 249.63 | J24: 77.27 | K24: 2.230664992 | L24: 384.75 | M24: -0.3511953567 | N24: 0.0004561122215 | O24: 13,238,193 | P24: 5,550,930 | Q24: 1.384860375 | R24: 0.003967291086 | S24: 879.87 | T24: 242.84 | U24: 2.62320005 | V24: 0.0003066433641 | W24: 121,747 | X24: 0.002490216786 | Y24: 196,766 | Z24: -0.38126
B25: 铝期权 | C25: 1,223,199 | D25: 3,006,390 | E25: -0.5931336254 | F25: 1,285,942 | G25: -0.0487914696 | H25: 0.001802509152 | I25: 7.11 | J25: 23.69 | K25: -0.6998119068 | L25: 9.92 | M25: -0.2827785279 | N25: 1.299423624e-05 | O25: 6,436,700 | P25: 8,794,259 | Q25: -0.2680793231 | R25: 0.001928984003 | S25: 36.99 | T25: 56.03 | U25: -0.3397676847 | V25: 1.289297595e-05 | W25: 76,687 | X25: 0.001568558196 | Y25: 75,896 | Z25: 0.010422
B26: 锌期权 | C26: 1,007,714 | D26: 2,200,125 | E26: -0.541974206 | F26: 1,258,288 | G26: -0.1991388299 | H26: 0.001484969909 | I26: 6.73 | J26: 24.83 | K26: -0.7289612835 | L26: 11.02 | M26: -0.3892070169 | N26: 1.229596137e-05 | O26: 7,228,749 | P26: 5,823,507 | Q26: 0.2413051105 | R26: 0.0021663494 | S26: 48.01 | T26: 49.16 | U26: -0.02328659082 | V26: 1.673319976e-05 | W26: 40,848 | X26: 0.0008355062161 | Y26: 39,572 | Z26: 0.032245
B27: 白银期权 | C27: 5,088,738 | D27: 9,075,931 | E27: -0.4393150411 | F27: 9,752,337 | G27: -0.4782032245 | H27: 0.007498777238 | I27: 42.79 | J27: 152.11 | K27: -0.7187022011 | L27: 109.26 | M27: -0.6083951035 | N27: 7.818106196e-05 | O27: 34,450,796 | P27: 21,685,907 | Q27: 0.5886260141 | R27: 0.01032439517 | S27: 324.15 | T27: 281.64 | U27: 0.1509366431 | V27: 0.0001129707366 | W27: 183,917 | X27: 0.003761843829 | Y27: 272,691 | Z27: -0.325548
B28: 螺纹钢期权 | C28: 1,812,595 | D28: 2,275,339 | E28: -0.2033736511 | F28: 3,417,924 | G28: -0.4696795482 | H28: 0.002671044594 | I28: 6.86 | J28: 11.65 | K28: -0.4106213617 | L28: 10.69 | M28: -0.3575744525 | N28: 1.25424958e-05 | O28: 13,968,932 | P28: 16,387,741 | Q28: -0.1475986837 | R28: 0.00418628278 | S28: 45.50 | T28: 62.81 | U28: -0.2756794699 | V28: 1.585651338e-05 | W28: 357,032 | X28: 0.007302743227 | Y28: 190,680 | Z28: 0.872415
B29: 丁二烯橡胶期权 | C29: 1,570,149 | D29: 689,294 | E29: 1.277908991 | F29: 1,616,388 | G29: -0.02860637421 | H29: 0.002313775553 | I29: 6.34 | J29: 4.27 | K29: 0.4833490661 | L29: 7.53 | M29: -0.1582567017 | N29: 1.158238226e-05 | O29: 7,739,124 | P29: 2,193,804 | Q29: 2.527718976 | R29: 0.002319301256 | S29: 32.07 | T29: 10.32 | U29: 2.109166069 | V29: 1.117738325e-05 | W29: 27,260 | X29: 0.0005575768569 | Y29: 26,142 | Z29: 0.042766
B30: 铅期权 | C30: 144,795 | F30: 123,459 | G30: 0.1728185065 | H30: 0.0002133702797 | I30: 0.45 | L30: 0.50 | M30: -0.104863955 | N30: 8.239374792e-07 | O30: 880,994 | R30: 0.0002640209009 | S30: 2.99 | V30: 1.043717927e-06 | W30: 9,749 | X30: 0.0001994063381 | Y30: 5,968 | Z30: 0.633546
B31: 镍期权 | C31: 847,184 | F31: 974,565 | G31: -0.1307054942 | H31: 0.001248412494 | I31: 4.48 | L31: 7.52 | M31: -0.4043218823 | N31: 8.189235819e-06 | O31: 4,631,833 | R31: 0.001388091998 | S31: 31.10 | V31: 1.084005321e-05 | W31: 27,212 | X31: 0.0005565950634 | Y31: 22,859 | Z31: 0.190428
B32: 锡期权 | C32: 652,577 | F32: 1,503,181 | G32: -0.5658693131 | H32: 0.0009616391242 | I32: 5.66 | L32: 25.19 | M32: -0.7752906486 | N32: 1.034345392e-05 | O32: 4,200,613 | R32: 0.001258861727 | S32: 55.78 | V32: 1.943875734e-05 | W32: 14,454 | X32: 0.0002956425491 | Y32: 17,376 | Z32: -0.168163
B33: 氧化铝期权 | C33: 7,125,012 | F33: 2,781,249 | G33: 1.561802989 | H33: 0.01049943577 | I33: 43.34 | L33: 12.69 | M33: 2.414547726 | N33: 7.91812633e-05 | O33: 20,342,527 | R33: 0.006096355146 | S33: 120.35 | V33: 4.19430493e-05 | W33: 164,631 | X33: 0.003367367407 | Y33: 79,008 | Z33: 1.083726
B34: 总计 | C34: 196,733,014 | D34: 199,904,277 | E34: -0.0158639077 | F34: 232,014,992 | G34: -0.1520676647 | H34: 0.289906269 | I34: 211,309.71 | J34: 206,794.70 | K34: 0.02183328486 | L34: 289,934.53 | M34: -0.271181293 | N34: 0.3860956889 | O34: 922,232,238 | P34: 799,109,688 | Q34: 0.1540746556 | R34: 0.2763793923 | S34: 983,268.96 | T34: 747,457.68 | U34: 0.3154844556 | V34: 0.3426807257 | W34: 11,260,403 | X34: 0.2303206204 | Y34: 9,792,863 | Z34: 0.149858
A35: 上海国际能源交易中心 | B35: 原油 | C35: 3,054,276 | D35: 2,524,348 | E35: 0.2099266821 | F35: 4,341,777 | G35: -0.2965378001 | H35: 0.004500788869 | I35: 14,146.69 | J35: 15,454.80 | K35: -0.08464095316 | L35: 21,051.16 | M35: -0.3279852046 | N35: 0.02584820178 | O35: 15,666,148 | P35: 17,624,683 | Q35: -0.1111245519 | R35: 0.00469491337 | S35: 82,103.58 | T35: 106,037.65 | U35: -0.2257129786 | V35: 0.02861405625 | W35: 53,202 | X35: 0.001088195302 | Y35: 44,661 | Z35: 0.191241
B36: 20号胶 | C36: 3,596,314 | D36: 2,375,612 | E36: 0.5138473791 | F36: 5,216,108 | G36: -0.3105368984 | H36: 0.005299537442 | I36: 4,532.73 | J36: 2,990.63 | K36: 0.5156437884 | L36: 6,608.68 | M36: -0.3141253477 | N36: 0.008281999124 | O36: 21,517,323 | P36: 9,563,693 | Q36: 1.249896876 | R36: 0.006448424171 | S36: 30,036.28 | T36: 11,441.58 | U36: 1.62518697 | V36: 0.01046799606 | W36: 136,954 | X36: 0.00280126122 | Y36: 140,957 | Z36: -0.028399
B37: 低硫燃料油 | C37: 2,768,569 | D37: 2,709,754 | E37: 0.02170492229 | F37: 3,500,280 | G37: -0.2090435622 | H37: 0.004079770308 | I37: 965.13 | J37: 1,143.88 | K37: -0.1562694301 | L37: 1,204.08 | M37: -0.1984537608 | N37: 0.00176343935 | O37: 14,354,732 | P37: 14,595,018 | Q37: -0.01646356311 | R37: 0.004301901347 | S37: 5,296.10 | T37: 6,338.63 | U37: -0.1644723564 | V37: 0.001845754342 | W37: 122,833 | X37: 0.002512429863 | Y37: 118,187 | Z37: 0.039311
B38: 铜(BC) | C38: 141,868 | D38: 480,451 | E38: -0.7047191077 | F38: 288,098 | G38: -0.5075703406 | H38: 0.000209057045 | I38: 491.37 | J38: 1,798.29 | K38: -0.7267574508 | L38: 970.41 | M38: -0.4936472796 | N38: 0.000897809935 | O38: 1,131,395 | P38: 1,618,342 | Q38: -0.3008925184 | R38: 0.0003390623855 | S38: 3,886.30 | T38: 5,479.21 | U38: -0.290719678 | V38: 0.0013544195 | W38: 3,918 | X38: 8.013888941e-05 | Y38: 5,277 | Z38: -0.257533
B39: SCFIS欧线 | C39: 2,677,488 | D39: 1,926,582 | E39: 0.3897607265 | F39: 2,010,620 | G39: 0.3316728173 | H39: 0.003945553115 | I39: 2,443.62 | J39: 3,420.31 | K39: -0.2855569735 | L39: 1,652.08 | M39: 0.479118079 | N39: 0.004464873363 | O39: 10,435,754 | P39: 6,019,868 | Q39: 0.7335519649 | R39: 0.003127441473 | S39: 9,571.97 | T39: 7,623.30 | U39: 0.2556213355 | V39: 0.003335944839 | W39: 86,464 | X39: 0.001768537247 | Y39: 87,263 | Z39: -0.009156
B40: 原油期权 | C40: 1,434,127 | D40: 1,112,097 | E40: 0.2895700645 | F40: 2,070,788 | G40: -0.3074486621 | H40: 0.002113333189 | I40: 58.14 | J40: 55.32 | K40: 0.05103333901 | L40: 114.42 | M40: -0.4918583972 | N40: 0.0001062338784 | O40: 7,010,695 | P40: 5,957,391 | Q40: 0.1768062563 | R40: 0.002101001834 | S40: 331.20 | T40: 311.00 | U40: 0.06495338036 | V40: 0.0001154263416 | W40: 50,601 | X40: 0.00103499437 | Y40: 54,054 | Z40: -0.063881
B41: 总计 | C41: 13,672,642 | D41: 11,128,844 | E41: 0.2285770202 | F41: 17,427,671 | G41: -0.2154636153 | H41: 0.02014803997 | I41: 22,637.68 | J41: 24,863.24 | K41: -0.08951200829 | L41: 31,600.84 | M41: -0.283636704 | N41: 0.04136255742 | O41: 70,116,047 | P41: 55,378,995 | Q41: 0.266112666 | R41: 0.02101274458 | S41: 131,225.43 | T41: 137,231.37 | U41: -0.04376503526 | V41: 0.04573359733 | W41: 453,972 | X41: 0.009285556892 | Y41: 450,399 | Z41: 0.007933
A42: 郑州商品交易所 | B42: 一号棉CF | C42: 4,959,098 | D42: 8,424,265 | E42: -0.4113316711 | F42: 8,931,105 | G42: -0.444738585 | H42: 0.007307739405 | I42: 3,278.81 | J42: 6,453.71 | K42: -0.4919496049 | L42: 5,798.93 | M42: -0.434583074 | N42: 0.005990898397 | O42: 30,246,540 | P42: 37,461,877 | Q42: -0.1926047913 | R42: 0.009064441689 | S42: 20,240.12 | T42: 29,675.51 | U42: -0.3179519626 | V42: 0.007053919128 | W42: 725,116 | X42: 0.01483154439 | Y42: 758,897 | Z42: -0.0445
B43: 白糖SR | C43: 3,551,920 | D43: 9,161,733 | E43: -0.6123091559 | F43: 6,942,418 | G43: -0.4883742235 | H43: 0.005234118331 | I43: 2,078.12 | J43: 5,682.58 | K43: -0.634299292 | L43: 4,164.26 | M43: -0.5009613119 | N43: 0.00379705719 | O43: 26,205,341 | P43: 42,331,897 | Q43: -0.3809551932 | R43: 0.007853353984 | S43: 15,564.76 | T43: 26,843.86 | U43: -0.4201742312 | V43: 0.005424501872 | W43: 394,094 | X43: 0.008060810486 | Y43: 386,701 | Z43: 0.0191
B44: PTA | C44: 30,865,723 | D44: 14,494,488 | E44: 1.129480048 | F44: 31,658,918 | G44: -0.02505439384 | H44: 0.04548380778 | I44: 7,257.16 | J44: 4,261.65 | K44: 0.7029017552 | L44: 6,947.52 | M44: 0.04456859883 | N44: 0.01325996775 | O44: 111,904,125 | P44: 88,133,997 | Q44: 0.2697044138 | R44: 0.03353601489 | S44: 26,571.06 | T44: 26,047.97 | U44: 0.02008157971 | V44: 0.009260324053 | W44: 1,866,083 | X44: 0.0381689176 | Y44: 1,465,130 | Z44: 0.2737
B45: 菜籽油 | C45: 8,230,529 | D45: 16,528,614 | E45: -0.5020436075 | F45: 12,297,967 | G45: -0.3307406826 | H45: 0.01212852843 | I45: 7,702.17 | J45: 14,564.73 | K45: -0.4711765017 | L45: 11,492.45 | M45: -0.3298060282 | N45: 0.0140730647 | O45: 57,212,936 | P45: 58,967,459 | Q45: -0.02975408861 | R45: 0.01714587263 | S45: 51,736.27 | T45: 48,805.61 | U45: 0.06004751537 | V45: 0.01803069396 | W45: 351,543 | X45: 0.007190471057 | Y45: 335,486 | Z45: 0.0479
B46: 甲醇MA | C46: 14,150,792 | D46: 18,875,320 | E46: -0.2503018757 | F46: 18,091,581 | G46: -0.2178244676 | H46: 0.02085264302 | I46: 3,199.06 | J46: 4,928.86 | K46: -0.3509544539 | L46: 4,218.28 | M46: -0.2416213732 | N46: 0.005845171345 | O46: 73,863,923 | P46: 101,335,434 | Q46: -0.2710948176 | R46: 0.02213592771 | S46: 18,121.90 | T46: 25,383.74 | U46: -0.2860824052 | V46: 0.006315694139 | W46: 1,064,387 | X46: 0.02177100359 | Y46: 805,402 | Z46: 0.3216
B47: 玻璃FG | C47: 32,409,348 | D47: 21,902,296 | E47: 0.4797237696 | F47: 42,210,739 | G47: -0.2322013599 | H47: 0.0477584975 | I47: 6,656.77 | J47: 7,199.40 | K47: -0.07537228097 | L47: 9,856.08 | M47: -0.3246026965 | N47: 0.01216295188 | O47: 144,146,068 | P47: 110,019,128 | Q47: 0.3101909697 | R47: 0.04319844941 | S47: 34,063.91 | T47: 36,010.37 | U47: -0.05405263473 | V47: 0.01187167219 | W47: 1,765,758 | X47: 0.03611686705 | Y47: 1,302,967 | Z47: 0.3552
B48: 油菜籽RS | C48: 961 | D48: 3,110 | E48: -0.6909967846 | F48: 715 | G48: 0.3440559441 | H48: 1.41613204e-06 | I48: 0.51 | J48: 1.81 | K48: -0.7183510597 | L48: 0.40 | M48: 0.2665303137 | N48: 9.33446214e-07 | O48: 7,920 | P48: 5,772 | Q48: 0.3721413721 | R48: 2.373507124e-06 | S48: 4.67 | T48: 3.35 | U48: 0.3938316481 | V48: 1.627823867e-06 | W48: 85 | X48: 1.738592547e-06 | Y48: 126 | Z48: -0.3254
B49: 菜籽粕RM | C49: 9,331,665 | D49: 22,187,534 | E49: -0.57941856 | F49: 20,065,612 | G49: -0.5349424179 | H49: 0.01375116524 | I49: 2,354.68 | J49: 6,347.95 | K49: -0.6290641714 | L49: 5,275.62 | M49: -0.5536673883 | N49: 0.004302369447 | O49: 112,987,402 | P49: 100,642,091 | Q49: 0.122665486 | R49: 0.03386065702 | S49: 28,936.91 | T49: 26,943.53 | U49: 0.07398350174 | V49: 0.01008485006 | W49: 889,443 | X49: 0.01819269378 | Y49: 925,242 | Z49: -0.0387
B50: 硅铁SF | C50: 5,516,252 | D50: 12,548,584 | E50: -0.5604084094 | F50: 4,402,718 | G50: 0.2529196737 | H50: 0.008128762954 | I50: 1,517.96 | J50: 4,670.57 | K50: -0.6749940055 | L50: 1,276.25 | M50: 0.1893965659 | N50: 0.002773554085 | O50: 19,682,098 | P50: 27,589,488 | Q50: -0.2866087982 | R50: 0.005898434321 | S50: 5,838.98 | T50: 9,697.28 | U50: -0.3978740585 | V50: 0.002034954443 | W50: 425,944 | X50: 0.00871227134 | Y50: 381,353 | Z50: 0.1169
B51: 锰硅SM | C51: 8,068,241 | D51: 46,558,874 | E51: -0.8267088461 | F51: 7,278,622 | G51: 0.108484683 | H51: 0.01188938042 | I51: 2,319.90 | J51: 20,530.49 | K51: -0.8870023299 | L51: 2,158.43 | M51: 0.07480848635 | N51: 0.004238812417 | O51: 43,781,460 | P51: 63,846,848 | Q51: -0.3142737446 | R51: 0.01312065748 | S51: 13,825.56 | T51: 26,387.47 | U51: -0.4760559261 | V51: 0.004818367996 | W51: 625,542 | X51: 0.01279485481 | Y51: 612,974 | Z51: 0.0205
B52: 棉纱 | C52: 120,811 | D52: 65,258 | E52: 0.8512826014 | F52: 136,504 | G52: -0.1149636641 | H52: 0.0001780273964 | I52: 117.96 | J52: 68.88 | K52: 0.7124691744 | L52: 129.99 | M52: -0.09252542389 | N52: 0.0002155369431 | O52: 590,643 | P52: 347,589 | Q52: 0.699256881 | R52: 0.000177006991 | S52: 577.16 | T52: 374.79 | U52: 0.5399481174 | V52: 0.0002011473191 | W52: 6,348 | X52: 0.0001298421822 | Y52: 21,450 | Z52: -0.7041
B53: 苹果AP | C53: 1,940,092 | D53: 2,331,524 | E53: -0.1678867556 | F53: 3,001,873 | G53: -0.3537061694 | H53: 0.002858924497 | I53: 1,506.63 | J53: 1,740.21 | K53: -0.1342253618 | L53: 2,357.53 | M53: -0.3609259669 | N53: 0.002752853817 | O53: 11,860,055 | P53: 8,682,847 | Q53: 0.3659177687 | R53: 0.003554283464 | S53: 8,838.53 | T53: 6,817.52 | U53: 0.2964446282 | V53: 0.003080332259 | W53: 119,832 | X53: 0.002451047319 | Y53: 106,981 | Z53: 0.1201
B54: 红枣CJ | C54: 1,029,440 | D54: 969,850 | E54: 0.06144249111 | F54: 1,357,876 | G54: -0.2418748104 | H54: 0.001516985398 | I54: 468.54 | J54: 605.42 | K54: -0.226088692 | L54: 626.80 | M54: -0.2524836268 | N54: 0.0008561016347 | O54: 6,223,591 | P54: 4,195,801 | Q54: 0.4832903181 | R54: 0.001865118381 | S54: 2,881.13 | T54: 2,695.10 | U54: 0.06902607253 | V54: 0.001004108448 | W54: 119,625 | X54: 0.002446813335 | Y54: 110,339 | Z54: 0.0842
B55: 尿素 | C55: 5,511,438 | D55: 6,072,208 | E55: -0.09235026205 | F55: 7,229,359 | G55: -0.2376311648 | H55: 0.008121669031 | I55: 2,047.71 | J55: 2,618.89 | K55: -0.2180994586 | L55: 2,624.98 | M55: -0.2199150248 | N55: 0.003741481841 | O55: 26,319,702 | P55: 28,177,800 | Q55: -0.06594191172 | R55: 0.007887626288 | S55: 9,505.82 | T55: 11,668.43 | U55: -0.1853383525 | V55: 0.003312891072 | W55: 279,675 | X55: 0.005720480831 | Y55: 259,555 | Z55: 0.0775
B56: 纯碱 | C56: 28,231,614 | D56: 32,118,968 | E56: -0.1210298538 | F56: 24,398,624 | G56: 0.1570986134 | H56: 0.04160217807 | I56: 7,244.49 | J56: 14,709.13 | K56: -0.5074834953 | L56: 6,616.69 | M56: 0.09488055318 | N56: 0.01323680757 | O56: 114,428,213 | P56: 115,903,096 | Q56: -0.01272513894 | R56: 0.03429244681 | S56: 32,047.25 | T56: 47,510.27 | U56: -0.3254668589 | V56: 0.01116884112 | W56: 1,970,421 | X56: 0.04030305018 | Y56: 1,228,378 | Z56: 0.6041
B57: 短纤PF | C57: 5,211,328 | D57: 2,788,930 | E57: 0.8685761206 | F57: 5,909,398 | G57: -0.118128784 | H57: 0.007679426173 | I57: 1,672.35 | J57: 1,029.51 | K57: 0.624417583 | L57: 1,799.07 | M57: -0.0704381338 | N57: 0.003055640048 | O57: 19,668,044 | P57: 11,993,879 | Q57: 0.6398401218 | R57: 0.005894222545 | S57: 6,397.09 | T57: 4,439.30 | U57: 0.4410118757 | V57: 0.002229459595 | W57: 215,687 | X57: 0.004411668361 | Y57: 225,729 | Z57: -0.0445
B58: 花生PK | C58: 1,398,834 | D58: 1,748,039 | E58: -0.1997695704 | F58: 1,112,152 | G58: 0.2577723189 | H58: 0.002061325334 | I58: 577.77 | J58: 800.03 | K58: -0.277808146 | L58: 452.12 | M58: 0.277931775 | N58: 0.001055684633 | O58: 5,947,411 | P58: 8,149,629 | Q58: -0.2702230985 | R58: 0.00178235131 | S58: 2,419.27 | T58: 3,699.34 | U58: -0.346025455 | V58: 0.0008431446274 | W58: 202,107 | X58: 0.004133902634 | Y58: 80,150 | Z58: 1.5216
B59: 对二甲苯PX | C59: 7,148,411 | D59: 1,327,904 | E59: 4.383228758 | F59: 5,454,731 | G59: 0.3104974379 | H59: 0.0105339166 | I59: 2,378.35 | J59: 562.46 | K59: 3.228481572 | L59: 1,685.71 | M59: 0.4108903211 | N59: 0.004345609803 | O59: 22,973,309 | P59: 6,416,714 | Q59: 2.580229538 | R59: 0.006884761689 | S59: 7,747.38 | T59: 2,733.35 | U59: 1.834393269 | V59: 0.002700052071 | W59: 230,553 | X59: 0.004715737971 | Y59: 170,756 | Z59: 0.3502
B60: 烧碱SH | C60: 10,777,967 | D60: 1,361,399 | E60: 6.916831877 | F60: 9,376,528 | G60: 0.1494624663 | H60: 0.01588243954 | I60: 8,107.75 | J60: 1,148.90 | K60: 6.056992525 | L60: 6,897.57 | M60: 0.1754506757 | N60: 0.01481412082 | O60: 69,477,487 | P60: 6,292,635 | Q60: 10.04108009 | R60: 0.02082137757 | S60: 59,134.82 | T60: 5,062.83 | U60: 10.68020064 | V60: 0.02060917501 | W60: 176,471 | X60: 0.003609543122 | Y60: 151,956 | Z60: 0.1613
B61: 瓶片PR | C61: 1,304,567 | F61: 1,066,392 | G61: 0.2233465742 | H61: 0.001922413244 | I61: 1,172.02 | L61: 903.02 | M61: 0.2978966127 | N61: 0.002141466151 | O61: 3,440,746 | R61: 0.001031140801 | S61: 3,069.76 | V61: 0.001069847344 | W61: 54,467 | X61: 0.00111406965 | Y61: 45,242 | Z61: 0.2039
B62: 优质强筋小麦 | C62: 0 | D62: 0 | F62: 0 | H62: 0 | I62: 0.00 | J62: 0.00 | L62: 0.00 | N62: 0 | O62: 0 | P62: 0 | R62: 0 | S62: 0.00 | T62: 0.00 | V62: 0 | W62: 0 | X62: 0 | Y62: 0 | Z62: 0
B63: 早籼稻 | C63: 0 | D63: 0 | F63: 0 | H63: 0 | I63: 0.00 | J63: 0.00 | L63: 0.00 | N63: 0 | O63: 0 | P63: 0 | R63: 0 | S63: 0.00 | T63: 0.00 | V63: 0 | W63: 0 | X63: 0 | Y63: 0 | Z63: 0
B64: 普麦PM | C64: 0 | D64: 0 | F64: 0 | H64: 0 | I64: 0.00 | J64: 0.00 | L64: 0.00 | N64: 0 | O64: 0 | P64: 0 | R64: 0 | S64: 0.00 | T64: 0.00 | V64: 0 | W64: 0 | X64: 0 | Y64: 0 | Z64: 0
B65: 动力煤ZC | C65: 0 | D65: 0 | F65: 0 | H65: 0 | I65: 0.00 | J65: 0.00 | L65: 0.00 | N65: 0 | O65: 0 | P65: 0 | R65: 0 | S65: 0.00 | T65: 0.00 | V65: 0 | W65: 0 | X65: 0 | Y65: 0 | Z65: 0
B66: 粳稻JR | C66: 0 | D66: 0 | F66: 0 | H66: 0 | I66: 0.00 | J66: 0.00 | L66: 0.00 | N66: 0 | O66: 0 | P66: 0 | R66: 0 | S66: 0.00 | T66: 0.00 | V66: 0 | W66: 0 | X66: 0 | Y66: 0 | Z66: 0
B67: 晚籼稻LR | C67: 0 | D67: 0 | F67: 0 | H67: 0 | I67: 0.00 | J67: 0.00 | L67: 0.00 | N67: 0 | O67: 0 | P67: 0 | R67: 0 | S67: 0.00 | T67: 0.00 | V67: 0 | W67: 0 | X67: 0 | Y67: 0 | Z67: 0
B68: 白糖期权 | C68: 1,252,500 | D68: 3,257,378 | E68: -0.6154882854 | F68: 2,559,442 | G68: -0.5106355213 | H68: 0.00184568718 | I68: 3.40 | J68: 12.46 | K68: -0.7274478393 | L68: 7.92 | M68: -0.5709789639 | N68: 6.206092453e-06 | O68: 10,304,332 | P68: 11,568,442 | Q68: -0.1092722771 | R68: 0.003088056239 | S68: 35.28 | T68: 44.35 | U68: -0.2045126104 | V68: 1.229486367e-05 | W68: 256,463 | X68: 0.005245701887 | Y68: 182,081 | Z68: 0.4085
B69: 一号棉期权 | C69: 2,146,654 | D69: 4,375,672 | E69: -0.509411583 | F69: 2,997,377 | G69: -0.2838224888 | H69: 0.003163314785 | I69: 11.53 | J69: 25.41 | K69: -0.5460767255 | L69: 19.46 | M69: -0.4073109834 | N69: 2.107469418e-05 | O69: 11,784,125 | P69: 15,709,433 | Q69: -0.2498694892 | R69: 0.003531528364 | S69: 61.36 | T69: 87.92 | U69: -0.3020915517 | V69: 2.138381711e-05 | W69: 401,270 | X69: 0.008207588605 | Y69: 305,179 | Z69: 0.3149
B70: PTA期权 | C70: 9,849,974 | D70: 5,683,301 | E70: 0.7331431152 | F70: 9,306,871 | G70: 0.05835505832 | H70: 0.0145149467 | I70: 19.77 | J70: 15.04 | K70: 0.3139397386 | L70: 21.25 | M70: -0.06966985515 | N70: 3.611879602e-05 | O70: 35,991,129 | P70: 32,347,398 | Q70: 0.1126437125 | R70: 0.01078601024 | S70: 69.08 | T70: 68.02 | U70: 0.0155651613 | V70: 2.407644839e-05 | W70: 413,888 | X70: 0.008465677555 | Y70: 413,132 | Z70: 0.0018
B71: 甲醇期权 | C71: 2,535,475 | D71: 5,123,213 | E71: -0.5051006078 | F71: 3,754,983 | G71: -0.3247705782 | H71: 0.003736282398 | I71: 5.00 | J71: 17.07 | K71: -0.7070987467 | L71: 7.78 | M71: -0.3575979968 | N71: 9.13526748e-06 | O71: 15,318,852 | P71: 27,337,886 | Q71: -0.439647528 | R71: 0.004590833883 | S71: 31.30 | T71: 70.89 | U71: -0.5584189192 | V71: 1.090917597e-05 | W71: 199,747 | X71: 0.004085631124 | Y71: 186,929 | Z71: 0.0686
B72: 菜籽粕期权 | C72: 1,879,856 | D72: 3,285,488 | E72: -0.427830508 | F72: 4,321,122 | G72: -0.5649611374 | H72: 0.002770160575 | I72: 5.98 | J72: 9.38 | K72: -0.3625530267 | L72: 12.57 | M72: -0.5244609919 | N72: 1.092084966e-05 | O72: 18,119,018 | P72: 12,881,423 | Q72: 0.4066006527 | R72: 0.005430002311 | S72: 59.02 | T72: 39.23 | U72: 0.5043342528 | V72: 2.056842801e-05 | W72: 281,483 | X72: 0.005757461717 | Y72: 201,420 | Z72: 0.3975
B73: 菜籽油期权 | C73: 777,666 | D73: 1,618,786 | E73: -0.5195992552 | F73: 1,500,209 | G73: -0.4816282265 | H73: 0.001145970592 | I73: 5.62 | J73: 13.27 | K73: -0.5767502581 | L73: 9.09 | M73: -0.3823862431 | N73: 1.02605504e-05 | O73: 5,574,568 | P73: 6,127,229 | Q73: -0.0901975428 | R73: 0.001670615765 | S73: 40.65 | T73: 39.07 | U73: 0.04059774972 | V73: 1.416802757e-05 | W73: 112,301 | X73: 0.002297008019 | Y73: 87,374 | Z73: 0.2853
B74: 花生期权 | C74: 337,659 | D74: 436,472 | E74: -0.2263902381 | F74: 417,160 | G74: -0.1905767571 | H74: 0.0004975751598 | I74: 1.43 | J74: 3.07 | K74: -0.5328735319 | L74: 1.12 | M74: 0.2823252375 | N74: 2.620796866e-06 | O74: 2,847,381 | P74: 3,082,716 | Q74: -0.0763401494 | R74: 0.0008533180668 | S74: 6.66 | T74: 10.32 | U74: -0.3545781825 | V74: 2.320490849e-06 | W74: 45,822 | X74: 0.0009372445611 | Y74: 24,979 | Z74: 0.8344
B75: 对二甲苯期权 | C75: 1,230,055 | D75: 254,170 | E75: 3.839497187 | F75: 1,146,746 | G75: 0.07264817143 | H75: 0.001812612171 | I75: 1.19 | J75: 1.16 | K75: 0.02311555364 | L75: 1.11 | M75: 0.07247254048 | N75: 2.169056434e-06 | O75: 4,204,533 | P75: 1,303,030 | Q75: 2.226735378 | R75: 0.001260036494 | S75: 4.74 | T75: 3.81 | U75: 0.2434915303 | V75: 1.652558438e-06 | W75: 12,577 | X75: 0.0002572503349 | Y75: 11,067 | Z75: 0.1364
B76: 烧碱期权 | C76: 2,847,291 | D76: 138,004 | E76: 19.63194545 | F76: 2,731,501 | G76: 0.04239061234 | H76: 0.004195775247 | I76: 17.40 | J76: 1.44 | K76: 11.10184213 | L76: 15.82 | M76: 0.1002745239 | N76: 3.179481255e-05 | O76: 20,129,916 | P76: 1,256,468 | Q76: 15.02103356 | R76: 0.006032638767 | S76: 157.27 | T76: 8.16 | U76: 18.27960838 | V76: 5.480954393e-05 | W76: 109,067 | X76: 0.002230859686 | Y76: 104,558 | Z76: 0.0431
B77: 苹果期权 | C77: 152,058 | D77: 152,246 | E77: -0.001234843608 | F77: 128,600 | G77: 0.1824105754 | H77: 0.0002240730549 | I77: 1.66 | J77: 1.93 | K77: -0.1376163044 | L77: 1.91 | M77: -0.1299351519 | N77: 3.041559705e-06 | O77: 2,348,488 | P77: 923,014 | Q77: 1.544368774 | R77: 0.0007038071969 | S77: 11.42 | T77: 6.51 | U77: 0.753537593 | V77: 3.980349212e-06 | W77: 35,603 | X77: 0.0007282248289 | Y77: 18,371 | Z77: 0.938
B78: 短纤期权 | C78: 814,172 | D78: 527,785 | E78: 0.5426205747 | F78: 781,957 | G78: 0.04119791753 | H78: 0.001199765926 | I78: 1.20 | J78: 0.76 | K78: 0.5830293326 | L78: 1.68 | M78: -0.2817575986 | N78: 2.200247804e-06 | O78: 3,151,973 | P78: 912,176 | Q78: 2.455443906 | R78: 0.0009445997943 | S78: 4.61 | T78: 1.29 | U78: 2.574360832 | V78: 1.605789215e-06 | W78: 44,677 | X78: 0.0009138246968 | Y78: 50,639 | Z78: -0.1177
B79: 尿素期权 | C79: 500,637 | D79: 238,260 | E79: 1.101221355 | F79: 737,909 | G79: -0.3215464237 | H79: 0.0007377399544 | I79: 2.05 | J79: 2.27 | K79: -0.09731324457 | L79: 2.50 | M79: -0.1786653979 | N79: 3.750139724e-06 | O79: 2,380,279 | P79: 1,635,850 | Q79: 0.4550716753 | R79: 0.0007133344904 | S79: 10.74 | T79: 9.30 | U79: 0.1555522214 | V79: 3.744428058e-06 | W79: 66,261 | X79: 0.00135530448 | Y79: 58,513 | Z79: 0.1324
B80: 纯碱期权 | C80: 7,123,294 | D80: 6,178,887 | E80: 0.1528441935 | F80: 7,852,020 | G80: -0.09280745592 | H80: 0.01049690413 | I80: 21.57 | J80: 54.03 | K80: -0.6008252043 | L80: 22.13 | M80: -0.02522580501 | N80: 3.940950482e-05 | O80: 34,794,355 | P80: 26,263,927 | Q80: 0.3247963642 | R80: 0.01042735473 | S80: 109.53 | T80: 179.46 | U80: -0.3896315382 | V80: 3.817394766e-05 | W80: 834,912 | X80: 0.01707731507 | Y80: 534,134 | Z80: 0.5631
B81: 硅铁期权 | C81: 1,333,136 | D81: 1,331,513 | E81: 0.001218914123 | F81: 862,633 | G81: 0.5454266183 | H81: 0.001964512595 | I81: 2.87 | J81: 7.26 | K81: -0.6042764682 | L81: 1.58 | M81: 0.81342603 | N81: 5.246362607e-06 | O81: 4,052,817 | P81: 2,103,479 | Q81: 0.9267209228 | R81: 0.001214569447 | S81: 8.21 | T81: 9.55 | U81: -0.1395508312 | V81: 2.862578476e-06 | W81: 95,567 | X81: 0.001954730282 | Y81: 73,176 | Z81: 0.306
B82: 锰硅期权 | C82: 2,770,296 | D82: 6,795,251 | E82: -0.5923188121 | F82: 1,983,953 | G82: 0.3963516273 | H82: 0.00408231522 | I82: 7.11 | J82: 53.12 | K82: -0.8660733709 | L82: 4.25 | M82: 0.6733574698 | N82: 1.29976987e-05 | O82: 13,005,191 | P82: 7,614,521 | Q82: 0.7079460415 | R82: 0.003897463825 | S82: 36.76 | T82: 57.52 | U82: -0.3609468582 | V82: 1.280970222e-05 | W82: 236,624 | X82: 0.004839914387 | Y82: 168,194 | Z82: 0.4069
B83: 玻璃期权 | C83: 6,953,883 | F83: 10,574,558 | G83: -0.3423949256 | H83: 0.01024725965 | I83: 16.96 | L83: 26.38 | M83: -0.3572746897 | N83: 3.098251953e-05 | O83: 32,343,903 | R83: 0.009692990429 | S83: 92.00 | V83: 3.206181134e-05 | W83: 798,252 | X83: 0.01632747033 | Y83: 568,228 | Z83: 0.4048
B84: 红枣期权 | C84: 91,822 | F84: 70,998 | G84: 0.2933040367 | H84: 0.0001353091323 | I84: 0.54 | L84: 0.56 | M84: -0.0437614674 | N84: 9.779739923e-07 | O84: 712,171 | R84: 0.0002134271392 | S84: 3.14 | V84: 1.093844712e-06 | W84: 27,187 | X84: 0.0005560837127 | Y84: 21,516 | Z84: 0.2636
B85: 瓶片期权 | C85: 90,425 | F85: 83,842 | G85: 0.07851673386 | H85: 0.0001332505096 | I85: 0.38 | L85: 0.57 | M85: -0.3360334616 | N85: 6.958173389e-07 | O85: 340,947 | R85: 0.0001021767845 | S85: 1.76 | V85: 6.141577538e-07 | W85: 9,451 | X85: 0.0001933110372 | Y85: 7,940 | Z85: 0.1903
B86: 动力煤期权 | C86: 0 | D86: 0 | F86: 0 | H86: 0 | I86: 0.00 | J86: 0.00 | L86: 0.00 | N86: 0 | O86: 0 | P86: 0 | R86: 0 | S86: 0.00 | T86: 0.00 | V86: 0 | W86: 0 | X86: 0 | Y86: 0 | Z86: 0
B87: 总计 | C87: 222,445,884 | D87: 258,865,324 | E87: -0.1406887544 | F87: 262,735,713 | G87: -0.1533473639 | H87: 0.3277968195 | I87: 61,784.39 | J87: 98,142.85 | K87: -0.3704646949 | L87: 75,439.37 | M87: -0.1810059543 | N87: 0.1128896867 | O87: 1,118,370,992 | P87: 971,560,973 | Q87: 0.1511073654 | R87: 0.3351592825 | S87: 348,265.89 | T87: 341,434.99 | U87: 0.02000643935 | V87: 0.1213747345 | W87: 15,464,333 | X87: 0.3163079306 | Y87: 12,392,244 | Z87: 0.2479
A88: 大连商品交易所 | B88: 豆一 | C88: 4,220,899 | D88: 2,301,282 | E88: 0.8341511384 | F88: 7,188,647 | G88: -0.4128381878 | H88: 0.006219927484 | I88: 1,759.48 | J88: 1,070.39 | K88: 0.6437750076 | L88: 2,986.77 | M88: -0.4109085992 | N88: 0.00321484059 | O88: 22,813,878 | P88: 11,129,471 | Q88: 1.049861849 | R88: 0.006836982571 | S88: 9,349.62 | T88: 5,228.53 | U88: 0.7881933785 | V88: 0.003258451429 | W88: 318,670 | X88: 0.006518085729 | Y88: 301,944 | Z88: 0.055394
B89: 豆二 | C89: 3,733,610 | D89: 3,181,266 | E89: 0.1736239598 | F89: 5,770,134 | G89: -0.3529422367 | H89: 0.005501857176 | I89: 1,312.78 | J89: 1,308.55 | K89: 0.00322982296 | L89: 2,055.02 | M89: -0.3611850187 | N89: 0.002398645487 | O89: 22,068,928 | P89: 15,091,871 | Q89: 0.4623056346 | R89: 0.006613732049 | S89: 7,792.96 | T89: 5,831.42 | U89: 0.3363745998 | V89: 0.00271593599 | W89: 273,875 | X89: 0.005601847457 | Y89: 311,738 | Z89: -0.121458
B90: 豆粕 | C90: 30,355,751 | D90: 38,420,595 | E90: -0.2099093989 | F90: 58,664,213 | G90: -0.4825507844 | H90: 0.04473231175 | I90: 8,839.52 | J90: 13,640.00 | K90: -0.35194098 | L90: 17,669.09 | M90: -0.4997182551 | N90: 0.01615118613 | O90: 227,640,722 | P90: 163,569,300 | Q90: 0.3917081139 | R90: 0.06822056508 | S90: 66,630.87 | T90: 53,719.27 | U90: 0.2403533146 | V90: 0.02322163725 | W90: 4,405,395 | X90: 0.09010808134 | Y90: 4,179,278 | Z90: 0.054104
B91: 玉米 | C91: 13,330,628 | D91: 12,430,649 | E91: 0.072400001 | F91: 18,088,625 | G91: -0.2630380695 | H91: 0.01964404727 | I91: 3,121.44 | J91: 3,047.74 | K91: 0.02418167082 | L91: 4,175.38 | M91: -0.2524180901 | N91: 0.005703352666 | O91: 72,958,648 | P91: 57,517,379 | Q91: 0.2684626676 | R91: 0.02186463015 | S91: 16,770.19 | T91: 13,910.08 | U91: 0.2056141288 | V91: 0.005844606872 | W91: 1,962,791 | X91: 0.04014698593 | Y91: 2,260,029 | Z91: -0.13152
B92: 豆油 | C92: 7,334,526 | D92: 13,032,379 | E92: -0.4372074354 | F92: 10,806,416 | G92: -0.3212804319 | H92: 0.01080817614 | I92: 5,698.06 | J92: 10,311.80 | K92: -0.4474230006 | L92: 8,399.35 | M92: -0.3216068234 | N92: 0.0104112447 | O92: 48,912,358 | P92: 58,941,958 | Q92: -0.170160618 | R92: 0.01465831189 | S92: 38,282.85 | T92: 44,941.29 | U92: -0.1481585912 | V92: 0.01334202156 | W92: 831,381 | X92: 0.01700509189 | Y92: 710,059 | Z92: 0.170862
B93: 聚乙烯 | C93: 7,895,286 | D93: 7,309,788 | E93: 0.08009780858 | F93: 9,893,362 | G93: -0.2019612746 | H93: 0.0116345135 | I93: 2,811.67 | J93: 3,125.60 | K93: -0.1004371753 | L93: 3,604.04 | M93: -0.2198555982 | N93: 0.005137360017 | O93: 38,427,443 | P93: 32,183,828 | Q93: 0.19399852 | R93: 0.01151613759 | S93: 14,491.24 | T93: 13,394.35 | U93: 0.08189209788 | V93: 0.005050367382 | W93: 689,858 | X93: 0.0141103762 | Y93: 561,843 | Z93: 0.227848
B94: 棕榈油 | C94: 12,808,601 | D94: 16,675,284 | E94: -0.2318810882 | F94: 19,331,901 | G94: -0.3374370684 | H94: 0.01887478696 | I94: 10,281.97 | J94: 12,656.84 | K94: -0.1876351314 | L94: 16,382.60 | M94: -0.372384738 | N94: 0.0187867615 | O94: 92,299,731 | P94: 78,542,259 | Q94: 0.1751601262 | R94: 0.02766086731 | S94: 79,872.54 | T94: 59,967.63 | U94: 0.3319275814 | V94: 0.02783651422 | W94: 499,274 | X94: 0.01021216536 | Y94: 440,922 | Z94: 0.132341
B95: 聚氯乙烯 | C95: 19,979,550 | D95: 33,019,301 | E95: -0.3949129935 | F95: 20,080,652 | G95: -0.005034796679 | H95: 0.02944191561 | I95: 4,881.34 | J95: 10,475.05 | K95: -0.5340033198 | L95: 5,012.36 | M95: -0.02613938609 | N95: 0.008918960549 | O95: 92,127,463 | P95: 98,210,387 | Q95: -0.06193768486 | R95: 0.02760924113 | S95: 23,378.24 | T95: 29,680.67 | U95: -0.2123411454 | V95: 0.008147589958 | W95: 1,228,452 | X95: 0.02512679402 | Y95: 1,056,675 | Z95: 0.162564
B96: 焦炭 | C96: 476,103 | D96: 507,058 | E96: -0.061048243 | F96: 598,820 | G96: -0.204931365 | H96: 0.0007015865897 | I96: 678.86 | J96: 1,169.83 | K96: -0.4196882214 | L96: 943.88 | M96: -0.2807702667 | N96: 0.001240390336 | O96: 2,347,281 | P96: 2,472,327 | Q96: -0.05057826089 | R96: 0.0007034454768 | S96: 3,774.63 | T96: 5,659.71 | U96: -0.3330690302 | V96: 0.001315503981 | W96: 59,364 | X96: 0.001214233035 | Y96: 40,666 | Z96: 0.459794
B97: 焦煤 | C97: 9,621,012 | D97: 3,176,073 | E97: 2.029216268 | F97: 8,855,737 | G97: 0.08641573254 | H97: 0.01417754771 | I97: 4,820.89 | J97: 3,336.84 | K97: 0.4447467942 | L97: 5,078.25 | M97: -0.05067970462 | N97: 0.008808506382 | O97: 33,413,896 | P97: 14,081,799 | Q97: 1.372842845 | R97: 0.01001365154 | S97: 19,731.99 | T97: 14,526.25 | U97: 0.3583672996 | V97: 0.006876828722 | W97: 650,982 | X97: 0.01331520534 | Y97: 358,636 | Z97: 0.815161
B98: 铁矿石 | C98: 9,999,212 | D98: 8,887,434 | E98: 0.1250955 | F98: 13,571,489 | G98: -0.2632192385 | H98: 0.01473486419 | I98: 7,131.48 | J98: 7,847.92 | K98: -0.09129025733 | L98: 9,807.10 | M98: -0.272825099 | N98: 0.01303031693 | O98: 49,028,027 | P98: 52,750,101 | Q98: -0.07056050945 | R98: 0.01469297618 | S98: 36,881.27 | T98: 45,664.11 | U98: -0.1923357311 | V98: 0.01285355358 | W98: 1,093,911 | X98: 0.02237488837 | Y98: 974,787 | Z98: 0.122205
B99: 鸡蛋 | C99: 4,399,446 | D99: 11,466,449 | E99: -0.6163201005 | F99: 6,144,487 | G99: -0.2840010891 | H99: 0.006483034796 | I99: 1,391.19 | J99: 4,324.56 | K99: -0.6783055132 | L99: 1,952.06 | M99: -0.2873237848 | N99: 0.002541916206 | O99: 20,668,345 | P99: 31,313,708 | Q99: -0.3399585574 | R99: 0.006193997993 | S99: 6,617.50 | T99: 11,249.54 | U99: -0.4117533112 | V99: 0.002306277419 | W99: 484,339 | X99: 0.00990668442 | Y99: 429,614 | Z99: 0.127382
B100: 纤维板 | C100: 5,536 | D100: 104,807 | E100: -0.9471791006 | F100: 10,098 | G100: -0.4517726282 | H100: 8.157863657e-06 | I100: 0.70 | J100: 14.25 | K100: -0.9507402925 | L100: 1.29 | M100: -0.4539973413 | N100: 1.282522436e-06 | O100: 31,418 | P100: 2,212,749 | Q100: -0.985801372 | R100: 9.415510963e-06 | S100: 4.07 | T100: 294.75 | U100: -0.9862001276 | V100: 1.417581751e-06 | W100: 98 | X100: 2.004494937e-06 | Y100: 158 | Z100: -0.379747
B101: 聚丙烯 | C101: 6,949,580 | D101: 8,180,515 | E101: -0.1504715779 | F101: 9,049,338 | G101: -0.2320344317 | H101: 0.01024091873 | I101: 2,436.77 | J101: 3,150.76 | K101: -0.2266101183 | L101: 3,247.01 | M101: -0.2495346123 | N101: 0.004452350183 | O101: 32,834,294 | P101: 35,940,809 | Q101: -0.08643419796 | R101: 0.009839953375 | S101: 11,874.04 | T101: 13,544.96 | U101: -0.1233610462 | V101: 0.004138242881 | W101: 658,208 | X101: 0.01346300616 | Y101: 484,099 | Z101: 0.359656
B102: 玉米淀粉 | C102: 2,676,717 | D102: 2,704,939 | E102: -0.010433507 | F102: 3,491,143 | G102: -0.2332834834 | H102: 0.003944416968 | I102: 721.67 | J102: 771.88 | K102: -0.06505232038 | L102: 933.18 | M102: -0.2266571349 | N102: 0.001318606507 | O102: 14,081,307 | P102: 14,782,799 | Q102: -0.0474532597 | R102: 0.004219959909 | S102: 3,720.31 | T102: 4,215.24 | U102: -0.1174153849 | V102: 0.00129657097 | W102: 310,878 | X102: 0.006358707928 | Y102: 351,403 | Z102: -0.115323
B103: 乙二醇 | C103: 5,664,895 | D103: 5,539,992 | E103: 0.02254570043 | F103: 6,726,370 | G103: -0.1578080005 | H103: 0.008347803656 | I103: 2,481.00 | J103: 2,497.83 | K103: -0.006735237136 | L103: 2,841.91 | M103: -0.1269953911 | N103: 0.004533181527 | O103: 21,718,707 | P103: 43,956,932 | Q103: -0.5059093979 | R103: 0.006508775984 | S103: 9,646.20 | T103: 20,161.15 | U103: -0.5215452689 | V103: 0.00336181195 | W103: 317,110 | X103: 0.006486177443 | Y103: 290,589 | Z103: 0.091266
B104: 粳米 | C104: 47,750 | D104: 107,435 | E104: -0.5555452134 | F104: 56,291 | G104: -0.1517294061 | H104: 7.036452124e-05 | I104: 17.27 | J104: 37.83 | K104: -0.5434995381 | L104: 19.95 | M104: -0.1344774153 | N104: 3.155280764e-05 | O104: 335,876 | P104: 303,205 | Q104: 0.1077521809 | R104: 0.0001006570807 | S104: 118.52 | T104: 106.95 | U104: 0.1081951102 | V104: 4.130573817e-05 | W104: 14,614 | X104: 0.0002989151939 | Y104: 12,719 | Z104: 0.14899
B105: 苯乙烯 | C105: 15,637,507 | D105: 8,604,151 | E105: 0.8174375368 | F105: 11,369,007 | G105: 0.3754505561 | H105: 0.02304347002 | I105: 5,771.09 | J105: 4,039.88 | K105: 0.4285296013 | L105: 4,146.48 | M105: 0.3918039959 | N105: 0.0105446803 | O105: 44,488,794 | P105: 49,841,739 | Q105: -0.107398841 | R105: 0.01333263504 | S105: 17,116.92 | T105: 22,739.85 | U105: -0.2472722391 | V105: 0.005965446498 | W105: 534,230 | X105: 0.01092715643 | Y105: 536,633 | Z105: -0.004478
B106: 液化石油气 | C106: 1,994,041 | D106: 3,183,584 | E106: -0.3736490069 | F106: 2,482,642 | G106: -0.1968068695 | H106: 0.002938423881 | I106: 1,682.98 | J106: 2,954.22 | K106: -0.4303111627 | L106: 2,201.82 | M106: -0.2356381149 | N106: 0.003075074817 | O106: 10,082,195 | P106: 17,756,349 | Q106: -0.4321921134 | R106: 0.003021485058 | S106: 8,943.42 | T106: 16,098.17 | U106: -0.4444447241 | V106: 0.003116888079 | W106: 146,513 | X106: 0.002996781292 | Y106: 120,876 | Z106: 0.212093
B107: 生猪 | C107: 729,526 | D107: 1,512,817 | E107: -0.5177698294 | F107: 1,306,252 | G107: -0.4415120513 | H107: 0.001075031366 | I107: 1,587.01 | J107: 4,311.74 | K107: -0.6319342519 | L107: 2,914.89 | M107: -0.4555518656 | N107: 0.002899705867 | O107: 5,211,288 | P107: 7,543,836 | Q107: -0.3091991926 | R107: 0.00156174611 | S107: 11,241.17 | T107: 19,264.82 | U107: -0.4164925612 | V107: 0.003917678442 | W107: 158,826 | X107: 0.003248631763 | Y107: 144,518 | Z107: 0.099005
B108: 原木 | C108: 321,797 | F108: 397,533 | G108: -0.1905150013 | H108: 0.0004742008763 | I108: 226.16 | L108: 291.30 | M108: -0.22363518 | N108: 0.0004132238858 | O108: 2,383,726 | R108: 0.0007143675055 | S108: 1,808.52 | V108: 0.0006302894952 | W108: 37,157 | X108: 0.0007600103915 | Y108: 34,889 | Z108: 0.065006
B109: 胶合板 | C109: 218 | D109: 1,134 | E109: -0.8077601411 | F109: 49 | G109: 3.448979592 | H109: 3.212453535e-07 | I109: 0.16 | J109: 1.37 | K109: -0.8813995145 | L109: 0.03 | M109: 3.667577833 | N109: 2.963956758e-07 | O109: 449 | P109: 1,134 | Q109: -0.6040564374 | R109: 1.345586741e-07 | S109: 0.34 | T109: 1.37 | U109: -0.7529237586 | V109: 1.177763887e-07 | W109: 9 | X109: 1.840862697e-07 | Y109: 14 | Z109: -0.357143
B110: 豆粕期权 | C110: 4,633,366 | D110: 6,749,682 | E110: -0.3135430677 | F110: 11,289,720 | G110: -0.5895942503 | H110: 0.006827739902 | I110: 16.51 | J110: 35.12 | K110: -0.5300379063 | L110: 33.74 | M110: -0.5108496274 | N110: 3.015937686e-05 | O110: 38,692,837 | P110: 25,711,066 | Q110: 0.5049098703 | R110: 0.01159567226 | S110: 128.83 | T110: 106.63 | U110: 0.2082596908 | V110: 4.489989182e-05 | W110: 974,914 | X110: 0.01994092017 | Y110: 694,414 | Z110: 0.403938
B111: 玉米期权 | C111: 1,629,546 | D111: 1,818,450 | E111: -0.1038818774 | F111: 2,479,146 | G111: -0.3426986551 | H111: 0.002401303123 | I111: 2.61 | J111: 2.58 | K111: 0.01199296285 | L111: 3.84 | M111: -0.3204881694 | N111: 4.765378552e-06 | O111: 8,765,241 | P111: 7,140,397 | Q111: 0.227556535 | R111: 0.002626813379 | S111: 15.32 | T111: 11.09 | U111: 0.381720578 | V111: 5.338151102e-06 | W111: 388,309 | X111: 0.007942483922 | Y111: 266,914 | Z111: 0.454809
B112: 铁矿石期权 | C112: 4,198,742 | D112: 4,560,553 | E112: -0.07933489645 | F112: 6,537,863 | G112: -0.3577806693 | H112: 0.006187276872 | I112: 29.55 | J112: 51.01 | K112: -0.4206669301 | L112: 47.75 | M112: -0.3811296744 | N112: 5.399800544e-05 | O112: 25,289,009 | P112: 32,281,613 | Q112: -0.2166125962 | R112: 0.007578742806 | S112: 188.55 | T112: 378.64 | U112: -0.5020163021 | V112: 6.571346261e-05 | W112: 432,404 | X112: 0.008844404374 | Y112: 402,442 | Z112: 0.07445
B113: 液化石油气期权 | C113: 816,721 | D113: 716,501 | E113: 0.1398741942 | F113: 992,489 | G113: -0.1770981845 | H113: 0.001203522139 | I113: 2.71 | J113: 3.83 | K113: -0.2921781737 | L113: 4.56 | M113: -0.405394976 | N113: 4.952316653e-06 | O113: 4,545,722 | P113: 4,604,117 | Q113: -0.01268321374 | R113: 0.001362285802 | S113: 17.62 | T113: 20.52 | U113: -0.1413537803 | V113: 6.141853559e-06 | W113: 31,173 | X113: 0.0006376134761 | Y113: 22,081 | Z113: 0.411757
B114: 聚乙烯期权 | C114: 380,652 | D114: 328,814 | E114: 0.1576514382 | F114: 420,964 | G114: -0.09576115772 | H114: 0.0005609297537 | I114: 0.69 | J114: 1.51 | K114: -0.5432900361 | L114: 0.91 | M114: -0.2384720674 | N114: 1.260538101e-06 | O114: 1,813,379 | P114: 997,101 | Q114: 0.81865127 | R114: 0.0005434429262 | S114: 3.32 | T114: 3.26 | U114: 0.02057351495 | V114: 1.157886174e-06 | W114: 36,448 | X114: 0.0007455084842 | Y114: 33,555 | Z114: 0.086217
B115: 聚丙烯期权 | C115: 590,296 | D115: 264,254 | E115: 1.233820491 | F115: 756,568 | G115: -0.2197713887 | H115: 0.0008698616844 | I115: 0.65 | J115: 1.10 | K115: -0.4078121435 | L115: 1.05 | M115: -0.3791674879 | N115: 1.185600975e-06 | O115: 2,435,618 | P115: 1,045,902 | Q115: 1.328724871 | R115: 0.0007299187721 | S115: 3.03 | T115: 2.84 | U115: 0.06696446676 | V115: 1.054447557e-06 | W115: 64,854 | X115: 0.001326525659 | Y115: 51,461 | Z115: 0.260255
B116: 聚氯乙烯期权 | C116: 2,853,453 | D116: 4,068,940 | E116: -0.2987232547 | F116: 2,057,561 | G116: 0.3868133193 | H116: 0.004204855586 | I116: 3.87 | J116: 16.24 | K116: -0.7617322601 | L116: 2.78 | M116: 0.3946019477 | N116: 7.071319991e-06 | O116: 11,335,088 | P116: 7,936,001 | Q116: 0.42831232 | R116: 0.003396958601 | S116: 16.41 | T116: 24.05 | U116: -0.3177737644 | V116: 5.71919322e-06 | W116: 135,898 | X116: 0.002779661764 | Y116: 99,579 | Z116: 0.364725
B117: 棕榈油期权 | C117: 3,721,227 | D117: 2,356,869 | E117: 0.5788858015 | F117: 5,251,062 | G117: -0.2913382093 | H117: 0.005483609556 | I117: 21.81 | J117: 16.21 | K117: 0.3452397053 | L117: 30.80 | M117: -0.2918227694 | N117: 3.985465287e-05 | O117: 25,880,881 | P117: 12,994,779 | Q117: 0.991636872 | R117: 0.00775611811 | S117: 147.60 | T117: 76.42 | U117: 0.9313342559 | V117: 5.143996703e-05 | W117: 201,637 | X117: 0.00412428924 | Y117: 140,613 | Z117: 0.433985
B118: 黄大豆1号期权 | C118: 905,615 | D118: 514,492 | E118: 0.760212015 | F118: 1,855,619 | G118: -0.5119606988 | H118: 0.001334516563 | I118: 2.52 | J118: 1.05 | K118: 1.388963993 | L118: 5.78 | M118: -0.564088334 | N118: 4.601133721e-06 | O118: 4,857,304 | P118: 2,051,748 | Q118: 1.367397946 | R118: 0.001455662329 | S118: 14.83 | T118: 4.37 | U118: 2.394625707 | V118: 5.168006998e-06 | W118: 137,278 | X118: 0.002807888326 | Y118: 73,308 | Z118: 0.87262
B119: 黄大豆2号期权 | C119: 764,242 | D119: 365,968 | E119: 1.088275478 | F119: 1,164,272 | G119: -0.3435880963 | H119: 0.001126188952 | I119: 1.20 | J119: 1.56 | K119: -0.2303806066 | L119: 2.89 | M119: -0.583329986 | N119: 2.198621636e-06 | O119: 4,918,522 | P119: 2,618,855 | Q119: 0.8781192544 | R119: 0.001474008461 | S119: 12.16 | T119: 7.49 | U119: 0.62311029 | V119: 4.236575006e-06 | W119: 32,348 | X119: 0.0006616469614 | Y119: 65,859 | Z119: -0.508829
B120: 豆油期权 | C120: 741,005 | D120: 1,240,373 | E120: -0.4025950259 | F120: 1,359,533 | G120: -0.4549562239 | H120: 0.00109194685 | I120: 5.31 | J120: 10.57 | K120: -0.4974530127 | L120: 8.13 | M120: -0.3466305606 | N120: 9.704028083e-06 | O120: 5,096,206 | P120: 4,578,140 | Q120: 0.1131608033 | R120: 0.001527257733 | S120: 34.79 | T120: 31.74 | U120: 0.09594679012 | V120: 1.212331995e-05 | W120: 155,996 | X120: 0.003190746859 | Y120: 128,167 | Z120: 0.217131
B121: 苯乙烯期权 | C121: 8,356,036 | D121: 2,294,882 | E121: 2.641161506 | F121: 3,231,392 | G121: 1.585893633 | H121: 0.01231347587 | I121: 16.40 | J121: 5.37 | K121: 2.051857707 | L121: 9.43 | M121: 0.7388700439 | N121: 2.996129494e-05 | O121: 19,126,979 | P121: 10,262,419 | Q121: 0.8637885473 | R121: 0.005732073349 | S121: 39.21 | T121: 22.11 | U121: 0.7731284473 | V121: 1.366480457e-05 | W121: 101,008 | X121: 0.002066020659 | Y121: 101,991 | Z121: -0.009638
B122: 乙二醇期权 | C122: 1,367,781 | D122: 534,975 | E122: 1.556719473 | F122: 1,033,871 | G122: 0.3229706607 | H122: 0.002015565555 | I122: 3.71 | J122: 3.22 | K122: 0.1516141129 | L122: 3.52 | M122: 0.0539693435 | N122: 6.778264355e-06 | O122: 4,411,919 | P122: 3,188,011 | Q122: 0.3839095913 | R122: 0.001322187017 | S122: 14.10 | T122: 14.95 | U122: -0.05679790116 | V122: 4.915564996e-06 | W122: 40,513 | X122: 0.000828654116 | Y122: 43,228 | Z122: -0.062807
